Workbook

Sheet Оглавление
A1: Оглавление | D1: Для перехода к бренду щелкните на его название
A2: ICE by Nатура Siberica
A3: WELLA
A4: TEFIA
A5: MATRIX
A6: EPICA
A7: INSIGHT
A8: Infinity NEW
A9: CONCEPT
A10: ConstantDelight
A11: Domix
A12: Schwarzkopf
A13: INDOLA
A14: LONDA
A15: KAPOUS
A16: Selective
A17: BAREX
A18: ESTEL
A19: Расход.мат-лы депиляция
A20: Принадлежности
A21: ANGEL
A22: SHOT
A23: Лаки DanceLegend

Sheet ICE by Nатура Siberica
C14: ПРАЙС-ЛИСТ | D14: Проставьте в зеленой ячейке вашу скидку | G14: %
C15: ICE Professional by NATURA SIBERICA
A18: 2024-04-01
A19: Артикул | B19: штрих-код | C19: Наименование | D19: Шт/кор | E19: РРЦ (руб) | F19: Цена с НДС (руб) | G19: Цена с вашей скидкой,руб | H19: ЗАКАЗ шт | I19: Сумма по заказу с вашей скидкой, руб
C20: REFILL MY HAIR
A21: 0991-66730 | B21: 4630079566730 | C21: REFILL MY HAIR SHAMPOO / Шампунь для сухих и повреждённых волос, 250 мл | D21: 12 | E21: 599 | F21: 373.776 | G21: =F21-F21*$F$14/100 -> 373.776 | I21: =G21*H21 -> 0
A22: 0991-66822 | B22: 4630079566822 | C22: REFILL MY HAIR CONDITIONER / Кондиционер для сухих и повреждённых волос, 250 мл | D22: 12 | E22: 689 | F22: 429.936 | G22: 429.936 | I22: 0
A23: 0991-67546 | B23: 4630079567546 | C23: REFILL MY HAIR MASK / Маска для сухих и повреждённых волос, 200 мл | D23: 10 | E23: 699 | F23: 436.176 | G23: 436.176 | I23: 0
A24: 0991-66860 | B24: 4630079566860 | C24: REFILL MY HAIR SPRAY / Сыворотка-спрей для сухих и повреждённых волос, 100 мл | D24: 10 | E24: 400 | F24: 249.6 | G24: 249.6 | I24: 0
A25: 0991-67119 | B25: 4630079567119 | C25: REFILL MY HAIR GLOW BOOSTER / Концентрат для усиления блеска волос, 30 мл | D25: 10 | E25: 590 | F25: 368.16 | G25: 368.16 | I25: 0
A26: 0991-67362 | B26: 4630079567362 | C26: REFILL MY HAIR AQUA BOOSTER / Концентрат для интенсивного увлажнения, 30 мл | D26: 10 | E26: 590 | F26: 368.16 | G26: 368.16 | I26: 0
A27: 0991-67508 | B27: 4630079567508 | C27: REFILL MY HAIR POWER BOOSTER / Концентрат для восстановления волос, 30 мл | D27: 10 | E27: 590 | F27: 368.16 | G27: 368.16 | I27: 0
A28: 0991-69229 | B28: 4630079569229 | C28: REFILL MY HAIR BIO MASK / Маска для сухих и повреждённых волос, 750 мл | D28: 6 | E28: 1749 | F28: 1091.376 | G28: 1091.376 | I28: 0
A29: 0991-69175 | B29: 4630079569175 | C29: REFILL MY HAIR BIO SHAMPOO / Шампунь для сухих и повреждённых волос, 1000 мл | D29: 6 | E29: 1449 | F29: 904.176 | G29: 904.176 | I29: 0
A30: 0991-66877 | B30: 4630079566877 | C30: REFILL MY HAIR / Сыворотка-спрей для сухих и повреждённых волос, 200 мл | D30: 12 | E30: 550 | F30: 343.2 | G30: 343.2 | I30: 0
G31: 0 | I31: 0
C32: REFRESH MY SCALP | G32: 0 | I32: 0
A33: 0991-66921 | B33: 4630079566921 | C33: REFRESH MY SCALP PEELING / "Детокс"- пилинг для кожи головы, 100 мл | D33: 10 | E33: 590 | F33: 368.16 | G33: 368.16 | I33: 0
A34: 0991-66884 | B34: 4630079566884 | C34: REFRESH MY SCALP SHAMPOO / "Детокс"- шампунь для всех типов волос, 250 мл | D34: 12 | E34: 599 | F34: 373.776 | G34: 373.776 | I34: 0
A35: 0991-66907 | B35: 4630079566907 | C35: REFRESH MY SCALP CONDITIONER / Кондиционер для всех типов волос, 250 мл | D35: 12 | E35: 689 | F35: 429.936 | G35: 429.936 | I35: 0
A36: 0991-66938 | B36: 4630079566938 | C36: LIFT MY HAIR SPRAY/ Спрей-тоник для придания объёма волосам, 100 мл | D36: 10 | E36: 400 | F36: 249.6 | G36: 249.6 | I36: 0
A37: 0991-67003 | B37: 4630079567003 | C37: TREAT MY SCALP TONIC / Тоник-активатор для кожи головы, 100 мл | D37: 10 | E37: 500 | F37: 312 | G37: 312 | I37: 0
A38: 0991-67515 | B38: 4630079567515 | C38: CALM MY SCALP SERUM / Успокаивающая сыворотка для кожи головы, 100 мл | D38: 10 | E38: 450 | F38: 280.8 | G38: 280.8 | I38: 0
A39: 0991-69069 | B39: 4630079569069 | C39: REFRESH MY SCALP SHAMPOO / "Детокс"- шампунь для всех типов волос, 1000 мл | D39: 6 | E39: 1449 | F39: 904.176 | G39: 904.176 | I39: 0
G40: 0 | I40: 0
C41: KEEP MY BLONDE | G41: 0 | I41: 0
A42: 0991-67287 | B42: 4630079567287 | C42: KEEP MY BLONDE SHAMPOO anti-yellow / Тонирующий шампунь для светлых волос, 250 мл | D42: 12 | E42: 591 | F42: 368.784 | G42: 368.784 | I42: 0
A43: 0991-67300 | B43: 4630079567300 | C43: KEEP MY BLONDE CONDITIONER anti-yellow / Тонирующий кондиционер для светлых волос, 250 мл | D43: 12 | E43: 660 | F43: 411.84 | G43: 411.84 | I43: 0
A44: 0991-67324 | B44: 4630079567324 | C44: KEEP MY BLONDE SPRAY / Сыворотка - спрей для светлых волос, 100 мл | D44: 10 | E44: 550 | F44: 343.2 | G44: 343.2 | I44: 0
A45: 0991-67676 | B45: 4630079567676 | C45: KEEP MY BLONDE MASK anti-yellow / Тонирующая маска для светлых волос, 200 мл | D45: 10 | E45: 660 | F45: 411.84 | G45: 411.84 | I45: 0
A46: 0991-69212 | B46: 4630079569212 | C46: KEEP MY BLONDE BIO MASK anty-yellow / Тонирующая маска для светлых волос, 750 мл | D46: 6 | E46: 1700 | F46: 1060.8 | G46: 1060.8 | I46: 0
A47: 0991-69168 | B47: 4630079569168 | C47: KEEP MY BLONDE BIO SHAMPOO anti-yellow / Тонирующий шампунь для светлых волос, 1000 мл | D47: 6 | E47: 1401 | F47: 874.224 | G47: 874.224 | I47: 0
A48: 0991-67331 | B48: 4630079567331 | C48: KEEP MY BLONDE / Сыворотка - спрей для светлых волос, 200 мл | D48: 12 | E48: 720 | F48: 449.28 | G48: 449.28 | I48: 0
G49: 0 | I49: 0
C50: KEEP MY COLOR | G50: 0 | I50: 0
A51: 0991-66945 | B51: 4630079566945 | C51: KEEP MY COLOR SHAMPOO / Шампунь для окрашенных и тонированных волос, 250 мл | D51: 12 | E51: 599 | F51: 373.776 | G51: 373.776 | I51: 0
A52: 0991-66969 | B52: 4630079566969 | C52: KEEP MY COLOR CONDITIONER / Кондиционер для окрашенных и тонированных волос, 250 мл | D52: 12 | E52: 689 | F52: 429.936 | G52: 429.936 | I52: 0
A53: 0991-67560 | B53: 4630079567560 | C53: KEEP MY COLOR MASK / Маска для окрашенных и тонированных волос, 200 мл | D53: 10 | E53: 699 | F53: 436.176 | G53: 436.176 | I53: 0
A54: 0991-67492 | B54: 4630079567492 | C54: KEEP MY COLOR CREAM / Крем для окрашенных и тонированных волос, 100 мл | D54: 10 | E54: 399 | F54: 248.976 | G54: 248.976 | I54: 0
A55: 0991-67034 | B55: 4630079567034 | C55: KEEP MY COLOR OIL / Масло для окрашенных и тонированных волос, 50 мл | D55: 12 | E55: 699 | F55: 436.176 | G55: 436.176 | I55: 0
A56: 0991-69199 | B56: 4630079569199 | C56: KEEP MY COLOR BIO MASK / Маска для окрашенных и тонированных волос, 750 мл | D56: 6 | E56: 1749 | F56: 1091.376 | G56: 1091.376 | I56: 0
A57: 0991-69144 | B57: 4630079569144 | C57: KEEP MY COLOR BIO SHAMPOO / Шампунь для окрашенных и тонированных волос, 1000 мл | D57: 6 | E57: 1449 | F57: 904.176 | G57: 904.176 | I57: 0
G58: 0 | I58: 0
C59: TAME MY HAIR | G59: 0 | I59: 0
A60: 0991-67065 | B60: 4630079567065 | C60: TAME MY HAIR SHAMPOO / Шампунь для тусклых и вьющихся волос, 250 мл | D60: 12 | E60: 599 | F60: 373.776 | G60: 373.776 | I60: 0
A61: 0991-67089 | B61: 4630079567089 | C61: TAME MY HAIR CONDITIONER / Кондиционер для тусклых и вьющихся волос, 250 мл | D61: 12 | E61: 689 | F61: 429.936 | G61: 429.936 | I61: 0
A62: 0991-67584 | B62: 4630079567584 | C62: TAME MY HAIR MASK / Маска для тусклых и вьющихся волос, 200 мл | D62: 10 | E62: 689 | F62: 429.936 | G62: 429.936 | I62: 0
A63: 0991-67607 | B63: 4630079567607 | C63: TAME MY HAIR SPRAY / Сыворотка - спрей для вьющихся волос, 100 мл | D63: 10 | E63: 400 | F63: 249.6 | G63: 249.6 | I63: 0
A64: 0991-67621 | B64: 4630079567621 | C64: TAME MY HAIR CREAM / Разглаживающий крем волос, 100 мл | D64: 10 | E64: 399 | F64: 248.976 | G64: 248.976 | I64: 0
A65: 0991-67478 | B65: 4630079567478 | C65: TAME MY HAIR PRE-SHAMPOO OIL /Концентрированное масло пре-шампунь, 100 мл | D65: 10 | E65: 500 | F65: 312 | G65: 312 | I65: 0
A66: 0991-67645 | B66: 4630079567645 | C66: TAME MY HAIR OIL / Масло для тусклых и вьющихся волос, 50 мл | D66: 12 | E66: 690 | F66: 430.56 | G66: 430.56 | I66: 0
A67: 0991-69182 | B67: 4630079569182 | C67: TAME MY HAIR BIO MASK / Маска для тусклых и вьющихся волос, 750 мл | D67: 6 | E67: 1749 | F67: 1091.376 | G67: 1091.376 | I67: 0
A68: 0991-69045 | B68: 4630079569045 | C68: TAME MY HAIR BIO SHAMPOO / Шампунь для тусклых и вьющихся волос, 1000 мл | D68: 6 | E68: 1449 | F68: 904.176 | G68: 904.176 | I68: 0
A69: 0991-67614 | B69: 4630079567614 | C69: TAME MY HAIR / Сыворотка - спрей для вьющихся волос, 200 мл | D69: 12 | E69: 550 | F69: 343.2 | G69: 343.2 | I69: 0
G70: 0 | I70: 0
C71: REPAIR MY HAIR | G71: 0 | I71: 0
A72: 0991-67188 | B72: 4630079567188 | C72: REPAIR MY HAIR SHAMPOO / Шампунь для сильно повреждённых волос, 250 мл | D72: 12 | E72: 599 | F72: 373.776 | G72: 373.776 | I72: 0
A73: 0991-67201 | B73: 4630079567201 | C73: REPAIR MY HAIR CONDITIONER / Кондиционер для сильно повреждённых волос, 250 мл | D73: 12 | E73: 689 | F73: 429.936 | G73: 429.936 | I73: 0
A74: 0991-67539 | B74: 4630079567539 | C74: REPAIR MY HAIR SPRAY / Cпрей-кондиционер для сильно повреждённых волос, 100 мл | D74: 10 | E74: 400 | F74: 249.6 | G74: 249.6 | I74: 0
A75: 0991-67720 | B75: 4630079567720 | C75: REPAIR MY HAIR / Cпрей-кондиционер для сильно повреждённых волос, 200 мл | D75: 12 | E75: 550 | F75: 343.2 | G75: 343.2 | I75: 0
A76: 0991-67522 | B76: 4630079567522 | C76: REPAIR MY HAIR KERATIN FILLER / Кератиновый спрей-концентрат для сильно поврежденных волос, 100 мл | D76: 10 | E76: 400 | F76: 249.6 | G76: 249.6 | I76: 0
A77: 0991-67737 | B77: 4630079567737 | C77: REPAIR MY HAIR KERATIN FILLER / Кератиновый спрей-концентрат для сильно поврежденных волос, 200 мл | D77: 12 | E77: 550 | F77: 343.2 | G77: 343.2 | I77: 0
A78: 0991-67652 | B78: 4630079567652 | C78: REPAIR MY HAIR MASK / Маска для сильно повреждённых волос, 200 мл | D78: 10 | E78: 699 | F78: 436.176 | G78: 436.176 | I78: 0
A79: 0991-67270 | B79: 4630079567270 | C79: REPAIR MY HAIR OIL / Масло для сильно повреждённых волос, 50 мл | D79: 12 | E79: 699 | F79: 436.176 | G79: 436.176 | I79: 0
A80: 0991-69205 | B80: 4630079569205 | C80: REPAIR MY HAIR BIO MASK / Маска для сильно повреждённых волос, 750 мл | D80: 6 | E80: 1749 | F80: 1091.376 | G80: 1091.376 | I80: 0
A81: 0991-69151 | B81: 4630079569151 | C81: REPAIR MY HAIR BIO SHAMPOO / Шампунь для сильно повреждённых волос, 1000 мл | D81: 6 | E81: 1449 | F81: 904.176 | G81: 904.176 | I81: 0
G82: 0 | I82: 0
C83: COLOR MASK | G83: 0 | I83: 0
A84: 0991-02916 | B84: 4630121102916 | C84: COLOR MASK / Тонирующая маска для волос Beige Blush, 140 мл | D84: 10 | E84: 590 | F84: 368.16 | G84: 368.16 | I84: 0
A85: 0991-02947 | B85: 4630121102947 | C85: COLOR MASK / Тонирующая маска для волос Black Lava, 140 мл | D85: 10 | E85: 590 | F85: 368.16 | G85: =F85-F85*$F$14/100 -> 368.16 | I85: =G85*H85 -> 0
A86: 0991-02909 | B86: 4630121102909 | C86: COLOR MASK / Тонирующая маска для волос Blue Flash, 140 мл | D86: 10 | E86: 590 | F86: 368.16 | G86: 368.16 | I86: 0
A87: 0991-02923 | B87: 4630121102923 | C87: COLOR MASK / Тонирующая маска для волос Choco Late, 140 мл | D87: 10 | E87: 590 | F87: 368.16 | G87: 368.16 | I87: 0
A88: 0991-02886 | B88: 4630121102886 | C88: COLOR MASK / Тонирующая маска для волос Copper Chic, 140 мл | D88: 10 | E88: 590 | F88: 368.16 | G88: 368.16 | I88: 0
A89: 0991-02848 | B89: 4630121102848 | C89: COLOR MASK / Тонирующая маска для волос Coral Flame, 140 мл | D89: 10 | E89: 590 | F89: 368.16 | G89: 368.16 | I89: 0
A90: 0991-02855 | B90: 4630121102855 | C90: COLOR MASK / Тонирующая маска для волос Fuchsia Fun, 140 мл | D90: 10 | E90: 590 | F90: 368.16 | G90: 368.16 | I90: 0
A91: 0991-02930 | B91: 4630121102930 | C91: COLOR MASK / Тонирующая маска для волос Honey Moon, 140 мл | D91: 10 | E91: 590 | F91: 368.16 | G91: 368.16 | I91: 0
A92: 0991-02862 | B92: 4630121102862 | C92: COLOR MASK / Тонирующая маска для волос Pinky Doll, 140 мл | D92: 10 | E92: 590 | F92: 368.16 | G92: 368.16 | I92: 0
A93: 0991-02879 | B93: 4630121102879 | C93: COLOR MASK / Тонирующая маска для волос Red Splash, 140 мл | D93: 10 | E93: 590 | F93: 368.16 | G93: 368.16 | I93: 0
A94: 0991-02794 | B94: 4630121102794 | C94: COLOR MASK / Тонирующая маска для волос Silver Blonde, 140 мл | D94: 10 | E94: 590 | F94: 368.16 | G94: 368.16 | I94: 0
A95: 0991-02893 | B95: 4630121102893 | C95: COLOR MASK / Тонирующая маска для волос Violet Vibe, 140 мл | D95: 10 | E95: 590 | F95: 368.16 | G95: 368.16 | I95: 0
G96: 0 | I96: 0
C97: SCALP EXPERT | G97: 0 | I97: 0
A98: 0991-01148 | B98: 4630121101148 | C98: Scalp Expert / Маска-глина "Для очищения,восстановления кожи головы",150мл | D98: 10 | E98: 569 | F98: 355.056 | G98: 355.056 | I98: 0
A99: 0991-01193 | B99: 4630121101193 | C99: Scalp Expert / Лосьон против выпадения и для стимуляции роста волос, 150 мл | D99: 12 | E99: 690 | F99: 430.56 | G99: 430.56 | I99: 0
A100: 0991-01353 | B100: 4630121101353 | C100: Scalp Expert / Мультикислотный пилинг глубокого очищения кожи головы,150 мл | D100: 10 | E100: 599 | F100: 373.776 | G100: 373.776 | I100: 0
A101: 0991-01438 | B101: 4630121101438 | C101: Scalp Expert / Скраб-эксфолиант для глубокого очищения кожи головы, 200 г | D101: 10 | E101: 699 | F101: 436.176 | G101: 436.176 | I101: 0
A102: 0991-01179 | B102: 4630121101179 | C102: Scalp Expert / Согревающая маска-активатор для кожи головы, 150 мл | D102: 10 | E102: 569 | F102: 355.056 | G102: 355.056 | I102: 0
A103: 0991-01162 | B103: 4630121101162 | C103: Scalp Expert / Спрей-тоник "Восстановление микробиома кожи головы", 150 мл | D103: 12 | E103: 569 | F103: 355.056 | G103: 355.056 | I103: 0
A104: 0991-01186 | B104: 4630121101186 | C104: Scalp Expert / Укрепляющий шампунь для стимуляции роста волос, 250 мл | D104: 12 | E104: 599 | F104: 373.776 | G104: 373.776 | I104: 0
A105: 0991-01155 | B105: 4630121101155 | C105: Scalp Expert / Шампунь "Для восстановления баланса кожи головы", 250 мл | D105: 12 | E105: 599 | F105: 373.776 | G105: 373.776 | I105: 0
A106: 0991-01360 | B106: 4630121101360 | C106: Scalp Expert / Шампунь для чувствительной кожи головы, 250 мл | D106: 12 | E106: 599 | F106: 373.776 | G106: 373.776 | I106: 0
A107: 0991-01384 | B107: 4630121101384 | C107: Scalp Expert / Шампунь-эксфолиант против перхоти, 250 мл | D107: 12 | E107: 599 | F107: 373.776 | G107: 373.776 | I107: 0
G108: ИТОГО | I108: =SUM(I47:I107) -> 0

Sheet WELLA
A1: Ваш торговый представитель______________________
A2: моб. Тел._________________________________________
A3: 109457 г. Москва,ул. Плеханова, дом 4,стр.3 ООО “Компания "Аквакосметика” тел. 8(495)785-99-54,785-99-53 многоканальный сайт: www.steck.ru, e-mail: prof@akva.ru
B4: Проставьте в зеленой ячейке вашу скидку | F4: %
B5: ПРАЙС-ЛИСТ MATRIX Professional
A7: 2024-04-01
A8: Артикул | B8: Наименование товаров | C8: Цены с НДС , руб. | D8: Цена с вашей скидкой,руб | E8: ЗАКАЗ шт | F8: Сумма по заказу с вашей скидкой, руб
A9: 1-99240008189 | B9: Wella Blondor порошок для блондирования, 800 мл | C9: 3528 | D9: =C9-C9*$E$4/100 -> 3528 | F9: =D9*E9 -> 0
A10: 1-81588503 | B10: Wella Color touch 3/0 Темно-коричневый 60 мл | C10: 840 | D10: =C10-C10*$E$4/100 -> 840 | F10: 0
A11: 1-81639012 | B11: Wella Color touch 66/07 Кипарис | C11: 840 | D11: 840 | F11: 0
A12: 1-81588491 | B12: Wella Color touch 7/0 блондин 60мл | C12: 767.52 | D12: 767.52 | F12: 0
A13: 1-81588328 | B13: Wella Color touch 8/0 Светлый блондин 60мл | C13: 792 | D13: 792 | F13: 0
A14: 1-81639029 | B14: Wella Color touch 9/16 Горный хрусталь | C14: 792 | D14: 792 | F14: 0
A15: 1-81588363 | B15: Wella Color touch Крем-краска 6/0 Темный блонд 60мл. | C15: 840 | D15: 840 | F15: 0
A16: 1-81588500 | B16: Wella Color Touch 10/73 Сандаловое дерево 60мл | C16: 840 | D16: 840 | F16: 0
A17: 1-81588316 | B17: Wella Color Touch 10/81 Нежный ангел 60мл | C17: 792 | D17: 792 | F17: 0
A18: 1-81650887 | B18: Wella Koleston 10/16 ванильное небо 60мл | C18: 792 | D18: 792 | F18: 0
A19: 1-81650941 | B19: Wella Koleston 12/0 Ультраяркий блонд 60мл | C19: 840 | D19: 840 | F19: 0
A20: 1-81650435 | B20: Wella Koleston 12/1 Песочный 60мл | C20: 840 | D20: 840 | F20: 0
A21: 1-81650950 | B21: Wella Koleston 12/89 Ванильный 60мл (Н/Р) | C21: 792 | D21: 792 | F21: 0
A22: 1-81650647 | B22: Wella Koleston 4/0 Коричневый натуральный 60мл (Н/Р) | C22: 792 | D22: 792 | F22: 0
A23: 1-81650649 | B23: Wella Koleston 4/07 сакура 60мл. | C23: 792 | D23: 792 | F23: 0
A24: 1-81650650 | B24: Wella Koleston 4/71 Тирамису 60мл | C24: 840 | D24: 840 | F24: 0
A25: 1-81650683 | B25: Wella Koleston 4/77 Горячий шоколад 60мл | C25: 792 | D25: 792 | F25: 0
A26: 1-81650451 | B26: Wella Koleston 44/0 Коричневый интенсивный натуральный 60мл | C26: 792 | D26: 792 | F26: 0
A27: 1-81650670 | B27: Wella Koleston 6/0 Темный блонд натуральный 60мл (Н/Р) | C27: 840 | D27: 840 | F27: 0
A28: 1-81650670/2 | B28: Wella Koleston 6/0 Темный блонд натуральный 80мл | C28: 840 | D28: 840 | F28: 0
A29: 1-81650687 | B29: Wella Koleston 6/00 Темный блонд натуральный интенсивный 60мл (Н/Р) | C29: 792 | D29: 792 | F29: 0
A30: 1-81650685 | B30: Wella Koleston 6/77 Темный блонд коричневый интенсивный 60мл (Н/Р) | C30: 792 | D30: 792 | F30: 0
A31: 1-81650686 | B31: Wella Koleston 6/97 Кофейный мусс 60мл | C31: 773 | D31: 773 | F31: 0
A32: 1-81650966 | B32: Wella Koleston 66/0 Темный блонд интенсивный натуральный 60мл | C32: 840 | D32: 840 | F32: 0
A33: 1-81650827 | B33: Wella Koleston 7/71 Блонд коричневый пепельный 60мл (Н/Р) | C33: 840 | D33: 840 | F33: 0
A34: 1-81650971 | B34: Wella Koleston 77/0 Блонд интенсивный натуральный 60мл | C34: 773 | D34: 773 | F34: 0
A35: 0992-81650833 | B35: Wella Koleston 8/0 светлый блонд натуральный 60 мл. | C35: 792 | D35: 792 | F35: 0
A36: 1-81650975 | B36: Wella Koleston 88/0 Светлый блонд интенсивный натуральный 60мл | C36: 773 | D36: 773 | F36: 0
A37: 1-81650866 | B37: Wella Koleston 9/16 Горный хрусталь 60мл (Н/Р) | C37: 840 | D37: 840 | F37: 0
A38: 1-81650876 | B38: Wella Koleston 9/96 Полярис 60мл | C38: 773 | D38: =C38-C38*$E$4/100 -> 773 | F38: =D38*E38 -> 0
A39: 1-81650877 | B39: Wella Koleston 9/97 Айриш крем 60мл | C39: 773 | D39: 773 | F39: 0
A40: 1-81646921 | B40: Wella WP Окислитель 1,9% 1000мл 6V | C40: 1133.33 | D40: 1133.33 | F40: 0
A41: 1-81646925 | B41: Wella WP Окислитель 12% 1000мл | C41: 936 | D41: 936 | F41: 0
A42: 1-81646922 | B42: Wella WP Окислитель 4% 1000мл 13V | C42: 1000 | D42: 1000 | F42: 0
A43: 1-61650929 | B43: Wella WP Окислитель 6% 60мл | C43: 157.34 | D43: 157.34 | F43: 0
A44: 1-81646924 | B44: Wella WP Окислитель 9% 1000мл | C44: 1013.33 | D44: 1013.33 | F44: 0
A45: 1-81639220 | B45: Wella Color Touch Эмульсия 4% 1000 мл | C45: 1085 | D45: 1085 | F45: 0
A46: 1-81639219 | B46: Wella Color Touch Эмульсия 1,9 % 1000 мл | C46: 1200 | D46: 1200 | F46: 0
D47: ИТОГО: | F47: =SUM(F9:F46) -> 0

Sheet TEFIA
A1: Ваш торговый представитель______________________
A2: моб. Тел._________________________________________
A3: 109457 г. Москва,ул. Плеханова, дом 4,стр.3 ООО “Компания "Аквакосметика” тел. 8(495)785-99-54,785-99-53 многоканальный сайт: www.steck.ru, e-mail: prof@akva.ru
B7: ПРАЙС-ЛИСТ TEFIA Professional (Россия) | E7: Проставьте в зеленой ячейке вашу скидку | H7: %
A9: 2024-04-03
A10: Артикул | B10: НАИМЕНОВАНИЕ | C10: Объем, мл. | D10: Рекомендованная Розничная цена на полки в магазине | E10: цена салон | F10: Цена с вашей скидкой,руб | G10: Ваш Заказ | H10: Сумма Вашего заказа (с НДС)
B11: Перманентная крем-краска для волос Ambient Color (150 оттенков)
A12: AMBCOL-1.0 | B12: 1.0 Черный натуральный | C12: 60 | D12: 378 | E12: 210 | F12: =E12-E12*$G$7/100 -> 210 | H12: =G12*F12 -> 0
A13: AMBCOL-3.0 | B13: 3.0 Темный брюнет натуральный | C13: 60 | D13: 378 | E13: 210 | F13: =E13-E13*$G$7/100 -> 210 | H13: =G13*F13 -> 0
A14: AMBCOL-3.11 | B14: 3.11 Темный брюнет интенсивный пепельный | C14: 60 | D14: 378 | E14: 210 | F14: =E14-E14*$G$7/100 -> 210 | H14: 0
A15: AMBCOL-3.77 | B15: 3.77 Темный брюнет интенсивный фиолетовый | C15: 60 | D15: 378 | E15: 210 | F15: 210 | H15: 0
A16: AMBCOL-4.0 | B16: 4.0 Брюнет натуральный | C16: 60 | D16: 378 | E16: 210 | F16: 210 | H16: 0
A17: AMBCOL-4.00 | B17: 4.00 Брюнет интенсивный натуральный | C17: 60 | D17: 378 | E17: 210 | F17: 210 | H17: 0
A18: AMBCOL-4.5 | B18: 4.5 Брюнет красный | C18: 60 | D18: 378 | E18: 210 | F18: 210 | H18: 0
A19: AMBCOL-4.8 | B19: 4.8 Брюнет коричневый | C19: 60 | D19: 378 | E19: 210 | F19: 210 | H19: 0
A20: AMBCOL-4.86 | B20: 4.86 Брюнет коричнево-махагоновый | C20: 60 | D20: 378 | E20: 210 | F20: 210 | H20: 0
A21: AMBCOL-5.0 | B21: 5.0 Светлый брюнет натуральный | C21: 60 | D21: 378 | E21: 210 | F21: 210 | H21: 0
A22: AMBCOL-5.00 | B22: 5.00 Светлый брюнет интенсивный натуральный | C22: 60 | D22: 378 | E22: 210 | F22: 210 | H22: 0
A23: AMBCOL-5.11 | B23: 5.11 Светлый брюнет интенсивный пепельный | C23: 60 | D23: 378 | E23: 210 | F23: 210 | H23: 0
A24: AMBCOL-5.16 | B24: 5.16 Светлый брюнет пепельно-махагоновый | C24: 60 | D24: 378 | E24: 210 | F24: 210 | H24: 0
A25: AMBCOL-5.3 | B25: 5.3 Светлый брюнет золотистый | C25: 60 | D25: 378 | E25: 210 | F25: 210 | H25: 0
A26: AMBCOL-5.4 | B26: 5.4 Светлый брюнет медный | C26: 60 | D26: 378 | E26: 210 | F26: 210 | H26: 0
A27: AMBCOL-5.5 | B27: 5.5 Светлый брюнет красный | C27: 60 | D27: 378 | E27: 210 | F27: 210 | H27: 0
A28: AMBCOL-5.7 | B28: 5.7 Светлый брюнет фиолетовый | C28: 60 | D28: 378 | E28: 210 | F28: 210 | H28: 0
A29: AMBCOL-5.8 | B29: 5.8 Светлый брюнет коричневый | C29: 60 | D29: 378 | E29: 210 | F29: 210 | H29: 0
A30: AMBCOL-5.86 | B30: 5.86 Светлый брюнет коричнево-махагоновый | C30: 60 | D30: 378 | E30: 210 | F30: 210 | H30: 0
A31: AMBCOL-6.0 | B31: 6.0 Темный блондин натуральный | C31: 60 | D31: 378 | E31: 210 | F31: 210 | H31: 0
A32: AMBCOL-6.00 | B32: 6.00 Темный блондин интенсивный натуральный | C32: 60 | D32: 378 | E32: 210 | F32: 210 | H32: 0
A33: AMBCOL-6.11 | B33: 6.11 Темный блондин интенсивный пепельный | C33: 60 | D33: 378 | E33: 210 | F33: 210 | H33: 0
A34: AMBCOL-6.16 | B34: 6.16 Темный блондин пепельно-махагоновый | C34: 60 | D34: 378 | E34: 210 | F34: 210 | H34: 0
A35: AMBCOL-6.18 | B35: 6.18 Темный блондин пепельно-коричневый | C35: 60 | D35: 378 | E35: 210 | F35: 210 | H35: 0
A36: AMBCOL-6.3 | B36: 6.3 Темный блондин золотистый | C36: 60 | D36: 378 | E36: 210 | F36: 210 | H36: 0
A37: AMBCOL-6.4 | B37: 6.4 Темный блондин медный | C37: 60 | D37: 378 | E37: 210 | F37: 210 | H37: 0
A38: AMBCOL-6.41 | B38: 6.41 Темный блондин медно-пепельный | C38: 60 | D38: 378 | E38: 210 | F38: 210 | H38: 0
A39: AMBCOL-6.43 | B39: 6.43 Темный блондин медно-золотистый | C39: 60 | D39: 378 | E39: 210 | F39: 210 | H39: 0
A40: AMBCOL-6.5 | B40: 6.5 Темный блондин красный | C40: 60 | D40: 378 | E40: 210 | F40: 210 | H40: 0
A41: AMBCOL-6.7 | B41: 6.7 Темный блондин фиолетовый | C41: 60 | D41: 378 | E41: 210 | F41: 210 | H41: 0
A42: AMBCOL-6.71 | B42: 6.71 Темный блондин фиолетово-пепельный | C42: 60 | D42: 378 | E42: 210 | F42: 210 | H42: 0
A43: AMBCOL-6.8 | B43: 6.8 Темный блондин коричневый | C43: 60 | D43: 378 | E43: 210 | F43: 210 | H43: 0
A44: AMBCOL-6.86 | B44: 6.86 Темный блондин коричнево-махагоновый | C44: 60 | D44: 378 | E44: 210 | F44: 210 | H44: 0
A45: AMBCOL-6.877 | B45: 6.877 Темный блондин интенсивный коричнево-фиолетовый | C45: 60 | D45: 378 | E45: 210 | F45: 210 | H45: 0
A46: AMBCOL-7.0 | B46: 7.0 Блондин натуральный | C46: 60 | D46: 378 | E46: 210 | F46: 210 | H46: 0
A47: AMBCOL-7.00 | B47: 7.00 Блондин интенсивный натуральный | C47: 60 | D47: 378 | E47: 210 | F47: 210 | H47: 0
A48: AMBCOL-7.01 | B48: 7.01 Блондин натуральный пепельный | C48: 60 | D48: 378 | E48: 210 | F48: 210 | H48: 0
A49: AMBCOL-7.11 | B49: 7.11 Блондин интенсивный пепельный | C49: 60 | D49: 378 | E49: 210 | F49: 210 | H49: 0
A50: AMBCOL-7.117 | B50: 7.117 Блондин интенсивный пепельно-фиолетовый | C50: 60 | D50: 378 | E50: 210 | F50: 210 | H50: 0
A51: AMBCOL-7.16 | B51: 7.16 Блондин пепельно-махагоновый | C51: 60 | D51: 378 | E51: 210 | F51: 210 | H51: 0
A52: AMBCOL-7.18 | B52: 7.18 Блондин пепельно-коричневый | C52: 60 | D52: 378 | E52: 210 | F52: 210 | H52: 0
A53: AMBCOL-7.3 | B53: 7.3 Блондин золотистый | C53: 60 | D53: 378 | E53: 210 | F53: 210 | H53: 0
A54: AMBCOL-7.4 | B54: 7.4 Блондин медный | C54: 60 | D54: 378 | E54: 210 | F54: 210 | H54: 0
A55: AMBCOL-7.41 | B55: 7.41 Блондин медно-пепельный | C55: 60 | D55: 378 | E55: 210 | F55: 210 | H55: 0
A56: AMBCOL-7.43 | B56: 7.43 Блондин медно-золотистый | C56: 60 | D56: 378 | E56: 210 | F56: 210 | H56: 0
A57: AMBCOL-7.5 | B57: 7.5 Блондин красный | C57: 60 | D57: 378 | E57: 210 | F57: 210 | H57: 0
A58: AMBCOL-7.7 | B58: 7.7 Блондин фиолетовый | C58: 60 | D58: 378 | E58: 210 | F58: 210 | H58: 0
A59: AMBCOL-7.71 | B59: 7.71 Блондин фиолетово-пепельный | C59: 60 | D59: 378 | E59: 210 | F59: 210 | H59: 0
A60: AMBCOL-7.8 | B60: 7.8 Блондин коричневый | C60: 60 | D60: 378 | E60: 210 | F60: 210 | H60: 0
A61: AMBCOL-7.83 | B61: 7.83 Блондин коричнево-золотистый | C61: 60 | D61: 378 | E61: 210 | F61: 210 | H61: 0
A62: AMBCOL-7.86 | B62: 7.86 Блондин коричнево-махагоновый | C62: 60 | D62: 378 | E62: 210 | F62: 210 | H62: 0
A63: AMBCOL-7.877 | B63: 7.877 Блондин интенсивный коричнево-фиолетовый | C63: 60 | D63: 378 | E63: 210 | F63: 210 | H63: 0
A64: AMBCOL-8.0 | B64: 8.0 Светлый блондин натуральный | C64: 60 | D64: 378 | E64: 210 | F64: 210 | H64: 0
A65: AMBCOL-8.00 | B65: 8.00 Светлый блондин интенсивный натуральный | C65: 60 | D65: 378 | E65: 210 | F65: 210 | H65: 0
A66: AMBCOL-8.01 | B66: 8.01 Светлый блондин натуральный пепельный | C66: 60 | D66: 378 | E66: 210 | F66: 210 | H66: 0
A67: AMBCOL-8.11 | B67: 8.11 Светлый блондин интенсивный пепельный | C67: 60 | D67: 378 | E67: 210 | F67: 210 | H67: 0
A68: AMBCOL-8.13 | B68: 8.13 Светлый блондин пепельно-золотистый | C68: 60 | D68: 378 | E68: 210 | F68: 210 | H68: 0
A69: AMBCOL-8.16 | B69: 8.16 Светлый блондин пепельно-махагоновый | C69: 60 | D69: 378 | E69: 210 | F69: 210 | H69: 0
A70: AMBCOL-8.17 | B70: 8.17 Светлый блондин пепельно-фиолетовый | C70: 60 | D70: 378 | E70: 210 | F70: 210 | H70: 0
A71: AMBCOL-8.18 | B71: 8.18 Светлый блондин пепельно-коричневый | C71: 60 | D71: 378 | E71: 210 | F71: 210 | H71: 0
A72: AMBCOL-8.3 | B72: 8.3 Светлый блондин золотистый | C72: 60 | D72: 378 | E72: 210 | F72: 210 | H72: 0
A73: AMBCOL-8.37 | B73: 8.37 Светлый блондин золотисто-фиолетовый | C73: 60 | D73: 378 | E73: 210 | F73: 210 | H73: 0
A74: AMBCOL-8.4 | B74: 8.4 Светлый блондин медный | C74: 60 | D74: 378 | E74: 210 | F74: 210 | H74: 0
A75: AMBCOL-8.43 | B75: 8.43 Светлый блондин медно-золотистый | C75: 60 | D75: 378 | E75: 210 | F75: 210 | H75: 0
A76: AMBCOL-8.47 | B76: 8.47 Светлый блондин медно-фиолетовый | C76: 60 | D76: 378 | E76: 210 | F76: 210 | H76: 0
A77: AMBCOL-8.5 | B77: 8.5 Светлый блондин красный | C77: 60 | D77: 378 | E77: 210 | F77: =E77-E77*$G$7/100 -> 210 | H77: =G77*F77 -> 0
A78: AMBCOL-8.7 | B78: 8.7 Светлый блондин фиолетовый | C78: 60 | D78: 378 | E78: 210 | F78: 210 | H78: 0
A79: AMBCOL-8.71 | B79: 8.71 Светлый блондин фиолетово-пепельный | C79: 60 | D79: 378 | E79: 210 | F79: 210 | H79: 0
A80: AMBCOL-8.76 | B80: 8.76 Светлый блондин фиолетово-махагоновый | C80: 60 | D80: 378 | E80: 210 | F80: 210 | H80: 0
A81: AMBCOL-8.8 | B81: 8.8 Светлый блондин коричневый | C81: 60 | D81: 378 | E81: 210 | F81: 210 | H81: 0
A82: AMBCOL-8.83 | B82: 8.83 Светлый блондин коричнево-золотистый | C82: 60 | D82: 378 | E82: 210 | F82: 210 | H82: 0
A83: AMBCOL-8.86 | B83: 8.86 Светлый блондин коричнево-махагоновый | C83: 60 | D83: 378 | E83: 210 | F83: 210 | H83: 0
A84: AMBCOL-8.877 | B84: 8.877 Светлый блондин интенсивный коричнево-фиолетовый | C84: 60 | D84: 378 | E84: 210 | F84: 210 | H84: 0
A85: AMBCOL-9.0 | B85: 9.0 Очень светлый блондин натуральный | C85: 60 | D85: 378 | E85: 210 | F85: 210 | H85: 0
A86: AMBCOL-9.00 | B86: 9.00 Очень светлый блондин интенсивный натуральный | C86: 60 | D86: 378 | E86: 210 | F86: 210 | H86: 0
A87: AMBCOL-9.01 | B87: 9.01 Очень светлый блондин натуральный пепельный | C87: 60 | D87: 378 | E87: 210 | F87: 210 | H87: 0
A88: AMBCOL-9.1 | B88: 9.1 Очень светлый блондин пепельный | C88: 60 | D88: 378 | E88: 210 | F88: 210 | H88: 0
A89: AMBCOL-9.13 | B89: 9.13 Очень светлый блондин пепельно-золотистый | C89: 60 | D89: 378 | E89: 210 | F89: 210 | H89: 0
A90: AMBCOL-9.15 | B90: 9.15 Очень светлый блондин пепельно-красный | C90: 60 | D90: 378 | E90: 210 | F90: 210 | H90: 0
A91: AMBCOL-9.16 | B91: 9.16 Очень светлый блондин пепельно-махагоновый | C91: 60 | D91: 378 | E91: 210 | F91: 210 | H91: 0
A92: AMBCOL-9.17 | B92: 9.17 Очень светлый блондин пепельно-фиолетовый | C92: 60 | D92: 378 | E92: 210 | F92: 210 | H92: 0
A93: AMBCOL-9.18 | B93: 9.18 Очень светлый блондин пепельно- коричневый | C93: 60 | D93: 378 | E93: 210 | F93: 210 | H93: 0
A94: AMBCOL-9.3 | B94: 9.3 Очень светлый блондин золотистый | C94: 60 | D94: 378 | E94: 210 | F94: 210 | H94: 0
A95: AMBCOL-9.35 | B95: 9.35 Очень светлый блондин золотисто-красный | C95: 60 | D95: 378 | E95: 210 | F95: 210 | H95: 0
A96: AMBCOL-9.37 | B96: 9.37 Очень светлый блондин золотисто-фиолетовый | C96: 60 | D96: 378 | E96: 210 | F96: 210 | H96: 0
A97: AMBCOL-9.4 | B97: 9.4 Очень светлый блондин медный | C97: 60 | D97: 378 | E97: 210 | F97: 210 | H97: 0
A98: AMBCOL-9.47 | B98: 9.47 Очень светлый блондин медно-фиолетовый | C98: 60 | D98: 378 | E98: 210 | F98: 210 | H98: 0
A99: AMBCOL-9.7 | B99: 9.7 Очень светлый блондин фиолетовый | C99: 60 | D99: 378 | E99: 210 | F99: 210 | H99: 0
A100: AMBCOL-9.71 | B100: 9.71 Очень светлый блондин фиолетово-пепельный | C100: 60 | D100: 378 | E100: 210 | F100: 210 | H100: 0
A101: AMBCOL-9.76 | B101: 9.76 Очень светлый блондин фиолетово-махагоновый | C101: 60 | D101: 378 | E101: 210 | F101: 210 | H101: 0
A102: AMBCOL-9.8 | B102: 9.8 Очень светлый блондин коричневый | C102: 60 | D102: 378 | E102: 210 | F102: 210 | H102: 0
A103: AMBCOL-9.83 | B103: 9.83 Очень светлый блондин коричнево-золотистый | C103: 60 | D103: 378 | E103: 210 | F103: 210 | H103: 0
A104: AMBCOL-9.86 | B104: 9.86 Очень светлый блондин коричнево-махагоновый | C104: 60 | D104: 378 | E104: 210 | F104: 210 | H104: 0
A105: AMBCOL-9.877 | B105: 9.877 Очень светлый блондин интенсивный коричнево-фиолетовый | C105: 60 | D105: 378 | E105: 210 | F105: 210 | H105: 0
A106: AMBCOL-10.0 | B106: 10.0 Экстра светлый блондин натуральный | C106: 60 | D106: 378 | E106: 210 | F106: 210 | H106: 0
A107: AMBCOL-10.00 | B107: 10.00 Экстра светлый блондин интенсивный натуральный | C107: 60 | D107: 378 | E107: 210 | F107: 210 | H107: 0
A108: AMBCOL-10.01 | B108: 10.01 Экстра светлый блондин натуральный пепельный | C108: 60 | D108: 378 | E108: 210 | F108: 210 | H108: 0
A109: AMBCOL-10.1 | B109: 10.1 Экстра светлый блондин пепельный | C109: 60 | D109: 378 | E109: 210 | F109: 210 | H109: 0
A110: AMBCOL-10.13 | B110: 10.13 Экстра светлый блондин пепельно-золотистый | C110: 60 | D110: 378 | E110: 210 | F110: 210 | H110: 0
A111: AMBCOL-10.15 | B111: 10.15 Экстра светлый блондин пепельно-красный | C111: 60 | D111: 378 | E111: 210 | F111: 210 | H111: 0
A112: AMBCOL-10.16 | B112: 10.16 Экстра светлый блондин пепельно-махагоновый | C112: 60 | D112: 378 | E112: 210 | F112: 210 | H112: 0
A113: AMBCOL-10.17 | B113: 10.17 Экстра светлый блондин пепельно-фиолетовый | C113: 60 | D113: 378 | E113: 210 | F113: 210 | H113: 0
A114: AMBCOL-10.18 | B114: 10.18 Экстра светлый блондин пепельно-коричневый | C114: 60 | D114: 378 | E114: 210 | F114: 210 | H114: 0
A115: AMBCOL-10.3 | B115: 10.3 Экстра светлый блондин золотистый | C115: 60 | D115: 378 | E115: 210 | F115: 210 | H115: 0
A116: AMBCOL-10.35 | B116: 10.35 Экстра светлый блондин золотисто-красный | C116: 60 | D116: 378 | E116: 210 | F116: 210 | H116: 0
A117: AMBCOL-10.37 | B117: 10.37 Экстра светлый блондин золотисто-фиолетовый | C117: 60 | D117: 378 | E117: 210 | F117: 210 | H117: 0
A118: AMBCOL-10.7 | B118: 10.7 Экстра светлый блондин фиолетовый | C118: 60 | D118: 378 | E118: 210 | F118: 210 | H118: 0
A119: AMBCOL-10.71 | B119: 10.71 Экстра светлый блондин фиолетово-пепельный | C119: 60 | D119: 378 | E119: 210 | F119: 210 | H119: 0
A120: AMBCOL-10.76 | B120: 10.76 Экстра светлый блондин фиолетово-махагоновый | C120: 60 | D120: 378 | E120: 210 | F120: 210 | H120: 0
A121: AMBCOL-10.8 | B121: 10.8 Экстра светлый блондин коричневый | C121: 60 | D121: 378 | E121: 210 | F121: 210 | H121: 0
A122: AMBCOL-10.83 | B122: 10.83 Экстра светлый блондин коричнево-золотистый | C122: 60 | D122: 378 | E122: 210 | F122: 210 | H122: 0
A123: AMBCOL-10.86 | B123: 10.86 Экстра светлый блондин коричнево-махагоновый | C123: 60 | D123: 378 | E123: 210 | F123: 210 | H123: 0
A124: AMBCOL-10.877 | B124: 10.877 Экстра светлый блондин интенсивный коричнево-фиолетовый | C124: 60 | D124: 378 | E124: 210 | F124: 210 | H124: 0
B125: Специальная серия для окрашивания седых волос Special Grey | F125: 0 | H125: 0
A126: AMBCOL-5.810 | B126: 5.810 Светлый брюнет коричнево-пепельный для седых волос | C126: 60 | D126: 378 | E126: 210 | F126: 210 | H126: 0
A127: AMBCOL-5.880 | B127: 5.880 Светлый брюнет интенсивный коричневый для седых волос | C127: 60 | D127: 378 | E127: 210 | F127: 210 | H127: 0
A128: AMBCOL-6.810 | B128: 6.810 Темный блондин коричнево-пепельный для седых волос | C128: 60 | D128: 378 | E128: 210 | F128: 210 | H128: 0
A129: AMBCOL-6.880 | B129: 6.880 Темный блондин интенсивный коричневый для седых волос | C129: 60 | D129: 378 | E129: 210 | F129: 210 | H129: 0
A130: AMBCOL-7.880 | B130: 7.880 Блондин интенсивный коричневый для седых волос | C130: 60 | D130: 378 | E130: 210 | F130: 210 | H130: 0
A131: AMBCOL-7.810 | B131: 7.810 Блондин коричнево-пепельный для седых волос | C131: 60 | D131: 378 | E131: 210 | F131: 210 | H131: 0
A132: AMBCOL-8.810 | B132: 8.810 Светлый блондин коричнево-пепельный для седых волос | C132: 60 | D132: 378 | E132: 210 | F132: 210 | H132: 0
A133: AMBCOL-8.880 | B133: 8.880 Светлый блондин интенсивный коричневый для седых волос | C133: 60 | D133: 378 | E133: 210 | F133: 210 | H133: 0
A134: AMBCOL-9.310 | B134: 9.310 Очень светлый блондин золотисто-пепельный для седых волос | C134: 60 | D134: 378 | E134: 210 | F134: 210 | H134: 0
A135: AMBCOL-9.360 | B135: 9.360 Очень светлый блондин золотисто-махагоновый для седых волос | C135: 60 | D135: 378 | E135: 210 | F135: 210 | H135: 0
A136: AMBCOL-9.810 | B136: 9.810 Очень светлый блондин коричнево-пепельный для седых волос | C136: 60 | D136: 378 | E136: 210 | F136: 210 | H136: 0
A137: AMBCOL-9.830 | B137: 9.830 Очень светлый блондин коричнево-золотистый для седых волос | C137: 60 | D137: 378 | E137: 210 | F137: 210 | H137: 0
A138: AMBCOL-10.310 | B138: 10.310 Экстра светлый блондин золотисто-пепельный для седых волос | C138: 60 | D138: 378 | E138: 210 | F138: 210 | H138: 0
A139: AMBCOL-10.360 | B139: 10.360 Экстра светлый блондин золотисто-махагоновый для седых волос | C139: 60 | D139: 378 | E139: 210 | F139: 210 | H139: 0
A140: AMBCOL-10.810 | B140: 10.810 Экстра светлый блондин коричнево-пепельный для седых волос | C140: 60 | D140: 378 | E140: 210 | F140: 210 | H140: 0
A141: AMBCOL-10.830 | B141: 10.830 Экстра светлый блондин коричнево-золотистый для седых волос | C141: 60 | D141: 378 | E141: 210 | F141: =E141-E141*$G$7/100 -> 210 | H141: =G141*F141 -> 0
B142: Специальные блондины Special Blond | F142: 0 | H142: 0
A143: AMBCOL-1000 | B143: 1000 Специальный блондин натуральный | C143: 60 | D143: 378 | E143: 210 | F143: 210 | H143: 0
A144: AMBCOL-1006 | B144: 1006 Специальный блондин махагоновый | C144: 60 | D144: 378 | E144: 210 | F144: 210 | H144: 0
A145: AMBCOL-1007 | B145: 1007 Специальный блондин фиолетовый | C145: 60 | D145: 378 | E145: 210 | F145: 210 | H145: 0
A146: AMBCOL-1008 | B146: 1008 Специальный блондин коричневый | C146: 60 | D146: 378 | E146: 210 | F146: 210 | H146: 0
A147: AMBCOL-1011 | B147: 1011 Специальный блондин интенсивный пепельный | C147: 60 | D147: 378 | E147: 210 | F147: 210 | H147: 0
A148: AMBCOL-1016 | B148: 1016 Специальный блондин пепельно-махагоновый | C148: 60 | D148: 378 | E148: 210 | F148: 210 | H148: 0
A149: AMBCOL-1017 | B149: 1017 Специальный блондин пепельно-фиолетовый | C149: 60 | D149: 378 | E149: 210 | F149: 210 | H149: 0
A150: AMBCOL-1018 | B150: 1018 Специальный блондин пепельно-коричневый | C150: 60 | D150: 378 | E150: 210 | F150: 210 | H150: 0
A151: AMBCOL-1037 | B151: 1037 Специальный блондин золотисто-фиолетовый | C151: 60 | D151: 378 | E151: 210 | F151: 210 | H151: 0
A152: AMBCOL-1087 | B152: 1087 Специальный блондин коричнево-фиолетовый | C152: 60 | D152: 378 | E152: 210 | F152: 210 | H152: 0
B153: Корректоры | F153: 0 | H153: 0
A154: AMBCOL-Beige | B154: Бежевый корректор | C154: 60 | D154: 378 | E154: 210 | F154: 210 | H154: 0
A155: AMBCOL-Blue | B155: Синий корректор | C155: 60 | D155: 378 | E155: 210 | F155: 210 | H155: 0
A156: AMBCOL-Brown | B156: Коричневый корректор | C156: 60 | D156: 378 | E156: 210 | F156: 210 | H156: 0
A157: AMBCOL-Copper | B157: Медный корректор | C157: 60 | D157: 378 | E157: 210 | F157: 210 | H157: 0
A158: AMBCOL-Graphite | B158: Графитовый корректор | C158: 60 | D158: 378 | E158: 210 | F158: 210 | H158: 0
A159: AMBCOL-Green | B159: Зеленый корректор | C159: 60 | D159: 378 | E159: 210 | F159: 210 | H159: 0
A160: AMBCOL-Red | B160: Красный корректор | C160: 60 | D160: 378 | E160: 210 | F160: 210 | H160: 0
A161: AMBCOL-Violet | B161: Фиолетовый корректор | C161: 60 | D161: 378 | E161: 210 | F161: 210 | H161: 0
A162: AMBCOL-Yellow | B162: Желтый корректор | C162: 60 | D162: 378 | E162: 210 | F162: 210 | H162: 0
A163: AMBCOL-0.0N | B163: 0.0N Корректор Нейтральный | C163: 60 | D163: 378 | E163: 210 | F163: 210 | H163: 0
A164: AMBCOL-0.0А | B164: 0.0А Аммиачный корректор | C164: 60 | D164: 378 | E164: 210 | F164: 210 | H164: 0
B165: Крем-окислитель Ambient Color | F165: 0 | H165: 0
A166: AMB65171 | B166: Крем-окислитель 1,5%/ 5 vol. | C166: 900 | D166: 738 | E166: 410 | F166: 410 | H166: 0
A167: AMB65188 | B167: Крем-окислитель 3%/ 10 vol. | C167: 900 | D167: 738 | E167: 410 | F167: 410 | H167: 0
A168: AMB65195 | B168: Крем-окислитель 6%/ 20 vol. | C168: 900 | D168: 738 | E168: 410 | F168: 410 | H168: 0
A169: AMB65201 | B169: Крем-окислитель 9%/ 30 vol. | C169: 900 | D169: 738 | E169: 410 | F169: 410 | H169: 0
A170: AMB65218 | B170: Крем-окислитель 12%/ 40 vol. | C170: 900 | D170: 738 | E170: 410 | F170: 410 | H170: 0
A171: AMB65225 | B171: Крем-окислитель 1,5%/ 5 vol. | C171: 60 | D171: 120.6 | E171: 67 | F171: 67 | H171: 0
A172: AMB65232 | B172: Крем-окислитель 3%/ 10 vol. | C172: 60 | D172: 120.6 | E172: 67 | F172: 67 | H172: 0
A173: AMB65249 | B173: Крем-окислитель 6%/ 20 vol. | C173: 60 | D173: 120.6 | E173: 67 | F173: 67 | H173: 0
A174: AMB65256 | B174: Крем-окислитель 9%/ 30 vol. | C174: 60 | D174: 120.6 | E174: 67 | F174: 67 | H174: 0
A175: AMB65263 | B175: Крем-окислитель 12%/ 40 vol. | C175: 60 | D175: 120.6 | E175: 67 | F175: 67 | H175: 0
A176: AMB65270 | B176: Крем-активатор 1% /3.5 vol. | C176: 900 | D176: 779.4 | E176: 433 | F176: 433 | H176: 0
B177: Средства для обесцвечивания волос Ambient Bleach | F177: 0 | H177: 0
A178: AMB65362 | B178: Обесцвечивающий порошок с системой Plex | C178: 500 г | D178: 1596.6 | E178: 887 | F178: 887 | H178: 0
A179: AMB67786 | B179: Обесцвечивающий порошок белый, экстрабыстрый | C179: 500 г | D179: 1791 | E179: 995 | F179: 995 | H179: 0
A180: AMB67793 | B180: Обесцвечивающий порошок синий, классический | C180: 500 г | D180: 1602 | E180: 890 | F180: 890 | H180: 0
A181: AMB65379 | B181: Паста обесцвечивающая | C181: 335 г | D181: 1456.2 | E181: 809 | F181: 809 | H181: 0
B182: Технический ассортимент для работы в салоне Ambient SERVICE | F182: 0 | H182: 0
A183: AMB67755 | B183: Протеиновая сыворотка для интенсивного восстановления волос | C183: 10 x 10 мл | D183: 1216.8 | E183: 676 | F183: 676 | H183: 0
A184: AMB67809 | B184: Плекс-реконструктор сыворотка, шаг 1 | C184: 250 мл | D184: 1980 | E184: 1100 | F184: 1100 | H184: 0
A185: AMB67816 | B185: Плекс-фиксатор крем, шаг 2 | C185: 250 мл | D185: 900 | E185: 500 | F185: 500 | H185: 0
A186: AMB65072 | B186: Шампунь для глубокой очистки волос | C186: 1000 мл | D186: 909 | E186: 505 | F186: 505 | H186: 0
A187: AMB65089 | B187: Шампунь-стабилизатор процедуры окрашивания волос | C187: 1000 мл | D187: 909 | E187: 505 | F187: 505 | H187: 0
A188: AMB64846 | B188: Спрей-стабилизатор процедуры окрашивания волос | C188: 500 мл | D188: 1204.2 | E188: 669 | F188: 669 | H188: 0
A189: AMB65331 | B189: Маска липидная для интенсивного восстановления волос | C189: 500 мл | D189: 1112.4 | E189: 618 | F189: 618 | H189: 0
A190: AMB65300 | B190: Загуститель краски для креативных техник | C190: 120 мл | D190: 606.6 | E190: 337 | F190: 337 | H190: 0
A191: AMB65294 | B191: Флюид-трансформер pH красящей смеси | C191: 100 мл | D191: 606.6 | E191: 337 | F191: 337 | H191: 0
A192: AMB65386 | B192: Система для удаления краски с волос (лосьон состав 1. лосьон состав 2, крем-окислитель, паста обесцвечивающая | C192: 120 мл*3 + 60 мл | D192: 1405.8 | E192: 781 | F192: 781 | H192: 0
B193: Линия для окрашенных волос Ambient Colorfix | F193: 0 | H193: 0
A194: AMB65096 | B194: Шампунь для окрашенных волос | C194: 950 мл | D194: 1112.4 | E194: 618 | F194: 618 | H194: 0
A195: AMB65102 | B195: Шампунь для окрашенных волос | C195: 250 мл | D195: 657 | E195: 365 | F195: 365 | H195: 0
A196: AMB65393 | B196: Шампунь бессульфатный 4.5 pH для окрашенных волос | C196: 950 мл | D196: 1191.6 | E196: 662 | F196: 662 | H196: 0
A197: AMB65423 | B197: Шампунь бессульфатный 4.5 pH для окрашенных волос | C197: 250 мл | D197: 707.4 | E197: 393 | F197: 393 | H197: 0
A198: AMB64860 | B198: Бальзам для окрашенных волос | C198: 950 мл | D198: 1204.2 | E198: 669 | F198: 669 | H198: 0
A199: AMB64877 | B199: Бальзам для окрашенных волос | C199: 250 мл | D199: 716.4 | E199: 398 | F199: 398 | H199: 0
A200: AMB64884 | B200: Маска-уход для окрашенных волос | C200: 500 мл | D200: 1071 | E200: 595 | F200: 595 | H200: 0
A201: AMB64891 | B201: Маска-уход для окрашенных волос | C201: 250 мл | D201: 716.4 | E201: 398 | F201: 398 | H201: 0
B202: Линия для восстановления поврежденных волос Ambient Revival | F202: 0 | H202: 0
A203: AMB65485 | B203: Шампунь для поврежденных волос | C203: 950 мл | D203: 1153.8 | E203: 641 | F203: 641 | H203: 0
A204: AMB65492 | B204: Шампунь для поврежденных волос | C204: 250 мл | D204: 676.8 | E204: 376 | F204: 376 | H204: 0
... 337 more rows

Sheet MATRIX
A1: Ваш торговый представитель______________________
A2: моб. Тел._________________________________________
B3: 109457 г. Москва,ул. Плеханова, дом 4,стр.3 ООО “Компания "Аквакосметика” тел. 8(495)785-99-54,785-99-53 многоканальный сайт: www.steck.ru, e-mail: prof@akva.ru
B7: ПРАЙС-ЛИСТ MATRIX Professional | D7: Проставьте в зеленой ячейке вашу скидку | G7: %
B9: 2024-04-01
B10: Артикул | C10: Наименование | D10: Цена за ед. с НДС | E10: Цена с вашей скидкой,руб | F10: Ваш Заказ | G10: Сумма Вашего заказа (с НДС)
A11: ВЕСЕННИЕ НАБОРЫ со скидкой: ПРОФЕССИОНАЛЬНЫЕ УХОДЫ MATRIX
A12: 2 | B12: URU14355 | C12: МХ Набор Колор Обсэссд | D12: 1167.333333 | E12: =D12-D12*$F$7/100 -> 1167.333333 | G12: =F12*E12 -> 0
A13: 4 | B13: URU14358 | C13: МХ Набор Инстакюр | D13: 1329.768333 | E13: 1329.768333 | G13: 0
A14: 6 | B14: URU14359 | C14: МХ Набор Хай Амлифай | D14: 1167.333333 | E14: 1167.333333 | G14: 0
A15: 8 | B15: URU14357 | C15: МХ Набор Фуд Фо Софт | D15: 1329.768333 | E15: 1329.768333 | G15: 0
A16: 10 | B16: URU14356 | C16: МХ Набор Брасс Офф | D16: 1329.768333 | E16: 1329.768333 | G16: 0
A17: 11 | B17: URU14360 | C17: МХ Набор Кип Ми Вивид | D17: 1329.768333 | E17: 1329.768333 | G17: 0
A18: VAVOOM! Триплпак для салонов 2=3
A19: 1 | B19: URU14339 | C19: МХ Триплпак Вавум! Микс | D19: 1841.666667 | E19: 1841.666667 | G19: 0
A20: Набор красителей для проведения Дня Бренда Matrix 10+10 - СПЕЦИАЛЬНО ДЛЯ САЛОНОВ
A21: 1 | B21: URU14200 | C21: Набор красителей для Дня Бренда 10+10 | D21: 5921.666667 | E21: 5921.666667 | G21: 0
A22: ►Дуопаки
A23: 1 | B23: URU14084 | C23: МХ ТР НАБОР ШАМПУНЬ КОЛОР ОБСЭССД+СПРЕЙ МИРАКЛ КРИЭЙТОР | D23: 1478.036667 | E23: 1478.036667 | G23: 0
A24: 2 | B24: URU14081 | C24: МХ ТР НАБОР ШАМПУНЬ АНБРЕЙК МАЙ БЛОНД+МАСКА МИРАКЛ КРИЭЙТОР | D24: 2136.290833 | E24: 2136.290833 | G24: 0
A25: ОСВЕТЛЕНИЕ ДО 9 УРОВНЕЙ ТОНА
A26: 1 | B26: E3779500 | C26: Осветляющий порошок Лайт Мастер с бондером 500 гр | D26: 1546.5325 | E26: 1546.5325 | G26: 0
A27: 2 | B27: E3860502 | C27: МХ ЛайтМастер Хай Райзер 500г | D27: 2325.699167 | E27: 2325.699167 | G27: 0
A28: 3 | B28: E3779100 | C28: Осветляющий порошок Лайт Мастер 500гр | D28: 1334.0325 | E28: 1334.0325 | G28: 0
A29: НОВАЯ ГАММА КРАСИТЕЛЕЙ! Tonal Control самые предсказуемые тонеры!
A30: 1 | B30: E4005400 | C30: MX TC Гелевый Тонер 11PV 90 мл | D30: 672.9166667 | E30: 672.9166667 | G30: 0
A31: 2 | B31: E4005100 | C31: MX TC Гелевый Тонер 10PR 90 мл | D31: 672.9166667 | E31: 672.9166667 | G31: 0
A32: 3 | B32: E4049600 | C32: MX Тонал Контрол 10T 90 мл | D32: 672.9166667 | E32: 672.9166667 | G32: 0
A33: 4 | B33: E4049300 | C33: MX Тонал Контрол 10P 90 мл | D33: 672.9166667 | E33: 672.9166667 | G33: 0
A34: 5 | B34: E4004200 | C34: MX TC Гелевый Тонер 9V 90 мл | D34: 672.9166667 | E34: 672.9166667 | G34: 0
A35: 6 | B35: E4005700 | C35: MX TC Гелевый Тонер 9RG 90 мл | D35: 672.9166667 | E35: 672.9166667 | G35: 0
A36: 7 | B36: E4004500 | C36: MX TC Гелевый Тонер 9NGA 90 мл | D36: 672.9166667 | E36: 672.9166667 | G36: 0
A37: 8 | B37: E4004800 | C37: MX TC Гелевый Тонер 9AA 90 мл | D37: 672.9166667 | E37: 672.9166667 | G37: 0
A38: 9 | B38: E4007200 | C38: MX TC Гелевый Тонер 8VG 90 мл | D38: 672.9166667 | E38: 672.9166667 | G38: 0
A39: 10 | B39: E4048700 | C39: MX Тонал Контрол 8P 90 мл | D39: 672.9166667 | E39: 672.9166667 | G39: 0
A40: 11 | B40: E4049000 | C40: MX Тонал Контрол 8T 90 мл | D40: 672.9166667 | E40: 672.9166667 | G40: 0
A41: 12 | B41: E4006600 | C41: MX TC Гелевый Тонер 7NA 90 мл | D41: 672.9166667 | E41: 672.9166667 | G41: 0
A42: 13 | B42: E4006900 | C42: MX TC Гелевый Тонер 7GM 90 мл | D42: 672.9166667 | E42: 672.9166667 | G42: 0
A43: 14 | B43: E4006000 | C43: MX TC Гелевый Тонер 6A 90 мл | D43: 672.9166667 | E43: 672.9166667 | G43: 0
A44: 15 | B44: E4006300 | C44: MX TC Гелевый Тонер 6NGA 90 мл | D44: 672.9166667 | E44: 672.9166667 | G44: 0
A45: 16 | B45: E4008100 | C45: MX TC Гелевый Тонер 5NGA 90 мл | D45: 672.9166667 | E45: 672.9166667 | G45: 0
A46: 17 | B46: E4008400 | C46: MX TC Гелевый Тонер 5NW 90 мл | D46: 672.9166667 | E46: 672.9166667 | G46: 0
A47: 18 | B47: E4007800 | C47: MX TC Гелевый Тонер 5Nj 90 мл | D47: 672.9166667 | E47: 672.9166667 | G47: 0
A48: 19 | B48: E4008700 | C48: MX Гелевый Тонер TC 4AA 90 мл | D48: 672.9166667 | E48: 672.9166667 | G48: 0
A49: 20 | B49: E4009000 | C49: MX TC Гелевый Тонер CLEAR 90 мл | D49: 672.9166667 | E49: 672.9166667 | G49: 0
A50: SOCOLOR CULT – ПАЛИТРА ЯРКИХ ОТТЕНКОВ
A51: СТОЙКАЯ КРЕМ-КРАСКА ДЛЯ ВОЛОС
A52: КРЕМ С ПИГМЕНТАМИ ПРЯМОГО ДЕЙСТВИЯ ДЛЯ ВОЛОС
A53: 1 | B53: P1567801 | C53: МХ Соколор Культ РОЗОВЫЙ БАБЛ-ГАМ, 118мл | D53: 1250.208333 | E53: 1250.208333 | G53: 0
A54: 3 | B54: P1579700 | C54: Мх Соколор Культ Страстный Красный, 118мл | D54: 1250.208333 | E54: 1250.208333 | G54: 0
A55: 4 | B55: P1580502 | C55: Мх Соколор Культ Королевский Фиолетовый, 118мл | D55: 1250.208333 | E55: 1250.208333 | G55: 0
A56: 5 | B56: P1580602 | C56: Мх Соколор Культ Фуксия, 118мл | D56: 1250.208333 | E56: 1250.208333 | G56: 0
A57: 6 | B57: P1568201 | C57: Мх Соколор Культ Серебро Диско, 118мл | D57: 1250.208333 | E57: 1250.208333 | G57: 0
A58: 7 | B58: P1567301 | C58: Мх Соколор Культ Адмирал Нэви, 118мл | D58: 1250.208333 | E58: 1250.208333 | G58: 0
A59: SoColor / СоКолор – стойкая крем-краска для волос, 90МЛ
A60: SoColor Extra Coverage: 100% покрытие седины + защита волос во время окрашивания - БОНДЕР В КАЖДОМ ТЮБИКЕ
A61: Натуральный Нефритовый > 50% седины
A62: =IF(ISERR(#REF!+1)=TRUE,1,#REF!+1) -> 1 | B62: E3775801 | C62: СоКолор 504NJ 90мл | D62: 538.3333333 | E62: 538.3333333 | G62: 0
A63: Натуральный Перламутровый > 50% седины
A64: 1 | B64: E3776600 | C64: СоКолор 506NV 90мл | D64: 538.3333333 | E64: 538.3333333 | G64: 0
A65: Натуральный теплый > 50% седины
A66: =IF(ISERR(#REF!+1)=TRUE,1,#REF!+1) -> 1 | B66: E3717500 | C66: СоКолор 506NW 90мл | D66: 538.3333333 | E66: 538.3333333 | G66: 0
A67: 2 | B67: E3777001 | C67: СоКолор 507NW 90мл | D67: 538.3333333 | E67: 538.3333333 | G67: 0
A68: 3 | B68: E3586800 | C68: СоКолор 508NW 90мл | D68: 538.3333333 | E68: 538.3333333 | G68: 0
A69: Пепльно-перламутровый > 50% седины
A70: 1 | B70: E3580400 | C70: СоКолор 507AV 90мл | D70: 538.3333333 | E70: 538.3333333 | G70: 0
A71: 2 | B71: E3580800 | C71: СоКолор 509AV 90мл | D71: 538.3333333 | E71: 538.3333333 | G71: 0
A72: Мокка > 50% седины
A73: =IF(ISERR(#REF!+1)=TRUE,1,#REF!+1) -> 1 | B73: E3585400 | C73: СоКолор 505M 90мл | D73: 538.3333333 | E73: 538.3333333 | G73: 0
A74: 2 | B74: E3585800 | C74: СоКолор 506M 90мл | D74: 538.3333333 | E74: 538.3333333 | G74: 0
A75: 3 | B75: E3586200 | C75: СоКолор 508M 90мл | D75: 538.3333333 | E75: 538.3333333 | G75: 0
A76: Красно-коричневый > 50% седины
A77: 1 | B77: E3587800 | C77: СоКолор 506RB 90мл | D77: 538.3333333 | E77: =D77-D77*$F$7/100 -> 538.3333333 | G77: =F77*E77 -> 0
A78: Коричнево-медный > 50% седины
A79: 1 | B79: E3587200 | C79: СоКолор 506BC 90мл | D79: 538.3333333 | E79: 538.3333333 | G79: 0
A80: 2 | B80: E3587500 | C80: СоКолор 508BC 90мл | D80: 538.3333333 | E80: 538.3333333 | G80: 0
A81: Золотистый > 50% седины
A82: =IF(ISERR(#REF!+1)=TRUE,1,#REF!+1) -> 1 | B82: E3588000 | C82: СоКолор 505G 90мл | D82: 538.3333333 | E82: 538.3333333 | G82: 0
A83: 2 | B83: E3588400 | C83: СоКолор 507G 90мл | D83: 538.3333333 | E83: 538.3333333 | G83: 0
A84: 3 | B84: E3588800 | C84: СоКолор 509G 90мл | D84: 538.3333333 | E84: 538.3333333 | G84: 0
A85: 4 | B85: E3589200 | C85: СоКолор 510G 90мл | D85: 538.3333333 | E85: 538.3333333 | G85: 0
A86: Натуральный > 50% седины
A87: =IF(ISERR(#REF!+1)=TRUE,1,#REF!+1) -> 1 | B87: E3582700 | C87: СоКолор 504N 90мл | D87: 538.3333333 | E87: 538.3333333 | G87: 0
A88: 2 | B88: E3583100 | C88: СоКолор 505N 90мл | D88: 538.3333333 | E88: 538.3333333 | G88: 0
A89: 3 | B89: E3583500 | C89: СоКолор 506N 90мл | D89: 538.3333333 | E89: 538.3333333 | G89: 0
A90: 4 | B90: E3583900 | C90: СоКолор 507N 90мл | D90: 538.3333333 | E90: 538.3333333 | G90: 0
A91: 5 | B91: E3584300 | C91: СоКолор 508N 90мл | D91: 538.3333333 | E91: 538.3333333 | G91: 0
A92: 6 | B92: E3584700 | C92: СоКолор 509N 90мл | D92: 538.3333333 | E92: 538.3333333 | G92: 0
A93: 7 | B93: E3585100 | C93: СоКолор 510N 90мл | D93: 538.3333333 | E93: 538.3333333 | G93: 0
A94: Натуральный Пепельный > 50% седины
A95: =IF(ISERR(#REF!+1)=TRUE,1,#REF!+1) -> 1 | B95: E3581200 | C95: СоКолор 505NA 90мл | D95: 538.3333333 | E95: 538.3333333 | G95: 0
A96: =IF(ISERR(A95+1)=TRUE,1,A95+1) -> 2 | B96: E3581600 | C96: СоКолор 506NA 90мл | D96: 538.3333333 | E96: 538.3333333 | G96: 0
A97: =IF(ISERR(A96+1)=TRUE,1,A96+1) -> 3 | B97: E3581800 | C97: СоКолор 508NA 90мл | D97: 538.3333333 | E97: 538.3333333 | G97: 0
A98: =IF(ISERR(A97+1)=TRUE,1,A97+1) -> 4 | B98: E3582100 | C98: СоКолор 509NA 90мл | D98: 538.3333333 | E98: 538.3333333 | G98: 0
A99: =IF(ISERR(A98+1)=TRUE,1,A98+1) -> 5 | B99: E3582400 | C99: СоКолор 510NA 90мл | D99: 538.3333333 | E99: 538.3333333 | G99: 0
A100: SoColor / СоКолор – основная коллекция, 90МЛ - БОНДЕР В КАЖДОМ ТЮБИКЕ
A101: Натуральный Холодный
A102: 1 | B102: E3545701 | C102: СоКолор 4NJ 90мл | D102: 538.3333333 | E102: 538.3333333 | G102: 0
A103: 2 | B103: E3546101 | C103: СоКолор 6NA 90мл | D103: 538.3333333 | E103: 538.3333333 | G103: 0
A104: 3 | B104: E3546501 | C104: СоКолор 8NA 90мл | D104: 538.3333333 | E104: 538.3333333 | G104: 0
A105: 4 | B105: E3546901 | C105: СоКолор 6NV 90мл | D105: 538.3333333 | E105: 538.3333333 | G105: 0
A106: Натуральный
A107: 1 | B107: E3535101 | C107: СоКолор 2N 90мл | D107: 538.3333333 | E107: 538.3333333 | G107: 0
A108: 2 | B108: E3533901 | C108: СоКолор 3N 90мл | D108: 538.3333333 | E108: 538.3333333 | G108: 0
A109: 3 | B109: E3533501 | C109: СоКолор 4N 90мл | D109: 538.3333333 | E109: 538.3333333 | G109: 0
A110: 4 | B110: E3532702 | C110: СоКолор 5N 90мл | D110: 538.3333333 | E110: 538.3333333 | G110: 0
A111: 5 | B111: E3531902 | C111: СоКолор 6N 90мл | D111: 538.3333333 | E111: 538.3333333 | G111: 0
A112: 6 | B112: E3532302 | C112: СоКолор 7N 90мл | D112: 538.3333333 | E112: 538.3333333 | G112: 0
A113: 7 | B113: E3533102 | C113: СоКолор 8N 90мл | D113: 538.3333333 | E113: 538.3333333 | G113: 0
A114: 8 | B114: E3534301 | C114: СоКолор 9N 90мл | D114: 538.3333333 | E114: 538.3333333 | G114: 0
A115: 9 | B115: E3534701 | C115: СоКолор 10N 90мл | D115: 538.3333333 | E115: 538.3333333 | G115: 0
A116: 10 | B116: E3535901 | C116: СоКолор 11N 90мл | D116: 538.3333333 | E116: 538.3333333 | G116: 0
A117: Натуральный теплый
A118: 1 | B118: E3537501 | C118: СоКолор 4NW 90мл | D118: 538.3333333 | E118: 538.3333333 | G118: 0
A119: 2 | B119: E3537301 | C119: СоКолор 5NW 90мл | D119: 538.3333333 | E119: 538.3333333 | G119: 0
A120: 3 | B120: E3535501 | C120: СоКолор 6NW 90мл | D120: 538.3333333 | E120: 538.3333333 | G120: 0
A121: 5 | B121: E3536701 | C121: СоКолор 8NW 90мл | D121: 538.3333333 | E121: 538.3333333 | G121: 0
A122: 6 | B122: E3538101 | C122: СоКолор 10NW 90мл | D122: 538.3333333 | E122: 538.3333333 | G122: 0
A123: ЛИНЕЙКА POWER COOLS: ХОЛОДНЫЕ ТОНА ДЛЯ БРЮНЕТОК
A124: 1 | B124: E3684000 | C124: СоКолор 4VA 90мл | D124: 538.3333333 | E124: 538.3333333 | G124: 0
A125: 2 | B125: E3684400 | C125: СоКолор 6VA 90мл | D125: 538.3333333 | E125: 538.3333333 | G125: 0
A126: 3 | B126: E3685200 | C126: СоКолор 4AA 90мл | D126: 538.3333333 | E126: 538.3333333 | G126: 0
A127: 4 | B127: E3684800 | C127: Соколор 6AA 90мл | D127: 538.3333333 | E127: 538.3333333 | G127: 0
A128: Прозрачный оттенок
A129: =IF(ISERR(A128+1)=TRUE,1,A128+1) -> 1 | B129: E3709400 | C129: Соколор CLEAR 90мл | D129: 538.3333333 | E129: 538.3333333 | G129: 0
A130: Пепельный
A131: =IF(ISERR(#REF!+1)=TRUE,1,#REF!+1) -> 1 | B131: E3678000 | C131: СоКолор 1A 90мл | D131: 538.3333333 | E131: 538.3333333 | G131: 0
A132: 2 | B132: E3678400 | C132: СоКолор 5A 90мл | D132: 538.3333333 | E132: 538.3333333 | G132: 0
A133: 3 | B133: E3678800 | C133: Соколор 6A 90мл | D133: 538.3333333 | E133: 538.3333333 | G133: 0
A134: 4 | B134: E3679200 | C134: СоКолор 7A 90мл | D134: 538.3333333 | E134: 538.3333333 | G134: 0
A135: 5 | B135: E3679600 | C135: СоКолор 9A 90мл | D135: 538.3333333 | E135: 538.3333333 | G135: 0
A136: 6 | B136: E3680000 | C136: СоКолор 11A 90мл | D136: 538.3333333 | E136: 538.3333333 | G136: 0
A137: Жемчужный
A138: =IF(ISERR(#REF!+1)=TRUE,1,#REF!+1) -> 1 | B138: E3682800 | C138: СоКолор 6P 90мл | D138: 538.3333333 | E138: 538.3333333 | G138: 0
A139: 2 | B139: E3683200 | C139: Соколор 8P 90мл | D139: 538.3333333 | E139: 538.3333333 | G139: 0
A140: 3 | B140: E3683600 | C140: СоКолор 10P 90мл | D140: 538.3333333 | E140: 538.3333333 | G140: 0
A141: Серебристый жемчужный
A142: =IF(ISERR(#REF!+1)=TRUE,1,#REF!+1) -> 1 | B142: E3681600 | C142: Соколор 6SP 90мл | D142: 538.3333333 | E142: =D142-D142*$F$7/100 -> 538.3333333 | G142: =F142*E142 -> 0
A143: 2 | B143: E3682000 | C143: Соколор 8SP 90мл | D143: 538.3333333 | E143: 538.3333333 | G143: 0
A144: 3 | B144: E3682400 | C144: СоКолор 10SP 90мл | D144: 538.3333333 | E144: 538.3333333 | G144: 0
A145: Пепельно-перламутровый
A146: 1 | B146: E3676000 | C146: СоКолор 5AV 90мл | D146: 538.3333333 | E146: 538.3333333 | G146: 0
A147: 2 | B147: E3676400 | C147: СоКолор 7AV 90мл | D147: 538.3333333 | E147: 538.3333333 | G147: 0
A148: 3 | B148: E3676800 | C148: СоКолор 8AV 90мл | D148: 538.3333333 | E148: 538.3333333 | G148: 0
A149: 4 | B149: E3677200 | C149: СоКолор 9AV 90мл | D149: 538.3333333 | E149: 538.3333333 | G149: 0
A150: 5 | B150: E3677600 | C150: Соколор 10AV 90мл | D150: 538.3333333 | E150: 538.3333333 | G150: 0
A151: Пепельный нефритовый
A152: Золотистый
A153: =IF(ISERR(#REF!+1)=TRUE,1,#REF!+1) -> 1 | B153: E3704200 | C153: СоКолор 7G 90мл | D153: 538.3333333 | E153: 538.3333333 | G153: 0
A154: 2 | B154: E3704600 | C154: СоКолор 8G 90мл | D154: 538.3333333 | E154: 538.3333333 | G154: 0
A155: 3 | B155: E3705000 | C155: СоКолор 9G 90мл | D155: 538.3333333 | E155: 538.3333333 | G155: 0
A156: =IF(ISERR(A155+1)=TRUE,1,A155+1) -> 4 | B156: E3705400 | C156: СоКолор 10G 90мл | D156: 538.3333333 | E156: 538.3333333 | G156: 0
A157: Медный
A158: =IF(ISERR(#REF!+1)=TRUE,1,#REF!+1) -> 1 | B158: E3670800 | C158: СоКолор 5C 90мл | D158: 538.3333333 | E158: 538.3333333 | G158: 0
A159: 2 | B159: E3671200 | C159: СоКолор 6C 90мл | D159: 538.3333333 | E159: 538.3333333 | G159: 0
A160: 3 | B160: E3671600 | C160: СоКолор 7C 90мл | D160: 538.3333333 | E160: 538.3333333 | G160: 0
A161: 4 | B161: E3672000 | C161: Соколор 8C 90мл | D161: 538.3333333 | E161: 538.3333333 | G161: 0
A162: Медно-золотистый
A163: =IF(ISERR(#REF!+1)=TRUE,1,#REF!+1) -> 1 | B163: E3670400 | C163: СоКолор 7СG 90мл | D163: 538.3333333 | E163: 538.3333333 | G163: 0
A164: Глубокий медный
A165: =IF(ISERR(A164+1)=TRUE,1,A164+1) -> 1 | B165: E3675600 | C165: СоКолор 8CC 90мл | D165: 538.3333333 | E165: 538.3333333 | G165: 0
A166: Мокка
A167: 1 | B167: E3691600 | C167: СоКолор 4M 90мл | D167: 538.3333333 | E167: 538.3333333 | G167: 0
A168: 2 | B168: E3692000 | C168: СоКолор 5M 90мл | D168: 538.3333333 | E168: 538.3333333 | G168: 0
A169: 3 | B169: E3692400 | C169: СоКолор 6M 90мл | D169: 538.3333333 | E169: 538.3333333 | G169: 0
A170: 5 | B170: E3692800 | C170: СоКолор 7M 90мл | D170: 538.3333333 | E170: 538.3333333 | G170: 0
A171: 6 | B171: E3693200 | C171: СоКолор 8M 90мл | D171: 538.3333333 | E171: 538.3333333 | G171: 0
A172: 7 | B172: E3693600 | C172: СоКолор 9M 90мл | D172: 538.3333333 | E172: 538.3333333 | G172: 0
A173: Мокка пепельный
A174: 1 | B174: E3690400 | C174: СоКолор 4MA 90мл | D174: 538.3333333 | E174: 538.3333333 | G174: 0
A175: 2 | B175: E3690800 | C175: СоКолор 6MA 90мл | D175: 538.3333333 | E175: 538.3333333 | G175: 0
A176: 3 | B176: E3691200 | C176: СоКолор 8MA 90мл | D176: 538.3333333 | E176: 538.3333333 | G176: 0
A177: Мокка перламутровый
A178: 1 | B178: E3696800 | C178: Соколор Бьюти 6MV 90мл | D178: 538.3333333 | E178: 538.3333333 | G178: 0
A179: 2 | B179: E3696400 | C179: СоКолор Бьюти 4MV 90 мл | D179: 538.3333333 | E179: 538.3333333 | G179: 0
A180: Пепельный мокка
A181: 1 | B181: E3695600 | C181: СоКолор Бьюти 6AM 90мл | D181: 538.3333333 | E181: 538.3333333 | G181: 0
A182: Перламутровый мокка
A183: 1 | B183: E3697600 | C183: СоКолор Бьюти 8VM 90мл | D183: 538.3333333 | E183: 538.3333333 | G183: 0
A184: Мокка мокка
A185: =IF(ISERR(#REF!+1)=TRUE,1,#REF!+1) -> 1 | B185: E3694000 | C185: СоКолор 6MM 90мл | D185: 538.3333333 | E185: 538.3333333 | G185: 0
A186: 2 | B186: E3694400 | C186: СоКолор 8MM 90мл | D186: 538.3333333 | E186: 538.3333333 | G186: 0
A187: 3 | B187: E3694800 | C187: СоКолор 10MM 90мл | D187: 538.3333333 | E187: 538.3333333 | G187: 0
A188: Мокка золотистый
A189: =IF(ISERR(#REF!+1)=TRUE,1,#REF!+1) -> 1 | B189: E3698000 | C189: СоКолор 5MG 90мл | D189: 538.3333333 | E189: 538.3333333 | G189: 0
A190: 2 | B190: E3698400 | C190: СоКолор 6MG 90мл | D190: 538.3333333 | E190: 538.3333333 | G190: 0
A191: 3 | B191: E3698800 | C191: СоКолор 7MG 90мл | D191: 538.3333333 | E191: 538.3333333 | G191: 0
A192: Мокка красный
A193: 1 | B193: E3695200 | C193: СоКолор 6MR 90мл | D193: 538.3333333 | E193: 538.3333333 | G193: 0
A194: Теплый
A195: Перламутрово-красный
A196: =IF(ISERR(#REF!+1)=TRUE,1,#REF!+1) -> 1 | B196: E3672400 | C196: Соколор 6VR 90мл | D196: 538.3333333 | E196: 538.3333333 | G196: 0
A197: Коричнево-медный
A198: =IF(ISERR(#REF!+1)=TRUE,1,#REF!+1) -> 1 | B198: E3706200 | C198: СоКолор 4BC 90мл | D198: 538.3333333 | E198: 538.3333333 | G198: 0
A199: 2 | B199: E3706600 | C199: СоКолор 5BC 90мл | D199: 538.3333333 | E199: 538.3333333 | G199: 0
A200: 3 | B200: E3707000 | C200: СоКолор 6BC 90мл | D200: 538.3333333 | E200: 538.3333333 | G200: 0
A201: =IF(ISERR(A200+1)=TRUE,1,A200+1) -> 4 | B201: E3707400 | C201: СоКолор 7BC 90мл | D201: 538.3333333 | E201: 538.3333333 | G201: 0
A202: Коричнево-красный
A203: 1 | B203: E3705800 | C203: СоКолор 6BR 90мл | D203: 538.3333333 | E203: 538.3333333 | G203: 0
A204: Коричнево-перламутровый
... 321 more rows

Sheet EPICA
B2: 109457 г. Москва,ул. Плеханова, дом 4,стр.3 ООО “Компания "Аквакосметика” тел. 8(495)785-99-54,785-99-53 многоканальный сайт: www.steck.ru, e-mail: prof@akva.ru
C3: Проставьте в зеленой ячейке вашу скидку | F3: %
B4: Прайс-лист EPICA (Италия)
A6: 2024-04-01
A7: Артикул | B7: Наименование | C7: Цена, с НДС, руб. | D7: Цена с вашей скидкой,руб | E7: Ваш Заказ | F7: Сумма Вашего заказа (с НДС)
B8: DAILY HAIRCARE/Ежедневный уход
A9: 91313 | B9: EPICA Daily Haircare Кондиционер д/ежедневного ухода, 1000 мл. | C9: 861.3333333 | D9: =C9-C9*$E$3/100 -> 861.3333333 | F9: =E9*D9 -> 0
A10: 91312 | B10: EPICA Daily Haircare Кондиционер д/ежедневного ухода, 300 мл. | C10: 442 | D10: =C10-C10*$E$3/100 -> 442 | F10: =E10*D10 -> 0
A11: 91311 | B11: EPICA Daily Haircare Шампунь д/ежедневного ухода, 1000 мл. | C11: 782 | D11: =C11-C11*$E$3/100 -> 782 | F11: 0
A12: 91310 | B12: EPICA Daily Haircare Шампунь д/ежедневного ухода, 300 мл. | C12: 408 | D12: =C12-C12*$E$3/100 -> 408 | F12: 0
B13: INTENSE MOISTURE/Для увлажнения и питания сухих волос | D13: =C13-C13*$E$3/100 -> 0 | F13: 0
A14: 91326 | B14: EPICA Professional Intense Moisture Двухфазный увлажняющий спрей для сухих волос, 300 мл. | C14: 589.3333333 | D14: 589.3333333 | F14: 0
A15: 91323 | B15: EPICA Professional Intense Moisture Кондиционер д/увлажнения и питания сухих волос, 1000 мл. | C15: 861.3333333 | D15: 861.3333333 | F15: 0
A16: 91322 | B16: EPICA Professional Intense Moisture Кондиционер д/увлажнения и питания сухих волос, 300 мл. | C16: 442 | D16: 442 | F16: 0
A17: 91325 | B17: EPICA Professional Intense Moisture Маска д/увлажнения и питания сухих волос, 1000 мл. | C17: 974.6666667 | D17: 974.6666667 | F17: 0
A18: 91324 | B18: EPICA Professional Intense Moisture Маска д/увлажнения и питания сухих волос, 250 мл. | C18: 487.3333333 | D18: 487.3333333 | F18: 0
A19: 91321 | B19: EPICA Professional Intense Moisture Шампунь д/увлажнения и питания сухих волос, 1000 мл. | C19: 782 | D19: 782 | F19: 0
A20: 91320 | B20: EPICA Professional Intense Moisture Шампунь д/увлажнения и питания сухих волос, 300 мл. | C20: 408 | D20: 408 | F20: 0
B21: COLLAGEN PRO/Глубокое увлажнение волос | D21: 0 | F21: 0
A22: 91339 | B22: EPICA Professional Collagen PRO Кондиционер для увлажнения и реконструкции волос, 1000 мл. | C22: 1133.333333 | D22: 1133.333333 | F22: 0
A23: 91327 | B23: EPICA Professional Collagen PRO Кондиционер для увлажнения и реконструкции волос, 250 мл. | C23: 532.6666667 | D23: 532.6666667 | F23: 0
A24: 91393 | B24: EPICA Professional Collagen PRO Увлажняющая и восстанавливающая сыворотка для волос, 100 мл. | C24: 714 | D24: 714 | F24: 0
A25: 91317 | B25: EPICA Professional Collagen PRO Шампунь для увлажнения и реконструкции волос, 1000 мл. | C25: 1076.666667 | D25: 1076.666667 | F25: 0
A26: 91307 | B26: EPICA Professional Collagen PRO Шампунь для увлажнения и реконструкции волос, 250 мл | C26: 487.3333333 | D26: 487.3333333 | F26: 0
B27: COMPLEX PRO/ Защита во время и после окрашивания Новинка! | D27: 0 | F27: 0
A28: 91407 | B28: EPICA Professional ComPlex PRO Plex 1 - Комплекс для защиты волос в процессе осветления, 100 мл. | C28: 725.3333333 | D28: 725.3333333 | F28: 0
A29: 91408 | B29: EPICA Professional ComPlex PRO Plex 2 - Комплекс для защиты волос в процессе окрашивания, 100 мл. | C29: 725.3333333 | D29: 725.3333333 | F29: 0
A30: 91410 | B30: EPICA Professional ComPlex PRO Кондиционер для защиты и восстановления волос, 1000 мл. | C30: 1133.333333 | D30: 1133.333333 | F30: 0
A31: 91409 | B31: EPICA Professional ComPlex PRO Кондиционер для защиты и восстановления волос, 250 мл. | C31: 532.6666667 | D31: 532.6666667 | F31: 0
A32: 91411 | B32: EPICA Professional ComPlex PRO Маска для защиты волос после процедуры обесцвечивания, 1000 мл | C32: 1167.333333 | D32: 1167.333333 | F32: 0
A33: 91412 | B33: EPICA Professional ComPlex PRO Спрей для восстановления и выравнивания структуры волос, 250 мл. | C33: 782 | D33: 782 | F33: 0
A34: 91415 | B34: EPICA Professional ComPlex PRO Шампунь для глубокого очищения после процедуры обесцвечивания,1000 мл | C34: 1076.666667 | D34: 1076.666667 | F34: 0
A35: 91414 | B35: EPICA Professional ComPlex PRO Шампунь для защиты и восстановления волос, 1000 мл. | C35: 1076.666667 | D35: 1076.666667 | F35: 0
A36: 91413 | B36: EPICA Professional ComPlex PRO Шампунь для защиты и восстановления волос, 250 мл. | C36: 487.3333333 | D36: 487.3333333 | F36: 0
B37: RICH COLOR/Для окрашенных волос | F37: 0
A38: 91362 | B38: EPICA Liquid Crystal Флюид для увлажнения и защиты сухих волос, 100 мл. | C38: 566.6666667 | D38: =C38-C38*$E$3/100 -> 566.6666667 | F38: 0
A39: 91306 | B39: EPICA Rich Color Двухфазная сыворотка-уход для окрашенных волос, 300 мл. | C39: 646 | D39: 646 | F39: 0
A40: 91303 | B40: EPICA Rich Color Кондиционер д/окрашенных волос, 1000 мл. | C40: 861.3333333 | D40: 861.3333333 | F40: 0
A41: 91302 | B41: EPICA Rich Color Кондиционер д/окрашенных волос, 300 мл. | C41: 442 | D41: 442 | F41: 0
A42: 91305 | B42: EPICA Rich Color Маска д/окрашенных волос, 1000 мл. | C42: 974.6666667 | D42: 974.6666667 | F42: 0
A43: 91304 | B43: EPICA Rich Color Маска д/окрашенных волос, 250 мл. | C43: 487.3333333 | D43: 487.3333333 | F43: 0
A44: 91301 | B44: EPICA Rich Color Шампунь д/окрашенных волос, 1000 мл. | C44: 782 | D44: 782 | F44: 0
A45: 91300 | B45: EPICA Rich Color Шампунь д/окрашенных волос, 300 мл. | C45: 408 | D45: 408 | F45: 0
B46: VOLUME BOOSTER/Для придания объема | D46: 0 | F46: 0
A47: 91338 | B47: EPICA Volume Booster Кондиционер для придания объёма волос, 1000 мл. | C47: 861.3333333 | D47: 861.3333333 | F47: 0
A48: 91328 | B48: EPICA Volume Booster Кондиционер для придания объёма волос, 300 мл. | C48: 442 | D48: 442 | F48: 0
A49: 91316 | B49: EPICA Volume Booster Шампунь для придания объёма волос, 1000мл | C49: 782 | D49: 782 | F49: 0
A50: 91314 | B50: EPICA Volume Booster Шампунь для придания объёма волос, 300мл | C50: 408 | D50: 408 | F50: 0
B51: DEEP RECOVER/Восстановление поврежденных волос | D51: 0 | F51: 0
A52: 91333 | B52: EPICA Deep Recover Кондиционер д/восстановления повреждённых волос, 1000 мл. | C52: 861.3333333 | D52: 861.3333333 | F52: 0
A53: 91332 | B53: EPICA Deep Recover Кондиционер д/восстановления повреждённых волос, 300 мл. | C53: 442 | D53: 442 | F53: 0
A54: 91335 | B54: EPICA Deep Recover Маска д/восстановления повреждённых волос, 1000 мл. | C54: 974.6666667 | D54: 974.6666667 | F54: 0
A55: 91334 | B55: EPICA Deep Recover Маска д/восстановления повреждённых волос, 250 мл. | C55: 487.3333333 | D55: 487.3333333 | F55: 0
A56: 91337 | B56: EPICA Deep Recover Масло для поврежденных волос, 100 мл. | C56: 725.3333333 | D56: 725.3333333 | F56: 0
A57: 91336 | B57: EPICA Deep Recover Трехфазная восстанавливающая сыворотка для поврежденных волос, 300 мл. | C57: 646 | D57: 646 | F57: 0
A58: 91331 | B58: EPICA Deep Recover Шампунь д/восстановления повреждённых волос, 1000 мл. | C58: 782 | D58: 782 | F58: 0
A59: 91330 | B59: EPICA Deep Recover Шампунь д/восстановления повреждённых волос, 300 мл. | C59: 408 | D59: 408 | F59: 0
B60: AMBER SHINE ORGANIC/Облепиховая серия | D60: 0 | F60: 0
A61: 91329 | B61: EPICA Professional Amber Shine ORGANIC Кондиционер для восстановления и питания, 1000 мл. | C61: 1133.333333 | D61: 1133.333333 | F61: 0
A62: 91319 | B62: EPICA Professional Amber Shine ORGANIC Кондиционер для восстановления и питания, 250 мл. | C62: 532.6666667 | D62: 532.6666667 | F62: 0
A63: 91369 | B63: EPICA Professional Amber Shine ORGANIC Маска для восстановления и питания, 1000 мл. | C63: 1167.333333 | D63: =C63-C63*$E$3/100 -> 1167.333333 | F63: 0
A64: 91359 | B64: EPICA Professional Amber Shine ORGANIC Маска для восстановления и питания, 250 мл. | C64: 589.3333333 | D64: 589.3333333 | F64: 0
A65: 91392 | B65: EPICA Professional Amber Shine ORGANIC Сыворотка для восстановления волос, 100 мл. | C65: 714 | D65: 714 | F65: 0
A66: 91315 | B66: EPICA Professional Amber Shine ORGANIC Шампунь для восстановления и питания, 1000 мл. | C66: 1076.666667 | D66: 1076.666667 | F66: 0
A67: 91308 | B67: EPICA Professional Amber Shine ORGANIC Шампунь для восстановления и питания, 250 мл. | C67: 487.3333333 | D67: =C67-C67*$E$3/100 -> 487.3333333 | F67: 0
B68: ARGANIA RISE ORGANIC/ Блеск и гладкость волос | D68: 0 | F68: 0
A69: 91374 | B69: EPICA Argania Rise ORGANIC Кондиционер для придания блеска с маслом арганы, 1000 мл. Новинка! | C69: 1133.333333 | D69: 1133.333333 | F69: 0
A70: 91375 | B70: EPICA Argania Rise ORGANIC Кондиционер для придания блеска с маслом арганы, 250 мл. Новинка! | C70: 532.6666667 | D70: 532.6666667 | F70: 0
A71: 91377 | B71: EPICA Argania Rise ORGANIC Маска для придания блеска с маслом арганы, 1000 мл. Новинка! | C71: 1167.333333 | D71: 1167.333333 | F71: 0
A72: 91376 | B72: EPICA Professional Argania Rise ORGANIC Маска для придания блеска с маслом арганы, 250 мл. | C72: 589.3333333 | D72: 589.3333333 | F72: 0
A73: 91378 | B73: EPICA Argania Rise ORGANIC Спрей для придания блеска волосам с комплексом масел, 250 мл. Новинка! | C73: 782 | D73: 782 | F73: 0
A74: 91318 | B74: EPICA Argania Rise ORGANIC Шампунь для придания блеска, 1000 мл. Новинка! | C74: 1076.666667 | D74: 1076.666667 | F74: =E74*D74 -> 0
A75: 91309 | B75: EPICA Argania Rise ORGANIC Шампунь для придания блеска с маслом арганы, 250 мл. Новинка! | C75: 487.3333333 | D75: 487.3333333 | F75: 0
B76: KERATIN PRO/Реконструкция и восстановление волос | D76: 0 | F76: 0
A77: 91403 | B77: EPICA Keratin PRO Кондиционер для реконструкции и глубокого восстановления волос 1000 мл. | C77: 1133.333333 | D77: 1133.333333 | F77: 0
A78: 91402 | B78: EPICA Keratin PRO Кондиционер для реконструкции и глубокого восстановления волос 250 мл. | C78: 532.6666667 | D78: 532.6666667 | F78: 0
A79: 91405 | B79: EPICA Keratin PRO Маска для реконструкции и глубокого восстановления волос 1000 мл. | C79: 1167.333333 | D79: 1167.333333 | F79: 0
A80: 91404 | B80: EPICA Keratin PRO Маска для реконструкции и глубокого восстановления волос 250 мл. | C80: 589.3333333 | D80: 589.3333333 | F80: 0
A81: 91406 | B81: EPICA Keratin PRO Спрей для реконструкции и глубокого восстановления волос 250 мл | C81: 782 | D81: 782 | F81: 0
A82: 91401 | B82: EPICA Keratin PRO Шампунь для реконструкции и глубокого восстановления волос 1000 мл. | C82: 1076.666667 | D82: 1076.666667 | F82: 0
A83: 91400 | B83: EPICA Keratin PRO Шампунь для реконструкции и глубокого восстановления волос 250 мл. | C83: 487.3333333 | D83: 487.3333333 | F83: 0
B84: COLD BLOND/Уход для blond | D84: 0 | F84: 0
A85: 91354 | B85: EPICA Cold Blond Маска с фиолетовым пигментом, 1000 мл. | C85: 1076.666667 | D85: 1076.666667 | F85: 0
A86: 91353 | B86: EPICA Cold Blond Маска с фиолетовым пигментом, 250 мл. | C86: 498.6666667 | D86: 498.6666667 | F86: 0
A87: 91352 | B87: EPICA Cold Blond Спрей для нейтрализации теплого оттенка, 300 мл. | C87: 782 | D87: 782 | F87: 0
A88: 91351 | B88: EPICA Cold Blond Шампунь с фиолетовым пигментом, 1000 мл. | C88: 884 | D88: 884 | F88: 0
A89: 91350 | B89: EPICA Cold Blond Шампунь с фиолетовым пигментом, 300 мл. | C89: 464.6666667 | D89: 464.6666667 | F89: 0
B90: MEN'S/Мужская серия | D90: 0 | F90: 0
A91: 91391 | B91: EPICA Men's 3 in 1 Универсальный мужской шампунь для волос и тела, 1000 мл. | C91: 940.6666667 | D91: 940.6666667 | F91: 0
A92: 91390 | B92: EPICA Men's 3 in 1 Универсальный мужской шампунь для волос и тела, 250 мл. | C92: 464.6666667 | D92: 464.6666667 | F92: 0
A93: 91358 | B93: EPICA Men's Мужской кондиционер, 1000 мл. | C93: 940.6666667 | D93: 940.6666667 | F93: 0
A94: 91357 | B94: EPICA Men's Мужской кондиционер, 250 мл. | C94: 464.6666667 | D94: 464.6666667 | F94: 0
A95: 91349 | B95: EPICA Men's Мужской шампунь, 1000 мл. | C95: 940.6666667 | D95: 940.6666667 | F95: 0
A96: 91348 | B96: EPICA Men's Мужской шампунь, 250 мл. | C96: 464.6666667 | D96: 464.6666667 | F96: 0
A97: 913071 | B97: EPICA Men's - Охлаждающий гель для бритья, 100 мл. | C97: 328.6666667 | D97: 328.6666667 | F97: 0
A98: 913072 | B98: EPICA Men's - Согревающий гель для бритья, 100 мл. | C98: 328.6666667 | D98: 328.6666667 | F98: 0
B99: HEMP THERAPY ORGANIC/Для роста волос | D99: 0 | F99: 0
A100: 91342 | B100: EPICA Professional Hemp therapy ORGANIC Активатор роста волос, 100 мл. | C100: 782 | D100: 782 | F100: 0
A101: 913018 | B101: EPICA Professional Hemp therapy ORGANIC Кондиционер д/роста волос 1000 мл. | C101: 1133.333333 | D101: 1133.333333 | F101: 0
A102: 913016 | B102: EPICA Professional Hemp therapy ORGANIC Кондиционер д/роста волос 250 мл. | C102: 532.6666667 | D102: 532.6666667 | F102: 0
A103: 91394 | B103: EPICA Professional Hemp therapy ORGANIC Лосьон Calm Skin д/снятия раздр.кожи головы, 100 мл | C103: 532.6666667 | D103: 532.6666667 | F103: 0
A104: 91344 | B104: EPICA Professional Hemp therapy ORGANIC Пилинг для кожи головы, 150 мл. | C104: 725.3333333 | D104: 725.3333333 | F104: 0
A105: 913017 | B105: EPICA Professional Hemp therapy ORGANIC Шампунь для роста волос 1000 мл. | C105: 1076.666667 | D105: 1076.666667 | F105: 0
A106: 913015 | B106: EPICA Professional Hemp therapy ORGANIC Шампунь для роста волос 250 мл. | C106: 487.3333333 | D106: 487.3333333 | F106: 0
B107: SILK WAVES/ Ежедневный уход за вьющимися волосами Новинка! | D107: 0 | F107: 0
A108: 91398 | B108: EPICA Silk Waves Кондиционер для вьющихся и кудрявых волос , 1000 мл. | C108: 861.3333333 | D108: 861.3333333 | F108: 0
A109: 91399 | B109: EPICA Silk Waves Кондиционер для вьющихся и кудрявых волос, 300 мл. | C109: 442 | D109: 442 | F109: 0
A110: 91395 | B110: EPICA Silk Waves Спрей для вьющихся и кудрявых волос, 300 мл. | C110: 646 | D110: 646 | F110: 0
A111: 91397 | B111: EPICA Silk Waves Шампунь для вьющихся и кудрявых волос , 300 мл. | C111: 408 | D111: 408 | F111: 0
A112: 91396 | B112: EPICA Silk Waves Шампунь для вьющихся и кудрявых волос, 1000 мл. | C112: 782 | D112: 782 | F112: 0
B113: SKIN BALANCE|/Регулирование работы сальных желез | D113: 0 | F113: 0
A114: 91368 | B114: EPICA Skin Balance Кондиционер, регулирующий работу сальных желез, 1000 мл. | C114: 861.3333333 | D114: 861.3333333 | F114: 0
A115: 91367 | B115: EPICA Skin Balance Кондиционер, регулирующий работу сальных желез, 300 мл. | C115: 442 | D115: 442 | F115: 0
A116: 91366 | B116: EPICA Skin Balance Шампунь, регулирующий работу сальных желез, 1000 мл. | C116: 782 | D116: 782 | F116: 0
A117: 91365 | B117: EPICA Skin Balance Шампунь, регулирующий работу сальных желез, 300 мл. | C117: 408 | D117: 408 | F117: 0
B118: SPECIAL/Особенный уход | D118: 0 | F118: 0
A119: 91345 | B119: EPICA Anti-Dandruff Шампунь против перхоти, 300мл | C119: 487.3333333 | D119: 487.3333333 | F119: 0
A120: 91347 | B120: EPICA Delicate Бессульфатный шампунь, 1000 мл. | C120: 1144.666667 | D120: 1144.666667 | F120: 0
A121: 91343 | B121: EPICA Professional Delicate Бессульфатный шампунь, 300 мл. | C121: 578 | D121: 578 | F121: 0
A122: 91346 | B122: EPICA Pure Solution Шампунь для глубокого очищения волос, 1000мл. | C122: 782 | D122: 782 | F122: 0
B123: TOTAL CARE/ Уход и защита | D123: 0 | F123: 0
A124: 91363 | B124: EPICA Professional Multi Care 15 в 1 Несмываемый крем-уход с комплексом Actipone® ALPHA, 200мл | C124: 1133.333333 | D124: 1133.333333 | F124: 0
A125: 91092 | B125: EPICA Professional Recovery and nutrition Масло 10 мл.+ Бустер 10 мл. (монодозы) | C125: 272 | D125: 272 | F125: 0
A126: 91093 | B126: EPICA Professional Recovery and nutrition Масло 5 х10 мл.+ Бустер 5 х10 мл. (флаконы) | C126: 748 | D126: 748 | F126: 0
A127: 91364 | B127: EPICA Professional Softness & Shine Спрей–уход 10 в 1, 300 мл. | C127: 498.6666667 | D127: 498.6666667 | F127: 0
B128: СТАЙЛИНГ | D128: 0 | F128: 0
A129: 913083 | B129: EPICA Professional Лак для волос эластичной фиксации "ELASTIC" 400 мл | C129: 748 | D129: 748 | F129: 0
A130: 913084 | B130: EPICA Professional Лак для волос средней фиксации "MEDIUM" 400 мл | C130: 748 | D130: 748 | F130: 0
A131: 913109 | B131: Epica Professional Лак для волос сверхсильной фиксации "EXTRASTRONG", 400мл | C131: 997.3333333 | D131: =C131-C131*$E$3/100 -> 997.3333333 | F131: 0
A132: 913110 | B132: Epica Professional Лак для волос сильной фиксации "STRONG", 400мл | C132: 997.3333333 | D132: 997.3333333 | F132: 0
A133: 913093 | B133: Epica Professional Мусс для нейтр.тёплых оттенков волос «COLD BLOND» 250 мл. (Италия) | C133: 997.3333333 | D133: 997.3333333 | F133: 0
A134: 913095 | B134: Epica Professional Реконструирующий мусс с комплексом G-CELL и пантенолом «RECONSTRUCTION», 250 мл. (Италия) | C134: 997.3333333 | D134: 997.3333333 | F134: =E134*D134 -> 0
A135: 913090 | B135: Epica Professional Спрей-блеск с люминисцином «SHINE», 250 мл. (Италия) | C135: 1144.666667 | D135: 1144.666667 | F135: 0
A136: 913086 | B136: EPICA Professional Мусс для прикорневого объема "ELASTIC", 250 мл. (Россия) | C136: 623.3333333 | D136: 623.3333333 | F136: 0
A137: 91263 | B137: EPICA Professional Five Elements Спрей д/волос сильной фиксации с термозащитным комплексом, 200 мл. | C137: 578 | D137: 578 | F137: 0
A138: 91264 | B138: EPICA Professional Heat Shield Спрей д/волос с термозащитным комплексом, 200 мл. | C138: 578 | D138: 578 | F138: 0
A139: 91265 | B139: EPICA Professional Perfect shine Спрей-блеск с комплексом Crodabond CSA, 200 мл. | C139: 748 | D139: =C139-C139*$E$3/100 -> 748 | F139: =E139*D139 -> 0
A140: 91266 | B140: EPICA Professional Silk Surface Спрей разглаживающий д/волос с термозащитным комплексом, 200 мл. | C140: 578 | D140: =C140-C140*$E$3/100 -> 578 | F140: =E140*D140 -> 0
A141: 91267 | B141: EPICA Professional Volume Booster Спрей д/прикорневого объема, 200 мл. | C141: 578 | D141: 578 | F141: 0
A142: 913085 | B142: EPICA Professional Мусс для укладки средней фиксации "MEDIUM", 250 мл. | C142: 623.3333333 | D142: 623.3333333 | F142: 0
A143: 91417 | B143: EPICA Professional Пудра для объёма волос сильной фиксации VOL 100%, 35 мл | C143: 748 | D143: 748 | F143: 0
A144: 91270 | B144: EPICA Professional Солевой текстурирующий спрей Salt texturizing spray, 200 мл | C144: 578 | D144: 578 | F144: 0
A145: 913111 | B145: EPICA Professional Жидкий лак для волос сильной фиксации "STRONG", 200 мл | C145: 827.3333333 | D145: 827.3333333 | F145: 0
B146: КРЕМ ДЛЯ РУК/КРЕМ-МЫЛО | D146: 0 | F146: 0
A147: 913028 | B147: EPICA Professional Cream Soap Regenerating Крем-мыло регенерирующее, 400 мл. | C147: 306 | D147: 306 | F147: 0
A148: 913026 | B148: EPICA Professional Moisturizing Крем для рук увлажняющий, 125 мл. | C148: 306 | D148: 306 | F148: 0
A149: 913027 | B149: EPICA Professional Moisturizing Крем для рук увлажняющий, 400 мл. | C149: 453.3333333 | D149: 453.3333333 | F149: 0
A150: 913023 | B150: EPICA Professional Nutritious Крем для рук питательный, 125 мл. | C150: 306 | D150: 306 | F150: 0
A151: 913024 | B151: EPICA Professional Nutritious Крем для рук питательный, 400 мл. | C151: 453.3333333 | D151: 453.3333333 | F151: 0
A152: 913021 | B152: EPICA Professional Protective Regenerating Крем для рук защитно-регенерирующий, 125 мл. | C152: 328.6666667 | D152: 328.6666667 | F152: 0
A153: 913022 | B153: EPICA Professional Protective Regenerating Крем для рук защитно-регенерирующий, 400 мл. | C153: 544 | D153: 544 | F153: 0
B154: ПРОФ ОБЪЁМ 5000 мл. | D154: 0 | F154: 0
A155: 913125 | B155: EPICA Professional Daily Haircare Кондиционер д/ежедневного ухода, 5000 мл. | C155: 2878.666667 | D155: 2878.666667 | F155: 0
A156: 913105 | B156: EPICA Professional Daily Haircare Шампунь д/ежедневного ухода, 5000 мл. | C156: 2742.666667 | D156: 2742.666667 | F156: 0
A157: 913401 | B157: EPICA Professional Post Color Нейтрализующий шампунь для завершения процесса окрашивания, 5000 мл | C157: 2742.666667 | D157: 2742.666667 | F157: 0
A158: 913025 | B158: EPICA Professional Rich Color Кондиционер д/окрашенных волос, 5000 мл. | C158: 2878.666667 | D158: 2878.666667 | F158: 0
A159: 913005 | B159: EPICA Professional Rich Color Шампунь д/окрашенных волос, 5000 мл. | C159: 2742.666667 | D159: 2742.666667 | F159: 0
A160: 18821 | B160: EPICA Professional Дозатор канистровый 40, дл трубки 250мм, белый (512_Doz.Con-(40/410)-250-W) | C160: 249.3333333 | D160: 249.3333333 | F160: 0
E161: ИТОГО: | F161: =SUM(F9:F160) -> 0 | G161: =SUM(#REF!) -> 

Sheet INSIGHT
B2: 109457 г. Москва,ул. Плеханова, дом 4,стр.3 ООО “Компания "Аквакосметика” тел. 8(495)785-99-54,785-99-53 многоканальный сайт: www.steck.ru, e-mail: prof@akva.ru
C3: Проставьте в зеленой ячейке вашу скидку | F3: %
B4: Прайс-лист INSIGHT ECO
A6: 2024-04-01
A7: Артикул | B7: Наименование | C7: Цена с НДС, руб | D7: Цена с вашей скидкой,руб | E7: Ваш Заказ | F7: Сумма Вашего заказа (с НДС)
B8: Линия для восстановления поврежденных волос DAMAGED HAIR | D8: =C8-C8*$E$3/100 -> 0 | F8: =E8*D8 -> 0
A9: 334132 | B9: Кондиционер для восстановления поврежденных волос DAMAGED HAIR (100 мл) IDA076/3628 | C9: 442 | D9: 442 | F9: 0
A10: 334038/1 | B10: Кондиционер для восстановления поврежденных волос DAMAGED HAIR (400 мл) IDA045/3611 | C10: 1201.333333 | D10: 1201.333333 | F10: 0
A11: 334037/1 | B11: Кондиционер для восстановления поврежденных волос DAMAGED HAIR (900 мл) IDA015/3604 | C11: 1722.666667 | D11: 1722.666667 | F11: 0
A12: 334039 | B12: Маска для восстановления поврежденных волос DAMAGED HAIR (250 мл) IDA044/3598 | C12: 940.6666667 | D12: 940.6666667 | F12: 0
A13: 334040 | B13: Маска для восстановления поврежденных волос DAMAGED HAIR (500 мл) IDA014/0197 | C13: 1462 | D13: 1462 | F13: 0
A14: 334204 | B14: Спрей для восстановления поврежденных волос DAMAGED HAIR (100 мл) IDA104/2980 | C14: 1360 | D14: 1360 | F14: 0
A15: 334131 | B15: Шампунь для восстановления поврежденных волос DAMAGED HAIR (100 мл) IDA058/1266 | C15: 442 | D15: 442 | F15: 0
A16: 334042/1 | B16: Шампунь для восстановления поврежденных волос DAMAGED HAIR (400 мл) IDA043/3567 | C16: 1065.333333 | D16: 1065.333333 | F16: 0
A17: 334041/1 | B17: Шампунь для восстановления поврежденных волос DAMAGED HAIR (900 мл) IDA013/3550 | C17: 1598 | D17: 1598 | F17: 0
B18: Линия для дисциплины непослушных и вьющихся волос ANTI-FRIZZ | D18: 0 | F18: 0
A19: 334130 | B19: Кондиционер для дисциплины непослушных и вьющихся волос ANTI-FRIZZ (100 мл) IAF080/1501 | C19: 442 | D19: 442 | F19: 0
A20: 334010/1 | B20: Кондиционер для дисциплины непослушных и вьющихся волос ANTI-FRIZZ (400 мл) IAF042/3536 | C20: 1201.333333 | D20: 1201.333333 | F20: 0
A21: 334009/1 | B21: Кондиционер для дисциплины непослушных и вьющихся волос ANTI-FRIZZ (900 мл) IAF012/3529 | C21: 1722.666667 | D21: 1722.666667 | F21: 0
A22: 334007 | B22: Маска для дисциплины непослушных и вьющихся волос ANTI-FRIZZ (250 мл) IAF041/3512 | C22: 940.6666667 | D22: 940.6666667 | F22: 0
A23: 334008 | B23: Маска для дисциплины непослушных и вьющихся волос ANTI-FRIZZ (500 мл) IAF011/0180 | C23: 1462 | D23: 1462 | F23: 0
A24: 334129 | B24: Шампунь для дисциплины непослушных и вьющихся волос ANTI-FRIZZ (100 мл) IAF079/1495 | C24: 442 | D24: 442 | F24: 0
A25: 334012/1 | B25: Шампунь для дисциплины непослушных и вьющихся волос ANTI-FRIZZ (400 мл) IAF040/3482 | C25: 1065.333333 | D25: 1065.333333 | F25: 0
A26: 334011/1 | B26: Шампунь для дисциплины непослушных и вьющихся волос ANTI-FRIZZ (900 мл) IAF010/3475 | C26: 1598 | D26: 1598 | F26: 0
B27: Линия для ежедневного применения DAILY USE | D27: 0 | F27: 0
A28: 334128 | B28: Кондиционер для ежедневного применения DAILY USE (100 мл) IDU078/1457 | C28: 442 | D28: 442 | F28: 0
A29: 334032/1 | B29: Кондиционер для ежедневного применения DAILY USE (400 мл) IDU039/3451 | C29: 1201.333333 | D29: 1201.333333 | F29: 0
A30: 334031/1 | B30: Кондиционер для ежедневного применения DAILY USE (900 мл) IDU009/3444 | C30: 1722.666667 | D30: 1722.666667 | F30: 0
A31: 334033 | B31: Маска для ежедневного применения DAILY USE (250 мл) IDU038/3437 | C31: 940.6666667 | D31: 940.6666667 | F31: 0
A32: 334034 | B32: Маска для ежедневного применения DAILY USE (500 мл) IDU008/0210 | C32: 1462 | D32: 1462 | F32: 0
A33: 334513 | B33: Несмываемый кондиционер для волос DAILY USE (150 мл) IDU187/7602 | C33: 759.3333333 | D33: 759.3333333 | F33: 0
A34: 334363 | B34: Укрепляющий сухой шампунь DAILY USE (40 гр.) IDU160/6278 | C34: 1110.666667 | D34: 1110.666667 | F34: 0
A35: 334127 | B35: Шампунь для ежедневного применения DAILY USE (100 мл) IDU060/1280 | C35: 442 | D35: 442 | F35: 0
A36: 334036/1 | B36: Шампунь для ежедневного применения DAILY USE (400 мл) IDU037/3406 | C36: 1065.333333 | D36: 1065.333333 | F36: 0
A37: 334035/1 | B37: Шампунь для ежедневного применения DAILY USE (900 мл) IDU007/3390 | C37: 1598 | D37: 1598 | F37: 0
B38: Линия для защиты и омоложения волос ANTIOXIDANT | D38: 0 | F38: 0
A39: 334201 | B39: Кондиционер для защиты и омоложения волос ANTIOXIDANT (100 мл) IAO100/2911 | C39: 442 | D39: =C39-C39*$E$3/100 -> 442 | F39: =E39*D39 -> 0
A40: 334014/1 | B40: Кондиционер для защиты и омоложения волос ANTIOXIDANT (400 мл) IAO036/3369 | C40: 1201.333333 | D40: 1201.333333 | F40: 0
A41: 334013/1 | B41: Кондиционер для защиты и омоложения волос ANTIOXIDANT (900 мл) IAO006/3352 | C41: 1722.666667 | D41: 1722.666667 | F41: 0
A42: 334015 | B42: Маска для защиты и омоложения волос ANTIOXIDANT (250 мл) IAO035/3345 | C42: 940.6666667 | D42: 940.6666667 | F42: 0
A43: 334016 | B43: Маска для защиты и омоложения волос ANTIOXIDANT (500 мл) IAO005/0173 | C43: 1462 | D43: 1462 | F43: 0
A44: 334202 | B44: Спрей для защиты и омоложения волос ANTIOXIDANT (100 мл) IAO103/2966 | C44: 2142 | D44: 2142 | F44: 0
A45: 334362 | B45: Увлажняющая и освежающая вода для волос и тела ANTIOXIDANT HAIR AND BODY WATER (150 мл) IAO146/5677 | C45: 963.3333333 | D45: 963.3333333 | F45: 0
A46: 334200 | B46: Шампунь для защиты и омоложения волос ANTIOXIDANT (100 мл) IAO099/2973 | C46: 442 | D46: 442 | F46: 0
A47: 334018/1 | B47: Шампунь для защиты и омоложения волос ANTIOXIDANT (400 мл) IAO034/3314 | C47: 1065.333333 | D47: 1065.333333 | F47: 0
A48: 334017/1 | B48: Шампунь для защиты и омоложения волос ANTIOXIDANT (900 мл) IAO004/3307 | C48: 1598 | D48: 1598 | F48: 0
B49: Линия для кудрявых волос ELASTI-CURL | D49: 0 | F49: 0
A50: 334507 | B50: Крем для усиления завитка кудрявых волос ELASTI-CURL Curls defining hair cream (250 мл) IEC191/7572 | C50: 1858.666667 | D50: 1858.666667 | F50: 0
A51: 334508 | B51: Масло-блеск для кудрявых волос ELASTI-CURL Bouncy curls hair oil (50 мл) IEC192/7589 | C51: 1224 | D51: 1224 | F51: 0
A52: 334509 | B52: Увлажняющий шампунь-воск для кудрявых волос ELASTI-CURL Pure mild shampoo (100 мл) IEC190/7565 | C52: 1654.666667 | D52: 1654.666667 | F52: 0
A53: 334506 | B53: Увлажняющий шампунь-воск для кудрявых волос ELASTI-CURL Pure mild shampoo (200 мл) IEC189/7558 | C53: 2550 | D53: 2550 | F53: 0
B54: Линия для объема тонких волос VOLUMIZING | D54: 0 | F54: 0
A55: 334308 | B55: Несмываемый спрей-кондиционер для объема тонких волос VOLUMIZING (100 мл) IVO134/4366 | C55: 600.6666667 | D55: 600.6666667 | F55: 0
A56: 334514 | B56: Спрей для прикорневого объема волос VOLUMIZING (100 мл) IVO188/7596 | C56: 872.6666667 | D56: 872.6666667 | F56: 0
A57: 334307 | B57: Шампунь для объема тонких волос VOLUMIZING (100 мл) IVO133/4359 | C57: 442 | D57: 442 | F57: 0
A58: 334306 | B58: Шампунь для объема тонких волос VOLUMIZING (400 мл) IVO132/4342 | C58: 1065.333333 | D58: 1065.333333 | F58: 0
A59: 334305 | B59: Шампунь для объема тонких волос VOLUMIZING (900 мл) IVO131/4335 | C59: 1598 | D59: 1598 | F59: 0
B60: Линия для окрашенных волос COLORED HAIR | D60: 0 | F60: 0
A61: 334134 | B61: Кондиционер для окрашенных волос COLORED HAIR (100 мл) ICO082/1525 | C61: 442 | D61: 442 | F61: 0
A62: 334028/1 | B62: Кондиционер для окрашенных волос COLORED HAIR (400 мл) ICO048/3710 | C62: 1201.333333 | D62: 1201.333333 | F62: 0
A63: 334027/1 | B63: Кондиционер для окрашенных волос COLORED HAIR (900 мл) ICO018/3703 | C63: 1722.666667 | D63: 1722.666667 | F63: 0
A64: 334025 | B64: Маска для окрашенных волос COLORED HAIR (250 мл) ICO047/3697 | C64: 940.6666667 | D64: 940.6666667 | F64: 0
A65: 334026 | B65: Маска для окрашенных волос COLORED HAIR (500 мл) ICO017/0203 | C65: 1462 | D65: 1462 | F65: 0
A66: 334133 | B66: Шампунь для окрашенных волос COLORED HAIR (100 мл) ICO081/1518 | C66: 442 | D66: 442 | F66: 0
A67: 334030/1 | B67: Шампунь для окрашенных волос COLORED HAIR (400 мл) ICO046/3666 | C67: 1065.333333 | D67: 1065.333333 | F67: 0
A68: 334029/1 | B68: Шампунь для окрашенных волос COLORED HAIR (900 мл) ICO016/3659 | C68: 1598 | D68: 1598 | F68: 0
B69: Линия для поддержания холодных оттенков BLONDE | D69: 0 | F69: 0
A70: 334479 | B70: Маска для поддержания холодных оттенков BLONDE (500 мл) IBL179/6858 | C70: 1779.333333 | D70: 1779.333333 | F70: 0
A71: 334482 | B71: Маска для поддержания холодных оттенков COLD BLONDE (250 мл) IBL178/6841 | C71: 1269.333333 | D71: =C71-C71*$E$3/100 -> 1269.333333 | F71: =E71*D71 -> 0
A72: 334480 | B72: Шампунь для поддержания холодных оттенков BLONDE (400 мл) IBL176/6827 | C72: 1326 | D72: 1326 | F72: 0
A73: 334481 | B73: Шампунь для поддержания холодных оттенков BLONDE (900 мл) IBL177/6834 | C73: 1892.666667 | D73: 1892.666667 | F73: 0
B74: Линия для увлажнения и питания сухих волос DRY HAIR | D74: 0 | F74: 0
A75: 334126 | B75: Кондиционер для увлажнения и питания сухих волос DRY HAIR (100 мл) IDR077/1440 | C75: 442 | D75: 442 | F75: 0
A76: 334046/1 | B76: Кондиционер для увлажнения и питания сухих волос DRY HAIR (400 мл) IDR033/3284 | C76: 1201.333333 | D76: 1201.333333 | F76: 0
A77: 334045/1 | B77: Кондиционер для увлажнения и питания сухих волос DRY HAIR (900 мл) IDR003/3277 | C77: 1722.666667 | D77: 1722.666667 | F77: 0
A78: 334043 | B78: Маска для увлажнения и питания сухих волос DRY HAIR (250 мл) IDR032/3260 | C78: 940.6666667 | D78: 940.6666667 | F78: 0
A79: 334044 | B79: Маска для увлажнения и питания сухих волос DRY HAIR (500 мл) IDR002/0166 | C79: 1462 | D79: 1462 | F79: 0
A80: 334125 | B80: Шампунь для увлажнения и питания сухих волос DRY HAIR (100 мл) IDR059/1273 | C80: 442 | D80: 442 | F80: 0
A81: 334048/1 | B81: Шампунь для увлажнения и питания сухих волос DRY HAIR (400 мл) IDR031/3239 | C81: 1065.333333 | D81: 1065.333333 | F81: 0
A82: 334047/1 | B82: Шампунь для увлажнения и питания сухих волос DRY HAIR (900 мл) IDR001/3222 | C82: 1598 | D82: 1598 | F82: 0
D83: ИТОГО: | F83: =SUM(F8:F82) -> 0

Sheet Infinity NEW
A1: 109457 г. Москва,ул. Плеханова, дом 4,стр.3 ООО “Компания "Аквакосметика” тел. 8(495)785-99-54,785-99-53 многоканальный
B4: ПРАЙС-ЛИСТ INFINITY | G4: %
A5: 2024-04-01
A6: Артикул | B6: Номенклатура | C6: Цена РРЦ в руб. с НДС | D6: Цена салон (база) руб. с НДС | E6: Цена с вашей скидкой,руб | F6: Заказ шт. | G6: Сумма, руб. с НДС с вашей скидкой
B7: INFINITY AQUA BOOST увлажнение
A8: 0777-97614 | B8: Кондиционер увлажняющий Aqua Boost, 1000 мл | C8: 858 | D8: 490 | E8: =D8-D8*$F$4/100 -> 490 | G8: =F8*E8 -> 0
A9: 0777-97621 | B9: Маска увлажняющая Aqua Boost 500 мл | C9: 788 | D9: 450 | E9: =D9-D9*$F$4/100 -> 450 | G9: =F9*E9 -> 0
A10: 0777-97607 | B10: Шампунь увлажняющий Aqua Boost, 1000 мл | C10: 858 | D10: 490 | E10: 490 | G10: 0
B11: INFINITY COLOR LOCK сохранение цвета | D11: 0 | E11: 0 | G11: 0
A12: 0777-97553 | B12: Кондиционер для окрашенных волос Color Lock, 1000 мл | C12: 858 | D12: 490 | E12: 490 | G12: 0
A13: 0777-97560 | B13: Маска для окрашенных волос Color Lock, 500 мл | C13: 788 | D13: 450 | E13: 450 | G13: 0
A14: 0777-97546 | B14: Шампунь для окрашенных волос Color Lock, 1000 мл | C14: 858 | D14: 490 | E14: 490 | G14: 0
B15: INFINITY EXPERT CARE салонный уход | D15: 0 | E15: 0 | G15: 0
A16: 0777-97539 | B16: Кондиционер Expert Care, 1000 мл | C16: 858 | D16: 490 | E16: 490 | G16: 0
A17: 0777-97522 | B17: Шампунь Expert Care, 1000 мл | C17: 858 | D17: 490 | E17: 490 | G17: 0
B18: INFINITY PERFORMANCE Стайлинг | D18: 0 | E18: 0 | G18: 0
A19: 0777-96099 | B19: Лак д/волос сверхсильной (3) фиксации Infinity, 500 мл | C19: 858 | D19: 490 | E19: 490 | G19: 0
A20: 0777-96105 | B20: Лак д/волос сильной (2) фиксации Infinity, 500 мл | C20: 858 | D20: 490 | E20: 490 | G20: 0
A21: 0777-96082 | B21: Лак д/волос экстрасильной (4) фиксации Infinity, 500 мл | C21: 858 | D21: 490 | E21: 490 | G21: 0
B22: INFINITY SERVICE PRO сервисные продукты | D22: 0 | E22: 0 | G22: 0
A23: 0777-97638 | B23: Плазма-стабилизатор цвета, 1000 мл | C23: 1033 | D23: 590 | E23: 590 | G23: 0
A24: 0777-97645 | B24: Шампунь глубокой очистки, 1000 мл INFINITY SERVICE PRO сервисные продукты Сoncept(Концепт) | C24: 683 | D24: 390 | E24: 390 | G24: 0
B25: INFINITY VITALITY FORCE восстановление | D25: 0 | E25: 0 | G25: 0
A26: 0777-97584 | B26: Кондиционер восстанавливающий Vitality force, 1000 мл | C26: 858 | D26: 490 | E26: 490 | G26: 0
A27: 0777-97591 | B27: Маска восстанавливающая липидная Vitality force, 500 мл | C27: 858 | D27: 450 | E27: 450 | G27: 0
A28: 0777-97577 | B28: Шампунь восстанавливающий Vitality force, 1000 мл | C28: 858 | D28: 490 | E28: 490 | G28: 0
B29: INFINITY Активаторы | D29: 0 | E29: 0 | G29: 0
A30: 0777-97102 | B30: Активатор Excellence 1,5%, 1000 мл | C30: 525 | D30: 300 | E30: 300 | G30: 0
A31: 0777-97072 | B31: Активатор Excellence 12%, 1000 мл | C31: 525 | D31: 300 | E31: 300 | G31: 0
A32: 0777-97119 | B32: Активатор Excellence 3%, 1000 мл | C32: 525 | D32: 300 | E32: 300 | G32: 0
A33: 0777-97089 | B33: Активатор Excellence 6%, 1000 мл | C33: 525 | D33: 300 | E33: 300 | G33: 0
A34: 0777-97096 | B34: Активатор Excellence 9%, 1000 мл | C34: 525 | D34: 300 | E34: 300 | G34: 0
B35: INFINITY Обесцвечивающие продукты | D35: 0 | E35: 0 | G35: 0
A36: 0777-97065 | B36: Порошок д/осветления волос Perfect Blue, 500 г | C36: 1382 | D36: 790 | E36: 790 | G36: 0
A37: 0777-97058 | B37: Порошок д/осветления волос Super white, 500 г | C37: 1382 | D37: 790 | E37: 790 | G37: 0
B38: INFINITY Стойкая крем-краска для волос | D38: 0 | E38: 0 | G38: 0
A39: 0777-98208 | B39: 0.00A Щелочной корректор, 100 мл | C39: 348 | D39: 199 | E39: 199 | G39: 0
A40: 0777-98192 | B40: 0.00N Нейтральный Крем-корректор, 100 мл | C40: 348 | D40: 199 | E40: 199 | G40: 0
A41: 0777-57556 | B41: 1.0 Черный, 100 мл INFINITY | C41: 348 | D41: 199 | E41: 199 | G41: 0
A42: 0777-57693 | B42: 1.1 Индиго, 100 мл INFINITY | C42: 348 | D42: 199 | E42: 199 | G42: 0
A43: 0777-57488 | B43: 10.0 Очень светлый блондин, 100 мл INFINITY | C43: 348 | D43: 199 | E43: 199 | G43: 0
A44: 0777-57563 | B44: 10.00 Очень светлый блондин интенсивный, 100 мл INFINITY | C44: 348 | D44: 199 | E44: 199 | G44: 0
A45: 0777-58096 | B45: 10.06 Очень светлый блондин фиолетовый, 100 мл INFINITY | C45: 348 | D45: 199 | E45: 199 | G45: 0
A46: 0777-57631 | B46: 10.1 Очень светлый блондин пепельный, 100 мл INFINITY | C46: 348 | D46: 199 | E46: 199 | G46: 0
A47: 0777-57846 | B47: 10.13 Очень светлый блондин пепельно-золотистый, 100 мл INFINITY | C47: 348 | D47: 199 | E47: 199 | G47: 0
A48: 0777-57761 | B48: 10.16 Очень светлый блондин пепельно-фиолетовый, 100 мл INFINITY | C48: 348 | D48: 199 | E48: 199 | G48: 0
A49: 0777-57808 | B49: 10.3 Очень светлый блондин золотистый, 100 мл INFINITY | C49: 348 | D49: 199 | E49: 199 | G49: 0
A50: 0777-57860 | B50: 10.37 Очень светлый блондин золотисто-коричневый, 100 мл INFINITY | C50: 348 | D50: 199 | E50: 199 | G50: 0
A51: 0777-58133 | B51: 10.65 Очень светлый блондин фиолетово-красный, 100 мл INFINITY | C51: 348 | D51: 199 | E51: 199 | G51: 0
A52: 0777-58171 | B52: 10.7 Очень светлый блондин коричневый, 100 мл INFINITY | C52: 348 | D52: 199 | E52: 199 | G52: 0
A53: 0777-58386 | B53: 10.77 Очень светлый блондин коричневый интенсивный, 100 мл INFINITY | C53: 348 | D53: 199 | E53: 199 | G53: 0
A54: 0777-58454 | B54: 10.8 Очень светлый блондин жемчужный, 100 мл INFINITY | C54: 348 | D54: 199 | E54: 199 | G54: 0
A55: 0777-94910 | B55: 10.85 Очень светлый блондин жемчужно-красный, 100 мл INFINITY | C55: 348 | D55: 199 | E55: 199 | G55: 0
A56: 0777-57471 | B56: 12.0 Экстра светлый блондин, 100 мл INFINITY | C56: 348 | D56: 199 | E56: 199 | G56: 0
A57: 0777-57624 | B57: 12.1 Экстра светлый блондин пепельный, 100 мл INFINITY | C57: 348 | D57: 199 | E57: 199 | G57: 0
A58: 0777-57839 | B58: 12.13 Экстра светлый блондин пепельно-золотистый, 100 мл INFINITY | C58: 348 | D58: 199 | E58: 199 | G58: 0
A59: 0777-57754 | B59: 12.16 Экстра светлый блондин пепельно-фиолетовый, 100 мл INFINITY | C59: 348 | D59: 199 | E59: 199 | G59: 0
A60: 0777-58126 | B60: 12.65 Экстра светлый фиолетово-красный, 100 мл INFINITY | C60: 348 | D60: 199 | E60: 199 | G60: 0
A61: 0777-58164 | B61: 12.7 Экстра светлый блондин коричневый, 100 мл INFINITY | C61: 348 | D61: 199 | E61: 199 | G61: 0
A62: 0777-58379 | B62: 12.77 Экстра светлый блондин коричневый интенсивный, 100 мл INFINITY | C62: 348 | D62: 199 | E62: 199 | G62: 0
A63: 0777-58447 | B63: 12.8 Экстра светлый блондин жемчужный, 100 мл INFINITY | C63: 348 | D63: 199 | E63: 199 | G63: 0
A64: 0777-57549 | B64: 3.0 Темный шатен, 100 мл INFINITY | C64: 348 | D64: 199 | E64: 199 | G64: 0
A65: 0777-58249 | B65: 3.7 Темный шатен коричневый, 100 мл INFINITY | C65: 348 | D65: 199 | E65: 199 | G65: 0
A66: 0777-57532 | B66: 4.0 Шатен, 100 мл INFINITY | C66: 348 | D66: 199 | E66: 199 | G66: 0
A67: 0777-58119 | B67: 4.6 Шатен фиолетовый, 100 мл INFINITY | C67: 348 | D67: 199 | E67: 199 | G67: 0
A68: 0777-58232 | B68: 4.7 Шатен коричневый, 100 мл INFINITY | C68: 348 | D68: 199 | E68: 199 | G68: 0
A69: 0777-58331 | B69: 4.73 Шатен коричнево-золотистый, 100 мл INFINITY | C69: 348 | D69: 199 | E69: 199 | G69: 0
A70: 0777-58362 | B70: 4.75 Шатен коричнево-красный, 100 мл INFINITY | C70: 348 | D70: 199 | E70: 199 | G70: 0
A71: 0777-58430 | B71: 4.77 Шатен коричневый интенсивный, 100 мл INFINITY | C71: 348 | D71: 199 | E71: 199 | G71: 0
A72: 0777-57525 | B72: 5.0 Темно-русый, 100 мл INFINITY | C72: 348 | D72: 199 | E72: 199 | G72: 0
A73: 0777-57617 | B73: 5.00 Темно-русый интенсивный, 100 мл INFINITY | C73: 348 | D73: 199 | E73: =D73-D73*$F$4/100 -> 199 | G73: =F73*E73 -> 0
A74: 0777-57686 | B74: 5.1 Темно-русый пепельный, 100 мл INFINITY | C74: 348 | D74: 199 | E74: 199 | G74: 0
A75: 0777-57747 | B75: 5.11 Темно-русый интенсивно-пепельный, 100 мл INFINITY | C75: 348 | D75: 199 | E75: 199 | G75: 0
A76: 0777-95139 | B76: 5.4 Темно-русый медный, 100 мл INFINITY | C76: 348 | D76: 199 | E76: 199 | G76: 0
A77: 0777-58027 | B77: 5.45 Темно-русый медно-красный, 100 мл INFINITY | C77: 348 | D77: 199 | E77: 199 | G77: 0
A78: 0777-58089 | B78: 5.5 Темно-русый красный, 100 мл INFINITY | C78: 348 | D78: 199 | E78: 199 | G78: 0
A79: 0777-58157 | B79: 5.65 Темно-русый фиолетово-красный, 100 мл INFINITY | C79: 348 | D79: 199 | E79: 199 | G79: 0
A80: 0777-58225 | B80: 5.7 Темно-русый коричневый, 100 мл INFINITY | C80: 348 | D80: 199 | E80: 199 | G80: 0
A81: 0777-58300 | B81: 5.71 Темно-русый коричнево-пепельный, 100 мл INFINITY | C81: 348 | D81: 199 | E81: 199 | G81: 0
A82: 0777-90400 | B82: 5.73 Темно-русый коричнево-золотистый, 100 мл INFINITY | C82: 348 | D82: 199 | E82: 199 | G82: 0
A83: 0777-58355 | B83: 5.75 Темно-русый коричнево-красный, 100 мл INFINITY | C83: 348 | D83: 199 | E83: 199 | G83: 0
A84: 0777-58492 | B84: 5.86 Темно-русый жемчужно-фиолетовой, 100 мл INFINITY | C84: 348 | D84: 199 | E84: 199 | G84: 0
A85: 0777-57518 | B85: 6.0 Русый, 100 мл INFINITY | C85: 348 | D85: 199 | E85: 199 | G85: 0
A86: 0777-57600 | B86: 6.00 Русый интенсивный, 100 мл INFINITY | C86: 348 | D86: 199 | E86: 199 | G86: 0
A87: 0777-57679 | B87: 6.1 Русый пепельный, 100 мл INFINITY | C87: 348 | D87: 199 | E87: 199 | G87: 0
A88: 0777-57792 | B88: 6.18 Русый пепельно-жемчужный, 100 мл INFINITY | C88: 348 | D88: 199 | E88: 199 | G88: 0
A89: 0777-94903 | B89: 6.3 Русый золотистый, 100 мл INFINITY | C89: 348 | D89: 199 | E89: 199 | G89: 0
A90: 0777-57921 | B90: 6.34 Русый золотисто-медный, 100 мл INFINITY | C90: 348 | D90: 199 | E90: 199 | G90: 0
A91: 0777-57969 | B91: 6.4 Русый медный, 100 мл INFINITY | C91: 348 | D91: 199 | E91: 199 | G91: 0
A92: 0777-58010 | B92: 6.45 Русый медно-красный, 100 мл INFINITY | C92: 348 | D92: 199 | E92: 199 | G92: 0
A93: 0777-58102 | B93: 6.6 Русый фиолетовый, 100 мл INFINITY | C93: 348 | D93: 199 | E93: 199 | G93: 0
A94: 0777-58218 | B94: 6.7 Русый коричневый, 100 мл INFINITY | C94: 348 | D94: 199 | E94: 199 | G94: 0
A95: 0777-58294 | B95: 6.71 Русый коричнево-пепельный, 100 мл INFINITY | C95: 348 | D95: 199 | E95: 199 | G95: 0
A96: 0777-58324 | B96: 6.73 Русый коричнево-золотистый, 100 мл INFINITY | C96: 348 | D96: 199 | E96: 199 | G96: 0
A97: 0777-58485 | B97: 6.86 Русый жемчужно-фиолетовый, 100 мл INFINITY | C97: 348 | D97: 199 | E97: 199 | G97: 0
A98: 0777-57501 | B98: 7.0 Светло-русый, 100 мл INFINITY | C98: 348 | D98: 199 | E98: 199 | G98: 0
A99: 0777-57594 | B99: 7.00 Светло-русый интенсивный, 100 мл INFINITY | C99: 348 | D99: 199 | E99: 199 | G99: 0
A100: 0777-57662 | B100: 7.1 Светло-русый пепельный, 100 мл INFINITY | C100: 348 | D100: 199 | E100: 199 | G100: 0
A101: 0777-57723 | B101: 7.11 Светло-русый интенсивно-пепельный, 100 мл INFINITY | C101: 348 | D101: 199 | E101: 199 | G101: 0
A102: 0777-57785 | B102: 7.16 Светло-русый пепельно-фиолетовый, 100 мл INFINITY | C102: 348 | D102: 199 | E102: 199 | G102: 0
A103: 0777-57914 | B103: 7.34 Светло-русый золотисто-медный, 100 мл INFINITY | C103: 348 | D103: 199 | E103: 199 | G103: 0
A104: 0777-57952 | B104: 7.4 Светло-русый медный, 100 мл INFINITY | C104: 348 | D104: 199 | E104: 199 | G104: 0
A105: 0777-58003 | B105: 7.45 Светло-русый медно-красный, 100 мл INFINITY | C105: 348 | D105: 199 | E105: 199 | G105: 0
A106: 0777-58058 | B106: 7.48 Светло-русый медно-жемчужный, 100 мл INFINITY | C106: 348 | D106: 199 | E106: 199 | G106: 0
A107: 0777-58072 | B107: 7.5 Светло-русый красный, 100 мл INFINITY | C107: 348 | D107: 199 | E107: 199 | G107: 0
A108: 0777-58201 | B108: 7.7 Светло-русый коричневый, 100 мл INFINITY | C108: 348 | D108: 199 | E108: 199 | G108: 0
A109: 0777-58287 | B109: 7.71 Светло-русый коричнево-пепельный, 100 мл INFINITY | C109: 348 | D109: 199 | E109: 199 | G109: 0
A110: 0777-58317 | B110: 7.73 Светло-русый коричнево-золотистый, 100 мл INFINITY | C110: 348 | D110: 199 | E110: 199 | G110: 0
A111: 0777-58348 | B111: 7.75 Светло-русый коричнево-красный, 100 мл INFINITY | C111: 348 | D111: 199 | E111: 199 | G111: 0
A112: 0777-94941 | B112: 7.76 Светло-русый коричнево-фиолетовый, 100 мл INFINITY | C112: 348 | D112: 199 | E112: 199 | G112: 0
A113: 0777-57495 | B113: 8.0 Блондин, 100 мл INFINITY | C113: 348 | D113: 199 | E113: 199 | G113: 0
A114: 0777-57587 | B114: 8.00 Блондин интенсивный, 100 мл INFINITY | C114: 348 | D114: 199 | E114: 199 | G114: 0
A115: 0777-57655 | B115: 8.1 Блондин пепельный, 100 мл INFINITY | C115: 348 | D115: 199 | E115: 199 | G115: 0
A116: 0777-57716 | B116: 8.11 Блондин интенсивно-пепельный, 100 мл INFINITY | C116: 348 | D116: 199 | E116: 199 | G116: 0
A117: 0777-57822 | B117: 8.3 Блондин золотистый, 100 мл INFINITY | C117: 348 | D117: 199 | E117: 199 | G117: 0
A118: 0777-57907 | B118: 8.34 Блондин золотисто-медный, 100 мл INFINITY | C118: 348 | D118: 199 | E118: 199 | G118: 0
A119: 0777-57884 | B119: 8.37 Блондин золотисто-коричневый, 100 мл INFINITY | C119: 348 | D119: 199 | E119: 199 | G119: 0
A120: 0777-57945 | B120: 8.4 Блондин медный, 100 мл INFINITY | C120: 348 | D120: 199 | E120: 199 | G120: 0
A121: 0777-57990 | B121: 8.44 Блондин медный интенсивный, 100 мл INFINITY | C121: 348 | D121: 199 | E121: 199 | G121: 0
A122: 0777-58041 | B122: 8.48 Блондин медно-жемчужный, 100 мл INFINITY | C122: 348 | D122: 199 | E122: 199 | G122: 0
A123: 0777-58065 | B123: 8.5 Блондин красный, 100 мл INFINITY | C123: 348 | D123: 199 | E123: 199 | G123: 0
A124: 0777-58195 | B124: 8.7 Блондин коричневый, 100 мл INFINITY | C124: 348 | D124: 199 | E124: 199 | G124: 0
A125: 0777-94934 | B125: 8.76 Блондин коричнево-фиолетовый, 100 мл INFINITY | C125: 348 | D125: 199 | E125: 199 | G125: 0
A126: 0777-58393 | B126: 8.77 Блондин коричневый интенсивный, 100 мл INFINITY | C126: 348 | D126: 199 | E126: 199 | G126: 0
A127: 0777-58478 | B127: 8.8 Блондин жемчужный, 100 мл INFINITY | C127: 348 | D127: 199 | E127: 199 | G127: 0
A128: 0777-57464 | B128: 9.0 Светлый блондин, 100 мл INFINITY | C128: 348 | D128: 199 | E128: 199 | G128: 0
A129: 0777-57570 | B129: 9.00 Светлый блондин интенсивный, 100 мл INFINITY | C129: 348 | D129: 199 | E129: 199 | G129: 0
A130: 0777-57648 | B130: 9.1 Светлый блондин пепельный, 100 мл INFINITY | C130: 348 | D130: 199 | E130: 199 | G130: 0
A131: 0777-57709 | B131: 9.11 Светлый блондин интенсивно-пепельный, 100 мл INFINITY | C131: 348 | D131: 199 | E131: 199 | G131: 0
A132: 0777-57853 | B132: 9.13 Светлый блондин пепельно-золотистый, 100 мл INFINITY | C132: 348 | D132: 199 | E132: 199 | G132: 0
A133: 0777-57778 | B133: 9.16 Светлый блондин пепельно-фиолетовый, 100 мл INFINITY | C133: 348 | D133: 199 | E133: 199 | G133: 0
A134: 0777-57815 | B134: 9.3 Светлый блондин золотистый, 100 мл INFINITY | C134: 348 | D134: 199 | E134: 199 | G134: 0
A135: 0777-57891 | B135: 9.34 Светлый блондин золотисто-медный, 100 мл INFINITY | C135: 348 | D135: 199 | E135: 199 | G135: 0
A136: 0777-57877 | B136: 9.37 Светлый блондин золотисто-коричневый, 100 мл INFINITY | C136: 348 | D136: 199 | E136: 199 | G136: 0
A137: 0777-57983 | B137: 9.44 Светлый блондин медный интенсивный, 100 мл INFINITY | C137: 348 | D137: 199 | E137: =D137-D137*$F$4/100 -> 199 | G137: =F137*E137 -> 0
A138: 0777-58034 | B138: 9.48 Светлый блондин медно-жемчужный, 100 мл INFINITY | C138: 348 | D138: 199 | E138: 199 | G138: 0
A139: 0777-58140 | B139: 9.65 Светлый блондин фиолетово-красный, 100 мл INFINITY | C139: 348 | D139: 199 | E139: 199 | G139: 0
A140: 0777-58188 | B140: 9.7 Светлый блондин коричневый, 100 мл INFINITY | C140: 348 | D140: 199 | E140: 199 | G140: 0
A141: 0777-58263 | B141: 9.71 Светлый блондин коричнево-пепельный, 100 мл INFINITY | C141: 348 | D141: 199 | E141: 199 | G141: 0
A142: 0777-58461 | B142: 9.8 Светлый блондин жемчужный, 100 мл INFINITY | C142: 348 | D142: 199 | E142: 199 | G142: 0
A143: 0777-94927 | B143: 9.85 Светлый блондин жемчужно-красный, 100 мл INFINITY | C143: 348 | D143: 199 | E143: 199 | G143: 0
A144: 0777-98161 | B144: Микстон Зеленый, 100 мл | C144: 348 | D144: 199 | E144: 199 | G144: 0
A145: 0777-98185 | B145: Микстон Золотой, 100 мл | C145: 348 | D145: 199 | E145: 199 | G145: 0
A146: 0777-98123 | B146: Микстон Красный, 100 мл | C146: 348 | D146: 199 | E146: 199 | G146: 0
A147: 0777-98130 | B147: Микстон Медный, 100 мл | C147: 348 | D147: 199 | E147: 199 | G147: 0
A148: 0777-98178 | B148: Микстон Пепельный, 100 мл | C148: 348 | D148: 199 | E148: 199 | G148: 0
A149: 0777-98154 | B149: Микстон Синий, 100 мл | C149: 348 | D149: 199 | E149: 199 | G149: 0
A150: 0777-98147 | B150: Микстон Фиолетовый, 100 мл | C150: 348 | D150: 199 | E150: 199 | G150: 0
B151: Аксессуары | D151: 0 | E151: 0 | G151: 0
A152: 0777-50298 | B152: Дозатор infinity magnus 28/410, 1000 мл, белый | C152: 87 | D152: 50 | E152: 50 | G152: 0
F153: ИТОГО: | G153: =SUM(G8:G152) -> 0

Sheet CONCEPT
A1: 109457 г. Москва,ул. Плеханова, дом 4,стр.3 ООО “Компания "Аквакосметика” тел. 8(495)785-99-54,785-99-53 многоканальный
B4: ПРАЙС-ЛИСТ CONCEPT | F4: %
A5: 2024-04-01
A6: Артикул | B6: Наименование товаров | C6: Цена РРЦ | D6: Цена, с НДС, руб. | E6: Цена с вашей скидкой,руб | F6: ЗАКАЗ шт | G6: Сумма по заказу с вашей скидкой, руб
B7: ART OF THERAPY Scalp Balance от перхоти
A8: 92633 | B8: Шампунь против перхоти (Scalp Balance shampoo), 300 мл, , шт | C8: 500.85 | D8: 315 | E8: =D8-D8*$E$4/100 -> 315 | G8: =F8*E8 -> 0
B9: ART OF THERAPY Way To Grow для активации роста волос
A10: 96570 | B10: Лосьон-активатор роста, 50 мл , , шт | C10: 1097.1 | D10: 690 | E10: 690 | G10: 0
A11: 93166 | B11: Тонизирующий кондиционер-активатор роста, 300 мл, , шт | C11: 580.35 | D11: 365 | E11: 365 | G11: 0
A12: 93159 | B12: Шампунь-активатор роста, 300 мл, , шт | C12: 500.85 | D12: 315 | E12: 315 | G12: 0
B13: ART OF THERAPY Сool fresh для жирной кожи головы
A14: 91094 | B14: Пилинг д/глубокого очищения кожи головы Sebo-control, 200 мл, , шт | C14: 500.85 | D14: 315 | E14: 315 | G14: 0
A15: 91100 | B15: Регулирующий шампунь д/деликатного очищения кожи головы Sebo-control, 300мл, , шт | C15: 500.85 | D15: 315 | E15: 315 | G15: 0
B16: BIOTIN SECRETS 00-LINE Стойкая крем-краска для волос с биотином
A17: 93784 | B17: 5.00 интенсивный тёмно-русый (intensive dark blond), 100 мл, , шт | C17: 295.74 | D17: 186 | E17: 186 | G17: 0
A18: 93791 | B18: 6.00 интенсивный русый (intensive medium blond), 100 мл, , шт | C18: 295.74 | D18: 186 | E18: 186 | G18: 0
A19: 93807 | B19: 7.00 интенсивный светло-русый (intensive blond), 100 мл, , шт | C19: 295.74 | D19: 186 | E19: 186 | G19: 0
A20: 93814 | B20: 8.00 интенсивный блондин (intensive light blond), 100 мл, , шт | C20: 295.74 | D20: 186 | E20: 186 | G20: 0
A21: 93777 | B21: 9.00 интенсивный светлый блондин (intensive very light blond), 100 мл, , шт | C21: 295.74 | D21: 186 | E21: 186 | G21: 0
B22: BIOTIN SECRETS укрепляющий уход
A23: 93739 | B23: Кондиционер укрепляющий BIOTIN SECRETS, 500 мл, , шт | C23: 729.81 | D23: 459 | E23: 459 | G23: 0
A24: 93746 | B24: Маска укрепляющая BIOTIN SECRETS, 400 мл, , шт | C24: 650.31 | D24: 409 | E24: 409 | G24: 0
A25: 93722 | B25: Шампунь укрепляющий BIOTIN SECRETS, 500 мл, , шт | C25: 682.11 | D25: 429 | E25: 429 | G25: 0
B26: DETOX POWER уход
A27: 96419 | B27: Бессульфатный шампунь СИЛА ДЕТОКСА, 300 мл, , шт | C27: 524.7 | D27: 330 | E27: 330 | G27: 0
B28: MASTER BLOND система ухода за осветленными волосами | E28: 0 | G28: 0
A29: 91148 | B29: Кондиционер-блеск восстанавливающий Совершенное сияние блонда(Perfect Blond Shine Conditioner),300мл, , шт | C29: 588.3 | D29: 370 | E29: 370 | G29: 0
A30: 91155 | B30: Маска-реконструктор Совершенное сияние блонда (Reconstructing mask Perfect Blond Shine), 250 мл, , шт | C30: 691.65 | D30: 435 | E30: 435 | G30: 0
A31: 91179 | B31: Шампунь Глубокое восстановление и нейтрал. желтизны (Intense shampoo with anti-yellow effect), 300мл, , шт | C31: 588.3 | D31: 370 | E31: 370 | G31: 0
A32: 91117 | B32: Шампунь Совершенное сияние блонда (Perfect Blond Shine shampoo), 1000 мл, , шт | C32: 1001.7 | D32: 630
A33: 91124 | B33: Шампунь Совершенное сияние блонда (Perfect Blond Shine shampoo), 300 мл, , шт | C33: 588.3 | D33: 370 | E33: 370 | G33: 0
B34: Salon Total Basic Уход для всех типов волос | E34: 0 | G34: 0
A35: 90608 | B35: Двухфазный спрей 10 в 1 perfect balance для тонких и нормальных волос, 240 мл, , шт | C35: 453.15 | D35: 285 | E35: 285 | G35: 0
A36: 90660 | B36: Шампунь универсальный для всех типов волос (Basic shampoo),1000 мл, , шт | C36: 723.45 | D36: 455
B37: Salon Total Colorsaver Уход за окрашенными волосами2021 | E37: 0 | G37: 0
A38: 90691 | B38: Бальзам-кондиционер для окрашенных волос (Сolorsaver conditioner), 1000 мл, , шт | C38: 787.05 | D38: 495 | E38: 495 | G38: 0
A39: 90707 | B39: Бальзам-кондиционер для окрашенных волос (Сolorsaver conditioner), 300 мл, , шт | C39: 469.05 | D39: 295 | E39: 295 | G39: 0
A40: 90714 | B40: Маска для окрашенных волос (Сolorsaver mask), 500 мл, , шт | C40: 842.7 | D40: 530 | E40: 530 | G40: 0
A41: 90721 | B41: Шампунь для окрашенных волос (Сolorsaver shampoo), 1000 мл, , шт | C41: 739.35 | D41: 465 | E41: 465 | G41: 0
A42: 90738 | B42: Шампунь для окрашенных волос (Сolorsaver shampoo), 300 мл, , шт | C42: 397.5 | D42: 250
B43: Salon Total Hydro Увлажняющие средства для волос 2021 | E43: 0 | G43: 0
A44: 90769 | B44: Кондиционер увлажняющий (Hydrobalance conditioner), 1000 мл, , шт | C44: 787.05 | D44: 495 | E44: 495 | G44: 0
A45: 90776 | B45: Кондиционер увлажняющий (Hydrobalance conditioner), 300 мл, , шт | C45: 469.05 | D45: 295 | E45: 295 | G45: 0
A46: 90783 | B46: Маска экстра-увлажнение (Hydrointension mask), 500 мл, , шт | C46: 739.35 | D46: 465 | E46: 465 | G46: 0
A47: 90615 | B47: Спрей увлажняющий с термозащитой (hydro spray), 240 мл, , шт | C47: 580.35 | D47: 365 | E47: 365 | G47: 0
A48: 90806 | B48: Шампунь увлажняющий (Hydrobalance shampoo), 1000 мл, , шт | C48: 739.35 | D48: 465 | E48: 465 | G48: 0
A49: 90790 | B49: Шампунь увлажняющий (Hydrobalance shampoo), 300 мл, , шт | C49: 397.5 | D49: 250
B50: Salon Total Repair Питание и восстановление волос 2021 | E50: 0 | G50: 0
A51: 90813 | B51: Кондиционер для восстановления волос (Nutri Keratin conditioner)2021, 1000 мл, , шт | C51: 787.05 | D51: 495 | E51: 495 | G51: 0
A52: 90837 | B52: Кондиционер для восстановления волос (Nutri Keratin conditioner)2021, 300 мл, , шт | C52: 469.05 | D52: 295 | E52: 295 | G52: 0
A53: 90844 | B53: Маска МЕГА-Уход д/слабых и поврежденных волос (MEGA-MASK)2021, 500 мл, , шт | C53: 1128.9 | D53: 710 | E53: 710 | G53: 0
A54: 90639 | B54: Спрей – маска 17 в 1 восстанавливающий для повреждённых, сухих и ломких волос, 240 мл, , шт | C54: 532.65 | D54: 335 | E54: 335 | G54: 0
A55: 90851 | B55: Шампунь для восстановления волос (Nutri Keratin shampoo)2021, 1000 мл, , шт | C55: 739.35 | D55: 465 | E55: 465 | G55: 0
A56: 90875 | B56: Шампунь для восстановления волос (Nutri Keratin shampoo)2021, 300 мл, , шт | C56: 397.5 | D56: 250
B57: Salon Total Soft Care Деликатный уход для поврежденных волос | E57: 0 | G57: 0
A58: 91834 | B58: Восстанавливающая маска Keratin&Honey, 500 мл, , шт | C58: 707.55 | D58: 445 | E58: 445 | G58: 0
A59: 91766 | B59: Кондиционер для бережного ухода за поврежденными волосами SOFT CARE, 300 мл, , шт | C59: 588.3 | D59: 370 | E59: 370 | G59: 0
A60: 91247 | B60: Шампунь бессульфатный д/деликатного очищения поврежденных волос SOFT CARE, 1000 мл, , шт | C60: 922.2 | D60: 580 | E60: 580 | G60: 0
A61: 91254 | B61: Шампунь бессульфатный д/деликатного очищения поврежденных волос SOFT CARE, 300 мл, , шт | C61: 508.8 | D61: 320
B62: Salon Total Volume Уход для придания объема волосам 2021 | E62: 0 | G62: 0
A63: 91803 | B63: Кондиционер для объема (Volume Up Conditioner)2021, 1000 мл, , шт | C63: 771.15 | D63: 485 | E63: 485 | G63: 0
A64: 91810 | B64: Кондиционер для объема (Volume Up Conditioner)2021, 300 мл, , шт | C64: 469.05 | D64: 295 | E64: 295 | G64: 0
A65: 90646 | B65: Спрей прикорневой объем (spray volume up ) 2021, 240 мл, , шт | C65: 580.35 | D65: 365 | E65: 365 | G65: 0
A66: 91827 | B66: Шампунь для объема (Volume Up Shampoo)2021, 1000 мл, , шт | C66: 723.45 | D66: 455 | E66: 455 | G66: 0
A67: 92145 | B67: Шампунь для объема (Volume Up Shampoo)2021, 300 мл, , шт | C67: 397.5 | D67: 250
B68: Аксессуары | E68: 0 | G68: =F68*E68 -> 0
B69: Для мужчин Concept Men (Концепт Мэн )2021
A70: 92626 | B70: Шампунь угольный для волос 2021, 300 мл, , шт | C70: 469.05 | D70: 295 | E70: =D70-D70*$E$4/100 -> 295 | G70: 0
A71: 92619 | B71: Шампунь универсальный 4 в 1 для ежедневного применения 2021, 1000 мл, , шт | C71: 810.9 | D71: 510 | E71: 510 | G71: 0
A72: 92602 | B72: Шампунь универсальный 4 в 1 для ежедневного применения 2021, 300 мл, , шт | C72: 469.05 | D72: 295 | E72: 295 | G72: 0
B73: Защитные средства для кожи и волос PROFY TOUCH (Профи Тач) 2021
A74: 90585 | B74: Деликатное средство для удаления красителя с чувствительной кожи(Soft Skin Color Remover)2021, 140мл, , шт | C74: 381.6 | D74: 240 | E74: 240 | G74: 0
A75: 57440 | B75: Контурный крем для защиты кожи при окрашивании волос (skin contour cream) 2021, 100 мл , , шт | C75: 326.27 | D75: 205.2 | E75: 205.2 | G75: 0
A76: 94156 | B76: Сыворотка выравнивание и защита структуры волос перед окраш., 240 мл, , шт | C76: 461.1 | D76: 290 | E76: 290 | G76: 0
A77: 90592 | B77: Успокаивающий лосьон для чувствит. кожи головы Calming lotion for sensetiv skin 2021, 140 мл, , шт | C77: 345.35 | D77: 217.2 | E77: 217.2 | G77: 0
B78: Крем-краска для бровей и ресниц PROFY TOUCH (Профи Тач) 2021 | E78: 0 | G78: 0
A79: 90080 | B79: Графит 2021, 30/20 мл, , шт | C79: 278.25 | D79: 175
A80: 90103 | B80: Черный 2021, 30/20 мл, , шт | C80: 278.25 | D80: 175 | E80: 175 | G80: 0
B81: Крем-краска для бровей с эффектом Татуажа(Brows color cream Tatouage effect)2021 | E81: 0 | G81: 0
A82: 55941 | B82: Графит Эффект татуажа, 30+20 мл, , шт | C82: 302.1 | D82: 190
A83: 90110 | B83: Коричневый Эффект татуажа 2021, 30+20 мл, , шт | C83: 302.1 | D83: 190 | E83: 190 | G83: 0
A84: 90127 | B84: Черный Эффект татуажа 2021, 30+20 мл, , шт | C84: 302.1 | D84: 190 | E84: 190 | G84: 0
B85: Крем-краска для волос без аммиака Софт Тач (no ammonia professional color-cream SOFT TOUCH) | E85: 0 | G85: 0
A86: 55071 | B86: 1.0 Черный (Black), 100 мл, , шт | C86: 437.25 | D86: 275
A87: 54999 | B87: 10.0 Ультра светлый блондин (Ultra Light Blond), 100 мл, , шт | C87: 437.25 | D87: 275 | E87: 275 | G87: 0
A88: 55101 | B88: 10.1 Ультра светлый платиновый блондин (Ultra Light Platinum Blond), 100 мл, , шт | C88: 437.25 | D88: 275 | E88: 275 | G88: 0
A89: 55132 | B89: 10.16 Ультра светлый блондин пепельно-фиолетовый (Ultra Light Ash Purple Blond), 100 мл, , шт | C89: 437.25 | D89: 275 | E89: 275 | G89: 0
A90: 55170 | B90: 10.31 Ультра светлый блондин золотисто-пепельный (Ultra Light Golden Ash Blond), 100 мл, , шт | C90: 437.25 | D90: 275
A91: 55200 | B91: 10.36 Ультра светлый блондин золотисто-фиолетовый (Ultra Light Golden Purple Blond), 100 мл, , шт | C91: 437.25 | D91: 275 | E91: 275 | G91: 0
A92: 55224 | B92: 10.38 Ультра светлый блондин золотисто-перламутровый (Ultra Light Golden Pearl Blonde), 100 мл, , шт | C92: 437.25 | D92: 275 | E92: 275 | G92: 0
A93: 55286 | B93: 10.58 Ультра светлый блондин розово-перламутровый (Ultra Light Pink Pearl Blond), 100 мл, , шт | C93: 437.25 | D93: 275 | E93: 275 | G93: 0
A94: 55323 | B94: 10.65 Ультра-светлый блондин фиолетово-розовый (Ultra Light Purple Pink Blond), 100 мл, , шт | C94: 437.25 | D94: 275 | E94: 275 | G94: 0
A95: 55392 | B95: 10.71 Ультра светлый блондин бежево-пепельный (Ultra Light Beige Ash Blond), 100 мл, , шт | C95: 437.25 | D95: 275 | E95: 275 | G95: 0
A96: 55446 | B96: 10.8 Ультра светлый блондин перламутровый (Ultra Light Pearl Blond), 100 мл, , шт | C96: 437.25 | D96: 275 | E96: 275 | G96: 0
A97: 55477 | B97: 10.87 Ультра светлый блондин перламутрово-бежевый (Ultra Light Pearl Beige Blond), 100 мл, , шт | C97: 437.25 | D97: 275 | E97: 275 | G97: 0
A98: 55460 | B98: 2.86 Черный жемчуг (Black Pearl), 100 мл, , шт | C98: 437.25 | D98: 275 | E98: 275 | G98: 0
A99: 55064 | B99: 3.0 Темный шатен (Very Dark Brown), 100 мл, , шт | C99: 437.25 | D99: 275 | E99: 275 | G99: 0
A100: 55057 | B100: 4.0 Шатен (Medium Brown), 100 мл , , шт | C100: 437.25 | D100: 275 | E100: 275 | G100: 0
A101: 55415 | B101: 4.71 Шатен коричнево-пепельный (Ash Brown Medium Brown), 100 мл, , шт | C101: 437.25 | D101: 275 | E101: 275 | G101: 0
A102: 55040 | B102: 5.0 Темный блондин (Dark Blond), 100 мл, , шт | C102: 437.25 | D102: 275 | E102: 275 | G102: 0
A103: 55163 | B103: 5.16 Темный блондин пепельно-фиолетовый ( Darc Ash Purple Blond), 100 мл, , шт | C103: 437.25 | D103: 275 | E103: 275 | G103: 0
A104: 55385 | B104: 5.7 Темный блондин коричневый (Dark Brown Blond), 100 мл, , шт | C104: 437.25 | D104: 275 | E104: 275 | G104: 0
A105: 55033 | B105: 6.0 Средний блондин (Medium Blond), 100 мл, , шт | C105: 437.25 | D105: 275 | E105: 275 | G105: 0
A106: 55125 | B106: 6.1 Средний блондин пепельный (Ash Medium Blond), 100 мл, , шт | C106: 437.25 | D106: 275 | E106: 275 | G106: 0
A107: 55279 | B107: 6.4 Средний блондин медный (Coppery Medium Blond), 100 мл, , шт | C107: 437.25 | D107: 275 | E107: 275 | G107: 0
A108: 55408 | B108: 6.71 Средний блондин коричнево-пепельный (Ash Brown Medium Blond), 100 мл, , шт | C108: 437.25 | D108: 275 | E108: 275 | G108: 0
A109: 55026 | B109: 7.0 Блондин (Blond), 100 мл, , шт | C109: 437.25 | D109: 275 | E109: 275 | G109: 0
A110: 55156 | B110: 7.16 Блондин пепельно-фиолетовый (Ash Purple Blond), 100 мл, , шт | C110: 437.25 | D110: 275 | E110: 275 | G110: 0
A111: 55378 | B111: 7.7 Блондин бежевый (Beige Blonde), 100 мл, , шт | C111: 437.25 | D111: 275 | E111: 275 | G111: 0
A112: 55439 | B112: 7.75 Блондин бежево-розовый (Beige Pink Blond), 100 мл, , шт | C112: 437.25 | D112: 275 | E112: 275 | G112: 0
A113: 55019 | B113: 8.0 Светлый блондин (Light Blond), 100 мл, , шт | C113: 437.25 | D113: 275 | E113: 275 | G113: 0
A114: 55118 | B114: 8.1 Светлый блондин пепельный (Ash Light Blond), 100 мл, , шт | C114: 437.25 | D114: 275 | E114: 275 | G114: 0
A115: 55262 | B115: 8.4 Светлый блондин медный (Coppery Light Blond), 100 мл, , шт | C115: 437.25 | D115: 275 | E115: 275 | G115: 0
A116: 55453 | B116: 8.8 Светлый блондин перламутровый (Light Pearl Blond), 100 мл, , шт | C116: 437.25 | D116: 275 | E116: 275 | G116: 0
A117: 55002 | B117: 9.0 Очень светлый блондин (Very Light Blond), 100 мл, , шт | C117: 437.25 | D117: 275 | E117: 275 | G117: 0
A118: 55149 | B118: 9.16 Очень светлый блондин пепельно-фиолетовый (Very Light Ash Purple Blond), 100 мл, , шт | C118: 437.25 | D118: 275 | E118: 275 | G118: 0
A119: 55217 | B119: 9.36 Очень светлый блондин золотисто-фиолетовый (Very Light Golden Purple Blond), 100 мл, , шт | C119: 437.25 | D119: 275 | E119: 275 | G119: 0
A120: 55095 | B120: 9.37 Очень светлый блондин золотисто-коричневый (Very Light Golden Brown Blond), 100 мл, , шт | C120: 437.25 | D120: 275 | E120: 275 | G120: 0
A121: 55231 | B121: 9.38 Очень светлый блондин золотисто-перламутровый (Very Light Golden Pearl Blond), 100 мл, , шт | C121: 437.25 | D121: 275 | E121: 275 | G121: 0
A122: 55293 | B122: 9.588 Очень светлый блондин розово-перламутровый (Very Light Pink Pearl Blond), 100 мл, , шт | C122: 437.25 | D122: 275 | E122: 275 | G122: 0
A123: 55330 | B123: 9.68 Очень светлый блондин фиолетово - перламутровый (Very Light Purple Pearl Blonde ), 100 мл, , шт | C123: 437.25 | D123: 275 | E123: 275 | G123: 0
A124: 55361 | B124: 9.7 Очень светлый блондин бежевый (Very Light Beige Blond), 100 мл, , шт | C124: 437.25 | D124: 275 | E124: 275 | G124: 0
A125: 55422 | B125: 9.75 Очень светлый блондин бежево-розовый (Very Light Beige Pink Blond), 100 мл, , шт | C125: 437.25 | D125: 275 | E125: 275 | G125: 0
A126: 55484 | B126: 9.87 Очень светлый блондин перламутрово-бежевый (Very Light Pearl Beige Blond), 100 мл, , шт | C126: 437.25 | D126: 275 | E126: 275 | G126: 0
B127: Микстон PROFY TOUCH, 100 мл | E127: 0 | G127: 0
A128: 56870 | B128: 0.2 Зеленый микстон (Green Mixtone), 100 мл, , шт | C128: 262.35 | D128: 165 | E128: 165 | G128: 0
A129: 56887 | B129: 0.3 Золотой микстон (Golden Mixtone), 100 мл, , шт | C129: 262.35 | D129: 165 | E129: 165 | G129: 0
A130: 56894 | B130: 0.4 Медный микстон (Copper Mixtone), 100 мл, , шт | C130: 262.35 | D130: 165 | E130: 165 | G130: =F130*E130 -> 0
A131: 56900 | B131: 0.5 Красный микстон (Red Mixtone), 100 мл, , шт | C131: 262.35 | D131: 165 | E131: 165 | G131: 0
A132: 56917 | B132: 0.6 Синий микстон (Blue Mixtone), 100 мл, , шт | C132: 262.35 | D132: 165 | E132: 165 | G132: 0
A133: 56924 | B133: 0.8 Фиолетовый микстон (Violet Mixtone), 100 мл, , шт | C133: 262.35 | D133: 165 | E133: 165 | G133: 0
B134: Оксидант PROFY TOUCH 2021 | E134: =D134-D134*$E$4/100 -> 0 | G134: 0
A135: 92336 | B135: Крем-Оксидант 12% 2021, 1000 мл, , шт | C135: 500.85 | D135: 315 | E135: 315 | G135: 0
A136: 92343 | B136: Крем-Оксидант 6% 2021, 1000 мл, , шт | C136: 477 | D136: 300 | E136: 300 | G136: 0
A137: 92350 | B137: Крем-Оксидант 9% 2021, 1000 мл, , шт | C137: 500.85 | D137: 315 | E137: 315 | G137: 0
A138: 92367 | B138: Окисляющая эмульсия 1,5% 2021, 1000 мл, , шт | C138: 477 | D138: 300 | E138: 300 | G138: 0
A139: 92374 | B139: Окисляющая эмульсия 3% 2021, 1000 мл, , шт | C139: 477 | D139: 300 | E139: 300 | G139: 0
B140: Оксидант PROFY TOUCH(Профи Тач) | E140: 0 | G140: 0
A141: 57198 | B141: Крем-Оксидант 12%, 100 мл , , шт | C141: 120.84 | D141: 76 | E141: 76 | G141: 0
A142: 57204 | B142: Крем-Оксидант 6%, 100 мл , , шт | C142: 120.84 | D142: 76
A143: 57211 | B143: Крем-Оксидант 9%, 100 мл , , шт | C143: 120.84 | D143: 76 | E143: 76 | G143: 0
A144: 57228 | B144: Окисляющая эмульсия 1,5%, 100 мл, , шт | C144: 120.84 | D144: 76 | E144: 76 | G144: 0
A145: 57235 | B145: Окисляющая эмульсия 3%, 100 мл, , шт | C145: 120.84 | D145: 76 | E145: 76 | G145: 0
B146: Оттеночные средства для нейтрализации желтизны ANTI-YELLOW 2021 | E146: 0 | G146: 0
A147: 94880 | B147: Бессульфатный шампунь д/нейтр.желтизны ICE BLOND, 1000 мл, , шт | C147: 1063.71 | D147: 669 | E147: 669 | G147: 0
A148: 94897 | B148: Бессульфатный шампунь д/нейтр.желтизны ICE BLOND, 300 мл, , шт | C148: 553.32 | D148: 348 | E148: 348 | G148: 0
A149: 91971 | B149: Оттеночный бальзам Эффект арктический блонд 2021, 1000 мл, , шт | C149: 1120.95 | D149: 705
A150: 91636 | B150: Оттеночный бальзам Эффект арктический блонд 2021, 15 мл, , шт | C150: 47.7 | D150: 30 | E150: 30 | G150: 0
A151: 91995 | B151: Оттеночный бальзам Эффект арктический блонд 2021, 300 мл, , шт | C151: 564.45 | D151: 355 | E151: 355 | G151: 0
A152: 92008 | B152: Оттеночный бальзам Эффект жемчужный блонд 2021, 300 мл, , шт | C152: 564.45 | D152: 355 | E152: 355 | G152: 0
A153: 95429 | B153: Оттеночный бальзам эффект жемчужный блонд, 1000 мл, , шт | C153: 1120.95 | D153: 705 | E153: 705 | G153: 0
A154: 95436 | B154: Оттеночный бальзам эффект карамельный блонд, 1000 мл, , шт | C154: 1120.95 | D154: 705 | E154: 705 | G154: 0
A155: 94088 | B155: Оттеночный бальзам эффект карамельный блонд, 300 мл, , шт | C155: 564.45 | D155: 355
A156: 94002 | B156: Оттеночный бальзам Эффект пепельный блонд 2021, 1000 мл, , шт | C156: 1120.95 | D156: 705 | E156: 705 | G156: 0
A157: 92015 | B157: Оттеночный бальзам Эффект пепельный блонд 2021, 300 мл, , шт | C157: 564.45 | D157: 355 | E157: 355 | G157: 0
A158: 92039 | B158: Серебристый шампунь для светлых оттенков 2021, 1000 мл, , шт | C158: 954 | D158: 600 | E158: 600 | G158: 0
A159: 91988 | B159: Серебристый шампунь для светлых оттенков 2021, 300 мл, , шт | C159: 477 | D159: 300 | E159: 300 | G159: 0
B160: Оттеночный бальзам обогащенный коллагеном Fresh Up 2022 | E160: 0 | G160: 0
A161: 94736 | B161: Оттеночный бальзам обогащенный коллагеном Красный, 250 мл, , шт | C161: 739.35 | D161: 465 | E161: 465 | G161: 0
A162: 94729 | B162: Оттеночный бальзам обогащенный коллагеном Медный, 250 мл, , шт | C162: 739.35 | D162: 465 | E162: 465 | G162: 0
A163: 94712 | B163: Оттеночный бальзам обогащенный коллагеном Пепельно-русый, 250 мл, , шт | C163: 739.35 | D163: 465 | E163: 465 | G163: 0
A164: 94743 | B164: Оттеночный бальзам обогащенный коллагеном шоколадный, 250 мл, , шт | C164: 739.35 | D164: 465
B165: Пигмент прямого действия Fashion Look 2021 | E165: 0 | G165: 0
A166: 90134 | B166: База нейтральная для смешивания (Neutral base)2021, 250мл, , шт | C166: 739.35 | D166: 465 | E166: 465 | G166: 0
A167: 90363 | B167: Бирюзовый пигмент прямого действия (direct pigment turquoise) 2021, 250мл, , шт | C167: 739.35 | D167: 465 | E167: 465 | G167: 0
A168: 95795 | B168: Дымчатая слива пигмент прямого действия (Direct pigment Smoky plum), 250мл, , шт | C168: 739.35 | D168: 465 | E168: 465 | G168: 0
A169: 57358 | B169: Лаванда пигмент прямого действия (Direct pigment Lavender), 250мл, , шт | C169: 739.35 | D169: 465 | E169: 465 | G169: 0
A170: 94033 | B170: Лимонный пигмент прямого действия (Direct pigment lemon), 250мл, , шт | C170: 739.35 | D170: 465 | E170: 465 | G170: 0
A171: 57341 | B171: Пыльная роза пигмент прямого действия (Direct pigment Dusty Rose), 250мл , , шт | C171: 739.35 | D171: 465 | E171: 465 | G171: 0
A172: 90141 | B172: Розовый пигмент прямого действия (Direct pigment Pink)2021, 250мл, , шт | C172: 739.35 | D172: 465 | E172: 465 | G172: 0
A173: 90158 | B173: Розовый фламинго пигмент прямого действия (Direct pigment Pink Flamingo)2021, 250мл, , шт | C173: 739.35 | D173: 465 | E173: 465 | G173: 0
A174: 90165 | B174: Синий пигмент прямого действия (Direct pigment Blue)2021, 250мл, , шт | C174: 739.35 | D174: 465 | E174: 465 | G174: 0
A175: 90172 | B175: Стальной пигмент прямого действия (Direct pigment Steel)2021, 250мл, , шт | C175: 739.35 | D175: 465 | E175: 465 | G175: 0
A176: 90189 | B176: Фиолетовый пигмент прямого действия (Direct pigment Purple)2021, 250мл, , шт | C176: 739.35 | D176: 465 | E176: 465 | G176: 0
A177: 90196 | B177: Фуксия пигмент прямого действия (Direct pigment Fuchsia)2021, 250мл, , шт | C177: 739.35 | D177: 465 | E177: 465 | G177: 0
A178: 57334 | B178: Шампань пигмент прямого действия (Direct pigment Champagne), 250мл, , шт | C178: 739.35 | D178: 465 | E178: 465 | G178: 0
B179: Расходные материалы | E179: 0 | G179: 0
A180: 25006 | B180: Воротничок бумажный (уп.5рол) White line, , шт | C180: 378.42 | D180: 238 | E180: 238 | G180: 0
A181: 25020 | B181: Воротничок спанлейс White line 7х40см, 50 шт, , шт | C181: 123.23 | D181: 77.5
A182: 10549 | B182: Пеньюар 100*160 пачка полиэтилен прозрачный, 50 шт, , шт | C182: 492.9 | D182: 310 | E182: 310 | G182: 0
A183: 95269 | B183: Пеньюар полиэтилен 160х120, уп. 25 шт (Класс Комфорт), , шт | C183: 364.91 | D183: 229.5 | E183: 229.5 | G183: 0
A184: 95320 | B184: Пеньюар полиэтилен 160х120, уп.50 шт (Класс Комфорт), , шт | C184: 727.11 | D184: 457.3 | E184: 457.3 | G184: 0
A185: 95313 | B185: Пеньюар полиэтилен 160х120, уп.50 шт (Класс Эконом), , шт | C185: 518.98 | D185: 326.4 | E185: 326.4 | G185: 0
A186: 53773 | B186: Перчатки ПВХ неопудренные размер L, 50 шт , , шт | C186: 389.55 | D186: 245
A187: 07074 | B187: Перчатки ПВХ неопудренные размер M, 50 шт , , шт | C187: 322.77 | D187: 203 | E187: 203 | G187: 0
A188: 20049 | B188: Полотенце 35*70 пачка White line белый, 50 шт, , шт | C188: 489.72 | D188: 308 | E188: 308 | G188: 0
A189: 20063 | B189: Полотенце 35*70 пачка Выбор белый, 50 шт, , шт | C189: 338.35 | D189: 212.8 | E189: 212.8 | G189: 0
A190: 20117 | B190: Полотенце 45*90 пачка White line белый, 50 шт, , шт | C190: 734.58 | D190: 462 | E190: 462 | G190: 0
A191: 20360 | B191: Полотенце 45*90 пачка White line голубой, 50 шт, , шт | C191: 946.05 | D191: 595 | E191: 595 | G191: 0
A192: 20384 | B192: Полотенце 45*90 пачка White line розовый, 50 шт, , шт | C192: 946.05 | D192: 595 | E192: 595 | G192: 0
A193: 20407 | B193: Полотенце 45*90 пачка Выбор белый, 50 шт, , шт | C193: 701.19 | D193: 441 | E193: 441 | G193: 0
A194: 94163 | B194: Полотенце 45х90, спанлейс 100 шт. (эконом, сложение пластом), , шт | C194: 1556.61 | D194: 979 | E194: 979 | G194: =F194*E194 -> 0
A195: 22401 | B195: Простыня 70*200 пачка спанбонд 15 Стандарт голубой, 10 шт, , шт | C195: 95.72 | D195: 60.2 | E195: 60.2 | G195: 0
A196: 26652 | B196: Простыня 80*200 пачка SMS 18 Комфорт голубой, 10 шт, , шт | C196: 120.2 | D196: 75.6 | E196: 75.6 | G196: 0
A197: 22612 | B197: Салфетка 20*30 пачка White line белый, 100 шт, , шт | C197: 189.21 | D197: 119 | E197: 119 | G197: 0
A198: 20728 | B198: Салфетка 30*30 пачка White line белый, 100 шт, , шт | C198: 289.38 | D198: 182 | E198: =D198-D198*$E$4/100 -> 182 | G198: 0
A199: 21480 | B199: Тапочки пенополиэтилен белый White line, 50 шт, , шт | C199: 178.08 | D199: 112 | E199: 112 | G199: 0
A200: 90325 | B200: Фартук полиэтилен, 120х76, 50 шт (класс эконом), , шт | C200: 230.55 | D200: 145
A201: 21695 | B201: Фольга парикмахерская 100м серебро White line в коробке, , шт | C201: 747.94 | D201: 470.4 | E201: 470.4 | G201: 0
A202: 21626 | B202: Фольга серебро 100м White line, , шт | C202: 591.48 | D202: 372 | E202: 372 | G202: 0
... 122 more rows

Sheet ConstantDelight
A1: Ваш торговый представитель______________________
A2: моб. Тел._________________________________________
A3: 109457 г. Москва,ул. Плеханова, дом 4,стр.3 ООО “Компания "Аквакосметика” тел. 8(495)785-99-54,785-99-53 многоканальный
B6: ПРАЙС-ЛИСТ CONSTANT Delicht | C6: Проставьте в зеленой ячейке вашу скидку | F6: %
A7: 2024-04-01
A8: Артикул | B8: Наименование товаров | C8: Цена РРЦ с НДС, руб. | D8: Цена с НДС, руб | E8: Цена с вашей скидкой,руб | F8: ЗАКАЗ шт | G8: Сумма по заказу с вашей скидкой, руб
B10: 5 Magic Oil- уход и стайлинг
B11: Finishing
A12: CDMAG107 | B12: CD Воск на водной основе 100 мл | C12: 496.5 | D12: 331 | E12: =D12-D12*$E$6/100 -> 331 | G12: =F12*E12 -> 0
A13: CDMAG105 | B13: CD Гель фиксирующий для волос 100 мл | C13: 367.5 | D13: 245 | E13: =D13-D13*$E$6/100 -> 245 | G13: 0
A14: CDMAG104 | B14: CD Глина-воск для моделирования волос 100 мл | C14: 504 | D14: 336 | E14: 336 | G14: 0
A15: CDMAG106 | B15: CD Матовый воск для волос 100 мл | C15: 496.5 | D15: 331 | E15: 331 | G15: 0
A16: CDMAG103 | B16: CD Порошок для объема 5 гр | C16: 783 | D16: 522 | E16: 522 | G16: 0
A17: CDMAG102 | B17: CD ЭКО-СПРЕЙ ДЛЯ БЛЕСКА ВОЛОС 300 мл | C17: 858 | D17: 572 | E17: 572 | G17: 0
B18: Fixing | E18: 0 | G18: 0
A19: CDMAG101 | B19: CD ЭКО-ЛАК СИЛЬНОЙ ФИКСАЦИИ 300 мл | C19: 766.5 | D19: 511 | E19: 511 | G19: 0
B20: Pre-Styling | E20: 0 | G20: 0
A21: КД15767 | B21: CD Жидкие кристаллы 5 Масел 80 мл | C21: 697.5 | D21: 465 | E21: 465 | G21: 0
A22: КД15750 | B22: CD Кондиционер 5 Масел 1000 мл | C22: 961.5 | D22: 641 | E22: 641 | G22: 0
A23: КД15749 | B23: CD Кондиционер 5 Масел 250 мл | C23: 513 | D23: 342 | E23: 342 | G23: 0
A24: КД15751 | B24: CD Маска 5 Масел 500 мл | C24: 865.5 | D24: 577 | E24: 577 | G24: 0
A25: КД19240 | B25: CD Спрей 5 масел с морской солью 250 мл | C25: 808.5 | D25: 539 | E25: 539 | G25: 0
A26: КД18140 | B26: CD Спрей для выпрямления волос 7 DAYS 200 мл | C26: 952.5 | D26: 635 | E26: 635 | G26: 0
A27: КД16001 | B27: CD Сухой шампунь 5 Масел 100 мл | C27: 541.5 | D27: 361 | E27: 361 | G27: 0
A28: КД16313 | B28: CD Шампунь PRE STYLING Интенсивное очищение 1000 мл | C28: 1465.5 | D28: 977 | E28: 977 | G28: 0
A29: КД16312 | B29: CD Шампунь PRE STYLING Интенсивное очищение 250 мл | C29: 660 | D29: 440 | E29: 440 | G29: 0
A30: КД9017 | B30: Дозатор для флакона 1000 мл цвет ЧЕРНЫЙ (линия 5 масел) | C30: 129 | D30: 86 | E30: 86 | G30: 0
B31: Styling | E31: 0 | G31: 0
A32: КД15758 | B32: CD Гель для прямых и кудрявых волос 5 Масел 200 мл | C32: 936 | D32: 624 | E32: 624 | G32: 0
A33: КД15754 | B33: CD Масло Уход и Стайлинг 10 В 1 /5 Масел 200 мл | C33: 577.5 | D33: 385 | E33: 385 | G33: 0
A34: КД15756 | B34: CD Спрей для придания объема 5 Масел 200 мл | C34: 615 | D34: 410 | E34: 410 | G34: 0
A35: КД15752 | B35: CD Термозащитный Спрей 5 Масел 200 мл | C35: 667.5 | D35: 445 | E35: 445 | G35: 0
B36: Barber & Men's | E36: 0 | G36: 0
B37: Barber | E37: 0 | G37: 0
A38: CDJUST102 | B38: CD Бальзам после бритья 250 мл | C38: 1200 | D38: 800 | E38: 800 | G38: 0
A39: КД16815 | B39: CD Барбер Воск для волос с матовым эффектом 100 мл | C39: 1053 | D39: 702 | E39: 702 | G39: 0
A40: CDJUST118 | B40: CD ВОСК МАТОВЫЙ ДЛЯ КРЕАТИВНОГО СТАЙЛИНГА ВОЛОС ЭКСТРАСИЛЬНОЙ ФИКСАЦИИ 100 мл | C40: 1095 | D40: 730 | E40: 730 | G40: 0
A41: CDJUST119 | B41: CD ВОСК-ПАСТА ДЛЯ КРЕАТИВНОГО МОДЕЛИРОВАНИЯ ВОЛОС 100 мл | C41: 1095 | D41: 730 | E41: 730 | G41: 0
A42: CDJUST104 | B42: CD Гель для бритья 250 мл | C42: 688.5 | D42: 459 | E42: 459 | G42: 0
A43: КД19691 | B43: CD Гель для бритья для точных контуров 150 мл | C43: 703.5 | D43: 469 | E43: 469 | G43: 0
A44: CDJUST112 | B44: CD ГЕЛЬ ДЛЯ ВОЛОС СВЕРХСИЛЬНОЙ ФИКСАЦИИ 100 мл | C44: 900 | D44: 600 | E44: 600 | G44: 0
A45: CDJUST108 | B45: CD ЖИДКИЙ ВОСК ДЛЯ УКЛАДКИ ВОЛОС, УСОВ И БОРОДЫ 100 мл | C45: 945 | D45: 630 | E45: 630 | G45: 0
A46: CDJUST115 | B46: CD ЖИДКИЙ ГЕЛЬ ДЛЯ ФОРМИРОВАНИЯ УСОВ И БОРОДЫ 100 мл | C46: 900 | D46: 600 | E46: 600 | G46: 0
A47: КД19696 | B47: CD Кондиционер для волос 1000 мл | C47: 1449 | D47: 966 | E47: 966 | G47: 0
A48: КД19695 | B48: CD Кондиционер для волос 250 мл | C48: 688.5 | D48: 459 | E48: 459 | G48: 0
A49: CDJUST106 | B49: CD Крем для бритья 250 мл | C49: 814.5 | D49: 543 | E49: 543 | G49: 0
A50: CDJUST117 | B50: CD КРЕМ-ВОСК ДЛЯ УКЛАДКИ ВОЛОС И БОРОДЫ 100 мл | C50: 1260 | D50: 840 | E50: 840 | G50: 0
A51: CDJUST101 | B51: CD Лосьон после бритья 250 мл | C51: 1375.5 | D51: 917 | E51: 917 | G51: 0
A52: КД19964 | B52: CD ЛОСЬОН ПРОТИВ ВЫПАДЕНИЯ ВОЛОС 100 мл | C52: 1017 | D52: 678 | E52: 678 | G52: 0
A53: CDJUST116 | B53: CD МАСЛО АРГАНЫ ДЛЯ БОРОДЫ И УСОВ 100 мл | C53: 1327.5 | D53: 885 | E53: 885 | G53: 0
A54: CDJUST105 | B54: CD Масло для ухода за бородой и усами 100 мл | C54: 703.5 | D54: 469 | E54: 469 | G54: 0
A55: CDJUST113 | B55: CD ОСВЕЖАЮЩИЙ ЛОСЬОН ПОСЛЕ БРИТЬЯ №1 100 мл | C55: 1035 | D55: 690 | E55: 690 | G55: 0
A56: CDJUST114 | B56: CD ОСВЕЖАЮЩИЙ ЛОСЬОН ПОСЛЕ БРИТЬЯ №2 100 мл | C56: 1035 | D56: 690 | E56: 690 | G56: 0
A57: CDJUST111 | B57: CD СПЕЦИАЛЬНЫЙ ВОСК ДЛЯ БОРОДЫ И УСОВ 50 мл | C57: 900 | D57: 600 | E57: 600 | G57: 0
A58: CDJUST110 | B58: CD ЧЕРНАЯ ПАСТА ДЛЯ УКЛАДКИ ВОЛОС 100 мл | C58: 1335 | D58: 890 | E58: 890 | G58: 0
A59: CDJUST109 | B59: CD ЧЕРНЫЙ ЖИДКИЙ ВОСК ДЛЯ УКЛАДКИ ВОЛОС, УСОВ И БОРОДЫ 100 мл | C59: 870 | D59: 580 | E59: 580 | G59: 0
A60: КД19689 | B60: CD ШАМПУНЬ ДЛЯ АКТИВНЫХ МУЖЧИН 250 мл | C60: 814.5 | D60: 543 | E60: 543 | G60: 0
A61: КД19690 | B61: CD ШАМПУНЬ ДЛЯ БОРОДЫ 200 мл | C61: 679.5 | D61: 453 | E61: 453 | G61: 0
A62: КД19692 | B62: CD ШАМПУНЬ ДЛЯ ЕЖЕДНЕВНОГО ПРИМЕНЕНИЯ 1000 мл | C62: 1363.5 | D62: 909 | E62: 909 | G62: 0
A63: КД19688 | B63: CD Шампунь против выпадения волос 250 мл | C63: 760.5 | D63: 507 | E63: 507 | G63: 0
A64: КД19694 | B64: CD Шампунь против перхоти 1000 мл | C64: 1632 | D64: 1088 | E64: 1088 | G64: 0
A65: КД19693 | B65: CD Шампунь против перхоти 250 мл | C65: 732 | D65: 488 | E65: 488 | G65: 0
B66: Repair | E66: 0 | G66: 0
A67: КД21867 | B67: CD ЛИПИДНАЯ МАСКА INSTANT REPAIR ДЛЯ ВОЛОС 1000 мл | C67: 1860 | D67: 1240 | E67: 1240 | G67: 0
A68: КД22040 | B68: CD Масло для обновления волос без утяжеления 100 мл | C68: 1021.5 | D68: 681 | E68: 681 | G68: 0
B69: Ампулы | E69: 0 | G69: 0
A70: CDFIA03 | B70: CD ЛОСЬОН ДЛЯ ВОЛОС ВОССТАНАВЛИВАЮЩИЙ С ГИАЛУРОНОВОЙ КИСЛОТОЙ, МАСЛОМ СЕМЯН ЛЬНА И МАКАДАМИИ 10 ампул по 10 мл | C70: 1620 | D70: 1080 | E70: 1080 | G70: =F70*E70 -> 0
A71: CDFIA02 | B71: CD ЛОСЬОН ДЛЯ ВОЛОС ВОССТАНАВЛИВАЮЩИЙ С ГИДРОЛИЗОВАННЫМ КЕРАТИНОМ И ЛИПИДНЫМ КОМПЛЕКСОМ 10 ампул по 10 мл | C71: 1620 | D71: 1080 | E71: 1080 | G71: 0
A72: CDFIA01 | B72: CD ЛОСЬОН ПРОТИВ ВЫПАДЕНИЯ ВОЛОС С ПАНТЕНОЛОМ И ЭКСТРАКТОМ ПШЕНИЦЫ 10 ампул по 10 мл | C72: 1620 | D72: 1080 | E72: 1080 | G72: 0
B73: Восстановление волос | E73: =D73-D73*$E$6/100 -> 0 | G73: 0
A74: КД12895 | B74: CD 12 в 1 эликсир для волос 200 мл | C74: 580 | D74: 446 | E74: 446 | G74: 0
A75: КД21954 | B75: CD 30мл 12 в 1 эликсир для волос 30 мл | C75: 106.5 | D75: 71 | E75: 71 | G75: 0
A76: КД21877 | B76: CD 12 в 1 эликсир для волос 30 шт Х 30 мл КОРОБКА | C76: 2610 | D76: 1909 | E76: 1909 | G76: 0
A77: КД17063 | B77: CD 2-х фазный увлажняющий кондиционер 400 мл | C77: 1048.5 | D77: 699 | E77: 699 | G77: 0
A78: КД19993 | B78: CD Восстанавливающая маска с зеленым чаем 1000 мл | C78: 1125 | D78: 750 | E78: 750 | G78: 0
A79: КД19991 | B79: CD Восстанавливающая маска с крапивой 1000 мл | C79: 1125 | D79: 750 | E79: 750 | G79: 0
A80: КД19992 | B80: CD Восстанавливающая маска с ромашкой 1000 мл | C80: 1125 | D80: 750 | E80: 750 | G80: 0
A81: КД17229 | B81: CD Восстанавливающее масло 10X10 мл | C81: 1611 | D81: 1074 | E81: 1074 | G81: 0
A82: КД17232 | B82: CD Восстанавливающий лосьон в ампулах 10*10 мл | C82: 1660.5 | D82: 1107 | E82: 1107 | G82: 0
A83: КД17231 | B83: CD Восстанавливающий мусс с отрубями 250 мл | C83: 1185 | D83: 790 | E83: 790 | G83: 0
A84: КД20640 | B84: CD Восстанавливающий шампунь с зеленым чаем 250 мл | C84: 486 | D84: 324 | E84: 324 | G84: 0
A85: КД20639 | B85: CD Восстанавливающий шампунь с крапивой 250 мл | C85: 486 | D85: 324 | E85: 324 | G85: 0
A86: КД17580 | B86: CD КРЕМ ДЛЯ ВОЛОС HAIR PLASM 200 мл | C86: 1128 | D86: 752 | E86: 752 | G86: 0
A87: КД20650 | B87: CD МАСКА-СПРЕЙ ДЛЯ ВОЛОС 24 В 1 200 мл | C87: 762 | D87: 508 | E87: 508 | G87: 0
A88: КД20695 | B88: CD МОНОДОЗА МАСКА-СПРЕЙ ДЛЯ ВОЛОС 24 В 1 20 мл | C88: 189 | D88: 126 | E88: 126 | G88: 0
A89: КД21579 | B89: CD УВЛАЖНЯЮЩАЯ, ВОССТАНАВЛИВАЮЩАЯ ДВУХФАЗНАЯ СЫВОРОТКА ДЛЯ ВОЛОС 200 мл | C89: 534 | D89: 356 | E89: 356 | G89: 0
A90: КД19701 | B90: CD ФЛЮИД С КОЛЛАГЕНОМ МОЛЕКУЛЯРНОЕ УВЛАЖНЕНИЕ ВОЛОС 200 мл | C90: 759 | D90: 506 | E90: 506 | G90: 0
A91: КД20645 | B91: CD Шампунь 12 в 1 для волос 250 мл | C91: 600 | D91: 400 | E91: 400 | G91: 0
A92: КД19773 | B92: CD ЭКСТРАКТ КЕРАТИНА ПИТАНИЕ И СИЛА ВОЛОС 200 мл | C92: 759 | D92: 506 | E92: 506 | G92: 0
B93: Крио Терапия | E93: 0 | G93: 0
A94: КД19659 | B94: CD Активатор с гранулами мочевины 300 гр | C94: 2622 | D94: 1748 | E94: 1748 | G94: 0
A95: КД19658 | B95: CD Маска с исландским мхом 1000 мл | C95: 3337.5 | D95: 2225 | E95: 2225 | G95: 0
A96: А3044 | B96: Пластиковая мерная ложечка для смешивания средств для волос | C96: 22.5 | D96: 15 | E96: 15 | G96: 0
B97: Лаки для волос | E97: 0 | G97: 0
A98: КД15804 | B98: CD Лак для волос сильной фиксации №1 400 мл без запаха ЧЕРНЫЙ | C98: 669 | D98: 446 | E98: 446 | G98: 0
A99: КД15903 | B99: CD Лак для волос суперсильной фиксации №2 без запаха 400 мл ЧЕРНЫЙ | C99: 669 | D99: 446 | E99: 446 | G99: 0
A100: КД15606 | B100: CD Лак для волос экстрасильной фиксации №3 400 мл без запаха ЧЕРНЫЙ | C100: 669 | D100: 446 | E100: 446 | G100: 0
A101: КД415521 | B101: CD Сухой супер-лак для волос экстрасильной фиксации №4 400 мл без запаха ГОЛУБОЙ | C101: 669 | D101: 446 | E101: 446 | G101: 0
A102: КД92419 | B102: CD Текстурирующий спрей-воск №1 250 мл | C102: 589.5 | D102: 393 | E102: 393 | G102: 0
B103: Окрашивание и осветление волос | E103: 0 | G103: 0
B104: Colorante per le sopracciglia - Краска для бровей | E104: 0 | G104: 0
A105: КД19972 | B105: CD Крем-краска для бровей, коричневый 22 мл | C105: 541.5 | D105: 361 | E105: 361 | G105: 0
A106: КД19971 | B106: CD Крем-краска для бровей, черный 22 мл | C106: 541.5 | D106: 361 | E106: 361 | G106: 0
B107: Crema Colorante Vit C - крем краска с витамином С, КАШЕМИРОМ И АЛОЭ ВЕРА 100 мл. | E107: 0 | G107: 0
A108: КД19260 | B108: Д 1/0 крем-краска для волос с витамином С черный натуральный 100 мл | C108: 249 | D108: 166 | E108: 166 | G108: 0
A109: КД19261 | B109: Д 1/1 крем-краска для волос с витамином С иссиня-черный 100 мл | C109: 249 | D109: 166 | E109: 166 | G109: 0
A110: КД19262 | B110: Д 10/0 крем-краска для волос с витамином С светлый блондин натуральный 100 мл | C110: 249 | D110: 166 | E110: 166 | G110: 0
A111: КД19263 | B111: Д 10/1 крем-краска для волос с витамином С светлый блондин сандре 100 мл | C111: 249 | D111: 166 | E111: 166 | G111: 0
A112: КД19264 | B112: Д 10/2 крем-краска для волос с витамином С светлый блондин пепельный 100 мл | C112: 249 | D112: 166 | E112: 166 | G112: 0
A113: КД19265 | B113: Д 10/4 крем-краска для волос с витамином С светлый блондин бежевый 100 мл | C113: 249 | D113: 166 | E113: 166 | G113: 0
A114: КД19266 | B114: Д 10/41 крем-краска для волос с витамином С светлый блондин бежевый сандре 100 мл | C114: 249 | D114: 166 | E114: 166 | G114: 0
A115: КД19267 | B115: Д 10/42 крем-краска для волос с витамином С светлый блондин бежево-пепельный 100 мл | C115: 249 | D115: 166 | E115: 166 | G115: 0
A116: КД19268 | B116: Д 11/1 крем-краска для волос с витамином С экстра светлый блондин сандре 100 мл | C116: 249 | D116: 166 | E116: 166 | G116: 0
A117: КД19269 | B117: Д 11/91 крем-краска для волос с витамином С экстра светлый блондин фиолетовый сандре 100 мл | C117: 249 | D117: 166 | E117: 166 | G117: 0
A118: КД19270 | B118: Д 12/0 крем-краска для волос с витамином С специальный блондин натуральный 100 мл | C118: 249 | D118: 166 | E118: 166 | G118: 0
A119: КД19271 | B119: Д 12/19 крем-краска для волос с витамином С специальный блондин сандре фиолетовый 100 мл | C119: 249 | D119: 166 | E119: 166 | G119: 0
A120: КД19272 | B120: Д 12/4 крем-краска для волос с витамином С специальный блондин бежевый 100 мл | C120: 249 | D120: 166 | E120: 166 | G120: 0
A121: КД19273 | B121: Д 12/9 крем-краска д./волос с витамином С специальный блондин фиолетовый 100 мл | C121: 249 | D121: 166 | E121: 166 | G121: 0
A122: КД19274 | B122: Д 12/98 крем-краска для волос с витамином С специальный блондин фиолетово-красный 100 мл | C122: 249 | D122: 166 | E122: 166 | G122: 0
A123: КД19275 | B123: Д 3/0 крем-краска для волос с витамином С темно-коричневый натуральный 100 мл | C123: 249 | D123: 166 | E123: 166 | G123: 0
A124: КД19276 | B124: Д 4/0 крем-краска для волос с витамином С средне-коричневый натуральный 100 мл | C124: 249 | D124: 166 | E124: 166 | G124: 0
A125: КД19351 | B125: Д 4/14 крем-краска для волос с витамином С средне-коричневый сандре бежевый 100 мл | C125: 249 | D125: 166 | E125: 166 | G125: 0
A126: КД19347 | B126: Д 4/16 Крем-краска для волос с витамином С средне-коричневый сандре шоколадный 100 мл | C126: 249 | D126: 166 | E126: 166 | G126: 0
A127: КД19277 | B127: Д 4/6 крем-краска для волос с витамином С средне-коричневый шоколадный 100 мл | C127: 249 | D127: 166 | E127: 166 | G127: 0
A128: КД19278 | B128: Д 4/60 крем-краска для волос с витамином С средне-коричневый шоколадно-натуральный 100 мл | C128: 249 | D128: 166 | E128: 166 | G128: 0
A129: КД19279 | B129: Д 4/62 крем-краска для волос с витамином С средне-коричневый шоколадно-пепельный 100 мл | C129: 249 | D129: 166 | E129: 166 | G129: 0
A130: КД19280 | B130: Д 4/67 крем-краска для волос с витамином С средне-коричневый шоколадно-медный 100 мл | C130: 249 | D130: 166 | E130: 166 | G130: 0
A131: КД19281 | B131: Д 4/68 крем-краска для волос с витамином С средне-коричневый шоколадно-красный 100 мл | C131: 249 | D131: 166 | E131: 166 | G131: 0
A132: КД19340 | B132: Д 4/99 крем-краска для волос с витамином С средне-коричневый фиолетовый экстра 100 мл | C132: 249 | D132: 166 | E132: 166 | G132: 0
A133: КД19282 | B133: Д 5/0 крем-краска для волос с витамином С светло-коричневый натуральный 100 мл | C133: 249 | D133: 166 | E133: 166 | G133: 0
A134: КД19316 | B134: Д 5/00 крем-краска для волос с витамином С светло-коричневый натуральный экстра 100 мл | C134: 249 | D134: 166 | E134: 166 | G134: =F134*E134 -> 0
A135: КД19355 | B135: Д 5/05 крем-краска д/волос с витамином С светло-коричневый натурально-золотистый 100 мл | C135: 249 | D135: 166 | E135: 166 | G135: 0
A136: КД19325 | B136: Д 5/1 крем-краска для волос с витамином С светло-коричневый сандре 100 мл | C136: 249 | D136: 166 | E136: 166 | G136: 0
A137: КД19350 | B137: Д 5/14 крем-краска для волос с витамином С светло-коричневый сандре бежевый 100 мл | C137: 249 | D137: 166 | E137: =D137-D137*$E$6/100 -> 166 | G137: 0
A138: КД19346 | B138: Д 5/16 крем-краска для волос с витамином С светло-коричневый сандре шоколадный 100 мл | C138: 249 | D138: 166 | E138: 166 | G138: 0
A139: КД19283 | B139: Д 5/4 крем-краска для волос с витамином С светло-коричневый бежевый 100 мл | C139: 249 | D139: 166 | E139: 166 | G139: 0
A140: КД19284 | B140: Д 5/62 крем-краска для волос с витамином С светло-коричневый шоколадно-пепельный 100 мл | C140: 249 | D140: 166 | E140: 166 | G140: 0
A141: КД19328 | B141: Д 5/65 крем-краска для волос с витамином С светло-коричневый шоколадно-золотистый 100 мл | C141: 249 | D141: 166 | E141: 166 | G141: 0
A142: КД19285 | B142: Д 5/67 крем-краска для волос с витамином С светло-коричневый шоколадно-медный 100 мл | C142: 249 | D142: 166 | E142: 166 | G142: 0
A143: КД19286 | B143: Д 5/68 крем-краска для волос с витамином С светло-коричневый шоколадно-красный 100 мл | C143: 249 | D143: 166 | E143: 166 | G143: 0
A144: КД19287 | B144: Д 5/7 крем-краска для волос с витамином С светло-коричневый медный 100 мл | C144: 249 | D144: 166 | E144: 166 | G144: 0
A145: КД19288 | B145: Д 6/0 крем-краска для волос с витамином С темно-русый натуральный 100 мл | C145: 249 | D145: 166 | E145: 166 | G145: 0
A146: КД19317 | B146: Д 6/00 крем-краска для волос с витамином С темно русый натуральный экстра 100 мл | C146: 249 | D146: 166 | E146: 166 | G146: 0
A147: КД19354 | B147: Д 6/05 крем-краска д/волос с витамином С темно-русый натурально-золотистый 100 мл | C147: 249 | D147: 166 | E147: 166 | G147: 0
A148: КД19289 | B148: Д 6/1 крем-краска для волос с витамином С темно-русый сандре 100 мл | C148: 249 | D148: 166 | E148: 166 | G148: 0
A149: КД19349 | B149: Д 6/14 крем-краска для волос с витамином С темно-русый сандре бежевый 100 мл | C149: 249 | D149: 166 | E149: 166 | G149: 0
A150: КД19345 | B150: Д 6/16 крем-краска для волос с витамином С темно-русый сандре шоколадный 100 мл | C150: 249 | D150: 166 | E150: 166 | G150: 0
A151: КД19290 | B151: Д 6/6 крем-краска для волос с витамином С темно-русый шоколадный 100 мл | C151: 249 | D151: 166 | E151: 166 | G151: 0
A152: КД19333 | B152: Д 6/60 крем-краска для волос с витамином С темно-русый шоколадно-натуральный 100 мл | C152: 249 | D152: 166 | E152: 166 | G152: 0
A153: КД19291 | B153: Д 6/62 крем-краска для волос с витамином С темно-русый шоколадно-пепельный 100 мл | C153: 249 | D153: 166 | E153: 166 | G153: 0
A154: КД19327 | B154: Д 6/65 крем-краска для волос с витамином С темно-русый шоколадно-золотистый 100 мл | C154: 249 | D154: 166 | E154: 166 | G154: 0
A155: КД19334 | B155: Д 6/67 крем-краска для волос с витамином С темно-русый шоколадно-медный 100 мл | C155: 249 | D155: 166 | E155: 166 | G155: 0
A156: КД19344 | B156: Д 6/68 крем-краска для волос с витамином С темно-русый шоколадно-красный 100 мл | C156: 249 | D156: 166 | E156: 166 | G156: 0
A157: КД19292 | B157: Д 6/77 крем-краска для волос с витамином С темно-русый медный экстра 100 мл | C157: 249 | D157: 166 | E157: 166 | G157: 0
A158: КД19341 | B158: Д 6/88 крем-краска для волос с витамином С темно-русый красный экстра 100 мл | C158: 249 | D158: 166 | E158: 166 | G158: 0
A159: КД19343 | B159: Д 6/98 крем-краска для волос с витамином С темно-русый фиолетово-красный 100 мл | C159: 249 | D159: 166 | E159: 166 | G159: 0
A160: КД19293 | B160: Д 7/0 крем-краска для волос с витамином С средне-русый натуральный 100 мл | C160: 249 | D160: 166 | E160: 166 | G160: 0
A161: КД19318 | B161: Д 7/00 крем-краска для волос с витамином С средне-русый натуральный экстра 100 мл | C161: 249 | D161: 166 | E161: 166 | G161: 0
A162: КД19353 | B162: Д 7/05 крем-краска для волос с витамином С средне-русый натурально-золотистый 100 мл | C162: 249 | D162: 166 | E162: 166 | G162: 0
A163: КД19324 | B163: Д 7/1 крем-краска для волос с витамином С средне-русый сандре 100 мл | C163: 249 | D163: 166 | E163: 166 | G163: 0
A164: КД19348 | B164: Д 7/14 крем-краска для волос с витамином С средне-русый сандре бежевый 100 мл | C164: 249 | D164: 166 | E164: 166 | G164: 0
A165: КД19329 | B165: Д 7/16 крем-краска для волос с витамином С средне-русый сандре шоколадный 100 мл | C165: 249 | D165: 166 | E165: 166 | G165: 0
A166: КД19294 | B166: Д 7/4 крем-краска для волос с витамином С средне-русый бежевый 100 мл | C166: 249 | D166: 166 | E166: 166 | G166: 0
A167: КД19295 | B167: Д 7/6 крем-краска для волос с витамином С средне-русый шоколадный 100 мл | C167: 249 | D167: 166 | E167: 166 | G167: 0
A168: КД19332 | B168: Д 7/60 крем-краска для волос с витамином С средне-русый шоколадно-натуральный 100 мл | C168: 249 | D168: 166 | E168: 166 | G168: 0
A169: КД19322 | B169: Д 7/62 крем-краска для волос с витамином С средне-русый шоколадно-пепельный 100 мл | C169: 249 | D169: 166 | E169: 166 | G169: 0
A170: КД19296 | B170: Д 7/65 крем-краска для волос с витамином С средне-русый шоколадно-золотистый 100 мл | C170: 249 | D170: 166 | E170: 166 | G170: 0
A171: КД19297 | B171: Д 7/67 крем-краска для волос с витамином С средне-русый шоколадно-медный 100 мл | C171: 249 | D171: 166 | E171: 166 | G171: 0
A172: КД19298 | B172: Д 7/7 крем-краска для волос с витамином С средне-русый медный 100 мл | C172: 249 | D172: 166 | E172: 166 | G172: 0
A173: КД19342 | B173: Д 7/75 крем-краска для волос с витамином С средне-русый медно-золотистый 100 мл | C173: 249 | D173: 166 | E173: 166 | G173: 0
A174: КД19299 | B174: Д 7/77 крем-краска для волос с витамином С средне-русый медный экстра 100 мл | C174: 249 | D174: 166 | E174: 166 | G174: 0
A175: КД19300 | B175: Д 8/0 крем-краска для волос с витамином С светло-русый натуральный 100 мл | C175: 249 | D175: 166 | E175: 166 | G175: 0
A176: КД19319 | B176: Д 8/00 крем-краска для волос с витамином С светло русый науральный экстра 100 мл | C176: 249 | D176: 166 | E176: 166 | G176: 0
A177: КД19352 | B177: Д 8/05 крем-краска для волос с витамином С светло-русый натурально золотистый 100 мл | C177: 249 | D177: 166 | E177: 166 | G177: 0
A178: КД19301 | B178: Д 8/1 крем-краска для волос с витамином С светло-русый сандре 100 мл | C178: 249 | D178: 166 | E178: 166 | G178: 0
A179: КД19356 | B179: Д 8/14 крем-краска для волос с витамином С светло-русый сандре бежевый 100 мл | C179: 249 | D179: 166 | E179: 166 | G179: 0
A180: КД19302 | B180: Д 8/16 крем-краска для волос с витамином С светло-русый сандре шоколадный 100 мл | C180: 249 | D180: 166 | E180: 166 | G180: 0
A181: КД19303 | B181: Д 8/2 крем-краска для волос с витамином С светло-русый пепельный 100 мл | C181: 249 | D181: 166 | E181: 166 | G181: 0
A182: КД19304 | B182: Д 8/4 крем-краска для волос с витамином С светло-русый бежевый 100 мл | C182: 249 | D182: 166 | E182: 166 | G182: 0
A183: КД19331 | B183: Д 8/60 крем-краска для волос с витамином С светло-русый шоколадно-натуральный 100 мл | C183: 249 | D183: 166 | E183: 166 | G183: 0
A184: КД19320 | B184: Д 8/62 крем-краска для волос с витамином С светло-русый шоколадно-пепельный 100 мл | C184: 249 | D184: 166 | E184: 166 | G184: 0
A185: КД19305 | B185: Д 8/65 крем-краска для волос с витамином С светло-русый сандре шоколадно-золотистый 100 мл | C185: 249 | D185: 166 | E185: 166 | G185: 0
A186: КД19335 | B186: Д 8/67 крем-краска для волос с витамином С светло-русый шоколадно-медный 100 мл | C186: 249 | D186: 166 | E186: 166 | G186: 0
A187: КД19306 | B187: Д 8/77 крем-краска для волос с витамином С светло-русый медный экстра 100 мл | C187: 249 | D187: 166 | E187: 166 | G187: 0
A188: КД19311 | B188: Д 9/0 крем-краска для волос с витамином С блондин натуральный 100 мл | C188: 249 | D188: 166 | E188: 166 | G188: 0
A189: КД19357 | B189: Д 9/05 крем-краска д/волос с витамином С блондин натурально-золотистый 100 мл | C189: 249 | D189: 166 | E189: 166 | G189: 0
A190: КД19323 | B190: Д 9/1 крем-краска для волос с витамином С блондин сандре 100 мл | C190: 249 | D190: 166 | E190: 166 | G190: 0
A191: КД19330 | B191: Д 9/16 крем-краска для волос с витамином С блондин сандре шоколадный 100 мл | C191: 249 | D191: 166 | E191: 166 | G191: 0
A192: КД19312 | B192: Д 9/29 крем-краска для волос с витамином С блондин пепельно-фиолетовый 100 мл | C192: 249 | D192: 166 | E192: 166 | G192: 0
A193: КД19313 | B193: Д 9/4 крем-краска для волос с витамином С блондин бежевый 100 мл | C193: 249 | D193: 166 | E193: 166 | G193: 0
A194: КД19314 | B194: Д 9/6 крем-краска для волос с витамином С блондин шоколадный 100 мл | C194: 249 | D194: 166 | E194: 166 | G194: 0
A195: КД19321 | B195: Д 9/62 крем-краска для волос с витамином С блондин шоколадно-пепельный 100 мл | C195: 249 | D195: 166 | E195: 166 | G195: 0
A196: КД19326 | B196: Д 9/65 крем-краска для волос с витамином С блондин шоколадно-золотистый 100 мл | C196: 249 | D196: 166 | E196: 166 | G196: 0
A197: КД19336 | B197: Д 9/67 крем-краска для волос с витамином С блондин шоколадно-медный 100 мл | C197: 249 | D197: 166 | E197: 166 | G197: 0
A198: КД19315 | B198: Д 9/98 крем-краска для волос с витамином С блондин фиолетово-красный 100 мл | C198: 249 | D198: 166 | E198: 166 | G198: =F198*E198 -> 0
A199: КД19307 | B199: Д 91/2/1 крем-краска для волос с витамином С сандре 100 мл | C199: 249 | D199: 166 | E199: 166 | G199: 0
A200: КД19308 | B200: Д 91/2/16 крем-краска для волос с витамином С сандре шоколадный 100 мл | C200: 249 | D200: 166 | E200: 166 | G200: 0
A201: КД19309 | B201: Д 91/2/4 крем-краска д./волос с витамином С бежевый 100 мл | C201: 249 | D201: 166 | E201: =D201-D201*$E$6/100 -> 166 | G201: 0
A202: КД19310 | B202: Д 91/2/49 крем-краска для волос с витамином С бежево-фиолетовый 100 мл | C202: 249 | D202: 166 | E202: 166 | G202: 0
A203: КД19360 | B203: Д Абрикосовый крем-краска для волос с витамином С 100 мл | C203: 249 | D203: 166 | E203: 166 | G203: 0
... 398 more rows

Sheet Domix
A1: Ваш торговый представитель______________________
A2: моб. Тел._________________________________________
A3: 109457 г. Москва,ул. Плеханова, дом 4,стр.3 ООО “Компания "Аквакосметика” тел. 8(495)785-99-54,785-99-53 многоканальный
J6: Проставьте в зеленой ячейке вашу скидку | M6: %
A8: 2024-04-01
A9: Арт.ед.тов. | B9: ШК ед. тов. | C9: ШК блок | D9: ШК гоф.кор. | E9: Бренд | F9: Наименование | G9: Объём | H9: Кол-во в коробе | I9: Цена полки и (РРЦ) | J9: Цены руб. с НДС | K9: Цена с вашей скидкой,руб | L9: ЗАКАЗ шт | M9: Сумма по заказу с вашей скидкой, руб
F11: Вспомогательные жидкости DOMIX GREEN PROFESSIONAL для ногтевого сервис
A12: 898263 | B12: 4630043898263 | C12: - | D12: 4630043899390 | E12: DOMIX GREEN PROFESSIONAL | F12: DGP Nail prep 3 в 1. Обезжириватель ногтевой пластины, средство для снятия липкого слоя и лака для ногтей | G12: 1л | H12: 6 | I12: 537.31 | J12: 429.85 | K12: =J12-J12*$L$6/100 -> 429.85 | M12: =L12*K12 -> 0
A13: 898362 | B13: 4630043898362 | C13: - | D13: 4630043899413 | E13: DOMIX GREEN PROFESSIONAL | F13: DGP Nail prep 3 в 1. Обезжириватель ногтевой пластины, средство для снятия липкого слоя и лака для ногтей | G13: 500 мл | H13: 9 | I13: 322.37 | J13: 257.9 | K13: =J13-J13*$L$6/100 -> 257.9 | M13: =L13*K13 -> 0
A14: 402636 | B14: 4610091402636 | C14: - | D14: 4610091402643 | E14: DOMIX GREEN PROFESSIONAL | F14: DGP Nail prep 3 в 1. Обезжириватель ногтевой пластины, средство для снятия липкого слоя и лака для ногтей | G14: 255 мл | H14: 19 | I14: 250.28 | J14: 200.22 | K14: 200.22 | M14: 0
A15: 898379 | B15: 4630043898379 | C15: - | D15: 4630043899420 | E15: DOMIX GREEN PROFESSIONAL | F15: DGP Nail prep 3 в 1. Обезжириватель ногтевой пластины, средство для снятия липкого слоя и лака для ногтей | G15: 200 мл | H15: 12 | I15: 163.35 | J15: 130.68 | K15: 130.68 | M15: 0
A16: 101983 | B16: 4660000101983 | C16: - | D16: 4660000101990 | E16: DOMIX GREEN PROFESSIONAL | F16: DGP Nail polish remover with acetone. Средство для снятия всех видов лака с ногтей с ацетоном | G16: 1 л | H16: 6 | I16: 325.01 | J16: 260.01 | K16: 260.01 | M16: 0
A17: 104670 | B17: 4640021386309 | C17: - | D17: 4640021386569 | E17: DOMIX GREEN PROFESSIONAL | F17: DGP Nail polish remover with acetone. Средство для снятия всех видов лака с ногтей с ацетоном | G17: 500 мл | H17: 9 | I17: 194.99 | J17: 155.99 | K17: 155.99 | M17: 0
A18: 386309 | B18: 4660000103512 | C18: - | D18: 4660000103529 | E18: DOMIX GREEN PROFESSIONAL | F18: DGP Nail polish remover with aсetone. Средство для снятия всех видов лака с ногтей с ацетоном | G18: 255 мл | H18: 19 | I18: 157.63 | J18: 126.11 | K18: 126.11 | M18: 0
A19: 103512 | B19: 4660000104793 | C19: - | D19: 4660000104809 | E19: DOMIX GREEN PROFESSIONAL | F19: DGP Nail polish remover with aсetone. Средство для снятия всех видов лака с ногтей с ацетоном | G19: 200 мл | H19: 12 | I19: 100.26 | J19: 80.21 | K19: 80.21 | M19: 0
A20: 101969 | B20: 4660000103673 | C20: - | D20: 4660000103680 | E20: DOMIX GREEN PROFESSIONAL | F20: DGP Nail polish remover non acetone. Средство для снятия лака с ногтей без ацетона | G20: 1 л | H20: 6 | I20: 518.73 | J20: 414.98 | K20: 414.98 | M20: 0
A21: 104793 | B21: 4660000103383 | C21: - | D21: 4660000103390 | E21: DOMIX GREEN PROFESSIONAL | F21: DGP Nail polish remover non acetone. Средство для снятия лака с ногтей без ацетона | G21: 500 мл | H21: 9 | I21: 311.22 | J21: 248.98 | K21: 248.98 | M21: 0
A22: 386293 | B22: 4660000104779 | C22: - | D22: 4660000104786 | E22: DOMIX GREEN PROFESSIONAL | F22: DGP Nail polish remover non aсetone. Средство для снятия лака с ногтей без ацетона | G22: 255 мл | H22: 19 | I22: 237.22 | J22: 189.78 | K22: 189.78 | M22: 0
A23: 103673 | B23: 4640021386583 | C23: - | D23: 4640021386590 | E23: DOMIX GREEN PROFESSIONAL | F23: DGP Nail polish remover non aсetone. Средство для снятия лака с ногтей без ацетона | G23: 200 мл | H23: 12 | I23: 160.08 | J23: 128.07 | K23: 128.07 | M23: 0
A24: 103383 | B24: 4660000103659 | C24: - | D24: 4660000103666 | E24: DOMIX GREEN PROFESSIONAL | F24: DGP Gel varnish remover. Средство для снятия гель - лака | G24: 1 л | H24: 6 | I24: 473.59 | J24: 378.87 | K24: 378.87 | M24: 0
A25: 104779 | B25: 4660000104731 | C25: - | D25: 4660000104748 | E25: DOMIX GREEN PROFESSIONAL | F25: DGP Gel varnish remover. Средство для снятия гель-лака | G25: 500 мл | H25: 9 | I25: 284.18 | J25: 227.34 | K25: 227.34 | M25: 0
A26: 386583 | B26: 4640021386323 | C26: - | D26: 4640021386545 | E26: DOMIX GREEN PROFESSIONAL | F26: DGP Gel varnish remover. Средство для снятия гель -лака | G26: 255 мл | H26: 19 | I26: 224.05 | J26: 179.24 | K26: 179.24 | M26: 0
A27: 103659 | B27: 4660000103598 | C27: - | D27: 4660000103604 | E27: DOMIX GREEN PROFESSIONAL | F27: DGP Gel varnish remover. Средство для снятия гель - лака | G27: 200 мл | H27: 12 | I27: 146.15 | J27: 116.92 | K27: 116.92 | M27: 0
A28: 104939 | B28: 4660000104939 | C28: - | D28: 4660000102072 | E28: DOMIX GREEN PROFESSIONAL | F28: DGP Nail Prep lux 2 в 1. Обезжириватель ногтевой пластины и средство для снятия липкого слоя (без растворителей) | G28: 1 л | H28: 6 | I28: 672.5 | J28: 538 | K28: 538 | M28: 0
A29: 104694 | B29: 4660000104694 | C29: - | D29: 4660000104700 | E29: DOMIX GREEN PROFESSIONAL | F29: DGP Nail Prep lux 2 в 1. Обезжириватель ногтевой пластины и средство для снятия липкого слоя (без растворителей) | G29: 500 мл | H29: 9 | I29: 403.5 | J29: 322.8 | K29: 322.8 | M29: 0
A30: 386316 | B30: 4660000109323 | C30: - | D30: 4660000109422 | E30: DOMIX GREEN PROFESSIONAL | F30: DGP Nail Prep lux 2 в 1. Обезжириватель ногтевой пластины и средство для снятия липкого слоя (без растворителей) | G30: 255 мл | H30: 19 | I30: 308.32 | J30: 246.66 | K30: 246.66 | M30: 0
A31: 109323 | B31: 4660000103574 | C31: - | D31: 4660000103581 | E31: DOMIX GREEN PROFESSIONAL | F31: DGP Nail Prep lux 2 в 1. Обезжириватель ногтевой пластины и средство для снятия липкого слоя (без растворителей) | G31: 200 мл | H31: 12 | I31: 207.51 | J31: 166.01 | K31: 166.01 | M31: 0
A32: 388303 | F32: DGP Nail Prep lux 2 в 1. Спрей. Обезжириватель ногтевой пластины и средство для снятия липкого слоя (без растворителей) | G32: 150 мл | H32: 9 | I32: 187.68 | J32: 150.14 | K32: 150.14 | M32: 0
F33: Специальные средства DOMIX GREEN PROFESSIONAL - Жидкое лезвие для необрезного педикюра | K33: 0 | M33: 0
A34: 899512 | B34: 4630043899567 | C34: - | D34: 4630043899659 | E34: TOTALDIS PROFESSIONAL | F34: DGP Жидкое лезвие - спрей-кератолитик. Для сухого педикюра | G34: 200 мл | H34: 9 | I34: 701.38 | J34: 561.1 | K34: 561.1 | M34: 0
A35: 406443 | B35: 4630043899796 | C35: - | D35: 4630043899802 | E35: TOTALDIS PROFESSIONAL | F35: DGP Жидкое лезвие - кератолитик нового поколения | G35: 250 мл | H35: 8 | I35: 939.61 | J35: 751.68 | K35: 751.68 | M35: 0
A36: 898188 | B36: 4630043899697 | C36: - | D36: 4630043899703 | E36: TOTALDIS PROFESSIONAL | F36: DGP Жидкое лезвие - пенный экспресс размягчитель для разрыхления и удаления натоптышей и огрубевшей кожи стоп | G36: 260 мл | H36: 14 | I36: 721.6 | J36: 577.28 | K36: 577.28 | M36: 0
A37: 403848 | B37: 4630043899840 | C37: - | D37: 4630043899857 | E37: TOTALDIS PROFESSIONAL | F37: DGP Набор для удаления натоптышей и огрубевшей кожи стоп ( 898188 DGP Жидкое лезвие - пенный экспресс размягчитель для разрыхления и удаления натоптышей и огрубевшей кожи стоп (260мл) + 890717 DGP Тёрка абразивная педикюрная Light) | H37: 12 | I37: 721.6 | J37: 577.28 | K37: 577.28 | M37: 0
A38: 389331 | B38: 4630043899789 | C38: - | D38: 4630043899826 | E38: TOTALDIS PROFESSIONAL | F38: DGP Жидкое лезвие - гель-кератолитик для подготовки к педикюру с аллантоином | G38: 250 мл | H38: 12 | I38: 652.65 | J38: 522.12 | K38: 522.12 | M38: 0
A39: 104045 | B39: 4660000103697 | C39: - | D39: 4660000103703 | E39: TOTALDIS PROFESSIONAL | F39: DGP Жидкое лезвие - для удаления натоптышей и уплотнений кожи стоп, локального применения | G39: 1 л | H39: 6 | I39: 2001.65 | J39: 1601.32 | K39: 1601.32 | M39: 0
A40: 103833 | B40: 4660000108876 | C40: - | D40: 4660000109125 | E40: TOTALDIS PROFESSIONAL | F40: DGP Жидкое лезвие - для удаления натоптышей и уплотнений кожи стоп, локального применения | G40: 70 мл | H40: 6 | I40: 444.77 | J40: 355.82 | K40: 355.82 | M40: 0
A41: 107626 | B41: 4640021386415 | C41: - | D41: 4640021386606 | E41: TOTALDIS PROFESSIONAL | F41: DGP Жидкое лезвие - для ванночек. Средство для ускоренной подготовки к маникюру и педикюру | G41: 3 л | H41: 1 | I41: 1305.07 | J41: 1044.06 | K41: 1044.06 | M41: 0
A42: 104915 | B42: 4660000109781 | C42: - | D42: 4660000109835 | E42: TOTALDIS PROFESSIONAL | F42: DGP Жидкое лезвие - для ванночек. Средство для ускоренной подготовки к маникюру и педикюру | G42: 500 мл | H42: 6 | I42: 352.38 | J42: 281.9 | K42: 281.9 | M42: 0
A43: 106384 | F43: DGP Жидкое лезвие - в саше. Экспресс размягчитель для разрыхления и удаления натоптышей и огрубевшей кожи стоп | G43: 17 мл | H43: 10 блоков в коробе * 20 шт. в блоке (200 шт./короб) | I43: 69.56 | J43: 55.65 | K43: 55.65 | M43: 0
F44: Дезинфицирующие средства TOTALDIS PROFESSIONAL
A45: 403718 | B45: 4630043894210 | C45: - | D45: 4630043894616 | E45: DOMIX GREEN PROFESSIONAL | F45: TDP Средство дезинфицирующее. Готовый к применению 5% раствор | G45: 750 мл | H45: 6 | I45: 345.51 | J45: 276.41 | K45: 276.41 | M45: 0
A46: 403701 | F46: TDP Средство дезинфицирующее. Готовый к применению 5% раствор | G46: 500 мл | H46: 8 | I46: 255.93 | J46: 204.75 | K46: 204.75 | M46: 0
A47: 403572 | B47: 4660000106827 | C47: 4660000106834 | D47: 14660000106824 | E47: DOMIX GREEN PROFESSIONAL | F47: TDP Средство дезинфицирующее. Концентрат | G47: 5 л | H47: 2 | I47: 6071.34 | J47: 4857.07 | K47: 4857.07 | M47: 0
A48: 403558 | B48: 4660000106841 | C48: 4660000106858 | D48: 14660000106848 | E48: DOMIX GREEN PROFESSIONAL | F48: TDP Средство дезинфицирующее. Концентрат | G48: 1 л | H48: 6 | I48: 1254.89 | J48: 1003.91 | K48: 1003.91 | M48: 0
A49: 403565 | B49: 4660000106940 | C49: 4660000106957 | D49: 14660000106947 | E49: DOMIX GREEN PROFESSIONAL | F49: TDP Средство дезинфицирующее. Концентрат | G49: 500 мл | H49: 9 | I49: 645.85 | J49: 516.68 | K49: 516.68 | M49: 0
A50: 404203 | B50: 4660000109484 | C50: 4660000109606 | D50: 4660000109613 | E50: DOMIX GREEN PROFESSIONAL | F50: Журнал контроля работы стерилизаторов воздушного, парового (автоклава) | G50: 1 шт | H50: - | I50: 146.48 | J50: 117.18 | K50: 117.18 | M50: 0
A51: 404210 | F51: Журнал получения и расходования дезинфицирующих средств | G51: 1 шт | H51: - | I51: 156.26 | J51: 125.01 | K51: 125.01 | M51: 0
A52: 404227 | B52: 4660000103284 | C52: - | D52: 4660000103291 | E52: DOMIX GREEN PROFESSIONAL | F52: Журнал проведения текущих и генеральных уборок | G52: 1 шт | H52: - | I52: 81.04 | J52: 64.83 | K52: 64.83 | M52: 0
F53: Антисептические средства TOTALDIS PROFESSIONAL
A54: 899543 | B54: 4660000103420 | C54: - | D54: 4660000103437 | E54: DOMIX GREEN PROFESSIONAL | F54: TDP Антисептическое средство, изопропиловый спирт + производные гуанидина | G54: 5 л | H54: 2 | I54: 2258 | J54: 1806.4 | K54: 1806.4 | M54: 0
A55: 899567 | B55: 4660000103406 | C55: - | D55: 4660000103413 | E55: DOMIX GREEN PROFESSIONAL | F55: TDP Антисептическое средство, изопропиловый спирт + производные гуанидина | G55: 1 л | H55: 6 | I55: 512.19 | J55: 409.75 | K55: 409.75 | M55: 0
A56: 899796 | B56: 4610091401820 | C56: - | D56: 4610091401837 | E56: DOMIX GREEN PROFESSIONAL | F56: TDP Антисептическое средство, изопропиловый спирт + производные гуанидина | G56: 700 мл | H56: 12 | I56: 393.8 | J56: 315.04 | K56: 315.04 | M56: 0
A57: 899574 | B57: 4640021387702 | C57: - | D57: 4640021387870 | E57: DOMIX GREEN PROFESSIONAL | F57: TDP Антисептическое средство, изопропиловый спирт + производные гуанидина | G57: 500 мл | H57: 6 | I57: 307.32 | J57: 245.86 | K57: 245.86 | M57: 0
A58: 899734 | B58: 4660000103260 | C58: - | D58: 4660000103277 | E58: DOMIX GREEN PROFESSIONAL | F58: TDP Антисептическое средство 71% изопропилового спирта | G58: 5 л | H58: 2 | I58: 3809.73 | J58: 3047.78 | K58: 3047.78 | M58: 0
A59: 899697 | B59: 4660000103222 | C59: - | D59: 4660000103239 | E59: DOMIX GREEN PROFESSIONAL | F59: TDP Антисептическое средство 71% изопропилового спирта | G59: 1 л | H59: 6 | I59: 784.98 | J59: 627.98 | K59: 627.98 | M59: 0
A60: 899840 | B60: 4660000103499 | C60: - | D60: 4610091405989 | E60: DOMIX GREEN PROFESSIONAL | F60: TDP Антисептическое средство 71% изопропилового спирта | G60: 700 мл | H60: 12 | I60: 603.55 | J60: 482.84 | K60: 482.84 | M60: 0
A61: 899710 | B61: 4660000104618 | C61: - | D61: 4660000104625 | E61: DOMIX GREEN PROFESSIONAL | F61: TDP Антисептическое средство 71% изопропилового спирта | G61: 500 мл | H61: 6 | I61: 471 | J61: 376.8 | K61: 376.8 | M61: 0
A62: 899772 | B62: 4660000104632 | C62: - | D62: 4660000104649 | E62: DOMIX GREEN PROFESSIONAL | F62: TDP Гель- антисептическое средство 63% изопропилового спирта | G62: 1 л | H62: 6 | I62: 1091.25 | J62: 873 | K62: 873 | M62: 0
A63: 899789 | B63: 4660000103758 | C63: - | D63: 4660000107688 | E63: DOMIX GREEN PROFESSIONAL | F63: TDP Гель- антисептическое средство 63% изопропилового спирта | G63: 500 мл | H63: 6 | I63: 654.75 | J63: 523.8 | K63: 523.8 | M63: 0
A64: 103697 | B64: 4660000103765 | C64: - | D64: 4660000107695 | E64: DOMIX GREEN PROFESSIONAL | F64: TDP Противогрибковое антисептическое средство, спрей для обработки рук и ступней ног "Люкс" | G64: 150 мл | H64: 16 | I64: 563.8 | J64: 451.04 | K64: 451.04 | M64: 0
A65: 108876 | F65: TDP Антисептическое средство, спрей для обработки рук и ступней ног | G65: 200 мл | H65: 14 | I65: 179.73 | J65: 143.78 | K65: 143.78 | M65: 0
A66: 899352 | B66: 4660000109453 | C66: - | D66: - | E66: DOMIX GREEN PROFESSIONAL | F66: TDP Антисептическое средство для обработки кожи | G66: 200 мл | H66: 12 | I66: 175.14 | J66: 140.11 | K66: 140.11 | M66: 0
A67: 898522 | F67: TDP Антисептическое средство без содержания спирта | G67: 200 мл | H67: 14 | I67: 155.08 | J67: 124.06 | K67: 124.06 | M67: 0
A68: 898539 | B68: 4660000102638 | C68: - | D68: 4660000102645 | E68: DOMIX GREEN PROFESSIONAL | F68: TDP Антисептическое средство без содержания спирта | G68: 200 мл | H68: 12 | I68: 150.44 | J68: 120.35 | K68: 120.35 | M68: 0
A69: 386415 | B69: 4660000107237 | C69: - | D69: 4660000107312 | E69: DOMIX GREEN PROFESSIONAL | F69: TDP Гель антисептическое средство для обработки рук и ступней ног | G69: 260 мл | H69: 8 | I69: 404.37 | J69: 323.5 | K69: 323.5 | M69: 0
A70: 109781 | B70: 4660000107206 | C70: - | D70: 4660000107268 | E70: DOMIX GREEN PROFESSIONAL | F70: TDP Гель Жидкие перчатки- антисептическое средство для обработки рук и ступней ног | G70: 260 мл | H70: 8 | I70: 455.25 | J70: 364.2 | K70: 364.2 | M70: 0
F71: Дополнительные средства DOMIX GREEN PROFESSIONAL для ухода за ногтями
A72: 387702 | B72: 4660000107213 | C72: - | D72: 4660000107305 | E72: DOMIX GREEN PROFESSIONAL | F72: DGP Cuticle remover lux. Средство для удаления кутикулы | G72: 113 мл | H72: 20 | I72: 577.16 | J72: 461.73 | K72: =J72-J72*$L$6/100 -> 461.73 | M72: =L72*K72 -> 0
A73: 104069 | B73: 4660000107336 | C73: - | D73: 4660000107343 | E73: DOMIX GREEN PROFESSIONAL | F73: DGP Cuticle remover. Средство для удаления кутикулы | G73: 1 л | H73: 6 | I73: 2062.35 | J73: 1649.88 | K73: 1649.88 | M73: 0
A74: 107572 | B74: 4660000107176 | C74: - | D74: 4660000107299 | E74: DOMIX GREEN PROFESSIONAL | F74: DGP Cuticle remover. Средство для удаления кутикулы | G74: 500 мл | H74: 9 | I74: 1237.43 | J74: 989.94 | K74: 989.94 | M74: 0
A75: 109132 | B75: 4640021389645 | C75: - | D75: 4640021389652 | E75: DOMIX GREEN PROFESSIONAL | F75: DGP Cuticle remover. Средство для удаления кутикулы | G75: 200 мл | H75: 14 | I75: 629.86 | J75: 503.88 | K75: 503.88 | M75: 0
A76: 103260 | B76: 4640021387726 | C76: - | D76: 4640021387887 | E76: DOMIX GREEN PROFESSIONAL | F76: DGP Cuticle remover. Средство для удаления кутикулы | G76: 75 мл | H76: 12 | I76: 408.23 | J76: 326.59 | K76: 326.59 | M76: 0
A77: 381625 | F77: DGP Cuticle remover. Средство для удаления кутикулы | G77: 75 мл | H77: 12 | I77: 424.66 | J77: 339.72 | K77: 339.72 | M77: 0
A78: 103222 | B78: 4630043895682 | C78: - | D78: 4630043895699 | E78: DOMIX GREEN PROFESSIONAL | F78: DGP Cuticle remover. Средство для удаления кутикулы | G78: 70 мл | H78: 15 | I78: 316.98 | J78: 253.58 | K78: 253.58 | M78: 0
A79: 103499 | F79: DGP Разбавитель лака | G79: 70 мл | H79: 6 | I79: 106.72 | J79: 85.37
F80: Кремы DOMIX GREEN PROFESSIONAL
A81: 406405 | B81: 4610091405484 | D81: 4610091405545 | E81: DOMIX GREEN PROFESSIONAL | F81: DGP Крем-суфле "Манго" | G81: 500 мл | H81: 3 | I81: 676.57 | J81: 541.25 | K81: 541.25 | M81: 0
A82: 107244 | B82: 4610091405477 | D82: 4610091405552 | E82: DOMIX GREEN PROFESSIONAL | F82: DGP Крем для рук и ногтей с кератином, маслом чайного дерева и коллоидным серебром | G82: 1 л | H82: 6 | I82: 685.08 | J82: 548.07 | K82: 548.07 | M82: 0
A83: 102638 | F83: DGP Крем для рук и ногтей с кератином, маслом чайного дерева и коллоидным серебром | G83: 500мл | H83: 12 | I83: 411.05 | J83: 328.84 | K83: 328.84 | M83: 0
A84: 107237 | B84: 4660000109316 | C84: - | D84: 4610091404708 | E84: DOMIX GREEN PROFESSIONAL | F84: DGP Крем для рук и ногтей с кератином, маслом чайного дерева и коллоидным серебром | G84: 250 мл | H84: 12 | I84: 246.6 | J84: 197.28 | K84: 197.28 | M84: 0
A85: 107206 | F85: DGP Крем для рук питательный с ромашкой, тысячелистником и коллоидным серебром | G85: 1 л | H85: 6 | I85: 724.64 | J85: 579.71 | K85: 579.71 | M85: 0
A86: 107350 | B86: 4660000108807 | C86: - | D86: 4660000108944 | E86: DOMIX GREEN PROFESSIONAL | F86: DGP Крем для рук питательный с ромашкой, тысячелистником и коллоидным серебром | G86: 500мл | H86: 12 | I86: 434.81 | J86: 347.85 | K86: 347.85 | M86: 0
A87: 107190 | B87: 4660000108814 | C87: - | D87: 4660000108951 | E87: DOMIX GREEN PROFESSIONAL | F87: DGP Крем для рук питательный с ромашкой, тысячелистником и коллоидным серебром | G87: 250 мл | H87: 12 | I87: 260.88 | J87: 208.7 | K87: 208.7 | M87: 0
A88: 107220 | F88: DGP Крем для ног размягчающий мозоли с лимоном, ланолином и коллоидным серебром | G88: 1 л | H88: 6 | I88: 782.87 | J88: 626.3 | K88: 626.3 | M88: 0
A89: 102652 | B89: 4660000103246 | C89: - | D89: 4660000103253 | E89: DOMIX GREEN PROFESSIONAL | F89: DGP Крем для ног размягчающий мозоли с лимоном, ланолином и коллоидным серебром | G89: 500мл | H89: 12 | I89: 469.75 | J89: 375.8 | K89: 375.8 | M89: 0
A90: 107213 | F90: DGP Крем для ног размягчающий мозоли с лимоном, ланолином и коллоидным серебром | G90: 250 мл | H90: 12 | I90: 281.85 | J90: 225.48 | K90: 225.48 | M90: 0
A91: 107183 | B91: 4630043895705 | C91: - | D91: 4630043895712 | E91: Transdermal professional cosmetics | F91: DGP Крем для ног от трещин и ссадин с витаминами А, E, F, D-пантенолом и коллоидным серебром | G91: 1 л | H91: 6 | I91: 793.98 | J91: 635.19 | K91: 635.19 | M91: 0
A92: 107336 | F92: DGP Крем для ног от трещин и ссадин с витаминами А, E, F, D-пантенолом и коллоидным серебром | G92: 500мл | H92: 12 | I92: 476.39 | J92: 381.11 | K92: 381.11 | M92: 0
A93: 107176 | B93: 4660000106377 | C93: - | D93: 4660000107763 | E93: DOMIX GREEN PROFESSIONAL | F93: DGP Крем для ног от трещин и ссадин с витаминами А, E, F, D-пантенолом и коллоидным серебром | G93: 250 мл | H93: 12 | I93: 285.87 | J93: 228.7 | K93: 228.7 | M93: 0
A94: 403282 | B94: 4660000106360 | C94: - | D94: 4660000107770 | E94: DOMIX GREEN PROFESSIONAL | F94: DGP Крем для ног дезодорирующий с серебром и маслом чайного дерева | G94: 500мл | H94: 4 | I94: 1167.6 | J94: 934.08 | K94: 934.08 | M94: 0
A95: 387726 | B95: 4660000106353 | C95: - | D95: 4660000107787 | E95: DOMIX GREEN PROFESSIONAL | F95: DGP Крем для ног "Гидробаланс" с мочевиной, аллантоином, ланолином, маслом сафлоровым, пгэ прополиса, витамином Е, D-пантенолом | G95: 250 мл | H95: 12 | I95: 347.51 | J95: 278.01 | K95: 278.01 | M95: 0
F96: Парфюмированная линейка DOMIX PERFUMER
A97: 406757 | B97: 4660000106346 | C97: - | D97: 4660000107794 | E97: DOMIX GREEN PROFESSIONAL | F97: PERFUMER Молочко | G97: 100 мл | H97: 5 | I97: 400.31 | J97: 320.25 | K97: 320.25 | M97: 0
A98: 406726 | B98: 4640021381762 | C98: - | D98: 4640021383209 | E98: DOMIX GREEN PROFESSIONAL | F98: PERFUMER Флюид | G98: 100 мл | H98: 5 | I98: 393.12 | J98: 314.5 | K98: 314.5 | M98: 0
F99: Средства DOMIX GREEN PROFESSIONAL для парафинотерапии
A100: 895682 | B100: 4640021381779 | C100: - | D100: 4640021383216 | E100: DOMIX GREEN PROFESSIONAL | F100: DGP Крем-парафин с маслом ши и ланолином | G100: 500 мл | H100: 3 | I100: 989.11 | J100: 791.29 | K100: 791.29 | M100: 0
A101: 405521 | B101: 4630043890717 | C101: - | D101: 4630043890724 | E101: DOMIX GREEN PROFESSIONAL | F101: DGP Крем-парафин с маслом ши и ланолином | G101: 60 мл | H101: 12 | I101: 207.32 | J101: 165.86 | K101: 165.86 | M101: 0
A102: 403411 | B102: 4660000108968 | C102: - | D102: 4660000108975 | E102: DOMIX GREEN PROFESSIONAL | F102: DGP Крем-парафин "Зефир" с витаминами A, E, F | G102: 500 мл | H102: 3 | I102: 986.03 | J102: 788.82 | K102: 788.82 | M102: 0
A103: 404265 | B103: 4660000109392 | C103: - | D103: 4660000109408 | E103: DOMIX GREEN PROFESSIONAL | F103: DGP Крем-парафин "Зефир" с витаминами A, E, F | G103: 200 мл | H103: 6 | I103: 501.92 | J103: 401.54 | K103: 401.54 | M103: 0
A104: 405484 | B104: 4660000108982 | C104: - | D104: 4660000108999 | E104: DOMIX GREEN PROFESSIONAL | F104: DGP Крем-парафин "Зефир" с витаминами A, E, F | G104: 60 мл | H104: 12 | I104: 243.62 | J104: 194.89 | K104: 194.89 | M104: 0
A105: 403428 | B105: 4640021387443 | C105: - | D105: 4640021387450 | E105: DOMIX GREEN PROFESSIONAL | F105: DGP Крем-парафин "Сладкий апельсин" с аминокислотами шелка | G105: 500 мл | H105: 3 | I105: 982.03 | J105: 785.62 | K105: 785.62 | M105: 0
A106: 404272 | B106: 4640021387467 | C106: - | D106: 4640021387474 | E106: DOMIX GREEN PROFESSIONAL | F106: DGP Крем-парафин "Сладкий апельсин" с аминокислотами шелка | G106: 200 мл | H106: 6 | I106: 499.86 | J106: 399.89 | K106: 399.89 | M106: 0
A107: 405477 | B107: 4640021387481 | C107: - | D107: 4640021387498 | E107: DOMIX GREEN PROFESSIONAL | F107: DGP Крем-парафин "Сладкий апельсин" с аминокислотами шелка | G107: 60 мл | H107: 12 | I107: 242.62 | J107: 194.09 | K107: 194.09 | M107: 0
F108: Скрабы DOMIX GREEN PROFESSIONAL
A109: 103338 | B109: 4640021387504 | C109: - | D109: 4640021387511 | E109: DOMIX GREEN PROFESSIONAL | F109: DGP Крем-скраб с серебром | G109: 500мл | H109: 6 | I109: 565.17 | J109: 452.14 | K109: 452.14 | M109: 0
A110: 103246 | B110: 4640021388822 | C110: - | D110: 4640021388839 | E110: DOMIX GREEN PROFESSIONAL | F110: DGP Гель-скраб с серебром | G110: 500мл | H110: 6 | I110: 607.43 | J110: 485.94 | K110: 485.94 | M110: 0
F111: Вспомогательные средства DOMIX GREEN PROFESSIONAL для маникюра и педикюра | K111: =J111-J111*$L$6/100 -> 0 | M111: =L111*K111 -> 0
A112: 106377 | F112: DGP Тёрка абразивная педикюрная фасонная двусторонняя | G112: - | H112: 15 | I112: 134.25 | J112: 107.4 | K112: 107.4 | M112: 0
A113: 106360 | F113: DGP Тёрка абразивная педикюрная фигурная двусторонняя | G113: - | H113: 15 | I113: 107.23 | J113: 85.78 | K113: 85.78 | M113: 0
A114: 106353 | F114: DGP Тёрка абразивная педикюрная прямая двусторонняя | G114: - | H114: 15 | I114: 107.23 | J114: 85.78 | K114: 85.78 | M114: 0
A115: 106346 | F115: DGP Тёрка абразивная педикюрная малая двусторонняя | G115: - | H115: 15 | I115: 91.36 | J115: 73.09 | K115: 73.09 | M115: 0
A116: 381762 | F116: DGP Тёрка абразивная педикюрная Slim | G116: - | H116: 25 | I116: 187.86 | J116: 150.29 | K116: 150.29 | M116: 0
A117: 381779 | F117: DGP Тёрка абразивная педикюрная Easy | G117: - | H117: 25 | I117: 187.86 | J117: 150.29 | K117: 150.29 | M117: 0
A118: 890717 | F118: DGP Тёрка абразивная педикюрная Light | G118: - | H118: 60 | I118: 112.8 | J118: 90.24 | K118: 90.24 | M118: 0
A119: 108968 | F119: DGP Тёрка абразивная педикюрная Eco | G119: - | H119: 25 | I119: 177.28 | J119: 141.82 | K119: 141.82 | M119: 0
A120: 109392 | F120: DGP Тёрка абразивная педикюрная Optima | G120: - | H120: 50 | I120: 112.8 | J120: 90.24 | K120: 90.24 | M120: 0
A121: 108982 | F121: DGP Тёрка абразивная педикюрная Lux + 6 сменных абразивов (80/150) в комплекте | G121: - | H121: 14 | I121: 382.73 | J121: 306.18 | K121: 306.18 | M121: 0
A122: 109002 | F122: DGP Комплект сменных абразивов, зернистость 60, для педикюрной пилки-тёрки | G122: 10 шт. | H122: 33 | I122: 214.45 | J122: 171.56 | K122: 171.56 | M122: 0
A123: 109026 | F123: DGP Комплект сменных абразивов, зернистость 80, для педикюрной пилки-тёрки | G123: 10 шт. | H123: 33 | I123: 214.45 | J123: 171.56 | K123: 171.56 | M123: 0
A124: 109040 | F124: DGP Комплект сменных абразивов, зернистость 100, для педикюрной пилки-тёрки | G124: 10 шт. | H124: 33 | I124: 214.45 | J124: 171.56 | K124: 171.56 | M124: 0
A125: 109064 | F125: DGP Комплект сменных абразивов, зернистость 120, для педикюрной пилки-тёрки | G125: 10 шт. | H125: 33 | I125: 214.45 | J125: 171.56 | K125: 171.56 | M125: 0
A126: 109088 | F126: DGP Комплект сменных абразивов, зернистость 150, для педикюрной пилки-тёрки | G126: 10 шт. | H126: 33 | I126: 214.45 | J126: 171.56 | K126: 171.56 | M126: 0
A127: 109101 | F127: DGP Комплект сменных абразивов, зернистость 180, для педикюрной пилки-тёрки | G127: 10 шт. | H127: 33 | I127: 214.45 | J127: 171.56 | K127: 171.56 | M127: 0
A128: 387443 | F128: DGP Тёрка фасонная абразивная педикюрная двусторонняя. Цвет фуксия | H128: 25 | I128: 143.5 | J128: 114.8 | K128: 114.8 | M128: 0
A129: 387467 | F129: DGP Тёрка фасонная абразивная педикюрная двусторонняя. Цвет белый | H129: 25 | I129: 126.3 | J129: 101.04 | K129: 101.04 | M129: 0
A130: 387481 | F130: DGP Тёрка фасонная абразивная педикюрная двусторонняя. Цвет бирюзовый | H130: 25 | I130: 126.3 | J130: 101.04 | K130: 101.04 | M130: 0
A131: 387504 | F131: DGP Тёрка фасонная абразивная педикюрная двусторонняя. Цвет желтый | H131: 25 | I131: 126.3 | J131: 101.04 | K131: 101.04 | M131: 0
A132: 388822 | F132: DGP Тёрка фасонная абразивная педикюрная двусторонняя. Цвет чёрный | H132: 25 | I132: 126.3 | J132: 101.04 | K132: 101.04 | M132: 0
A133: 387962 | F133: DGP Тёрка-основа фасонная пластиковая педикюрная двусторонняя без абразива | H133: 25 | I133: 47.04 | J133: 37.63 | K133: 37.63 | M133: 0
A134: 385678 | F134: DGP Тёрка абразивная педикюрная двусторонняя. Цвет белый | H134: 25 | I134: 152.85 | J134: 122.28 | K134: 122.28 | M134: 0
A135: 385692 | F135: DGP Тёрка абразивная педикюрная двусторонняя. Цвет жёлтый | H135: 25 | I135: 153.14 | J135: 122.51 | K135: 122.51 | M135: 0
A136: 385715 | F136: DGP Тёрка абразивная педикюрная двусторонняя. Цвет бирюзовый | H136: 25 | I136: 153 | J136: 122.4 | K136: 122.4 | M136: 0
A137: 385739 | F137: DGP Тёрка абразивная педикюрная двусторонняя. Цвет фуксия | H137: 25 | I137: 154.08 | J137: 123.26 | K137: 123.26 | M137: 0
A138: 388846 | F138: DGP Тёрка абразивная педикюрная двусторонняя. Цвет чёрный | H138: 25 | I138: 152.69 | J138: 122.15 | K138: 122.15 | M138: 0
A139: 899505 | F139: DGP Металлическая основа для педикюрной терки МО-9 | H139: - | I139: 880.19 | J139: 704.15 | K139: 704.15 | M139: 0
A140: 402247 | F140: DGP Комплект сменных абразивов для тёрки-основы MО-9, зернистость 60 | G140: 10 шт. | H140: 33 | I140: 252.09 | J140: 201.67 | K140: 201.67 | M140: 0
A141: 402254 | F141: DGP Комплект сменных абразивов для тёрки-основы MО-9, зернистость 80 | G141: 10 шт. | H141: 33 | I141: 252.09 | J141: 201.67 | K141: 201.67 | M141: 0
A142: 402261 | F142: DGP Комплект сменных абразивов для тёрки-основы MО-9, зернистость 100 | G142: 10 шт. | H142: 33 | I142: 252.09 | J142: 201.67 | K142: 201.67 | M142: 0
A143: 402285 | F143: DGP Комплект сменных абразивов для тёрки-основы MО-9, зернистость 120 | G143: 10 шт. | H143: 33 | I143: 252.09 | J143: 201.67 | K143: 201.67 | M143: 0
A144: 402292 | F144: DGP Комплект сменных абразивов для тёрки-основы MО-9, зернистость 150 | G144: 10 шт. | H144: 33 | I144: 252.09 | J144: 201.67 | K144: 201.67 | M144: 0
A145: 402308 | F145: DGP Комплект сменных абразивов для тёрки-основы MО-9, зернистость 180 | G145: 10 шт. | H145: 33 | I145: 252.09 | J145: 201.67 | K145: 201.67 | M145: 0
A146: 890748 | F146: DGP Тёрка-основа металлическая педикюрная Maxi без абразива (вся длина: 26 см; длина полотна под абразив: 13,5 см; ширина полотна под абразив: 4,4 см) | H146: 12 | I146: 1118.58 | J146: 894.87 | K146: 894.87 | M146: 0
A147: 890762 | F147: DGP Комплект сменных абразивов для тёрки-основы Maxi, зернистость 60 | G147: 10 шт. | H147: 33 | I147: 252.22 | J147: 201.77 | K147: 201.77 | M147: 0
A148: 890786 | F148: DGP Комплект сменных абразивов для тёрки-основы Maxi, зернистость 80 | G148: 10 шт. | H148: 33 | I148: 252.22 | J148: 201.77 | K148: 201.77 | M148: 0
A149: 890809 | F149: DGP Комплект сменных абразивов для тёрки-основы Maxi, зернистость 100 | G149: 10 шт. | H149: 33 | I149: 252.22 | J149: 201.77 | K149: 201.77 | M149: 0
A150: 890823 | F150: DGP Комплект сменных абразивов для тёрки-основы Maxi, зернистость 120 | G150: 10 шт. | H150: 33 | I150: 252.22 | J150: 201.77 | K150: 201.77 | M150: 0
A151: 890847 | F151: DGP Комплект сменных абразивов для тёрки-основы Maxi, зернистость 150 | G151: 10 шт. | H151: 33 | I151: 252.22 | J151: 201.77 | K151: 201.77 | M151: 0
A152: 890861 | F152: DGP Комплект сменных абразивов для тёрки-основы Maxi, зернистость 180 | G152: 10 шт. | H152: 33 | I152: 252.22 | J152: 201.77 | K152: 201.77 | M152: 0
A153: 895989 | F153: DGP Комплект сменных абразивов, круг, диаметр S-15 мм, зернистость 80 | G153: 50 шт. | H153: 25 | I153: 170.7 | J153: 136.56 | K153: 136.56 | M153: 0
A154: 896009 | F154: DGP Комплект сменных абразивов, круг, диаметр S-15 мм, зернистость 100 | G154: 50 шт. | H154: 25 | I154: 170.7 | J154: 136.56 | K154: 136.56 | M154: 0
A155: 896023 | F155: DGP Комплект сменных абразивов, круг, диаметр S-15 мм, зернистость 180 | G155: 50 шт. | H155: 25 | I155: 170.7 | J155: 136.56 | K155: 136.56 | M155: 0
A156: 896047 | F156: DGP Комплект сменных абразивов, круг, диаметр S-15 мм, зернистость 240 | G156: 50 шт. | H156: 25 | I156: 170.7 | J156: 136.56 | K156: 136.56 | M156: 0
A157: 896061 | F157: DGP Комплект сменных абразивов, круг, диаметр S-15 мм, зернистость 320 | G157: 50 шт. | H157: 25 | I157: 170.7 | J157: 136.56 | K157: 136.56 | M157: 0
A158: 896085 | F158: DGP Комплект сменных абразивов, круг, диаметр M-20 мм, зернистость 80 | G158: 50 шт. | H158: 25 | I158: 200.73 | J158: 160.58 | K158: 160.58 | M158: 0
A159: 896108 | F159: DGP Комплект сменных абразивов, круг, диаметр M-20 мм, зернистость 100 | G159: 50 шт. | H159: 25 | I159: 200.73 | J159: 160.58 | K159: 160.58 | M159: 0
A160: 896122 | F160: DGP Комплект сменных абразивов, круг, диаметр M-20 мм, зернистость 180 | G160: 50 шт. | H160: 25 | I160: 200.73 | J160: 160.58 | K160: 160.58 | M160: 0
A161: 896146 | F161: DGP Комплект сменных абразивов, круг, диаметр M-20 мм, зернистость 240 | G161: 50 шт. | H161: 25 | I161: 200.73 | J161: 160.58 | K161: 160.58 | M161: 0
A162: 896160 | F162: DGP Комплект сменных абразивов, круг, диаметр M-20 мм, зернистость 320 | G162: 50 шт. | H162: 25 | I162: 200.73 | J162: 160.58 | K162: 160.58 | M162: 0
A163: 896184 | F163: DGP Комплект сменных абразивов, круг, диаметр L-25 мм, зернистость 80 | G163: 50 шт. | H163: 25 | I163: 227.32 | J163: 181.86 | K163: 181.86 | M163: 0
A164: 896207 | F164: DGP Комплект сменных абразивов, круг, диаметр L-25 мм, зернистость 100 | G164: 50 шт. | H164: 25 | I164: 227.32 | J164: 181.86 | K164: 181.86 | M164: 0
A165: 896221 | F165: DGP Комплект сменных абразивов, круг, диаметр L-25 мм, зернистость 180 | G165: 50 шт. | H165: 25 | I165: 227.32 | J165: 181.86 | K165: 181.86 | M165: 0
A166: 896245 | F166: DGP Комплект сменных абразивов, круг, диаметр L-25 мм, зернистость 240 | G166: 50 шт. | H166: 25 | I166: 227.32 | J166: 181.86 | K166: 181.86 | M166: 0
A167: 896269 | F167: DGP Комплект сменных абразивов, круг, диаметр L-25 мм, зернистость 320 | G167: 50 шт. | H167: 25 | I167: 227.32 | J167: 181.86 | K167: 181.86 | M167: 0
A168: 896283 | F168: DGP Комплект сменных абразивов, круг, диаметр XL-30 мм, зернистость 80 | G168: 50 шт. | H168: 25 | I168: 284.36 | J168: 227.49 | K168: =J168-J168*$L$6/100 -> 227.49 | M168: =L168*K168 -> 0
A169: 896306 | F169: DGP Комплект сменных абразивов, круг, диаметр XL-30 мм, зернистость 100 | G169: 50 шт. | H169: 25 | I169: 284.36 | J169: 227.49 | K169: 227.49 | M169: 0
A170: 896320 | F170: DGP Комплект сменных абразивов, круг, диаметр XL-30 мм, зернистость 180 | G170: 50 шт. | H170: 25 | I170: 284.36 | J170: 227.49 | K170: 227.49 | M170: 0
A171: 896344 | F171: DGP Комплект сменных абразивов, круг, диаметр XL-30 мм, зернистость 240 | G171: 50 шт. | H171: 25 | I171: 284.36 | J171: 227.49 | K171: 227.49 | M171: 0
A172: 896368 | F172: DGP Комплект сменных абразивов, круг, диаметр XL-30 мм, зернистость 320 | G172: 50 шт. | H172: 25 | I172: 284.36 | J172: 227.49 | K172: 227.49 | M172: 0
A173: 387580 | F173: DGP Крафт-пакеты белые 100х250 для стерилизации и хранения инструментов | G173: 100 шт в пачке | H173: 10 | I173: 516.16 | J173: 412.92 | K173: 412.92 | M173: 0
A174: 387603 | F174: DGP Крафт-пакеты коричневые 100х250 для стерилизации и хранения инструментов | G174: 100 шт в пачке | H174: 10 | I174: 486.89 | J174: 389.51 | K174: 389.51 | M174: 0
A175: 388945 | F175: DGP Крафт-пакеты белые 100х200 для стерилизации и хранения инструментов | G175: 100 шт в пачке | H175: 10 | I175: 479.76 | J175: 383.81 | K175: 383.81 | M175: 0
A176: 388983 | F176: DGP Крафт-пакеты коричневые 100х200 для стерилизации и хранения инструментов | G176: 100 шт в пачке | H176: 10 | I176: 420.2 | J176: 336.16 | K176: 336.16 | M176: 0
A177: 388969 | F177: DGP Крафт-пакеты белые 75х150 для стерилизации и хранения инструментов | G177: 100 шт в пачке | H177: 40 | I177: 367.26 | J177: 293.81 | K177: 293.81 | M177: 0
A178: 389003 | F178: DGP Крафт-пакеты коричневые 75х150 для стерилизации и хранения инструментов | G178: 100 шт в пачке | H178: 40 | I178: 340.79 | J178: 272.64 | K178: 272.64 | M178: 0
A179: 387573 | F179: DGP Салфетки безворсовые для обезжиривания ногтевой пластины и снятия липкого слоя D 60 мм (перфорированные) | G179: 250 шт. | H179: 11 | I179: 318.37 | J179: 254.7 | K179: 254.7 | M179: 0
A180: 107619 | F180: DGP Салфетки безворсовые для искусственных маникюрных и педикюрных покрытий D 60 мм | G180: 400 шт. | H180: 12 | I180: 229.79 | J180: 183.83 | K180: 183.83 | M180: 0
A181: 890885 | F181: DGP Комплект для педикюра большой | H181: 9 | I181: 134.25 | J181: 107.4 | K181: 107.4 | M181: 0
F182: Средства DOMIX GREEN PROFESSIONAL для волос | K182: 0 | M182: 0
A183: 103451 | F183: DGP Шампунь очищающий/обезжиривающий "Лилия и миндальное молочко" | G183: 5 л | H183: 1 | I183: 751.64 | J183: 601.32 | K183: 601.32 | M183: 0
A184: 109286 | F184: DGP Шампунь универсальный | G184: 5 л | H184: 1 | I184: 1507.03 | J184: 1205.62 | K184: 1205.62 | M184: 0
L185: Итого | M185: =SUM(M109:M184) -> 0

Sheet Schwarzkopf
A1: Ваш торговый представитель______________________
A2: моб. Тел._________________________________________
A3: 109457 г. Москва,ул. Плеханова, дом 4,стр.3 ООО “Компания "Аквакосметика” тел. 8(495)785-99-54,785-99-53 многоканальный сайт: www.steck.ru, e-mail: prof@akva.ru
B4: ПРАЙС-ЛИСТ SCHWARZKOPF PROFESSIONAL
A6: 2024-04-01
A7: Артикул | B7: Наименование товара | C7: Цена с НДС | D7: ЗАКАЗ шт | E7: Сумма по заказу с вашей скидкой, руб
A9: 099-2323716 | B9: B ВОССТАНОВЛЕНИЕ RR Кондиционер 1000мл | C9: 1790 | E9: =D9*C9 -> 0
A10: 099-2326602 | B10: B ВОССТАНОВЛЕНИЕ RR Кондиционер 200 мл | C10: 1206.81 | E10: =D10*C10 -> 0
A11: 099-2326790 | B11: B ВОССТАНОВЛЕНИЕ RR Спрей-Кондиционер 200 мл СРОК 12.24 | C11: 975.2 | E11: 0
A12: 099-2199078 | B12: B ГЕНЕЗИС Шампунь 200мл Очищающий СРОК 01.25 | C12: 660 | E12: 0
A13: 099-2708531 | B13: B ЗАЩИТА ЦВЕТА CF Шампунь 250мл Нейтрализующий (Серебристый) | C13: 837.4 | E13: 0
A14: 099-2709259 | B14: B УВЛАЖНЕНИЕ MK Спрей-кондиционер для волос 200мл | C14: 1166 | E14: 0
A15: 099-2709230 | B15: B УВЛАЖНЕНИЕ MK Шампунь 250мл | C15: 837 | E15: 0
A16: 0981-2297359 | B16: Игора Вайбранс 1-0 Крем-краска для волос без аммиака 60 мл | C16: 770 | E16: 0
A17: 0981-2297320 | B17: Игора Вайбранс 4-0 Крем-краска для волос без аммиака 60 мл | C17: 770 | E17: 0
A18: 0981-2295290 | B18: Игора Вайбранс 5-0 Крем-краска для волос без аммиака 60 мл | C18: 770 | E18: 0
A19: 0981-2297822 | B19: Игора Вайбранс 5-00 Крем-краска для волос без аммиака 60 мл | C19: 770 | E19: 0
A20: 0981-2298583 | B20: Игора Вайбранс 5-1 Крем-краска для волос без аммиака 60 мл | C20: 770 | E20: 0
A21: 0981-2299981 | B21: Игора Вайбранс 5-7 Крем-краска для волос без аммиака 60 мл | C21: 770 | E21: 0
A22: 0981-2301606 | B22: Игора Вайбранс 6-0 Крем-краска для волос без аммиака 60 мл | C22: 770 | E22: 0
A23: 0981-2300743 | B23: Игора Вайбранс 6-46 Крем-краска для волос без аммиака 60 мл | C23: 770 | E23: 0
A24: 0981-2301605 | B24: Игора Вайбранс 6-6 Крем-краска для волос без аммиака 60 мл | C24: 770 | E24: 0
A25: 0981-2297783 | B25: Игора Вайбранс 6-63 Крем-краска для волос без аммиака 60 мл | C25: 770 | E25: 0
A26: 0981-2301151 | B26: Игора Вайбранс 7-0 Крем-краска для волос без аммиака 60 мл | C26: 770 | E26: 0
A27: 0981-2297364 | B27: Игора Вайбранс 7-00 Крем-краска для волос без аммиака 60 мл | C27: 770 | E27: 0
A28: 0981-2298795 | B28: Игора Вайбранс 7-1 Крем-краска для волос без аммиака 60 мл | C28: 770 | E28: 0
A29: 0981-2299456 | B29: Игора Вайбранс 7-4 Крем-краска для волос без аммиака 60 мл | C29: 770 | E29: 0
A30: 0981-2295287 | B30: Игора Вайбранс 8-0 Крем-краска для волос без аммиака 60 мл | C30: 770 | E30: 0
A31: 0981-2298790 | B31: Игора Вайбранс 8-11 Крем-краска для волос без аммиака 60 мл | C31: 770 | E31: 0
A32: 0981-2301141 | B32: Игора Вайбранс 8-19 Крем-краска для волос без аммиака 60 мл | C32: 770 | E32: 0
A33: 0981-2299459 | B33: Игора Вайбранс 9,5-4 Крем-краска для волос без аммиака 60 мл | C33: 770 | E33: 0
A34: 0981-2298565 | B34: Игора Вайбранс 9,5-49 Крем-краска для волос без аммиака 60 мл | C34: 770 | E34: 0
A35: 0981-2299453 | B35: Игора Вайбранс 9,5-5 Крем-краска для волос без аммиака 60 мл | C35: 770 | E35: 0
A36: 0981-2299998 | B36: Игора Вайбранс 9,5-98 Крем-краска для волос без аммиака 60 мл | C36: 770 | E36: 0
A37: 0981-2295981 | B37: Игора Вайбранс 9-0 Крем-краска для волос без аммиака 60 мл | C37: 770 | E37: 0
A38: 0981-2297369 | B38: Игора Вайбранс 9-00 Крем-краска для волос без аммиака 60 мл | C38: 770 | E38: 0
A39: 0981-2298798 | B39: Игора Вайбранс 9-1 Крем-краска для волос без аммиака 60 мл | C39: 770 | E39: 0
A40: 0981-2299458 | B40: Игора Вайбранс 9-4 Крем-краска для волос без аммиака 60 мл | C40: 770 | E40: 0
A41: 0981-2298779 | B41: Игора Вайбранс 9-7 Крем-краска для волос без аммиака 60 мл | C41: 770 | E41: 0
A42: 0981-2447887 | B42: Игора Вайбранс Ashy Cedar 5-21 Крем-краска для волос без аммиака 60 мл | C42: 770 | E42: 0
A43: 0981-2447885 | B43: Игора Вайбранс Ashy Cedar 7-21 Крем-краска для волос без аммиака 60 мл | C43: 770 | E43: 0
A44: 0981-2564002 | B44: Игора Вайбранс Muted Desert 7-24 Крем-краска для волос без аммиака 60 мл | C44: 770 | E44: 0
A45: 0981-2563992 | B45: Игора Вайбранс Muted Desert 7-42 Крем-краска для волос без аммиака 60 мл | C45: 770 | E45: 0
A46: 098-2-2301999 | B46: Игора Вайбранс Лосьон-окислитель 1,9% 1000мл | C46: 880 | E46: 0
A47: 099-2242113 | B47: ИГОРА Варио Блонд Плюс 450гр | C47: 1823.53 | E47: 0
A48: 098-1-1689078 | B48: Игора Роял 0-11 краска д/в Анти-желтый микстон 60мл | C48: 545.08 | E48: 0
A49: 098-1-1689070 | B49: Игора Роял 1-0 краска д/в Черный натуральный 60мл | C49: 495.53 | E49: 0
A50: 098-1-1689069 | B50: Игора Роял 1-1 краска д/в Черный сандрэ 60мл | C50: 545.08 | E50: 0
A51: 098-1-1689058 | B51: Игора Роял 3-0 краска д/в Темный коричневый натурал 60мл | C51: 495.53 | E51: 0
A52: 098-1-1689056 | B52: Игора Роял 3-68 краска д/в Темный корич шок красный 60мл | C52: 545.08 | E52: 0
A53: 098-1-1689055 | B53: Игора Роял 4-0 краска д/в Средний корич натурал 60мл | C53: 495.53 | E53: 0
A54: 098-1-1689051 | B54: Игора Роял 4-6 краска д/в Средний коричневый шоколадный 60мл | C54: 495.53 | E54: 0
A55: 098-1-1689045 | B55: Игора Роял 5-0 краска д/в Светлый корич натурал 60мл | C55: 495.53 | E55: 0
A56: 098-1-1689044 | B56: Игора Роял 5-00 краска д/в Светл корич натурал экстра 60мл | C56: 495.53 | E56: 0
A57: 098-1-1689043 | B57: Игора Роял 5-1 краска д/в Светлый коричсандрэ 60мл | C57: 545.08 | E57: 0
A58: 098-1-2685780 | B58: Игора Роял 5-21 краска д/в Светлый коричневый пепельный сандрэ 60мл | C58: 545.08 | E58: 0
A59: 098-1-1689042 | B59: Игора Роял 5-4 краска д/в Св коричневый бежевый 60мл | C59: 545.08 | E59: 0
A60: 098-1-1689039 | B60: Игора Роял 5-6 краска д/в Светлый коричневый шоколадный 60мл | C60: 495.53 | E60: 0
A61: 098-1-1689035 | B61: Игора Роял 5-7 краска д/в Светлый корич медный 60мл | C61: 495.53 | E61: 0
A62: 098-1-1689031 | B62: Игора Роял 6-0 краска д/в Темный русый натурал 60мл | C62: 495.53 | E62: 0
A63: 098-1-1689030 | B63: Игора Роял 6-00 краска д/в Темн русый натурал экстра 60мл | C63: 495.53 | E63: 0
A64: 098-1-1689029 | B64: Игора Роял 6-1 краска д/в Темный русый сандрэ 60мл | C64: 495.53 | E64: 0
A65: 098-1-1689028 | B65: Игора Роял 6-12 краска д/в Темный русый сандрэ пепел 60мл | C65: 495.53 | E65: 0
A66: 098-1-2684021 | B66: Игора Роял 6-16 краска д/в Темный русый сандрэ шоколад 60мл | C66: 545.08 | E66: 0
A67: 098-1-1689027 | B67: Игора Роял 6-4 краска д/в Темный русый бежевый 60мл | C67: 495.53 | E67: 0
A68: 098-1-1689025 | B68: Игора Роял 6-6 краска д/в Темный русый шоколадный 60мл | C68: 495.53 | E68: 0
A69: 098-1-2684117 | B69: Игора Роял 6-63 Краска д/в Темный русый шоколадный матовый 60мл | C69: 545.08 | E69: 0
A70: 098-1-1689021 | B70: Игора Роял 6-77 краска д/в Темный русый медн экстра 60мл | C70: 545.08 | E70: 0
A71: 098-1-1689018 | B71: Игора Роял 7-0 краска д/в Средний русый натуральный 60мл | C71: 495.53 | E71: 0
A72: 098-1-1689016 | B72: Игора Роял 7-00 краска д/в Средн русый натурал экстр 60мл | C72: 495.53 | E72: 0
A73: 098-1-1689015 | B73: Игора Роял 7-1 краска д/в Средний русый сандрэ 60мл | C73: 495.53 | E73: 0
A74: 098-1-2683358 | B74: Игора Роял 7-21 краска д/в Сред. русый пепельный сандрэ 60 мл | C74: 545.08 | E74: =D74*C74 -> 0
A75: 098-1-2684399 | B75: Игора Роял 7-24 краска д/в Сред. русый пепельный бежевый 60мл | C75: 545.08 | E75: 0
A76: 098-1-1689014 | B76: Игора Роял 7-4 краска д/в Средний русый бежевый 60м | C76: 495.53 | E76: 0
A77: 098-1-1689013 | B77: Игора Роял 7-55 краска д/в Ср русый золот экстра 60мл | C77: 545.08 | E77: 0
A78: 098-1-1689010 | B78: Игора Роял 7-77 краска д/в Сред русый медный экстр 60мл | C78: 495.53 | E78: 0
A79: 098-1-1689009 | B79: Игора Роял 8-0 краска д/в Светлый русый натуральный 60мл | C79: 495.53 | E79: 0
A80: 098-1-1689008 | B80: Игора Роял 8-00 краска д/в Светл русый натурал экстр 60мл | C80: 495.53 | E80: 0
A81: 098-1-1689007 | B81: Игора Роял 8-1 краска д/в Светлый русый сандрэ 60мл | C81: 495.53 | E81: 0
A82: 098-1-1689006 | B82: Игора Роял 8-11 краска д/в Светлый рус сандрэ экстра 60мл | C82: 495.53 | E82: 0
A83: 098-1-2684107 | B83: Игора Роял 8-19 краска д/в Светлый русый сандрэ фиолетовый 60мл | C83: 545.08 | E83: 0
A84: 098-1-2684127 | B84: Игора Роял 8-21 краска д/в Светлый русый пепельный сандрэ 60 мл | C84: 545.08 | E84: 0
A85: 098-1-2683240 | B85: Игора Роял 8-46 краска д/в Свю русый бежевый шоколад. 60мл | C85: 545.08 | E85: 0
A86: 098-1-1689002 | B86: Игора Роял 8-77 краска д/в светло-русый медный экстра 60мл | C86: 545.08 | E86: 0
A87: 098-1-1689001 | B87: Игора Роял 9,5-1 краска д/в Светл блонд пастел сандрэ60мл | C87: 495.53 | E87: 0
A88: 098-1-1688998 | B88: Игора Роял 9,5-22 краска д/в Светл блонд пастел пепел 60мл | C88: 545.08 | E88: 0
A89: 098-1-1688997 | B89: Игора Роял 9,5-4 краска д/в Светл блонд пастел беж 60мл | C89: 545.08 | E89: 0
A90: 098-1-1688996 | B90: Игора Роял 9,5-49 краска д/в Светл блонд пастел перл 60мл | C90: 495.53 | E90: 0
A91: 098-1-1688995 | B91: Игора Роял 9-0 краска д/в Блондин натуральный 60мл | C91: 495.53 | E91: 0
A92: 098-1-1688993 | B92: Игора Роял 9-00 краска д/в Блондин натурал экстра 60мл | C92: 495.53 | E92: 0
A93: 098-1-2683640 | B93: Игора Роял 9-24 краска д/в Блондин пепельный бежевый 60мл | C93: 545.08 | E93: 0
A94: 098-1-1688990 | B94: Игора Роял 9-4 краска д/в Блондин бежевый 60мл | C94: 545.08 | E94: 0
A95: 098-1-2683338 | B95: Игора Роял 9-42 краска д/в Блондин бежевый пепельный 60мл | C95: 545.08 | E95: 0
A96: 098-1-2093465 | B96: Игора Роял Highlifts 10-0 краска д/в экстрасветл блонд нат | C96: 820 | E96: 0
A97: 098-1-2093114 | B97: Игора Роял Highlifts 10-1 краска д/в экст св блонд сандрэ | C97: 820 | E97: 0
A98: 098-1-2093021 | B98: Игора Роял Highlifts 10-21 краска д/в экстрасв бл пеп сандр | C98: 820 | E98: 0
A99: 098-1-2093108 | B99: Игора Роял Highlifts 10-4 краска д/в экстрасв блонд беж СРОК 10.24 | C99: 820 | E99: 0
A100: 098-1-2093173 | B100: Игора Роял Highlifts 12-0 краска д/в спец блонд натур | C100: 520.94 | E100: 0
A101: 098-1-2792672 | B101: Игора Роял Highlifts 12-1 краска д/в спец блонд сандрэ | C101: 820 | E101: 0
A102: 098-1-2093452 | B102: Игора Роял Highlifts 12-19 краска д/в спец бл сандрэ фиолет | C102: 520.94 | E102: 0
A103: 098-1-2093773 | B103: Игора Роял Highlifts 12-2 краска д/в спец блонд пепельный | C103: 520.94 | E103: =D103*C103 -> 0
A104: 098-1-1688977 | B104: Игора Роял Абс 6-60 краска д/в Темн рус шоколад натурал 60мл | C104: 520.94 | E104: 0
A105: 098-1-2680049 | B105: Игора Роял Абс 7-140 краска д/в Средний русый сандрэ бежевый натуральный 60 мл | C105: 720 | E105: 0
A106: 098-1-2680064 | B106: Игора Роял Абс 7-470 краска д/в Средний русый бежевый медный натуральный 60 мл | C106: 720 | E106: 0
A107: 098-1-1688973 | B107: Игора Роял Абс 7-50 краска д/в Средн русый золот натурал 60мл | C107: 720 | E107: 0
A108: 098-1-1688972 | B108: Игора Роял Абс 7-60 краска д/в Средн русый шок натурал 60мл | C108: 520.94 | E108: 0
A109: 098-1-2169181 | B109: Игора Роял Абс 8-60 краска д/в Светло рус шоколад натур 60мл | C109: 720 | E109: 0
A110: 098-1-2679986 | B110: Игора Роял Абс 9-140 краска д/в Сандрэ беж нат 60мл | C110: 720 | E110: 0
A111: 098-1-2679999 | B111: Игора Роял Абс 9-40 краска д/в Блондин беж натурал 60мл | C111: 720 | E111: 0
A112: 098-1-1688966 | B112: Игора Роял Абс 9-60 краска д/в Блондин шоколад натурал 60мл | C112: 520.94 | E112: 0
A113: 098-5-1658357 | B113: Игора Эксперт Мусс 9,5-55 д/в Св блондин золот экстра 100мл | C113: 710 | E113: 0
A114: 099-7-1847107 | B114: ОКСИГЕНТА 12% Игора 1000 мл (БОЛЬШАЯ) | C114: 1075.59 | E114: 0
A115: 099-7-1847101 | B115: ОКСИГЕНТА 3% Игора 1000 мл (БОЛЬШАЯ) | C115: 1075.6 | E115: 0
A116: 099-7-1634436 | B116: ОКСИГЕНТА 6% Игора 1000 мл (БОЛЬШАЯ) | C116: 1075.6 | E116: 0
A117: 099-7-1847105 | B117: ОКСИГЕНТА 9% Игора 1000 мл (БОЛЬШАЯ) | C117: 1075.6 | E117: 0
A118: 099-2646765 | B118: ОСИС Сухой шампунь-пена 200мл | C118: 1028.2 | E118: 0
A119: 099-2646642 | B119: Проф. ЛАК сверхсил. фикс. 500 мл ГОЛУБОЙ | C119: 1314.99 | E119: 0
A120: 099-6-1581304 | B120: СИЛУЭТ Лак ультрасильн фиксации 500мл (черный классик) | C120: 1190 | E120: 0
A121: 099-6-1503980 | B121: СИЛУЭТ Спрей сверхсильной фиксации 200мл (черный) | C121: 996 | E121: 0
D122: Итого | E122: =SUM(E9:E121) -> 0

Sheet INDOLA
A1: Ваш торговый представитель______________________
A2: моб. Тел._________________________________________
A3: 109457 г. Москва,ул. Плеханова, дом 4,стр.3 ООО “Компания"Аквакосметика” тел. 8(495)785-99-54,785-99-53 многоканальный сайт: www.steck.ru, e-mail: prof@akva.ru
B5: ПРАЙС - ЛИСТ INDOLA
A6: 2024-04-01 | C6: Проставьте в зеленой ячейке вашу скидку | E6: %
A7: Артикул | C7: Цена , с НДСруб | D7: Цена с вашей скидкой,руб | E7: ЗАКАЗ шт | F7: Сумма по заказу с вашей скидкой, руб
A9: 61-1-2148856 | B9: Индола 5.60 DEMI Кр-ль д/волос св коричн красный натуральный(З) | C9: 299 | D9: =C9-C9*$D$6/100 -> 299 | F9: =E9*D9 -> 0
A10: 61-1-2690249 | B10: Индола(10.24) 5.11 DEMI Кр-ль д/волос Светлый коричневый пепельный интенсивный 60мл | C10: 299 | D10: =C10-C10*$D$6/100 -> 299 | F10: =E10*D10 -> 0
A11: 61-1-2702938 | B11: Индола(01.24) 100.03+ NEW DEMI BLONDE EXPERT Кр-ль д/волос 60мл ультраблонд натуральный золотистый интен | C11: 299 | D11: 299 | F11: 0
A12: 61-1-2703466 | B12: Индола(01.24) 1000.03 BLONDE EXPERT Кр-ль д/волос Специальный блондин натуральный золотистый 60 мл | C12: 260 | D12: 260 | F12: 0
A13: 61-6-2705875 | B13: Индола(02.25) NEW Нейтрализирующий ш-нь 300мл (прид сереб.оттенок) | C13: 563.52 | D13: 563.52 | F13: 0
A14: 61-6-2705891 | B14: Индола NEW Кондиционер восст. 1500мл | C14: 1500 | D14: 1500 | F14: 0
A15: 61-6-2706136 | B15: Индола(08.24) Маска NEW 200мл д/окр волос | C15: 590 | D15: 590 | F15: 0
A16: 61-6-2706141 | B16: Индола(02.25) NEW Кондиционер д/окраш.1500мл (4306) | C16: 1725 | D16: 1725 | F16: 0
A17: 61-7-2293347 | B17: Индола Blond Addict Шампунь 250мл Pinkrose д/теплых оттенков | C17: 570 | D17: 570 | F17: 0
A18: 61-9-1904647 | B18: Индола Проявитель-крем 9% 60мл | C18: 90 | D18: 90 | F18: 0
E19: ИТОГО | F19: =SUM(F9:F18) -> 0

Sheet LONDA
A1: Ваш торговый представитель______________________
A2: моб. Тел._________________________________________
A3: 109457 г. Москва,ул. Плеханова, дом 4,стр.3 ООО “Компания "Аквакосметика” тел. 8(495)785-99-54,785-99-53 многоканальный сайт: www.steck.ru, e-mail: prof@akva.ru
B5: ПРАЙС-ЛИСТ LONDA professional | D5: 0 | E5: %
A6: 2024-04-01
A7: Артикул | B7: Наименование | C7: Цена в рублях c НДС | D7: Цена с вашей скидкой,руб | E7: ЗАКАЗ шт | F7: Сумма по заказу с вашей скидкой, руб
A9: 0990-2-180342 | B9: LP инт.тон 9/19 призматический бежево-серый 60мл | C9: 478.67 | D9: =C9-C9*$D$5/100 -> 478.67 | F9: =E9*D9 -> 0
A10: 0990-2-180991 | B10: LP инт.тон. 0/00 чистый тон 60мл | C10: 478.67 | D10: 478.67 | F10: 0
A11: 0990-2-81200839 | B11: LP инт.тон. 0/45 медно-красный микстон 60мл | C11: 466.67 | D11: 466.67 | F11: 0
A12: 0990-2-117400 | B12: LP ИНТ.ТОН. 0/68 фиолетово-синий микстон 60мл | C12: 466.67 | D12: 466.67 | F12: 0
A13: 0990-2-181059 | B13: LP инт.тон. 10/0 яркий блонд 60мл | C13: 478.67 | D13: 478.67 | F13: 0
A14: 0990-2-180922 | B14: LP инт.тон. 10/6 яркий блонд фиолетовый 60мл | C14: 478.67 | D14: 478.67 | F14: 0
A15: 0990-2-181103 | B15: LP инт.тон. 10/73 яркий блонд корич-золот 60мл | C15: 478.67 | D15: 478.67 | F15: 0
A16: 0990-2-180946 | B16: LP инт.тон. 10/81 яркий блонд перламутр-пепел 60мл | C16: 478.67 | D16: 478.67 | F16: 0
A17: 0990-2-181011 | B17: LP инт.тон. 2/0 черный д 60мл | C17: 491.04 | D17: 491.04 | F17: 0
A18: 0990-2-81200848 | B18: (У) LP ИНТЕНС.ТОНИРОВАНИЕ 2/8 сине-черный 60 мл | C18: 491.04 | D18: 491.04 | F18: 0
A19: 0990-2-181073 | B19: LP инт.тон. 3/0 темный шатен 60мл | C19: 478.67 | D19: 478.67 | F19: 0
A20: 0990-2-181110 | B20: LP инт.тон. 4/0 шатен 60мл | C20: 478.67 | D20: 478.67 | F20: 0
A21: 0990-181301 | B21: LP ИНТ.ТОН.4/07 extra-coverag шатен натурально-корич | C21: 466.67 | D21: 466.67 | F21: 0
A22: 0990-2-181004 | B22: LP инт.тон. 4/71 шатен коричнево-пепельный 60мл | C22: 478.67 | D22: 478.67 | F22: 0
A23: 0990-2-181080 | B23: LP инт.тон. 4/77 шатен интенсивно-коричневый 60млЗ) | C23: 491.04 | D23: 491.04 | F23: 0
A24: 0990-2-181127 | B24: LP инт.тон. 5/0 светлый шатен 60мл | C24: 478.67 | D24: 478.67 | F24: 0
A25: 0990-2-181165 | B25: LP инт.тон. 5/71 светлый шатен корич-пепел 60мл | C25: 466.67 | D25: 466.67 | F25: 0
A26: 0990-2-81200864 | B26: LP инт.тон. 6/0 темный блонд 60мл | C26: 478.67 | D26: 478.67 | F26: 0
A27: 0990-2-81200869 | B27: LP инт.тон. 6/7 блонд коричневый 60мл | C27: 491.04 | D27: 491.04 | F27: 0
A28: 0990-2-181325 | B28: LP инт.тон. 6/71 темн блонд коричн-пепельный 60мл | C28: 491.04 | D28: 491.04 | F28: 0
A29: 0990-1-181219 | B29: LP ИНТ.ТОН. 6/75 темный блонд корич-красный 60мл | C29: 491.04 | D29: 491.04 | F29: 0
A30: 0990-2-181271 | B30: LP инт.тон. 6/77 темный блонд интенс-коричн 60мл | C30: 478.67 | D30: 478.67 | F30: 0
A31: 0990-2-181233 | B31: LP инт.тон. 7/0 блонд 60мл | C31: 466.67 | D31: 466.67 | F31: 0
A32: 0990-2-179438 | B32: LP ИНТ.ТОН. 7/43 блонд медно-золотистый 60мл | C32: 466.67 | D32: 466.67 | F32: 0
A33: 0990-179469 | B33: LP ИНТ.ТОН. 7/7 блонд коричневый 60мл | C33: 466.67 | D33: 466.67 | F33: 0
A34: 0990-1-179513 | B34: LP ИНТ.ТОН.8 /07 extra-coverage cветлый блонд натур-корич | C34: 475.2 | D34: 475.2 | F34: 0
A35: 0990-2-181318 | B35: LP инт.тон. 8/3 светлый блонд золотистый 60мл | C35: 491.04 | D35: 491.04 | F35: 0
A36: 0990-2-6179421 | B36: LP инт.тон. 8/71 светлый блонд корич-пепел 60мл | C36: 478.67 | D36: 478.67 | F36: 0
A37: 0990-2-179452 | B37: LP ИНТ.ТОН. 8/81 светлый блонд перламутр-пепел 60мл | C37: 478.67 | D37: 478.67 | F37: 0
A38: 0990-2-179445 | B38: LP ИНТ.ТОН, 9/16 оч св блонд пепел-фиол 60мл | C38: 478.67 | D38: 478.67 | F38: 0
A39: 0990-2-179476 | B39: LP ИНТ.ТОН.9/36 оч.свет.блонд золот-фиоле 60мл | C39: 478.67 | D39: 478.67 | F39: 0
A40: 0990-2-181295 | B40: LP инт.тон. 9/73 очень светл блонд коричн-золот 60мл | C40: 466.67 | D40: 466.67 | F40: 0
A41: 0990-2-180281 | B41: LP инт.тон. 9/86 призматический стальной серый 60мл | C41: 478.67 | D41: =C41-C41*$D$5/100 -> 478.67 | F41: =E41*D41 -> 0
A42: 0990-1-216294 | B42: LP Краска д/волос /65 пастельно фиолетово-красный микстон 60мл | C42: 466.67 | D42: 466.67 | F42: 0
A43: 0990-1-180243 | B43: LP Краска д/волос 0/00 чистый тон 60мл | C43: 466.67 | D43: 466.67 | F43: 0
A44: 0990-1-180229 | B44: LP Краска д/волос 0/28 матовый синий микстон 60мл | C44: 466.67 | D44: 466.67 | F44: 0
A45: 0990-1-237688 | B45: LP Краска д/волос 10/0 яркий блондин 60мл | C45: 478.67 | D45: 478.67 | F45: 0
A46: 0990-1-237589 | B46: LP Краска д/волос 10/1 яркий пепельн.блондин 60мл | C46: 478.67 | D46: 478.67 | F46: 0
A47: 0990-1-238111 | B47: LP Краска д/волос 10/16 яркий блонд пепельно-фиолетовый 60мл | C47: 478.67 | D47: 478.67 | F47: 0
A48: 0990-1-237640 | B48: LP Краска д/волос 10/38 золот.жемчужн.блондин 60мл | C48: 527.04 | D48: 527.04 | F48: 0
A49: 0990-1-238234 | B49: LP Краска д/волос 10/65 клубничный блонд | C49: 478.67 | D49: 478.67 | F49: 0
A50: 0990-1-237763 | B50: LP Краска д/волос 10/8 жемчужн.блондин 60мл | C50: 478.67 | D50: 478.67 | F50: 0
A51: 0990-1-238043 | B51: LP Краска д/волос 10/96 крем-краска яркий блонд жемчужный 60мл | C51: 466.67 | D51: 466.67 | F51: 0
A52: 0990-1-237831 | B52: LP Краска д/волос 12/0 блондин спец.натур 60мл | C52: 466.67 | D52: 466.67 | F52: 0
A53: 0990-1-237855 | B53: LP Краска д/волос 12/1 блонд.пепельн.60мл | C53: 478.67 | D53: 478.67 | F53: 0
A54: 0990-1-237916 | B54: LP Краска д/волос 12/16 спец блонд пеп-фиолетовый 60мл | C54: 466.67 | D54: 466.67 | F54: 0
A55: 0990-1-237848 | B55: LP Краска д/волос 12/61 блонд.фиолет.пепельн.60мл | C55: 478.67 | D55: 478.67 | F55: 0
A56: 0990-1-237541 | B56: LP Краска д/волос 12/7 блонд.коричнев.60мл | C56: 466.67 | D56: 466.67 | F56: 0
A57: 0990-237756 | B57: LP Краска д/волос 12/81 блонд.жемч.пепельн.60мл | C57: 478.67 | D57: 478.67 | F57: 0
A58: 0990-1-237824 | B58: LP Краска д/волос 12/89 блонд.жемч.сандрэ.60мл | C58: 478.67 | D58: 478.67 | F58: 0
A59: 0990-1-237992 | B59: LP Краска д/волос 12/96 специальный блонд сандрэ фиолетовый | C59: 478.67 | D59: 478.67 | F59: 0
A60: 0990-1-237886 | B60: LP Краска д/волос 2/0 черный 60мл | C60: 478.67 | D60: 478.67 | F60: 0
A61: 0990-1-237725 | B61: LP Краска д/волос 2/8 сине-черный 60мл | C61: 491.04 | D61: 491.04 | F61: 0
A62: 0990-1-237800 | B62: LP Краска д/волос 3/0 темный шатен 60мл | C62: 466.67 | D62: 466.67 | F62: 0
A63: 0990-1-237503 | B63: LP Краска д/волос 3/6 темный шатен фиолетовый 60мл | C63: 466.67 | D63: 466.67 | F63: 0
A64: 0990-1-237794 | B64: LP Краска д/волос 4/0 шатен 60мл | C64: 478.67 | D64: 478.67 | F64: 0
A65: 0990-1-237527 | B65: LP Краска д/волос 4/07 шатен 60мл | C65: 478.67 | D65: 478.67 | F65: 0
A66: 0990-1-237879 | B66: LP Краска д/волос 4/71 шатен корич.пепельн.60мл | C66: 478.67 | D66: 478.67 | F66: 0
A67: 0990-1-237633 | B67: LP Краска д/волос 4/75 шатен корич.красн.60мл | C67: 491.04 | D67: 491.04 | F67: 0
A68: 0990-1-237862 | B68: LP Краска д/волос 4/77 шатен интенс.корич.60мл | C68: 478.67 | D68: 478.67 | F68: 0
A69: 0990-1-237770 | B69: LP Краска д/волос 5/0 светлый шатен 60мл | C69: 478.67 | D69: 478.67 | F69: 0
A70: 0990-1-237602 | B70: LP Краска д/волос 5/07 натурально-коричневый 60мл | C70: 491.04 | D70: 491.04 | F70: 0
A71: 0990-1-238074 | B71: LP Краска д/волос 5/1 светлый шатен пепельный 60мл | C71: 491.04 | D71: 491.04 | F71: 0
A72: 0990-1-237534 | B72: LP Краска д/волос 5/37 шатен золот.коричн 60мл | C72: 478.67 | D72: 478.67 | F72: 0
A73: 0990-1-237732 | B73: LP Краска д/волос 5/6 светлый шатен фиолетовый 60мл | C73: 466.67 | D73: =C73-C73*$D$5/100 -> 466.67 | F73: =E73*D73 -> 0
A74: 0990-1-237626 | B74: LP Краска д/волос 5/7 шатен коричн 60мл | C74: 478.67 | D74: 478.67 | F74: 0
A75: 0990-1-237374 | B75: LP Краска д/волос 5/75 коричн.красн 60мл | C75: 478.67 | D75: 478.67 | F75: 0
A76: 0990-1-238036 | B76: LP Краска д/волос 5/77 св шатен | C76: 491.04 | D76: 491.04 | F76: 0
A77: 0990-1-237954 | B77: LP Краска д/волос 6/ темный блонд натуральный 60мл | C77: 527.04 | D77: 527.04 | F77: 0
A78: 0990-1-237497 | B78: LP Краска д/волос 6/0 темный блонд 60мл | C78: 478.67 | D78: 478.67 | F78: 0
A79: 0990-1-238296 | B79: LP Краска д/волос 6/06 призматический фиолетовый 60мл СРОК 06.24 | C79: 466.67 | D79: 466.67 | F79: 0
A80: 0990-1-237664 | B80: LP Краска д/волос 6/07 натурально коричневый 60мл | C80: 466.67 | D80: 466.67 | F80: 0
A81: 0990-238173 | B81: LP Краска д/волос 6/16 темн блонд пепельно-фиолетовый 60мл | C81: 466.67 | D81: 466.67 | F81: 0
A82: 0990-1-237329 | B82: LP Краска д/волос 6/3 темный блонд.золот 60мл | C82: 466.67 | D82: 466.67 | F82: 0
A83: 0990-1-237251 | B83: LP Краска д/волос 6/41 темн.блонд пепельн 60мл | C83: 466.67 | D83: 466.67 | F83: 0
A84: 0990-1-237138 | B84: LP Краска д/волос 6/43 темн.блонд медн.золот 60мл | C84: 527.04 | D84: 527.04 | F84: 0
A85: 0990-1-237435 | B85: LP Краска д/волос 6/71 тем.блон.коричн 60мл | C85: 527.04 | D85: 527.04 | F85: 0
A86: 0990-1-237350 | B86: LP Краска д/волос 6/75 корич.красн 60мл | C86: 466.67 | D86: 466.67 | F86: 0
A87: 0990-1-237398 | B87: LP Краска д/волос 6/77 интенс корич 60мл | C87: 478.67 | D87: 478.67 | F87: 0
A88: 0990-1-238203 | B88: LP Краска д/волос 6/81 темн блонд жемч-пепел 60мл | C88: 478.67 | D88: 478.67 | F88: 0
A89: 0990-1-237459 | B89: LP Краска д/волос 7/0 блондин 60мл | C89: 478.67 | D89: 478.67 | F89: 0
A90: 0990-1-237343 | B90: LP Краска д/волос 7/1 блондин пепельн 60мл | C90: 527.04 | D90: 527.04 | F90: 0
A91: 0990-1-238326 | B91: LP Краска д/волос 7/16 пудровый фиолетовый 60мл | C91: 478.67 | D91: 478.67 | F91: 0
A92: 0990-1-238210 | B92: LP Краска д/волос 7/17 блонд пепел-коричневый 60мл | C92: 478.67 | D92: 478.67 | F92: 0
A93: 0990-1-238128 | B93: LP Краска д/волос 7/18 жаренный миндаль 60мл | C93: 466.67 | D93: 466.67 | F93: 0
A94: 0990-1-237183 | B94: LP Краска д/волос 7/3 блондин золот 60мл | C94: 466.67 | D94: 466.67 | F94: 0
A95: 0990-1-237121 | B95: LP Краска д/волос 7/37 золот.корич 60мл | C95: 466.67 | D95: 466.67 | F95: 0
A96: 0990-237268 | B96: LP Краска д/волос 7/38 золот.жемч 60мл | C96: 478.67 | D96: 478.67 | F96: 0
A97: 0990-1-237213 | B97: LP Краска д/волос 7/4 блон.медн 60мл | C97: 527.04 | D97: 527.04 | F97: 0
A98: 0990-1-237206 | B98: LP Краска д/волос 7/41 медн.пепельн 60мл | C98: 527.04 | D98: 527.04 | F98: 0
A99: 0990-1-237893 | B99: LP Краска д/волос 7/44 блонд интенсивно-медный 60мл | C99: 466.67 | D99: 466.67 | F99: 0
A100: 0990-1-216973 | B100: LP Краска д/волос 7/46 темный блонд красно-фиолетов 60мл | C100: 466.67 | D100: 466.67 | F100: 0
A101: 0990-238098 | B101: LP Краска д/волос 7/61 мягкий тауп 60мл | C101: 478.67 | D101: 478.67 | F101: 0
A102: 0990-1-237367 | B102: LP Краска д/волос 7/7 рыж.корич 60мл | C102: 466.67 | D102: 466.67 | F102: 0
A103: 0990-1-237404 | B103: LP Краска д/волос 7/71 корич.пепельн 60мл | C103: 466.67 | D103: 466.67 | F103: 0
A104: 0990-1-237282 | B104: LP Краска д/волос 7/73 какао 60мл | C104: 527.04 | D104: 527.04 | F104: 0
A105: 0990-1-237671 | B105: LP Краска д/волос 7/74 блонд коричнево-медный 60мл | C105: 491.04 | D105: =C105-C105*$D$5/100 -> 491.04 | F105: =E105*D105 -> 0
A106: 0990-1-237176 | B106: LP Краска д/волос 7/75 корич.красн 60мл | C106: 466.67 | D106: 466.67 | F106: 0
A107: 0990-1-237909 | B107: LP Краска д/волос 7/77 блонд интенсивно коричневый 60мл | C107: 466.67 | D107: 466.67 | F107: 0
A108: 0990-1-238166 | B108: LP Краска д/волос 7/81 блонд жемчужно-пепельный 60мл | C108: 466.67 | D108: 466.67 | F108: 0
A109: 0990-1-238227 | B109: LP Краска д/волос 7/89 блонд жемчужный сандрэ 60мл | C109: 478.67 | D109: 478.67 | F109: 0
A110: 0990-1-237923 | B110: LP Краска д/волос 8/ светлый блонд натуральный 60мл | C110: 466.67 | D110: 466.67 | F110: 0
A111: 0990-1-237466 | B111: LP Краска д/волос 8/0 светл.блонд 60мл | C111: 466.67 | D111: 466.67 | F111: 0
A112: 0990-1-237695 | B112: LP Краска д/волос 8/07 светлый блонд натурально-коричневый 60мл | C112: 478.67 | D112: 478.67 | F112: 0
A113: 0990-1-237336 | B113: LP Краска д/волос 8/1 блонд пепельн 60мл | C113: 478.67 | D113: 478.67 | F113: 0
A114: 0990-1-238050 | B114: LP Краска д/волос 8/34 светлый блонд золотисто-медный 60мл | C114: 478.67 | D114: =C114-C114*$D$5/100 -> 478.67 | F114: 0
A115: 0990-1-237480 | B115: LP Краска д/волос 8/38 золот.жемч 60мл | C115: 478.67 | D115: 478.67 | F115: 0
A116: 0990-1-237305 | B116: LP Краска д/волос 8/4 медный 60мл | C116: 466.67 | D116: 466.67 | F116: 0
A117: 0990-1-237312 | B117: LP Краска д/волос 8/41 кедр 60мл | C117: 466.67 | D117: 466.67 | F117: 0
A118: 0990-1-238012 | B118: LP Краска д/волос 8/44 светлый блонд интенсивно-медный60мл | C118: 527.04 | D118: 527.04 | F118: 0
A119: 0990-1-237275 | B119: LP Краска д/волос 8/45 светлый блонд медно-красный 60мл | C119: 466.67 | D119: 466.67 | F119: 0
A120: 0990-1-238241 | B120: LP Краска д/волос 8/65 холодный розовый 60мл | C120: 478.67 | D120: 478.67 | F120: 0
A121: 0990-1-238180 | B121: LP Краска д/волос 8/69 светлый блонд фиолетовый сандрэ 60мл | C121: 466.67 | D121: 466.67 | F121: 0
A122: 0990-1-237107 | B122: LP Краска д/волос 8/7 светлый блонд коричневый 60мл | C122: 466.67 | D122: 466.67 | F122: 0
A123: 0990-1-237428 | B123: LP Краска д/волос 8/71 корич.пепельн 60мл | C123: 466.67 | D123: 466.67 | F123: 0
A124: 0990-1-237237 | B124: LP Краска д/волос 8/73 корич.золот 60мл | C124: 527.04 | D124: 527.04 | F124: 0
A125: 0990-1-238258 | B125: LP Краска д/волос 8/81 блонд жемчужный сандрэ 60мл | C125: 478.67 | D125: =C125-C125*$D$5/100 -> 478.67 | F125: =E125*D125 -> 0
A126: 0990-1-237985 | B126: LP Краска д/волос 8/96 светлый блонд сандрэ фиолетовый | C126: 478.67 | D126: 478.67 | F126: 0
A127: 0990-1-238029 | B127: LP Краска д/волос 8/97 утренний капучино 60мл | C127: 478.67 | D127: 478.67 | F127: 0
A128: 0990-1-238081 | B128: LP Краска д/волос 9/ очень светлый блонд натуральный 60мл | C128: 466.67 | D128: 466.67 | F128: 0
A129: 0990-1-237473 | B129: LP Краска д/волос 9/0 очень светл.блонд 60мл | C129: 491.04 | D129: 491.04 | F129: 0
A130: 0990-1-237381 | B130: LP Краска д/волос 9/1 блонд пепельн 60мл | C130: 466.67 | D130: 466.67 | F130: 0
A131: 0990-1-237930 | B131: LP Краска д/волос 9/13 песочный бежевый 60мл | C131: 466.67 | D131: 466.67 | F131: 0
A132: 0990-1-238104 | B132: LP Краска д/волос 9/16 очень светл блонд фиолет*пепел. 60мл | C132: 478.67 | D132: 478.67 | F132: 0
A133: 0990-1-238197 | B133: LP Краска д/волос 9/17 ванильный мусс | C133: 478.67 | D133: 478.67 | F133: 0
A134: 0990-1-237220 | B134: LP Краска д/волос 9/3 блон.золот 60мл | C134: 466.67 | D134: 466.67 | F134: 0
A135: 0990-1-180359 | B135: LP Краска д/волос 9/36 игристое шампанское 60мл | C135: 478.67 | D135: 478.67 | F135: 0
A136: 0990-1-237961 | B136: LP Краска д/волос 9/38 блон.золот.перлам 60мл | C136: 527.04 | D136: 527.04 | F136: 0
A137: 0990-1-238159 | B137: LP Краска д/волос 9/60 оч. св. блонд фиолетово-натуральный | C137: 478.67 | D137: 478.67 | F137: 0
A138: 0990-1-238067 | B138: LP Краска д/волос 9/7 свет.блон.корич 60мл | C138: 491.04 | D138: 491.04 | F138: 0
A139: 0990-1-238265 | B139: LP Краска д/волос 9/79 карамельная сказка | C139: 491.04 | D139: 491.04 | F139: 0
A140: 0990-1-238005 | B140: LP Краска д/волос 9/96 очень светлый блонд сандрэ фиолет. 60мл | C140: 478.67 | D140: 478.67 | F140: 0
A141: 0990-3-606705 | B141: LP Окислительная эмульсия 1,9% (тон) 1л | C141: 880 | D141: 880 | F141: 0
A142: 0990-3-606743 | B142: LP Окислительная эмульсия 12% 1л | C142: 809.33 | D142: 809.33 | F142: 0
A143: 0990-3-606767 | B143: LP Окислительная эмульсия 3% 1л | C143: 837 | D143: 837 | F143: 0
A144: 0990-3-606729 | B144: LP Окислительная эмульсия 4% (тон) 1л | C144: 837.5 | D144: 837.5 | F144: 0
A145: 0990-3-606781 | B145: LP Окислительная эмульсия 6% 1л | C145: 880 | D145: 880 | F145: 0
A146: 0990-3-606804 | B146: LP Окислительная эмульсия 9% 1л | C146: 809.33 | D146: 809.33 | F146: 0
A147: 0990-685281 | B147: LP Осветляющая пудра 2*500 г. в коробке | C147: 3600 | D147: 3600 | F147: 0
A148: 0990-700954 | B148: (У) LP Toneplex Маска 200мл коричневый кофе СРОК 01.24 / 04.24/ 10.24 | C148: 200 | D148: 200 | F148: 0
A149: 0990-605272 | B149: LP COLOR RADIANCE Шампунь д/окр.волос 250мл | C149: 609.33 | D149: 609.33 | F149: 0
A150: 0990-605258 | B150: LP COLOR RADIANCE Шампунь д/окр.волос 1л | C150: 1346.4 | D150: 1346.4 | F150: 0
A151: 0990-604350 | B151: LP COLOR RADIANCE Кондиционер д/окр.волос 250мл. | C151: 902.88 | D151: 902.88 | F151: 0
A152: 0990-604381 | B152: LP COLOR RADIANCE Кондиционер д/окр.волос 1л | C152: 1946.67 | D152: 1946.67 | F152: 0
A153: 0990-573632 | B153: LP COLOR RADIANCE Спрей-кондиционер д/окр.волос 250мл | C153: 958.73 | D153: =C153-C153*$D$5/100 -> 958.73 | F153: =E153*D153 -> 0
A154: 0990-606842 | B154: LP COLOR RADIANCE Стабилизатор 1Л после окрашивания | C154: 1763 | D154: 1763 | F154: 0
A155: 0990-606866 | B155: LP CURL DEFINER Стабилизатор завитка после хим завивки 1л | C155: 1215.18 | D155: 1215.18 | F155: 0
A156: 0990-561936 | B156: LP CURL DEFINER Шампунь д/кудрявых волос 250мл | C156: 723.63 | D156: 723.63 | F156: 0
A157: 0990-605159 | B157: LP DEEP MOISTURE Шампунь увлажняющий 250мл | C157: 609.33 | D157: 609.33 | F157: 0
A158: 0990-605173 | B158: LP DEEP MOISTURE Шампунь увлажняющий 1л | C158: 1610.28 | D158: 1610.28 | F158: 0
A159: 0990-605296 | B159: LP DEEP MOISTURE Конд-р увлажняющий 250мл | C159: 997.92 | D159: 997.92 | F159: 0
A160: 0990-604299 | B160: LP DEEP MOISTURE Конд-р увлажняющий 1л | C160: 1549.33 | D160: 1549.33 | F160: 0
A161: 0990-561967 | B161: LP DEEP MOISTURE Маска интенсивная увлажняющая 200мл | C161: 1066.67 | D161: 1066.67 | F161: 0
A162: 0990-770547 | B162: LP Fiber Infusion Шампунь 250мл с кератином | C162: 697.33 | D162: 697.33 | F162: 0
A163: 0990-731180 | B163: LP Fiber Infusion Шампунь 1000мл с кератином | C163: 1877.76 | D163: 1877.76 | F163: 0
A164: 0990-685168 | B164: LP Fiber Infusion Средство 100мл с кератином | C164: 886.23 | D164: 886.23 | F164: 0
A165: 0990-731203 | B165: LP Fiber Infusion Средство 200мл восстанавливающее | C165: 1300 | D165: 1300 | F165: 0
A166: 0990-605319 | B166: LP IMPRESSIVE VOLUME Шампунь д/объема 250мл | C166: 710.24 | D166: 710.24 | F166: 0
A167: 0990-605333 | B167: LP IMPRESSIVE VOLUME Шампунь д/объема 1л | C167: 1744 | D167: 1744 | F167: 0
A168: 0990-605357 | B168: LP INTENSIVE CLEANSER Шампунь1000мл глубоко очищающий | C168: 1500 | D168: 1500 | F168: 0
A169: 0990-306858 | B169: LP PURIFYING Шампунь Очищающий д/жирн волос 250мл | C169: 693.33 | D169: 693.33 | F169: 0
A170: 0990-370781 | B170: LP REFRESH IT Сухой шампунь 180мл | C170: 980 | D170: 980 | F170: 0
A171: 0990-486949 | B171: LP SLEEK SMOOTHER Средство д/разглаж волос 750мл | C171: 2000 | D171: 2000 | F171: 0
A172: 0990-562254 | B172: LP Velvet Oil Шампунь с аргановым маслом 250мл | C172: 697.33 | D172: 697.33 | F172: 0
A173: 0990-562285 | B173: LP Velvet Oil Шампунь с аргановым маслом 1л | C173: 1747.48 | D173: 1747.48 | F173: 0
A174: 0990-562193 | B174: LP Velvet Oil Проф.ср-во 200мл с аргановым маслом | C174: 1330.67 | D174: 1330.67 | F174: 0
A175: 0990-563541 | B175: LP Velvet Oil Проф.ср-во 750мл с аргановым маслом | C175: 2460 | D175: 2460 | F175: 0
A176: 0990-607221 | B176: LP Velvet Oil Масло аргановое 100мл | C176: 953.33 | D176: 953.33 | F176: 0
A177: 0990-605432 | B177: LP VISIBLE REPAIR Шампунь д/повр.волос 250мл | C177: 609.33 | D177: 609.33 | F177: 0
A178: 0990-605456 | B178: LP VISIBLE REPAIR Шампунь д/повр.волос 1л | C178: 1426.67 | D178: 1426.67 | F178: 0
A179: 0990-606828 | B179: LP VISIBLE REPAIR Бальзам-конд-р несмыв. д/повр.волос 250мл | C179: 1073.33 | D179: 1073.33 | F179: 0
A180: 0990-605395 | B180: LP VISIBLE REPAIR Маска интенсивная д/повр.волос 200мл | C180: 1140.48 | D180: 1140.48 | F180: 0
A181: 0990-605372-kadus | B181: KADUS VISIBLE REPAIR Средство д/восст. повр.волос 750мл | C181: 1766.67 | D181: 1766.67 | F181: 0
A182: 0990-605197 | B182: LP VITAL BOOSTER Шампунь укрепляющий 250мл | C182: 640 | D182: 640 | F182: 0
A183: 0990-606057 | B183: LP Стайлинг MEN Матовая глина норм(эласт)фикс SHIFT IT 75мл | C183: 726.67 | D183: 726.67 | F183: 0
A184: 0990-606941 | B184: LP Стайлинг SOLIDIFY IT MEN Гель экстр.фикс 100мл | C184: 815.76 | D184: 815.76 | F184: 0
A185: 0990-607009 | B185: LP Стайлинг SWAP IT Гель д/укладки экстрасил.фикс 100мл | C185: 773.33 | D185: 773.33 | F185: 0
A186: 0990-768582 | B186: LP Стайлинг CREATE IT Cпрей моделир. сильной фикс 300мл | C186: 933.33 | D186: 933.33 | F186: 0
A187: 0990-734969 | B187: LP Стайлинг SHAPE IT Спрей б/аэрозоля подвижной фиксации | C187: 1038.67 | D187: =C187-C187*$D$5/100 -> 1038.67 | F187: =E187*D187 -> 0
A188: 0990-276567 | B188: LP Стайлинг SPARK UP Спрей-блеск д/волос (б/фик) 200мл | C188: 973.33 | D188: 973.33 | F188: 0
A189: 0990-606682 | B189: LP Стайлинг PROTECT IT Лосьон теплозащ.д/объема 150мл | C189: 918.72 | D189: 918.72 | F189: 0
A190: 0990-770110 | B190: LP Стайлинг START OFF Лак 500мл экстрасильной фиксации | C190: 1283.04 | D190: 1283.04 | F190: 0
A191: 0990-768599 | B191: LP Стайлинг FIX IT Лак д/волос 300мл сил фиксации | C191: 956 | D191: 956 | F191: 0
A192: 0990-768575 | B192: LP Стайлинг FIX IT Лак д/волос 500мл сил фиксации | C192: 1214.67 | D192: 1214.67 | F192: 0
A193: 0990-768568 | B193: LP Стайлинг LOCK IT Лак 300мл д/волос экстремальной фиксац. | C193: 744 | D193: 744 | F193: 0
A194: 0990-768551 | B194: LP Стайлинг LOCK IT Лак 500мл д/волос экстремальной фиксац. | C194: 1168 | D194: =C194-C194*$D$5/100 -> 1168 | F194: =E194*D194 -> 0
A195: 0990-562087 | B195: LP Стайлинг DRAMATIZE IT Пена экстрасил фикс 500мл | C195: 1353.33 | D195: 1353.33 | F195: 0
A196: 0990-605517 | B196: LP Стайлинг DRAMATIZE IT Пена экстрасил.фикс. 250мл | C196: 906.67 | D196: 906.67 | F196: 0
A197: 0990-605593 | B197: LP Стайлинг ENHANCE Пена д/уклад норм фик 250мл | C197: 906.67 | D197: 906.67 | F197: 0
A198: 0990-605579 | B198: LP Стайлинг EXPAND IT Пена д/укладки волос сильн. фик.250мл | C198: 945.33 | D198: 945.33 | F198: 0
E199: Итого | F199: =SUM(F9:F198) -> 0

Sheet KAPOUS
A1: Ваш торговый представитель______________________
A2: моб. Тел._________________________________________
A3: 109457 г. Москва,ул. Плеханова, дом 4,стр.3 ООО “Компания "Аквакосметика” тел. 8(495)785-99-54,785-99-53 многоканальный сайт: www.steck.ru, e-mail: prof@akva.ru
B4: ПРАЙС-ЛИСТ KAPOUS PROFESSIONAL
A6: 2024-04-01 | C6: Проставьте в зеленой ячейке вашу скидку | E6: %
A7: Артикул | B7: Наименование товара | C7: Цена с НДС | D7: Цена с вашей скидкой,руб | E7: ЗАКАЗ шт | F7: Сумма по заказу с вашей скидкой, руб
B9: Co-Wash
A10: 2474 | B10: Моющий кондиционер «Co-Wash» для нормальных и чувствительных волос, 300 мл | C10: 373.75 | D10: =C10-C10*$D$6/100 -> 373.75 | F10: =D10*E10 -> 0
A11: 2475 | B11: Моющий кондиционер «Co-Wash» для окрашенных волос, 300 мл | C11: 373.75 | D11: =C11-C11*$D$6/100 -> 373.75 | F11: =D11*E11 -> 0
A12: 2476 | B12: Моющий кондиционер «Co-Wash» для сухих и поврежденных волос, 300 мл | C12: 373.75 | D12: 373.75 | F12: =D12*E12 -> 0
B13: KaPlex | C13: 0 | D13: 0 | F13: =D13*E13 -> 0
A14: 2231 | B14: Восстанавливающий комплекс «KaPlex», Крем «KaPlex2», 500 мл | C14: 636.25 | D14: 636.25 | F14: =D14*E14 -> 0
A15: 2230 | B15: Защитный комплекс «KaPlex», Лосьон «KaPlex1», 500 мл | C15: 798.75 | D15: =C15-C15*$D$6/100 -> 798.75 | F15: 0
B16: Re:vive | C16: 0 | D16: 0 | F16: 0
A17: 2556 | B17: Маска для глубокого восстановления «Re:vive», 400 мл | C17: 798.75 | D17: 798.75 | F17: 0
A18: 2558 | B18: Спрей для глубокого восстановления «Re:vive», 150 мл | C18: 311.25 | D18: 311.25 | F18: 0
A19: 2557 | B19: Филлер для глубокого восстановления «Re:vive», 150 мл | C19: 448.75 | D19: 448.75 | F19: 0
A20: 2555 | B20: Шампунь для глубокого восстановления «Re:vive», 400 мл | C20: 698.75 | D20: =C20-C20*$D$6/100 -> 698.75 | F20: =D20*E20 -> 0
B21: Urban | C21: 0 | D21: 0 | F21: 0
A22: 2560 | B22: LC 0.00 Осло, Полуперманентный жидкий краситель для волос «Urban», 60 мл | C22: 373.75 | D22: 373.75 | F22: 0
A23: 2561 | B23: LC 10.01 Хельсинки, Полуперманентный жидкий краситель для волос «Urban», 60 мл | C23: 373.75 | D23: =C23-C23*$D$6/100 -> 373.75 | F23: =D23*E23 -> 0
A24: 2562 | B24: LC 10.02 Рейкьявик, Полуперманентный жидкий краситель для волос «Urban», 60 мл | C24: 373.75 | D24: 373.75 | F24: 0
A25: 2572 | B25: LC 10.1 Берлин, Полуперманентный жидкий краситель для волос «Urban», 60 мл | C25: 373.75 | D25: 373.75 | F25: 0
A26: 2574 | B26: LC 10.2 Москва, Полуперманентный жидкий краситель для волос «Urban», 60 мл | C26: 373.75 | D26: 373.75 | F26: 0
A27: 2580 | B27: LC 10.23 Копенгаген, Полуперманентный жидкий краситель для волос «Urban», 60 мл | C27: 373.75 | D27: 373.75 | F27: 0
A28: 2569 | B28: LC 4.8 Лиссабон, Полуперманентный жидкий краситель для волос «Urban», 60 мл | C28: 373.75 | D28: 373.75 | F28: 0
A29: 2565 | B29: LC 5.12 Мадрид, Полуперманентный жидкий краситель для волос «Urban», 60 мл | C29: 373.75 | D29: 373.75 | F29: 0
A30: 2563 | B30: LC 5.32 София, Полуперманентный жидкий краситель для волос «Urban», 60 мл | C30: 373.75 | D30: 373.75 | F30: 0
A31: 2575 | B31: LC 6.44 Монако, Полуперманентный жидкий краситель для волос «Urban», 60 мл | C31: 373.75 | D31: 373.75 | F31: 0
A32: 2570 | B32: LC 6.8 Париж, Полуперманентный жидкий краситель для волос «Urban», 60 мл | C32: 373.75 | D32: 373.75 | F32: 0
A33: 2566 | B33: LC 7.12 Брюссель, Полуперманентный жидкий краситель для волос «Urban», 60 мл | C33: 373.75 | D33: 373.75 | F33: 0
A34: 2577 | B34: LC 7.23 Варшава, Полуперманентный жидкий краситель для волос «Urban», 60 мл | C34: 373.75 | D34: 373.75 | F34: 0
A35: 2564 | B35: LC 7.32 Прага, Полуперманентный жидкий краситель для волос «Urban», 60 мл | C35: 373.75 | D35: 373.75 | F35: 0
A36: 2567 | B36: LC 8.12 Амстердам, Полуперманентный жидкий краситель для волос «Urban», 60 мл | C36: 373.75 | D36: 373.75 | F36: 0
A37: 2581 | B37: LC 8.13 Афины, Полуперманентный жидкий краситель для волос «Urban», 60 мл | C37: 373.75 | D37: 373.75 | F37: 0
A38: 2578 | B38: LC 8.23 Берн, Полуперманентный жидкий краситель для волос «Urban», 60 мл | C38: 373.75 | D38: 373.75 | F38: 0
A39: 2576 | B39: LC 8.44 Дублин, Полуперманентный жидкий краситель для волос «Urban», 60 мл | C39: 373.75 | D39: 373.75 | F39: 0
A40: 2571 | B40: LC 9.1 Вена, Полуперманентный жидкий краситель для волос «Urban», 60 мл | C40: 373.75 | D40: 373.75 | F40: 0
A41: 2568 | B41: LC 9.12 Стокгольм, Полуперманентный жидкий краситель для волос «Urban», 60 мл | C41: 373.75 | D41: 373.75 | F41: 0
A42: 2582 | B42: LC 9.13 Лондон, Полуперманентный жидкий краситель для волос «Urban», 60 мл | C42: 373.75 | D42: 373.75 | F42: 0
A43: 2573 | B43: LC 9.2 Рим, Полуперманентный жидкий краситель для волос «Urban», 60 мл | C43: 373.75 | D43: =C43-C43*$D$6/100 -> 373.75 | F43: =D43*E43 -> 0
A44: 2579 | B44: LC 9.23 Любляна, Полуперманентный жидкий краситель для волос «Urban», 60 мл | C44: 373.75 | D44: 373.75 | F44: 0
A45: 2837 | B45: Проявитель для красителя «Urban», 60 мл | C45: 98.75 | D45: 98.75 | F45: 0
A46: 2838 | B46: Проявитель для красителя «Urban», 420 мл | C46: 373.75 | D46: 373.75 | F46: 0
B47: Дёготь | C47: 0 | D47: 0 | F47: 0
A48: 2834 | B48: Бальзам для волос с Дёгтем, 300 мл | C48: 373.75 | D48: 373.75 | F48: 0
A49: 2833 | B49: Беcсульфатный шампунь для волос с Дёгтем, 300 мл | C49: 348.75 | D49: 348.75 | F49: 0
B50: Защитные средства для волос | C50: 0 | D50: 0 | F50: 0
A51: 2485 | B51: Защитный крем «Protect Point» для волос и кожи головы, 150 мл | C51: 511.25 | D51: 511.25 | F51: 0
A52: 2396 | B52: Мусс-реструктурант «Start Point» с пшеничными отрубями, 250 мл | C52: 673.75 | D52: =C52-C52*$D$6/100 -> 673.75 | F52: =D52*E52 -> 0
A53: 865 | B53: Эликсир-стабилизатор цвета «Final point», 100 мл | C53: 498.75 | D53: 498.75 | F53: 0
B54: Мицеллярный шампунь и бальзам | C54: 0 | D54: =C54-C54*$D$6/100 -> 0 | F54: =D54*E54 -> 0
A55: 2918 | B55: Мицеллярный бальзам, 300 мл | C55: 398.75 | D55: 398.75 | F55: 0
A56: 2917 | B56: Мицеллярный шампунь, 300 мл | C56: 373.75 | D56: =C56-C56*$D$6/100 -> 373.75 | F56: =D56*E56 -> 0
B57: Оттеночные шампуни,бальзамы | C57: 0 | D57: 0 | F57: 0
A58: 1 | B58: Оттеночный бальзам для волос «Life Color», гранатовый красный, 200 мл | C58: 586.25 | D58: 586.25 | F58: 0
A59: 2819 | B59: Оттеночный бальзам для волос «Life Color», графитовый серый, 200 мл | C59: 586.25 | D59: 586.25 | F59: 0
A60: 3 | B60: Оттеночный бальзам для волос «Life Color», коричневый, 200 мл | C60: 586.25 | D60: 586.25 | F60: 0
A61: 2 | B61: Оттеночный бальзам для волос «Life Color», медный, 200 мл | C61: 586.25 | D61: 586.25 | F61: 0
A62: 5 | B62: Оттеночный бальзам для волос «Life Color», фиолетовый, 200 мл | C62: 586.25 | D62: 586.25 | F62: 0
A63: 10 | B63: Оттеночный шампунь для волос «Life Color», гранатовый красный, 200 мл | C63: 536.25 | D63: 536.25 | F63: 0
A64: 2820 | B64: Оттеночный шампунь для волос «Life Color», графитовый серый, 200 мл | C64: 536.25 | D64: 536.25 | F64: 0
A65: 12 | B65: Оттеночный шампунь для волос «Life Color», коричневый, 200 мл | C65: 536.25 | D65: 536.25 | F65: 0
A66: 11 | B66: Оттеночный шампунь для волос «Life Color», медный, 200 мл | C66: 536.25 | D66: 536.25 | F66: 0
A67: 7 | B67: Оттеночный шампунь для волос «Life Color», фиолетовый, 200 мл | C67: 536.25 | D67: 536.25 | F67: 0
B68: Прочие товары, Аксессуары, Дозаторы | C68: 0 | D68: 0 | F68: 0
A69: 1237 | B69: Пластмассовый насос-дозатор для бутылок 1000 мл, цвет натуральный | C69: 211.25 | D69: 211.25 | F69: 0
A70: 1236 | B70: Пластмассовый насос-дозатор для бутылок 1000 мл, цвет черный | C70: 211.25 | D70: 211.25 | F70: 0
A71: 1588 | B71: Пластмассовый насос-дозатор для бутылок 500 мл, цвет натуральный | C71: 211.25 | D71: 211.25 | F71: 0
A72: 2439 | B72: Зажимы парикмахерские комбинированные (металл+пластик) 101*13*22 мм, 10 шт. | C72: 398.75 | D72: 398.75 | F72: 0
A73: 2438 | B73: Зажимы парикмахерские металлические 114*14*25 мм, 4 шт. | C73: 361.25 | D73: 361.25 | F73: 0
A74: 2441 | B74: Зажимы парикмахерские металлические 88*8 мм, 6 шт., черные | C74: 211.25 | D74: 211.25 | F74: 0
A75: 2440 | B75: Зажимы парикмахерские металлические 93*15*13 мм, 6 шт. | C75: 373.75 | D75: 373.75 | F75: 0
A76: 1476 | B76: Распылитель для воды Kapous, чёрный, 300 мл | C76: 373.75 | D76: 373.75 | F76: 0
B77: Инструменты для окрашивания | C77: 0 | D77: 0 | F77: 0
A78: 2432 | B78: Венчик силиконовый для смешивания краски, Ø5*20 см | C78: 236.25 | D78: 236.25 | F78: 0
A79: 1180 | B79: Кисть из искусственных волокон, бронзовая | C79: 148.75 | D79: 148.75 | F79: 0
A80: 1178 | B80: Кисть из искусственных волокон, черная | C80: 148.75 | D80: 148.75 | F80: 0
A81: 2434 | B81: Кисть прямая для окрашивания 214*56 мм, черная | C81: 123.75 | D81: 123.75 | F81: 0
A82: 2435 | B82: Кисть прямая для окрашивания 214*66 мм, черная | C82: 123.75 | D82: 123.75 | F82: 0
A83: 2437 | B83: Кисть прямая с металлическим хвостиком для окрашивания 252*58 мм, черная | C83: 148.75 | D83: 148.75 | F83: 0
A84: 1185 | B84: Кисть с расческой из искусственных волокон, бронзовая | C84: 148.75 | D84: 148.75 | F84: 0
A85: 1184 | B85: Кисть с расческой из искусственных волокон, черная | C85: 148.75 | D85: 148.75 | F85: 0
A86: 2433 | B86: Кисть скошенная для открытых техник 220*46 мм, черная | C86: 123.75 | D86: 123.75 | F86: 0
A87: 1183 | B87: Кисть узкая из искусственных волокон, бронзовая | C87: 148.75 | D87: 148.75 | F87: 0
A88: 1181 | B88: Кисть узкая из искусственных волокон, черная | C88: 148.75 | D88: 148.75 | F88: 0
A89: 2431 | B89: Ключ-пресс на шнурке 5,8 см для выдавливания краски | C89: 211.25 | D89: =C89-C89*$D$6/100 -> 211.25 | F89: =D89*E89 -> 0
A90: 1741 | B90: Лопатка для окрашивания волос | C90: 186.25 | D90: 186.25 | F90: 0
A91: 1177 | B91: Миска из пластмассы для приготовления раствора бронзовая | C91: 211.25 | D91: 211.25 | F91: 0
A92: 1175 | B92: Миска из пластмассы для приготовления раствора черная | C92: 211.25 | D92: 211.25 | F92: 0
A93: 3141 | B93: Планшет для окрашивания 30х13 см Новинка!!! | C93: 123.75 | D93: 123.75 | F93: 0
A94: 3142 | B94: Планшет для окрашивания 40х13 см Новинка!!! | C94: 161.25 | D94: 161.25 | F94: 0
A95: 2840 | B95: Термобумага для всех видов окрашивания 10х30 см, 50 шт./уп. | C95: 148.75 | D95: 148.75 | F95: 0
A96: 2841 | B96: Термобумага для всех видов окрашивания 10х40 см, 50 шт./уп. | C96: 198.75 | D96: 198.75 | F96: 0
A97: 2842 | B97: Термобумага для всех видов окрашивания 10х50 см, 50 шт./уп. | C97: 248.75 | D97: 248.75 | F97: 0
A98: 2843 | B98: Термобумага для всех видов окрашивания 15х30 см, 50 шт./уп. | C98: 223.75 | D98: 223.75 | F98: 0
A99: 2844 | B99: Термобумага для всех видов окрашивания 15х40 см, 50 шт./уп. | C99: 298.75 | D99: 298.75 | F99: 0
A100: 2845 | B100: Термобумага для всех видов окрашивания 15х50 см, 50 шт./уп. | C100: 373.75 | D100: 373.75 | F100: 0
B101: Одноразовые аксессуары | C101: 0 | D101: 0 | F101: 0
A102: 2651 | B102: Воротнички для парикмахерских работ спанлейс 7*40 см, 40 г/м2, 100 шт/уп | C102: 111.25 | D102: 111.25 | F102: 0
A103: 2187 | B103: Воротнички для парикмахерских работ, 5*100 шт. | C103: 448.75 | D103: 448.75 | F103: 0
A104: 2654 | B104: Пеньюар полиэтиленовый 50 шт./уп., 100х160 см | C104: 386.25 | D104: 386.25 | F104: 0
A105: 2716 | B105: Пеньюар полиэтиленовый 50 шт./уп., 120х160 см | C105: 448.75 | D105: 448.75 | F105: 0
A106: 2717 | B106: Пеньюар полиэтиленовый 50 шт./уп., 140х160 см | C106: 523.75 | D106: 523.75 | F106: 0
B107: Перчатки | C107: 0 | D107: 0 | F107: 0
B108: Виниловые перчатки | C108: 0 | D108: 0 | F108: 0
A109: 2224 | B109: Виниловые перчатки неопудренные, нестерильные «Vinyl Hands Clean», прозрачные, 100 шт., L | C109: 311.25 | D109: 311.25 | F109: 0
A110: 2223 | B110: Виниловые перчатки неопудренные, нестерильные «Vinyl Hands Clean», прозрачные, 100 шт., M | C110: 311.25 | D110: 311.25 | F110: 0
A111: 2222 | B111: Виниловые перчатки неопудренные, нестерильные «Vinyl Hands Clean», прозрачные, 100 шт., S | C111: 311.25 | D111: 311.25 | F111: 0
A112: 2817 | B112: Виниловые перчатки неопудренные, нестерильные «Vinyl Hands Clean», черные, 100 шт., L | C112: 311.25 | D112: 311.25 | F112: 0
A113: 2815 | B113: Виниловые перчатки неопудренные, нестерильные «Vinyl Hands Clean», черные, 100 шт., S | C113: 311.25 | D113: 311.25 | F113: 0
A114: 2816 | B114: Виниловые перчатки неопудренные, нестерильные «Vinyl Hands Clean», черные, 100 шт., М | C114: 311.25 | D114: 311.25 | F114: 0
B115: Нитриловые перчатки | C115: 0 | D115: 0 | F115: 0
A116: 2237 | B116: Нитриловые перчатки неопудренные, текстурированные, нестерильные «Nitrile Hands Clean», белые, 100 шт., L | C116: 448.75 | D116: =C116-C116*$D$6/100 -> 448.75 | F116: =D116*E116 -> 0
A117: 2236 | B117: Нитриловые перчатки неопудренные, текстурированные, нестерильные «Nitrile Hands Clean», белые, 100 шт., M | C117: 448.75 | D117: 448.75 | F117: 0
A118: 2235 | B118: Нитриловые перчатки неопудренные, текстурированные, нестерильные «Nitrile Hands Clean», белые, 100 шт., S | C118: 448.75 | D118: 448.75 | F118: 0
A119: 2234 | B119: Нитриловые перчатки неопудренные, текстурированные, нестерильные «Nitrile Hands Clean», белые, 100 шт., XS | C119: 448.75 | D119: 448.75 | F119: 0
A120: 2241 | B120: Нитриловые перчатки неопудренные, текстурированные, нестерильные «Nitrile Hands Clean», фиолетовые, 100 шт., L | C120: 448.75 | D120: 448.75 | F120: 0
A121: 2240 | B121: Нитриловые перчатки неопудренные, текстурированные, нестерильные «Nitrile Hands Clean», фиолетовые, 100 шт., M | C121: 448.75 | D121: 448.75 | F121: 0
A122: 2239 | B122: Нитриловые перчатки неопудренные, текстурированные, нестерильные «Nitrile Hands Clean», фиолетовые, 100 шт., S | C122: 448.75 | D122: 448.75 | F122: 0
A123: 2238 | B123: Нитриловые перчатки неопудренные, текстурированные, нестерильные «Nitrile Hands Clean», фиолетовые, 100 шт., XS | C123: 448.75 | D123: 448.75 | F123: 0
A124: 2228 | B124: Нитриловые перчатки неопудренные, текстурированные, нестерильные «Nitrile Hands Clean», черные, 100 шт., L | C124: 448.75 | D124: 448.75 | F124: 0
A125: 2227 | B125: Нитриловые перчатки неопудренные, текстурированные, нестерильные «Nitrile Hands Clean», черные, 100 шт., M | C125: 448.75 | D125: 448.75 | F125: 0
A126: 2226 | B126: Нитриловые перчатки неопудренные, текстурированные, нестерильные «Nitrile Hands Clean», черные, 100 шт., S | C126: 448.75 | D126: 448.75 | F126: 0
A127: 2225 | B127: Нитриловые перчатки неопудренные, текстурированные, нестерильные «Nitrile Hands Clean», черные, 100 шт., XS | C127: 448.75 | D127: 448.75 | F127: 0
B128: Полиэтиленовые перчатки | C128: 0 | D128: 0 | F128: 0
A129: 2653 | B129: Полиэтиленовые перчатки удлинённые, 10 мкм, прозрачные, 100 шт/уп, L | C129: 61.25 | D129: 61.25 | F129: 0
A130: 2746 | B130: Полиэтиленовые перчатки удлинённые, 20 мкм, прозрачные, 50 шт/уп, L | C130: 98.75 | D130: 98.75 | F130: 0
B131: Полотенца | C131: 0 | D131: 0 | F131: 0
B132: Бизнес | C132: 0 | D132: 0 | F132: 0
A133: 2792 | B133: Полотенце одноразовое соты 35*70 cм, 40 г/м2, 50 шт./уп. | C133: 461.25 | D133: 461.25 | F133: 0
A134: 2794 | B134: Полотенце одноразовое соты 45*90 cм, 40 г/м2, 50 шт./уп. | C134: 748.75 | D134: 748.75 | F134: 0
A135: 2793 | B135: Полотенце одноразовое соты в рулоне 35*70 cм, 40 г/м2, 100 шт./уп. | C135: 911.25 | D135: 911.25 | F135: 0
A136: 2795 | B136: Полотенце одноразовое соты в рулоне 45*90 cм, 40 г/м2, 100 шт./уп. | C136: 1487.5 | D136: 1487.5 | F136: 0
B137: Комфорт | C137: 0 | D137: 0 | F137: 0
A138: 2634 | B138: Полотенце одноразовое соты 35*70 cм, 35 г/м2, 50 шт/уп | C138: 348.75 | D138: 348.75 | F138: 0
A139: 2649 | B139: Полотенце одноразовое соты 45*90 cм, 35 г/м2, 50 шт/уп | C139: 548.75 | D139: 548.75 | F139: 0
A140: 2648 | B140: Полотенце одноразовое соты в рулоне 35*70 cм, 35 г/м2, 100 шт/уп | C140: 611.25 | D140: 611.25 | F140: 0
A141: 2650 | B141: Полотенце одноразовое соты в рулоне 45*90 cм, 35 г/м2, 100 шт/уп | C141: 1061.25 | D141: 1061.25 | F141: 0
B142: Премиум | C142: 0 | D142: 0 | F142: 0
A143: 2796 | B143: Полотенце одноразовое соты 35*70 cм, 50 г/м2, 50 шт./уп. | C143: 573.75 | D143: 573.75 | F143: 0
A144: 2798 | B144: Полотенце одноразовое соты 45*90 cм, 50 г/м2, 50 шт./уп. | C144: 936.25 | D144: 936.25 | F144: 0
A145: 2797 | B145: Полотенце одноразовое соты в рулоне 35*70 cм, 50 г/м2, 100 шт./уп. | C145: 1136.25 | D145: 1136.25 | F145: 0
A146: 2799 | B146: Полотенце одноразовое соты в рулоне 45*90 cм, 50 г/м2, 100 шт./уп. | C146: 1862.5 | D146: 1862.5 | F146: 0
B147: Фольга | C147: 0 | D147: 0 | F147: 0
B148: Бизнес | C148: 0 | D148: 0 | F148: 0
A149: 2676 | B149: Фольга алюминиевая для парикмахерских работ 16 мкм, 100 м | C149: 798.75 | D149: 798.75 | F149: 0
A150: 2674 | B150: Фольга алюминиевая для парикмахерских работ 16 мкм, 25 м | C150: 211.25 | D150: 211.25 | F150: 0
A151: 2675 | B151: Фольга алюминиевая для парикмахерских работ 16 мкм, 50 м | C151: 411.25 | D151: 411.25 | F151: 0
A152: 2679 | B152: Фольга алюминиевая перфорированная для парикмахерских работ 16 мкм, 100 м | C152: 936.25 | D152: 936.25 | F152: 0
A153: 2677 | B153: Фольга алюминиевая перфорированная для парикмахерских работ 16 мкм, 25 м | C153: 248.75 | D153: 248.75 | F153: 0
A154: 2678 | B154: Фольга алюминиевая перфорированная для парикмахерских работ 16 мкм, 50 м | C154: 473.75 | D154: 473.75 | F154: 0
B155: Комфорт | C155: 0 | D155: 0 | F155: 0
A156: 2670 | B156: Фольга алюминиевая для парикмахерских работ 14 мкм, 100 м | C156: 723.75 | D156: 723.75 | F156: 0
A157: 2668 | B157: Фольга алюминиевая для парикмахерских работ 14 мкм, 25 м | C157: 198.75 | D157: 198.75 | F157: 0
A158: 2669 | B158: Фольга алюминиевая для парикмахерских работ 14 мкм, 50 м | C158: 373.75 | D158: 373.75 | F158: 0
A159: 2673 | B159: Фольга алюминиевая перфорированная для парикмахерских работ 14 мкм, 100 м | C159: 798.75 | D159: 798.75 | F159: 0
A160: 2671 | B160: Фольга алюминиевая перфорированная для парикмахерских работ 14 мкм, 25 м | C160: 211.25 | D160: 211.25 | F160: 0
A161: 2672 | B161: Фольга алюминиевая перфорированная для парикмахерских работ 14 мкм, 50 м | C161: 411.25 | D161: 411.25 | F161: 0
B162: Премиум | C162: 0 | D162: 0 | F162: 0
A163: 2682 | B163: Фольга алюминиевая для парикмахерских работ 18 мкм, 100 м | C163: 936.25 | D163: 936.25 | F163: 0
A164: 2680 | B164: Фольга алюминиевая для парикмахерских работ 18 мкм, 25 м | C164: 248.75 | D164: 248.75 | F164: 0
A165: 2681 | B165: Фольга алюминиевая для парикмахерских работ 18 мкм, 50 м | C165: 473.75 | D165: 473.75 | F165: 0
A166: 2685 | B166: Фольга алюминиевая перфорированная для парикмахерских работ 18 мкм, 100 м | C166: 1061.25 | D166: 1061.25 | F166: 0
A167: 2683 | B167: Фольга алюминиевая перфорированная для парикмахерских работ 18 мкм, 25 м | C167: 286.25 | D167: 286.25 | F167: 0
A168: 2684 | B168: Фольга алюминиевая перфорированная для парикмахерских работ 18 мкм, 50 м | C168: 536.25 | D168: 536.25 | F168: 0
B169: Палитры | C169: 0 | D169: 0 | F169: 0
A170: 2964 | B170: Палитра цветов Kapous Professional | C170: 3250 | D170: 3250 | F170: 0
A171: 2961 | B171: Палитра цветов Studio Professional Line (114 оттенков) | C171: 3000 | D171: 3000 | F171: 0
A172: 2983 | B172: Палитра цветов серии "Blond Bar" (28 оттенков) | C172: 625 | D172: 625 | F172: 0
B173: Сумки | C173: 0 | D173: 0 | F173: 0
A174: 2252 | B174: Несессер Kapous | C174: 373.75 | D174: 373.75 | F174: 0
A175: 843 | B175: Саквояж | C175: 973.75 | D175: 973.75 | F175: 0
A176: 1614 | B176: Саквояж BIG | C176: 1161.25 | D176: 1161.25 | F176: 0
A177: 1220 | B177: Сумка «Бизнес» | C177: 1362.5 | D177: 1362.5 | F177: 0
A178: 840 | B178: Сумка «Профи» | C178: 498.75 | D178: 498.75 | F178: 0
A179: 2311 | B179: Сумка «Фитнес» | C179: 1362.5 | D179: 1362.5 | F179: 0
A180: 841 | B180: Сумка «Чарли» | C180: 1362.5 | D180: =C180-C180*$D$6/100 -> 1362.5 | F180: =D180*E180 -> 0
A181: 2253 | B181: Сумка-чехол для инструментов Kapous | C181: 373.75 | D181: 373.75 | F181: 0
B182: Швейка | C182: 0 | D182: 0 | F182: 0
A183: 839 | B183: Пелерина | C183: 373.75 | D183: 373.75 | F183: 0
A184: 2254 | B184: Пеньюар «Комфорт» | C184: 1048.75 | D184: 1048.75 | F184: 0
A185: 1583 | B185: Пеньюар «ОнЛайн» | C185: 973.75 | D185: 973.75 | F185: 0
A186: 833 | B186: Пеньюар односторонний | C186: 873.75 | D186: 873.75 | F186: 0
A187: 834 | B187: Пеньюар профессиональный | C187: 936.25 | D187: 936.25 | F187: 0
A188: 835 | B188: Передник лаковый красный | C188: 1362.5 | D188: 1362.5 | F188: 0
A189: 836 | B189: Передник лаковый черный | C189: 1362.5 | D189: 1362.5 | F189: 0
A190: 829 | B190: Туника для мастера | C190: 848.75 | D190: 848.75 | F190: 0
A191: 830 | B191: Туника с открытой спиной | C191: 861.25 | D191: 861.25 | F191: 0
A192: 831 | B192: Фартук для мастера | C192: 773.75 | D192: 773.75 | F192: 0
B193: Ножницы | C193: 0 | D193: 0 | F193: 0
A194: 1166 | B194: 1166 Ножницы «Te-scissors» прямые, 5,5'' | C194: 1748.75 | D194: 1748.75 | F194: 0
A195: 1167 | B195: 1167 Ножницы «Te-scissors» филировочные, 5,5'' | C195: 1748.75 | D195: 1748.75 | F195: 0
A196: 1168 | B196: 1168 Ножницы «Te-scissors» прямые, 5,5'' | C196: 1748.75 | D196: 1748.75 | F196: 0
A197: 1169 | B197: 1169 Ножницы «Te-scissors» прямые, 6'' | C197: 1748.75 | D197: 1748.75 | F197: 0
A198: 1170 | B198: 1170 Ножницы «Te-scissors» филировочные, 6'' | C198: 1748.75 | D198: 1748.75 | F198: 0
A199: 1171 | B199: 1171 Ножницы «Te-scissors» филировочные, 5,5'' | C199: 1748.75 | D199: 1748.75 | F199: 0
A200: 1172 | B200: 1172 Ножницы «Te-scissors» прямые, 5,5'' | C200: 1748.75 | D200: 1748.75 | F200: 0
A201: 1174 | B201: 1174 Ножницы «Te-scissors» филировочные, 5,5'' | C201: 1748.75 | D201: 1748.75 | F201: 0
A202: 1695 | B202: 1695 Ножницы «Pro-scissors B» прямые, 5" | C202: 2487.5 | D202: 2487.5 | F202: 0
... 1421 more rows

Sheet Selective
A1: Ваш торговый представитель______________________
A2: моб. Тел._________________________________________
A3: 109457 г. Москва,ул. Плеханова, дом 4,стр.3 ООО “Компания "Аквакосметика” тел. 8(495)785-99-54,785-99-53 многоканальный сайт: www.steck.ru, e-mail: prof@akva.ru
B4: ПРАЙС-ЛИСТ
B5: SELECTIVE PROFESSIONAL
E6: Проставьте Вашу скидку | I6: %
A7: 2024-04-01
A8: Артикул | B8: Наименование | C8: Объем, мл. | D8: Цена РРЦ | E8: Базовая цена, руб. | F8: Цена с Вашей скидкой | G8: Заказ | H8: Итого
B9: КРАСИТЕЛИ И ТЕХНИЧЕСКИЕ СРЕДСТВА SELECTIVE PROFESSIONAL
B10: GLOW LIQUID COLORS - безаммиачный веганский полуперманентный жидкий краситель для тонирования светлых волос тон в тон | H10: =F10*G10 -> 0
A11: 13581012 | B11: 10.12 Экстра светлый блондин пепельно ирисовый | C11: 60 | D11: 1462.5 | E11: 975 | F11: =E11-E11*$H$6/100 -> 975 | H11: =G11*F11 -> 0
A12: 13581021 | B12: 10.21 Экстра светлый блондин ирисово пепельный | C12: 60 | D12: 1462.5 | E12: 975 | F12: 975 | H12: 0
A13: 13581031 | B13: 10.31 Экстра светлый блондин золотисто пепельный | C13: 60 | D13: 1462.5 | E13: 975 | F13: 975 | H13: 0
A14: 1358091 | B14: 9.1 Очень светлый блондин пепельный | C14: 60 | D14: 1462.5 | E14: 975 | F14: 975 | H14: 0
A15: 1358913 | B15: 9.13 Очень светлый блондин пепельно золотистый | C15: 60 | D15: 1462.5 | E15: 975 | F15: 975 | H15: 0
A16: 1358092 | B16: 9.2 Очень светлый блондин ирисовый | C16: 60 | D16: 1462.5 | E16: 975 | F16: 975 | H16: =G16*F16 -> 0
A17: 1358093 | B17: 9.3 Очень светлый блондин золотистый | C17: 60 | D17: 1462.5 | E17: 975 | F17: 975 | H17: =G17*F17 -> 0
A18: 1358931 | B18: 9.31 Очень светлый блондин золотисто пепельный | C18: 60 | D18: 1462.5 | E18: 975 | F18: 975 | H18: =G18*F18 -> 0
A19: 1358935 | B19: 9.35 Очень светлый блондин золотисто махагоновый | C19: 60 | D19: 1462.5 | E19: 975 | F19: 975 | H19: 0
A20: 1358081 | B20: 8.1 Светлый блондин пепельный | C20: 60 | D20: 1462.5 | E20: 975 | F20: 975 | H20: 0
A21: 1358071 | B21: 7.1 Блондин пепельный | C21: 60 | D21: 1462.5 | E21: 975 | F21: 975 | H21: 0
A22: 1358000 | B22: CLEAR Бесцветный | C22: 60 | D22: 1462.5 | E22: 975 | F22: 975 | H22: 0
A23: 1359005 | B23: Специальный активатор Glow Liquid Color DEVELOPER (5 vol.) 1,5% | C23: 1000 | D23: 1462.5 | E23: 975 | F23: 975 | H23: 0
A24: 1359105 | B24: Специальный активатор Glow Liquid Color DEVELOPER (5 vol.) 1,5% | C24: 100 | D24: 834 | E24: 556 | F24: 556 | H24: 0
A25: 1399002RU | B25: Набор "Taste Pro kit Bleach": "Glow Liquid Color" тон 7.1, 60 мл. + 1 шт. тон 9.35, 60 мл. +1 шт. тон 10.12, 60 мл. + 1 шт. тон CLEAR, 60 мл. + 2 шт. (5 vol.) 1,5% "Glow Liquid Color. DEVELOPER", 100 мл.+1 шт. "Decolorvit FREE HAND", 400 гр.+ 2 шт. "Active Use", 6% (20 vol.), 100 мл.+1 шт. Хелатирующий спрей "N.0 CHELATING SPRAY", 250 мл.+ 1 шт. Реструктурирующий флюид "X BOND FLUID", 125 мл. | D25: 16593 | E25: 11062 | F25: 11062 | H25: 0
A26: 1395802 | B26: Набор TASTE KIT TONE: Пробник ONCARE COLOR BLOCK Шампунь+Кондиционер, 10+10 мл - 1 шт. + Жидкий тонирующий краситель Glow Liquid Color, 60 мл: тон 9.1 - 1 шт + тон 9.3 - 1 шт. + тон 10.12 - 1 шт. + тон 10.31 - 1 шт. + специальный активатор (5 vol.) 1,5% DEVELOPER", 100 мл - 2 шт. + Бумажная брошюра | D26: 5395.5 | E26: 3597 | F26: 3597 | H26: 0
B27: COLOREVO - перманентная крем-краска, содержит питательные и ухаживающие компоненты | F27: 0 | H27: 0
B28: Суперосветляющая серия | F28: 0 | H28: 0
A29: 841000 | B29: 1000 Суперосветляющая натуральная используется в "концептуальных оттенках" | C29: 100 | D29: 1248 | E29: 832 | F29: 832 | H29: 0
A30: 841001 | B30: 1001 Суперосветляющая пепельная | C30: 100 | D30: 1248 | E30: 832 | F30: 832 | H30: 0
A31: 841003 | B31: 1003 Суперосветляющая золотистая используется в "концептуальных оттенках" | C31: 100 | D31: 1248 | E31: 832 | F31: 832 | H31: 0
A32: 841011 | B32: 1011 Суперосветляющая пепельная интенсивная используется в "концептуальных оттенках" | C32: 100 | D32: 1248 | E32: 832 | F32: 832 | H32: 0
A33: 8410171 | B33: 1017 Суперосветляющая "Север" | C33: 100 | D33: 1248 | E33: 832 | F33: 832 | H33: 0
B34: Натуральные оттенки | F34: 0 | H34: 0
A35: 84010 | B35: 10.0 Экстра светлый блондин | C35: 100 | D35: 1248 | E35: 832 | F35: 832 | H35: 0
A36: 84009 | B36: 9.0 Очень светлый блондин | C36: 100 | D36: 1248 | E36: 832 | F36: 832 | H36: 0
A37: 849001 | B37: 9.00 Очень светлый блондин интенсивный | C37: 100 | D37: 1248 | E37: 832 | F37: 832 | H37: 0
A38: 84008 | B38: 8.0 Светлый блондин | C38: 100 | D38: 1248 | E38: 832 | F38: 832 | H38: 0
A39: 84800 | B39: 8.00 Светлый блондин интенсивный | C39: 100 | D39: 1248 | E39: 832 | F39: 832 | H39: 0
A40: 84007 | B40: 7.0 Блондин | C40: 100 | D40: 1248 | E40: 832 | F40: 832 | H40: 0
A41: 84700 | B41: 7.00 Блондин глубокий | C41: 100 | D41: 1248 | E41: 832 | F41: 832 | H41: 0
A42: 84006 | B42: 6.0 Темный блондин | C42: 100 | D42: 1248 | E42: 832 | F42: 832 | H42: 0
A43: 84600 | B43: 6.00 Темный блондин интенсивный используется в "концептуальных оттенках" | C43: 100 | D43: 1248 | E43: 832 | F43: 832 | H43: 0
A44: 84005 | B44: 5.0 Светло-каштановый | C44: 100 | D44: 1248 | E44: 832 | F44: 832 | H44: 0
A45: 84500 | B45: 5.00 Светло-каштановый интенсивный используется в "концептуальных оттенках" | C45: 100 | D45: 1248 | E45: 832 | F45: 832 | H45: 0
A46: 84004 | B46: 4.0 Каштановый | C46: 100 | D46: 1248 | E46: 832 | F46: 832 | H46: 0
A47: 84400 | B47: 4.00 Каштановый интенсивный используется в "концептуальных оттенках" | C47: 100 | D47: 1248 | E47: 832 | F47: 832 | H47: 0
A48: 84003 | B48: 3.0 Темно-каштановый | C48: 100 | D48: 1248 | E48: 832 | F48: 832 | H48: 0
A49: 84300 | B49: 3.00 Темно-каштановый интенсивный | C49: 100 | D49: 1248 | E49: 832 | F49: 832 | H49: 0
A50: 84002 | B50: 2.0 Брюнет | C50: 100 | D50: 1248 | E50: 832 | F50: 832 | H50: 0
A51: 84001 | B51: 1.0 Черный | C51: 100 | D51: 1248 | E51: 832 | F51: 832 | H51: 0
B52: Пепельные оттенки | F52: 0 | H52: 0
A53: 84101 | B53: 10.1 Экстра светлый блондин пепельный используется в "концептуальных оттенках" | C53: 100 | D53: 1248 | E53: 832 | F53: 832 | H53: 0
A54: 841017 | B54: 10.17 Экстра светлый блондин "Скандинавия" используется в "концептуальных оттенках" | C54: 100 | D54: 1248 | E54: 832 | F54: 832 | H54: 0
A55: 84091 | B55: 9.1 Очень светлый блондин пепельный | C55: 100 | D55: 1248 | E55: 832 | F55: 832 | H55: 0
A56: 84911 | B56: 9.11 Очень светлый блондин пепельный интенсивный | C56: 100 | D56: 1248 | E56: 832 | F56: 832 | H56: 0
A57: 84917 | B57: 9.17 Очень светлый блондин "Лёд" используется в "концептуальных оттенках" | C57: 100 | D57: 1248 | E57: 832 | F57: 832 | H57: 0
A58: 84081 | B58: 8.1 Светлый блондин пепельный используется в "концептуальных оттенках" | C58: 100 | D58: 1248 | E58: 832 | F58: 832 | H58: 0
A59: 84811 | B59: 8.11 Светлый блондин пепельный интенсивный | C59: 100 | D59: 1248 | E59: 832 | F59: 832 | H59: 0
A60: 84815 | B60: 8.15 Светлый блондин "Хумус" | C60: 100 | D60: 1248 | E60: 832 | F60: 832 | H60: 0
A61: 84071 | B61: 7.1 Блондин пепельный используется в "концептуальных оттенках" | C61: 100 | D61: 1248 | E61: 832 | F61: 832 | H61: 0
A62: 84711 | B62: 7.11 Блондин пепельный интенсивный | C62: 100 | D62: 1248 | E62: 832 | F62: 832 | H62: 0
A63: 84715 | B63: 7.15 Блондин "ладан" | C63: 100 | D63: 1248 | E63: 832 | F63: 832 | H63: 0
A64: 84601 | B64: 6.01 Темный блондин натурально-пепельный используется в "концептуальных оттенках" | C64: 100 | D64: 1248 | E64: 832 | F64: 832 | H64: 0
A65: 84611 | B65: 6.11 Темный блондин пепельный интенсивный | C65: 100 | D65: 1248 | E65: 832 | F65: 832 | H65: 0
A66: 84615 | B66: 6.15 Темный блондин "Трюфель" | C66: 100 | D66: 1248 | E66: 832 | F66: 832 | H66: 0
A67: 84051 | B67: 5.1 Светло-каштановый пепельный используется в "концептуальных оттенках" | C67: 100 | D67: 1248 | E67: 832 | F67: 832 | H67: 0
A68: 84515 | B68: 5.15 Cветло-каштановый "Кожа" | C68: 100 | D68: 1248 | E68: 832 | F68: 832 | H68: 0
A69: 84415 | B69: 4.15 каштановый "вулкан" | C69: 100 | D69: 1248 | E69: 832 | F69: 832 | H69: 0
A70: 84011 | B70: 1.1 Черно-синий | C70: 100 | D70: 1248 | E70: 832 | F70: 832 | H70: 0
A71: 84902 | B71: 0.1 Синий используется в "концептуальных оттенках" | C71: 100 | D71: 1248 | E71: 832 | F71: 832 | H71: 0
A72: 84903 | B72: 0.11 Пепельный интенсивный используется в "концептуальных оттенках" | C72: 100 | D72: 1248 | E72: 832 | F72: 832 | H72: 0
B73: Золотые оттенки | F73: 0 | H73: 0
A74: 84103 | B74: 10.3 Экстра светлый блондин золотистый используется в "концептуальных оттенках" | C74: 100 | D74: 1248 | E74: 832 | F74: =E74-E74*$H$6/100 -> 832 | H74: 0
A75: 84093 | B75: 9.3 Очень светлый блондин золотистый | C75: 100 | D75: 1248 | E75: 832 | F75: 832 | H75: 0
A76: 84933 | B76: 9.33 Очень светлый блондин золотистый интенсивный | C76: 100 | D76: 1248 | E76: 832 | F76: 832 | H76: 0
A77: 84083 | B77: 8.3 Светлый блондин золотистый используется в "концептуальных оттенках" | C77: 100 | D77: 1248 | E77: 832 | F77: 832 | H77: 0
A78: 84831 | B78: 8.31 Светлый блондин "Гавана" используется в "концептуальных оттенках" | C78: 100 | D78: 1248 | E78: 832 | F78: 832 | H78: 0
A79: 84833 | B79: 8.33 Светлый блондин золотистый интенсивный | C79: 100 | D79: 1248 | E79: 832 | F79: 832 | H79: 0
A80: 84834 | B80: 8.34 Светлый блондин золотисто-медный используется в "концептуальных оттенках" | C80: 100 | D80: 1248 | E80: 832 | F80: 832 | H80: 0
A81: 84073 | B81: 7.3 Блондин золотистый используется в "концептуальных оттенках" | C81: 100 | D81: 1248 | E81: 832 | F81: 832 | H81: 0
A82: 84731 | B82: 7.31 Блондин "Бисквит" используется в "концептуальных оттенках" | C82: 100 | D82: 1248 | E82: 832 | F82: 832 | H82: =G82*F82 -> 0
A83: 84734 | B83: 7.34 Блондин золотисто-медный | C83: 100 | D83: 1248 | E83: 832 | F83: 832 | H83: 0
A84: 84603 | B84: 6.03 Темный блондин натурально-золотистый используется в "концептуальных оттенках" | C84: 100 | D84: 1248 | E84: 832 | F84: 832 | H84: 0
A85: 84063 | B85: 6.3 Темный блондин золотистый | C85: 100 | D85: 1248 | E85: 832 | F85: 832 | H85: 0
A86: 84631 | B86: 6.31 Темный блондин "Глина" | C86: 100 | D86: 1248 | E86: 832 | F86: 832 | H86: 0
A87: 84634 | B87: 6.34 Темный блондин золотисто-медный | C87: 100 | D87: 1248 | E87: 832 | F87: 832 | H87: 0
A88: 84635 | B88: 6.35 Темный блондин "Шоколад" | C88: 100 | D88: 1248 | E88: 832 | F88: 832 | H88: 0
A89: 84503 | B89: 5.03 Светло-каштановый натурально-золотистый | C89: 100 | D89: 1248 | E89: 832 | F89: 832 | H89: 0
A90: 84431 | B90: 4.31 Каштановый "Можжевельник" используется в "концептуальных оттенках" | C90: 100 | D90: 1248 | E90: 832 | F90: 832 | H90: 0
A91: 84435 | B91: 4.35 Каштановый "Кокос" | C91: 100 | D91: 1248 | E91: 832 | F91: 832 | H91: 0
A92: 84904 | B92: 0.3 Желтый используется в "концептуальных оттенках" | C92: 100 | D92: 1248 | E92: 832 | F92: 832 | H92: 0
B93: Бежевые оттенки | F93: 0 | H93: 0
A94: 84102 | B94: 10.2 Экстра светлый блондин бежевый используется в "концептуальных оттенках" | C94: 100 | D94: 1248 | E94: 832 | F94: 832 | H94: 0
A95: 84092 | B95: 9.2 Очень светлый блондин бежевый используется в "концептуальных оттенках" | C95: 100 | D95: 1248 | E95: 832 | F95: 832 | H95: 0
A96: 84923 | B96: 9.23 Очень светлый блондин бежево-золотистый | C96: 100 | D96: 1248 | E96: 832 | F96: 832 | H96: 0
A97: 84927 | B97: 9.27 Очень светлый блондин "Сибирь" | C97: 100 | D97: 1248 | E97: 832 | F97: 832 | H97: 0
A98: 84823 | B98: 8.23 Светлый блондин бежево-золотистый используется в "концептуальных оттенках" | C98: 100 | D98: 1248 | E98: 832 | F98: 832 | H98: 0
A99: 84824 | B99: 8.24 Светлый блондин "Бронза" используется в "концептуальных оттенках" | C99: 100 | D99: 1248 | E99: 832 | F99: 832 | H99: 0
A100: 84827 | B100: 8.27 Светлый блондин "Арктика" | C100: 100 | D100: 1248 | E100: 832 | F100: 832 | H100: 0
A101: 84072 | B101: 7.2 Блондин бежевый используется в "концептуальных оттенках" | C101: 100 | D101: 1248 | E101: 832 | F101: 832 | H101: 0
A102: 84623 | B102: 6.23 Темный блондин бежево-золотистый используется в "концептуальных оттенках" | C102: 100 | D102: 1248 | E102: 832 | F102: 832 | H102: 0
B103: Медные оттенки | F103: 0 | H103: 0
A104: 84104 | B104: 10.4 Экстра светлый блондин медный | C104: 100 | D104: 1248 | E104: 832 | F104: 832 | H104: 0
A105: 84084 | B105: 8.4 Светлый блондин медный используется в "концептуальных оттенках" | C105: 100 | D105: 1248 | E105: 832 | F105: 832 | H105: 0
A106: 84843 | B106: 8.43 Светлый блондин медно-золотистый | C106: 100 | D106: 1248 | E106: 832 | F106: 832 | H106: 0
A107: 84844 | B107: 8.44 Светлый блондин медно-интенсивный используется в "концептуальных оттенках" | C107: 100 | D107: 1248 | E107: 832 | F107: 832 | H107: 0
A108: 84846 | B108: 8.46 Светлый блондин медно-красный | C108: 100 | D108: 1248 | E108: 832 | F108: 832 | H108: 0
A109: 84074 | B109: 7.4 Блондин медный используется в "концептуальных оттенках" | C109: 100 | D109: 1248 | E109: 832 | F109: 832 | H109: 0
A110: 84743 | B110: 7.43 Блондин медно-золотистый | C110: 100 | D110: 1248 | E110: 832 | F110: 832 | H110: 0
A111: 84744 | B111: 7.44 Блондин медный интенсивный используется в "концептуальных оттенках" | C111: 100 | D111: 1248 | E111: 832 | F111: 832 | H111: 0
A112: 84745 | B112: 7.45 Блондин "Корица" | C112: 100 | D112: 1248 | E112: 832 | F112: 832 | H112: 0
A113: 84704 | B113: 7.04 Блондин "Табак" | C113: 100 | D113: 1248 | E113: 832 | F113: 832 | H113: 0
A114: 84064 | B114: 6.4 Темный блондин медный используется в "концептуальных оттенках" | C114: 100 | D114: 1248 | E114: 832 | F114: 832 | H114: 0
A115: 84643 | B115: 6.43 Темный блондин медный золотистый используется в "концептуальных оттенках" | C115: 100 | D115: 1248 | E115: 832 | F115: 832 | H115: 0
A116: 84645 | B116: 6.45 Темный блондин "Терракота" используется в "концептуальных оттенках" | C116: 100 | D116: 1248 | E116: 832 | F116: 832 | H116: 0
A117: 84646 | B117: 6.46 Темный блондин медно-красный используется в "концептуальных оттенках" | C117: 100 | D117: 1248 | E117: 832 | F117: 832 | H117: 0
A118: 84504 | B118: 5.04 Светло-каштановый "Эбеновое дерево" используется в "концептуальных оттенках" | C118: 100 | D118: 1248 | E118: 832 | F118: 832 | H118: 0
B119: Красные оттенки | F119: 0 | H119: 0
A120: 84086 | B120: 8.6 Светлый блондин красный | C120: 100 | D120: 1248 | E120: 832 | F120: 832 | H120: 0
A121: 84764 | B121: 7.64 Блондин медный интенсивный используется в "концептуальных оттенках" | C121: 100 | D121: 1248 | E121: 832 | F121: 832 | H121: 0
A122: 84765 | B122: 7.65 Блондин красно-махагоновый | C122: 100 | D122: 1248 | E122: 832 | F122: 832 | H122: 0
A123: 84766 | B123: 7.66 Блондин красный интенсивный используется в "концептуальных оттенках" | C123: 100 | D123: 1248 | E123: 832 | F123: 832 | H123: 0
A124: 84767 | B124: 7.67 Блондин красно-фиолетовый используется в "концептуальных оттенках" | C124: 100 | D124: 1248 | E124: 832 | F124: 832 | H124: 0
A125: 84666 | B125: 6.66 Блондин красный интенсивный | C125: 100 | D125: 1248 | E125: 832 | F125: 832 | H125: 0
A126: 84565 | B126: 5.65 Светло-каштановый красно-махагоновый | C126: 100 | D126: 1248 | E126: 832 | F126: 832 | H126: 0
A127: 84566 | B127: 5.66 Светло-каштановый красный интенсивный используется в "концептуальных оттенках" | C127: 100 | D127: 1248 | E127: 832 | F127: 832 | H127: 0
A128: 84567 | B128: 5.67 Светло-каштановый красно-фиолетовый используется в "концептуальных оттенках" | C128: 100 | D128: 1248 | E128: 832 | F128: 832 | H128: 0
A129: 84506 | B129: 5.06 Светло-каштановый "Холодный кофе" | C129: 100 | D129: 1248 | E129: 832 | F129: 832 | H129: 0
A130: 84465 | B130: 4.65 Каштановый красно-махагоновый используется в "концептуальных оттенках" | C130: 100 | D130: 1248 | E130: 832 | F130: 832 | H130: 0
A131: 84406 | B131: 4.06 Каштановый "Выжженная земля" используется в "концептуальных оттенках" | C131: 100 | D131: 1248 | E131: 832 | F131: 832 | H131: 0
A132: 84365 | B132: 3.65 Темно-каштановый красно-махагоновый | C132: 100 | D132: 1248 | E132: 832 | F132: 832 | H132: 0
A133: 84905 | B133: 0.66 Красный интенсивный используется в "концептуальных оттенках" | C133: 100 | D133: 1248 | E133: 832 | F133: 832 | H133: 0
B134: Махагоновые оттенки | F134: 0 | H134: 0
A135: 84751 | B135: 7.51 Блондин "Грецкий орех" используется в "концептуальных оттенках" | C135: 100 | D135: 1248 | E135: 832 | F135: 832 | H135: 0
A136: 84705 | B136: 7.05 Блондин "Фундук" используется в "концептуальных оттенках" | C136: 100 | D136: 1248 | E136: 832 | F136: 832 | H136: 0
A137: 84065 | B137: 6.5 Темный блондин махагоновый используется в "концептуальных оттенках" | C137: 100 | D137: 1248 | E137: 832 | F137: 832 | H137: 0
A138: 84651 | B138: 6.51 Темный блондин "Шоколад с орехом" используется в "концептуальных оттенках" | C138: 100 | D138: 1248 | E138: 832 | F138: =E138-E138*$H$6/100 -> 832 | H138: 0
A139: 84605 | B139: 6.05 Темный блондин "Земля Сиены" используется в "концептуальных оттенках" | C139: 100 | D139: 1248 | E139: 832 | F139: 832 | H139: 0
A140: 84055 | B140: 5.5 Светло-каштановый махагоновый используется в "концептуальных оттенках" | C140: 100 | D140: 1248 | E140: 832 | F140: 832 | H140: 0
A141: 84551 | B141: 5.51 Светло-каштановый "Венге" используется в "концептуальных оттенках" | C141: 100 | D141: 1248 | E141: 832 | F141: =E141-E141*$H$6/100 -> 832 | H141: =G141*F141 -> 0
A142: 84505 | B142: 5.05 Светло-каштановый "Каштан" | C142: 100 | D142: 1248 | E142: 832 | F142: 832 | H142: 0
A143: 84045 | B143: 4.5 Каштановый махагоновый используется в "концептуальных оттенках" | C143: 100 | D143: 1248 | E143: 832 | F143: 832 | H143: 0
A144: 84451 | B144: 4.51 Каштановый "Темный шоколад" используется в "концептуальных оттенках" | C144: 100 | D144: 1248 | E144: 832 | F144: 832 | H144: 0
A145: 84353 | B145: 3.53 Темно-каштановый "Тик" | C145: 100 | D145: 1248 | E145: 832 | F145: 832 | H145: 0
A146: 84305 | B146: 3.05 Темно-каштановый "Какао" | C146: 100 | D146: 1248 | E146: 832 | F146: 832 | H146: 0
B147: Фиолетовые оттенки | F147: 0 | H147: 0
A148: 84067 | B148: 6.7 Темный блондин фиолетовый | C148: 100 | D148: 1248 | E148: 832 | F148: 832 | H148: 0
A149: 84676 | B149: 6.76 Темный блондин фиолетово-красный | C149: 100 | D149: 1248 | E149: 832 | F149: 832 | H149: 0
A150: 84057 | B150: 5.7 Светло-каштановый фиолетовый используется в "концептуальных оттенках" | C150: 100 | D150: 1248 | E150: 832 | F150: 832 | H150: 0
A151: 84047 | B151: 4.7 Каштановый фиолетовый | C151: 100 | D151: 1248 | E151: 832 | F151: 832 | H151: 0
A152: 84307 | B152: 3.07 Темно-каштановый "Кьянти" | C152: 100 | D152: 1248 | E152: 832 | F152: 832 | H152: 0
A153: 84906 | B153: 0.77 Фиолетовый интенсивный используется в "концептуальных оттенках" | C153: 100 | D153: 1248 | E153: 832 | F153: 832 | H153: 0
B154: Дополнительные оттенки | F154: 0 | H154: 0
A155: 84900 | B155: 0.00 Нейтральный используется в "концептуальных оттенках" | C155: 100 | D155: 1248 | E155: 832 | F155: 832 | H155: 0
A156: 84901 | B156: CS Корректор осветления используется в "концептуальных оттенках" | C156: 100 | D156: 1248 | E156: 832 | F156: 832 | H156: 0
B157: COLOREVO GLITCH COLOR - крем-краска для цветного мелирования | F157: 0 | H157: 0
A158: 84998 | B158: Glitch Rame Медный | C158: 60 | D158: 1893 | E158: 1262 | F158: 1262 | H158: 0
A159: 84999 | B159: Glitch Rosso Красный | C159: 60 | D159: 1893 | E159: 1262 | F159: 1262 | H159: 0
B160: ОКСИГЕНТЫ COLOREVO | F160: 0 | H160: 0
A161: 85010 | B161: Оксигент "ColorEVO" 3% (10vol) эмульсия окислительная | C161: 1000 | D161: 1234.5 | E161: 823 | F161: 823 | H161: 0
A162: 85020 | B162: Оксигент "ColorEVO" 6% (20vol) эмульсия окислительная | C162: 1000 | D162: 1234.5 | E162: 823 | F162: 823 | H162: 0
A163: 85030 | B163: Оксигент "ColorEVO" 9% (30 vol) эмульсия окислительная | C163: 1000 | D163: 1234.5 | E163: 823 | F163: 823 | H163: 0
A164: 85040 | B164: Оксигент "ColorEVO" 12 % (40vol) эмульсия окислительная | C164: 1000 | D164: 1234.5 | E164: 823 | F164: 823 | H164: 0
A165: 20812 | B165: Оксигент "ColorEVO" 3 % (10vol) эмульсия окислительная | C165: 100 | D165: 304.5 | E165: 203 | F165: 203 | H165: 0
A166: 20822 | B166: Оксигент "ColorEVO" 6 % (20vol) эмульсия окислительная | C166: 100 | D166: 304.5 | E166: 203 | F166: 203 | H166: 0
A167: 20832 | B167: Оксигент "ColorEVO" 9 % (30vol) эмульсия окислительная | C167: 100 | D167: 304.5 | E167: 203 | F167: 203 | H167: 0
A168: 20842 | B168: Оксигент "ColorEVO" 12% (40vol) эмульсия окислительная | C168: 100 | D168: 304.5 | E168: 203 | F168: 203 | H168: 0
B169: REVERSO - перманентная крем-краска, без аммиака и PPD, обогащенная эксклюзивной фреш-смесью SUPERFOOD | F169: 0 | H169: 0
B170: Натуральные оттенки | F170: 0 | H170: 0
A171: 891000 | B171: 1000 "Reverso Hair Color" Блондин ультра натуральный | C171: 100 | D171: 1479 | E171: 986 | F171: 986 | H171: 0
A172: 89010 | B172: 10.0 "Reverso Hair Color" Экстра светлый блондин | C172: 100 | D172: 1479 | E172: 986 | F172: 986 | H172: 0
A173: 89009 | B173: 9.0 "Reverso Hair Color" Очень светлый блондин | C173: 100 | D173: 1479 | E173: 986 | F173: 986 | H173: 0
A174: 89008 | B174: 8.0 "Reverso Hair Color" Светлый блондин | C174: 100 | D174: 1479 | E174: 986 | F174: 986 | H174: 0
A175: 89800 | B175: 8.00 "Reverso Hair Color" Светлый блондин интенсивный | C175: 100 | D175: 1479 | E175: 986 | F175: 986 | H175: 0
A176: 89007 | B176: 7.0 "Reverso Hair Color" Блондин | C176: 100 | D176: 1479 | E176: 986 | F176: 986 | H176: 0
A177: 89700 | B177: 7.00 "Reverso Hair Color" Блондин интенсивный | C177: 100 | D177: 1479 | E177: 986 | F177: 986 | H177: 0
A178: 89006 | B178: 6.0 "Reverso Hair Color" Темный блондин | C178: 100 | D178: 1479 | E178: 986 | F178: 986 | H178: 0
A179: 89600 | B179: 6.00 "Reverso Hair Color" Темный блондин интенсивный | C179: 100 | D179: 1479 | E179: 986 | F179: 986 | H179: 0
A180: 89005 | B180: 5.0 "Reverso Hair Color" Светло-каштановый | C180: 100 | D180: 1479 | E180: 986 | F180: 986 | H180: 0
A181: 89500 | B181: 5.00 "Reverso Hair Color" Светло-каштановый интенсивный | C181: 100 | D181: 1479 | E181: 986 | F181: 986 | H181: 0
A182: 89004 | B182: 4.0 "Reverso Hair Color" Каштановый | C182: 100 | D182: 1479 | E182: 986 | F182: 986 | H182: 0
A183: 89400 | B183: 4.00 "Reverso Hair Color" Каштановый интенсивный | C183: 100 | D183: 1479 | E183: 986 | F183: 986 | H183: 0
A184: 89003 | B184: 3.0 "Reverso Hair Color" Темно-каштановый | C184: 100 | D184: 1479 | E184: 986 | F184: 986 | H184: 0
A185: 89300 | B185: 3.00 "Reverso Hair Color" Темно-каштановый интенсивный | C185: 100 | D185: 1479 | E185: 986 | F185: =E185-E185*$H$6/100 -> 986 | H185: 0
A186: 89002 | B186: 2.0 "Reverso Hair Color" Брюнет | C186: 100 | D186: 1479 | E186: 986 | F186: 986 | H186: 0
A187: 89001 | B187: 1.0 "Reverso Hair Color" Черный | C187: 100 | D187: 1479 | E187: 986 | F187: 986 | H187: 0
B188: Пепельные оттенки | F188: 0 | H188: 0
A189: 891001 | B189: 1001 "Reverso Hair Color" Блондин ультра пепельный | C189: 100 | D189: 1479 | E189: 986 | F189: 986 | H189: 0
A190: 891011 | B190: 1011 "Reverso Hair Color" Блондин ультра пепельный интенсивный | C190: 100 | D190: 1479 | E190: 986 | F190: 986 | H190: 0
A191: 89101 | B191: 10.1 "Reverso Hair Color" Экстра светлый блондин пепельный | C191: 100 | D191: 1479 | E191: 986 | F191: 986 | H191: 0
A192: 89091 | B192: 9.1 "Reverso Hair Color" Очень светлый блондин пепельный | C192: 100 | D192: 1479 | E192: 986 | F192: 986 | H192: 0
A193: 89913 | B193: 9.13 "Reverso Hair Color" Очень светлый блондин "Манилкара" | C193: 100 | D193: 1479 | E193: 986 | F193: 986 | H193: =G193*F193 -> 0
A194: 89917 | B194: 9.17 "Reverso Hair Color" Очень светлый блондин "Дайкон" | C194: 100 | D194: 1479 | E194: 986 | F194: 986 | H194: 0
A195: 89081 | B195: 8.1 "Reverso Hair Color" Светлый блондин пепельный | C195: 100 | D195: 1479 | E195: 986 | F195: 986 | H195: 0
A196: 89813 | B196: 8.13 "Reverso Hair Color" Светлый блондин "Дуриан" | C196: 100 | D196: 1479 | E196: 986 | F196: 986 | H196: 0
A197: 89071 | B197: 7.1 "Reverso Hair Color" Блондин пепельный | C197: 100 | D197: 1479 | E197: 986 | F197: 986 | H197: 0
A198: 89711 | B198: 7.11 "Reverso Hair Color" Блондин пепельный интенсивный | C198: 100 | D198: 1479 | E198: 986 | F198: 986 | H198: 0
A199: 89713 | B199: 7.13 "Reverso Hair Color" Блондин "Тамаринд" | C199: 100 | D199: 1479 | E199: 986 | F199: 986 | H199: 0
A200: 89061 | B200: 6.1 "Reverso Hair Color" Темный блондин пепельный | C200: 100 | D200: 1479 | E200: 986 | F200: 986 | H200: 0
... 359 more rows

Sheet BAREX
A1: Ваш торговый представитель______________________
A2: моб. Тел._________________________________________
A3: 109457 г. Москва,ул. Плеханова, дом 4,стр.3 ООО “Компания "Аквакосметика” тел. 8(495)785-99-54,785-99-53 многоканальный сайт: www.steck.ru, e-mail: prof@akva.ru
E6: Проставьте Вашу скидку | H6: %
B7: ПРАЙС-ЛИСТ BAREX Professional Италия
A8: 2024-04-01
A9: Артикул | B9: Наименование | C9: Объем, мл | E9: цена, с НДС руб. | F9: Цена со скидкой | G9: Заказ | H9: Итого
B10: Линия PERMESSE - перманентный краситель с экстрактом янтаря и комплексом пептидов М4. Хроматическая технология для интенсивного покрытия. | F10: =E10-E10*$G$6/100 -> 0 | H10: =G10*F10 -> 0
B11: Суперосветляющая серия | F11: 0 | H11: 0
A12: 1502-12.0 | B12: 12.0 - Платиновый блондин | C12: 100 | D12: 1510.5 | E12: 1007 | F12: 1007 | H12: 0
A13: 1502-12.031 | B13: 12.031 - Платиновый блондин натуральный бежевый | C13: 100 | D13: 1510.5 | E13: 1007 | F13: 1007 | H13: 0
A14: 1502-12.1 | B14: 12.1 - Платиновый блондин пепельный | C14: 100 | D14: 1510.5 | E14: 1007 | F14: 1007 | H14: 0
A15: 1502-12.1176 | B15: 12.1176 - Платиновый блондин пепельный перламутровый интенсивный | C15: 100 | D15: 1510.5 | E15: 1007 | F15: 1007 | H15: 0
A16: 1502-12.131 | B16: 12.131 - Платиновый блондин пепельный бежевый | C16: 100 | D16: 1510.5 | E16: 1007 | F16: 1007 | H16: 0
A17: 1502-12.176 | B17: 12.176 - Платиновый блондин пепельный перламутровый | C17: 100 | D17: 1510.5 | E17: 1007 | F17: 1007 | H17: 0
A18: 1502-12.76 | B18: 12.76 - Платиновый блондин перламутровый | C18: 100 | D18: 1510.5 | E18: 1007 | F18: 1007 | H18: 0
A19: 1502-11.0 | B19: 11.0 - Ультрасветлый блондин натуральный | C19: 100 | D19: 1510.5 | E19: 1007 | F19: 1007 | H19: 0
A20: 1502-11.01 | B20: 11.01 - Ультрасветлый блондин натуральный пепельный | C20: 100 | D20: 1510.5 | E20: 1007 | F20: 1007 | H20: 0
A21: 1502-11.03 | B21: 11.03 - Ультрасветлый блондин натуральный золотистый | C21: 100 | D21: 1510.5 | E21: 1007 | F21: 1007 | H21: 0
A22: 1502-11.07 | B22: 11.07 - Ультрасветлый блондин натуральный фиолетовый | C22: 100 | D22: 1510.5 | E22: 1007 | F22: 1007 | H22: 0
A23: 1502-11.31 | B23: 11.31 - Ультрасветлый блондин бежевый | C23: 100 | D23: 1510.5 | E23: 1007 | F23: 1007 | H23: 0
A24: 1502-11SS | B24: 11SS - Усилитель осветления | C24: 100 | D24: 1510.5 | E24: 1007 | F24: 1007 | H24: 0
B25: Натуральные оттенки | F25: =E25-E25*$G$6/100 -> 0 | H25: 0
A26: 1502-10.0 | B26: 10.0 - Экстрасветлый блондин натуральный | C26: 100 | D26: 1510.5 | E26: 1007 | F26: 1007 | H26: 0
A27: 1502-10.003 | B27: 10.003 - Экстрасветлый блондин натуральный золотистый | C27: 100 | D27: 1510.5 | E27: 1007 | F27: 1007 | H27: 0
A28: 1502-9.0 | B28: 9.0 - Очень светлый блондин натуральный | C28: 100 | D28: 1510.5 | E28: 1007 | F28: 1007 | H28: 0
A29: 1502-9.00 | B29: 9.00 - Очень светлый блондин натуральный интенсивный | C29: 100 | D29: 1510.5 | E29: 1007 | F29: 1007 | H29: 0
A30: 1502-9.003 | B30: 9.003 - Очень светлый блондин натуральный золотистый | C30: 100 | D30: 1510.5 | E30: 1007 | F30: 1007 | H30: 0
A31: 1502-8.0 | B31: 8.0 - Светлый блондин натуральный | C31: 100 | D31: 1510.5 | E31: 1007 | F31: 1007 | H31: 0
A32: 1502-8.00 | B32: 8.00 - Светлый блондин натуральный интенсивный | C32: 100 | D32: 1510.5 | E32: 1007 | F32: 1007 | H32: 0
A33: 1502-8.003 | B33: 8.003 - Светлый блондин натуральный интенсивный | C33: 100 | D33: 1510.5 | E33: 1007 | F33: 1007 | H33: 0
A34: 1502-7.0 | B34: 7.0 - Блондин натуральный | C34: 100 | D34: 1510.5 | E34: 1007 | F34: 1007 | H34: 0
A35: 1502-7.00 | B35: 7.00 - Блондин натуральный интенсивный | C35: 100 | D35: 1510.5 | E35: 1007 | F35: 1007 | H35: 0
A36: 1502-7.003 | B36: 7.003 - Блондин натуральный золотистый | C36: 100 | D36: 1510.5 | E36: 1007 | F36: 1007 | H36: 0
A37: 1502-6.0 | B37: 6.0 - Темный блондин натуральный | C37: 100 | D37: 1510.5 | E37: 1007 | F37: 1007 | H37: 0
A38: 1502-6.00 | B38: 6.00 - Темный блондин натуральный интенсивный | C38: 100 | D38: 1510.5 | E38: 1007 | F38: 1007 | H38: 0
A39: 1502-6.003 | B39: 6.003 - Темный блондин натуральный золотистый | C39: 100 | D39: 1510.5 | E39: 1007 | F39: 1007 | H39: 0
A40: 1502-5.0 | B40: 5.0 - Светлый каштан натуральный | C40: 100 | D40: 1510.5 | E40: 1007 | F40: 1007 | H40: 0
A41: 1502-5.00 | B41: 5.00 - Светлый каштан натуральный интенсивный | C41: 100 | D41: 1510.5 | E41: 1007 | F41: 1007 | H41: 0
A42: 1502-5.003 | B42: 5.003 - Светлый каштан натуральный золотистый | C42: 100 | D42: 1510.5 | E42: 1007 | F42: 1007 | H42: =G42*F42 -> 0
A43: 1502-4.0 | B43: 4.0 - Каштан натуральный | C43: 100 | D43: 1510.5 | E43: 1007 | F43: 1007 | H43: 0
A44: 1502-4.00 | B44: 4.00 - Каштан натуральный интенсивный | C44: 100 | D44: 1510.5 | E44: 1007 | F44: 1007 | H44: 0
A45: 1502-3.0 | B45: 3.0 - Темный каштан натуральный | C45: 100 | D45: 1510.5 | E45: 1007 | F45: 1007 | H45: 0
A46: 1502-2.0 | B46: 2.0 - Очень темный каштан натуральный | C46: 100 | D46: 1510.5 | E46: 1007 | F46: 1007 | H46: 0
A47: 1502-1.0 | B47: 1.0 - Черный натуральный | C47: 100 | D47: 1510.5 | E47: 1007 | F47: 1007 | H47: 0
B48: Пепельные оттенки | F48: 0 | H48: 0
A49: 1502-10.1 | B49: 10.1 - Экстрасветлый блондин пепельный | C49: 100 | D49: 1510.5 | E49: 1007 | F49: 1007 | H49: 0
A50: 1502-9.1 | B50: 9.1 - Очень светлый блондин пепельный | C50: 100 | D50: 1510.5 | E50: 1007 | F50: 1007 | H50: 0
A51: 1502-9.176 | B51: 9.176 - Очень светлый блондин пепельный перламутровый | C51: 100 | D51: 1510.5 | E51: 1007 | F51: 1007 | H51: 0
A52: 1502-8.1 | B52: 8.1 - Светлый блондин пепельный | C52: 100 | D52: 1510.5 | E52: 1007 | F52: 1007 | H52: 0
A53: 1502-8.176 | B53: 8.176 - Светлый блондин пепельный перламутровый | C53: 100 | D53: 1510.5 | E53: 1007 | F53: 1007 | H53: 0
A54: 1502-7.1 | B54: 7.1 - Блондин пепельный | C54: 100 | D54: 1510.5 | E54: 1007 | F54: 1007 | H54: 0
A55: 1502-6.1 | B55: 6.1 - Темный блондин пепельный | C55: 100 | D55: 1510.5 | E55: 1007 | F55: 1007 | H55: 0
A56: 1502-5.1 | B56: 5.1 - Светлый каштан пепельный | C56: 100 | D56: 1510.5 | E56: 1007 | F56: 1007 | H56: 0
A57: 1502-4.1 | B57: 4.1 - Каштан пепельный | C57: 100 | D57: 1510.5 | E57: 1007 | F57: 1007 | H57: 0
B58: Золотистые оттенки | F58: 0 | H58: 0
A59: 1502-10.3 | B59: 10.3 - Экстрасветлый блондин золотистый | C59: 100 | D59: 1510.5 | E59: 1007 | F59: 1007 | H59: 0
A60: 1502-9.3 | B60: 9.3 - Очень светлый блондин золотистый | C60: 100 | D60: 1510.5 | E60: 1007 | F60: 1007 | H60: 0
A61: 1502-8.3 | B61: 8.3 - Светлый блондин золотистый | C61: 100 | D61: 1510.5 | E61: 1007 | F61: 1007 | H61: 0
A62: 1502-7.3 | B62: 7.3 - Блондин золотистый | C62: 100 | D62: 1510.5 | E62: 1007 | F62: 1007 | H62: 0
A63: 1502-6.3 | B63: 6.3 - Темный блондин золотистый | C63: 100 | D63: 1510.5 | E63: 1007 | F63: =E63-E63*$G$6/100 -> 1007 | H63: 0
A64: 1502-6.31 | B64: 6.31 - Темный блондин золотистый | C64: 100 | D64: 1510.5 | E64: 1007 | F64: 1007 | H64: 0
A65: 1502-6.35 | B65: 6.35 - Темный блондин табачный | C65: 100 | D65: 1510.5 | E65: 1007 | F65: 1007 | H65: 0
A66: 1502-5.3 | B66: 5.3 - Светлый каштан золотистый | C66: 100 | D66: 1510.5 | E66: 1007 | F66: 1007 | H66: 0
A67: 1502-5.35 | B67: 5.35 - Светлый каштан табачный | C67: 100 | D67: 1510.5 | E67: 1007 | F67: 1007 | H67: 0
B68: Бежевые оттенки | F68: 0 | H68: 0
A69: 1502-10.31 | B69: 10.31 - Экстрасветлый блондин бежевый | C69: 100 | D69: 1510.5 | E69: 1007 | F69: 1007 | H69: 0
A70: 1502-9.31 | B70: 9.31 - Очень светлый блондин бежевый | C70: 100 | D70: 1510.5 | E70: 1007 | F70: 1007 | H70: 0
A71: 1502-8.31 | B71: 8.31 - Светлый блондин бежевый | C71: 100 | D71: 1510.5 | E71: 1007 | F71: 1007 | H71: 0
A72: 1502-7.31 | B72: 7.31 - Блондин бежевый | C72: 100 | D72: 1510.5 | E72: 1007 | F72: 1007 | H72: 0
B73: Медные оттенки | F73: 0 | H73: 0
A74: 1502-10.4 | B74: 10.4 - Экстрасветлый блондин медный | C74: 100 | D74: 1510.5 | E74: 1007 | F74: 1007 | H74: =G74*F74 -> 0
A75: 1502-9.4 | B75: 9.4 - Очень светлый блондин медный | C75: 100 | D75: 1510.5 | E75: 1007 | F75: 1007 | H75: 0
A76: 1502-8.40 | B76: 8.40 - Светлый блондин медный прозрачный | C76: 100 | D76: 1510.5 | E76: 1007 | F76: 1007 | H76: 0
A77: 1502-8.43 | B77: 8.43 - Светлый блондин медно-золотистый | C77: 100 | D77: 1510.5 | E77: 1007 | F77: 1007 | H77: 0
A78: 1502-8.44 | B78: 8.44 - Светлый блондин медный интенсивный | C78: 100 | D78: 1510.5 | E78: 1007 | F78: 1007 | H78: 0
A79: 1502-7.4 | B79: 7.4 - Блондин медный | C79: 100 | D79: 1510.5 | E79: 1007 | F79: 1007 | H79: 0
A80: 1502-7.43 | B80: 7.43 - Блондин медно-золотистый | C80: 100 | D80: 1510.5 | E80: 1007 | F80: 1007 | H80: 0
A81: 1502-7.44 | B81: 7.44 - Блондин медный интенсивный | C81: 100 | D81: 1510.5 | E81: 1007 | F81: 1007 | H81: 0
A82: 1502-6.4 | B82: 6.4 - Темный блондин медный | C82: 100 | D82: 1510.5 | E82: 1007 | F82: 1007 | H82: 0
B83: Красные оттенки | F83: 0 | H83: 0
A84: 1502-7.6 | B84: 7.6 - Блондин красный | C84: 100 | D84: 1510.5 | E84: 1007 | F84: 1007 | H84: 0
A85: 1502-6.60 | B85: 6.60 - Темный блондин красный прозрачный | C85: 100 | D85: 1510.5 | E85: 1007 | F85: 1007 | H85: 0
A86: 1502-5.6 | B86: 5.6 - Светлый каштан красный | C86: 100 | D86: 1510.5 | E86: 1007 | F86: =E86-E86*$G$6/100 -> 1007 | H86: 0
B87: Шоколадные оттенки | F87: 0 | H87: 0
A88: 1502-8.73 | B88: 8.73 - Светлый блондин "Тропический" | C88: 100 | D88: 1510.5 | E88: 1007 | F88: 1007 | H88: 0
A89: 1502-8.8 | B89: 8.8 - Светлый блондин "Молочный шейк и шоколад" | C89: 100 | D89: 1510.5 | E89: 1007 | F89: 1007 | H89: 0
A90: 1502-7.73 | B90: 7.73 - Блондин "Тропический" | C90: 100 | D90: 1510.5 | E90: 1007 | F90: 1007 | H90: 0
A91: 1502-7.8 | B91: 7.8 - Блондин "Карамель и шоколад" | C91: 100 | D91: 1510.5 | E91: 1007 | F91: 1007 | H91: 0
A92: 1502-6.73 | B92: 6.73 - Темный блондин "Тропический" | C92: 100 | D92: 1510.5 | E92: 1007 | F92: 1007 | H92: 0
A93: 1502-6.8 | B93: 6.8 - Темный блондин "Кофе и шоколад" | C93: 100 | D93: 1510.5 | E93: 1007 | F93: 1007 | H93: 0
A94: 1502-5.8 | B94: 5.8 - Светлый каштан "Крем и шоколад" | C94: 100 | D94: 1510.5 | E94: 1007 | F94: 1007 | H94: 0
A95: 1502-4.8 | B95: 4.8 - Каштан "Горький шоколад" | C95: 100 | D95: 1510.5 | E95: 1007 | F95: 1007 | H95: 0
B96: Фиолетовые оттенки | F96: 0 | H96: 0
A97: 1502-10.7 | B97: 10.7 - Экстрасветлый блондин фиолетовый | C97: 100 | D97: 1510.5 | E97: 1007 | F97: =E97-E97*$G$6/100 -> 1007 | H97: =G97*F97 -> 0
A98: 1502-9.7 | B98: 9.7 - Очень светлый блондин фиолетовый | C98: 100 | D98: 1510.5 | E98: 1007 | F98: 1007 | H98: 0
A99: 1502-6.70 | B99: 6.70 - Темный блондин фиолетовый прозрачный | C99: 100 | D99: 1510.5 | E99: 1007 | F99: 1007 | H99: 0
A100: 1502-5.7 | B100: 5.7 - Светлый каштан фиолетовый | C100: 100 | D100: 1510.5 | E100: 1007 | F100: 1007 | H100: 0
A101: 1502-4.70 | B101: 4.70 - Каштан фиолетовый прозрачный | C101: 100 | D101: 1510.5 | E101: 1007 | F101: 1007 | H101: 0
A102: 1502-1.1 | B102: 1.1 - Черно-синий | C102: 100 | D102: 1510.5 | E102: 1007 | F102: 1007 | H102: 0
A103: 1502-1.7 | B103: 1.7 - Черно-фиолетовый | C103: 100 | D103: 1510.5 | E103: 1007 | F103: 1007 | H103: 0
B104: КОРРЕКТОРЫ PERMESSE | F104: 0 | H104: 0
A105: 1502-CR | B105: Корректор красный Rosso | C105: 100 | D105: 1510.5 | E105: 1007 | F105: 1007 | H105: 0
A106: 1502-CC | B106: Корректор пепельный Cenere | C106: 100 | D106: 1510.5 | E106: 1007 | F106: 1007 | H106: 0
A107: 1502-CA | B107: Корректор серебряный Argento | C107: 100 | D107: 1510.5 | E107: 1007 | F107: 1007 | H107: 0
A108: 1502-CV | B108: Корректор фиолетовый Viola | C108: 100 | D108: 1510.5 | E108: 1007 | F108: 1007 | H108: 0
B109: АКТИВАТОРЫ PERMESSE | F109: 0 | H109: 0
A110: 150100 | B110: Активатор "EXPERT'S DELIGHT" 3% | C110: 1000 | D110: 1773.954 | E110: 1182.636 | F110: 1182.636 | H110: 0
A111: 150105 | B111: Активатор "EXPERT'S DELIGHT" 6% | C111: 1000 | D111: 1773.954 | E111: 1182.636 | F111: 1182.636 | H111: 0
A112: 150110 | B112: Активатор "EXPERT'S DELIGHT" 9% | C112: 1000 | D112: 1773.954 | E112: 1182.636 | F112: 1182.636 | H112: 0
A113: 150115 | B113: Активатор "EXPERT'S DELIGHT" 12% | C113: 1000 | D113: 1773.954 | E113: 1182.636 | F113: 1182.636 | H113: 0
A114: 150101 | B114: Активатор "EXPERT'S DELIGHT" 3% | C114: 200 | D114: 947.24595 | E114: 631.4973 | F114: 631.4973 | H114: 0
A115: 150106 | B115: Активатор "EXPERT'S DELIGHT" 6% | C115: 200 | D115: 947.24595 | E115: 631.4973 | F115: 631.4973 | H115: 0
A116: 150111 | B116: Активатор "EXPERT'S DELIGHT" 9% | C116: 200 | D116: 947.24595 | E116: 631.4973 | F116: 631.4973 | H116: 0
A117: 150116 | B117: Активатор "EXPERT'S DELIGHT" 12% | C117: 200 | D117: 947.24595 | E117: 631.4973 | F117: 631.4973 | H117: 0
B118: Линия JOC COLOR - перманентный краситель с пониженным содержанием аммиака. Глубокое и стойкое окрашивание и абсолютная однородность цвета. | F118: 0 | H118: 0
B119: Суперосветляющая серия | F119: 0 | H119: 0
A120: 1400-12.0 | B120: 12.0 - Экстраплатиновый блондин | C120: 100 | D120: 1207.6533 | E120: 805.1022 | F120: 805.1022 | H120: 0
A121: 1400-12.11 | B121: 12.11 - Экстраплатиновый блондин пепельный интенсивный | C121: 100 | D121: 1207.6533 | E121: 805.1022 | F121: 805.1022 | H121: 0
A122: 1400-12.2 | B122: 12.2 - Экстраплатиновый блондин жемчужный | C122: 100 | D122: 1207.6533 | E122: 805.1022 | F122: 805.1022 | H122: 0
A123: 1400-12.21 | B123: 12.21 - Экстраплатиновый блондин жемчужный пепельный | C123: 100 | D123: 1207.6533 | E123: 805.1022 | F123: 805.1022 | H123: 0
A124: 1400-12.7 | B124: 12.7 - Экстраплатиновый блондин фиолетовый | C124: 100 | D124: 1207.6533 | E124: 805.1022 | F124: 805.1022 | H124: 0
A125: 1400-12.71 | B125: 12.71 - Экстраплатиновый блондин фиолетовый пепельный | C125: 100 | D125: 1207.6533 | E125: 805.1022 | F125: 805.1022 | H125: 0
A126: 1400-12.75 | B126: 12.75 - Экстраплатиновый блондин фиолетовый махагоновый | C126: 100 | D126: 1207.6533 | E126: 805.1022 | F126: 805.1022 | H126: 0
A127: 1400-11.00 | B127: 11.00 - Ультрасветлый блондин натуральный | C127: 100 | D127: 1207.6533 | E127: 805.1022 | F127: 805.1022 | H127: 0
A128: 1400-11.013 | B128: 11.013 - Ультрасветлый блондин натуральный пепельный золотистый "Пески Антигуа" | C128: 100 | D128: 1207.6533 | E128: 805.1022 | F128: 805.1022 | H128: 0
A129: 1400-11.10 | B129: 11.10 - Ультрасветлый блондин пепельный прозрачный | C129: 100 | D129: 1207.6533 | E129: 805.1022 | F129: 805.1022 | H129: 0
A130: 1400-11.11 | B130: 11.11 - Ультрасветлый блондин пепельный интенсивный | C130: 100 | D130: 1207.6533 | E130: 805.1022 | F130: 805.1022 | H130: 0
A131: 1400-11.12 | B131: 11.12 - Ультрасветлый блондин пепельный жемчужный | C131: 100 | D131: 1207.6533 | E131: 805.1022 | F131: 805.1022 | H131: 0
A132: 1400-11.31 | B132: 11.31 - Ультрасветлый блондин золотистый пепельный "бежевый" | C132: 100 | D132: 1207.6533 | E132: 805.1022 | F132: 805.1022 | H132: 0
A133: 1400-000 | B133: 000 - Усилитель осветления | C133: 100 | D133: 1207.6533 | E133: 805.1022 | F133: 805.1022 | H133: 0
B134: Натуральные оттенки | F134: 0 | H134: 0
A135: 1400-10.0 | B135: 10.0 - Экстрасветлый блондин натуральный | C135: 100 | D135: 1207.6533 | E135: 805.1022 | F135: 805.1022 | H135: 0
A136: 1400-9.0 | B136: 9.0 - Очень светлый блондин натуральный | C136: 100 | D136: 1207.6533 | E136: 805.1022 | F136: 805.1022 | H136: 0
A137: 1400-9.013 | B137: 9.013 - Очень светлый блондин натуральный пепельный золотистый "Пески Акапулько" | C137: 100 | D137: 1207.6533 | E137: 805.1022 | F137: 805.1022 | H137: 0
A138: 1400-8.0 | B138: 8.0 - Светлый блондин натуральный | C138: 100 | D138: 1207.6533 | E138: 805.1022 | F138: 805.1022 | H138: 0
A139: 1400-8.013 | B139: 8.013 - Светлый блондин натуральный пепельный золотистый "Пески Таити" | C139: 100 | D139: 1207.6533 | E139: 805.1022 | F139: 805.1022 | H139: 0
A140: 1400-7.013 | B140: 7.013 - Блондин натуральный пепельный золотистый "Пески Малибу" | C140: 100 | D140: 1207.6533 | E140: 805.1022 | F140: 805.1022 | H140: 0
A141: 1400-7.0 | B141: 7.0 - Блондин натуральный | C141: 100 | D141: 1207.6533 | E141: 805.1022 | F141: 805.1022 | H141: 0
A142: 1400-6.0 | B142: 6.0 - Темный блондин натуральный | C142: 100 | D142: 1207.6533 | E142: 805.1022 | F142: 805.1022 | H142: 0
A143: 1400-5.0 | B143: 5.0 - Светлый каштан натуральный | C143: 100 | D143: 1207.6533 | E143: 805.1022 | F143: 805.1022 | H143: 0
A144: 1400-5.05 | B144: 5.05 - Светлый каштан натуральный махагоновый "Сливки и шоколад" | C144: 100 | D144: 1207.6533 | E144: 805.1022 | F144: 805.1022 | H144: 0
A145: 1400-4.0 | B145: 4.0 - Каштан натуральный | C145: 100 | D145: 1207.6533 | E145: 805.1022 | F145: 805.1022 | H145: 0
A146: 1400-4.05 | B146: 4.05 - Каштан натуральный махагоновый "Крем и шоколад" | C146: 100 | D146: 1207.6533 | E146: 805.1022 | F146: 805.1022 | H146: 0
A147: 1400-3.0 | B147: 3.0 - Темный каштан натуральный | C147: 100 | D147: 1207.6533 | E147: 805.1022 | F147: 805.1022 | H147: 0
A148: 1400-3.05 | B148: 3.05 - Темный каштан натуральный махагоновый "Горький шоколад" | C148: 100 | D148: 1207.6533 | E148: 805.1022 | F148: 805.1022 | H148: 0
A149: 1400-2.0 | B149: 2.0 - Очень темный каштан натуральный | C149: 100 | D149: 1207.6533 | E149: 805.1022 | F149: 805.1022 | H149: 0
A150: 1400-1.0 | B150: 1.0 - Черный натуральный | C150: 100 | D150: 1207.6533 | E150: 805.1022 | F150: 805.1022 | H150: 0
B151: Пепельные и жемчужные оттенки | F151: 0 | H151: 0
A152: 1400-10.1 | B152: 10.1 - Экстрасветлый блондин пепельный | C152: 100 | D152: 1207.6533 | E152: 805.1022 | F152: 805.1022 | H152: 0
A153: 1400-10.21 | B153: 10.21 - Экстрасветлый блондин жемчужный пепельный | C153: 100 | D153: 1207.6533 | E153: 805.1022 | F153: 805.1022 | H153: 0
A154: 1400-9.1 | B154: 9.1 - Очень светлый блондин пепельный | C154: 100 | D154: 1207.6533 | E154: 805.1022 | F154: 805.1022 | H154: 0
A155: 1400-9.11 | B155: 9.11 - Очень светлый блондин пепельный интенсивный | C155: 100 | D155: 1207.6533 | E155: 805.1022 | F155: 805.1022 | H155: 0
A156: 1400-9.21 | B156: 9.21 - Очень светлый блондин жемчужный пепельный | C156: 100 | D156: 1207.6533 | E156: 805.1022 | F156: 805.1022 | H156: 0
A157: 1400-8.1 | B157: 8.1 - Светлый блондин пепельный | C157: 100 | D157: 1207.6533 | E157: 805.1022 | F157: 805.1022 | H157: 0
A158: 1400-8.21 | B158: 8.21 - Светлый блондин жемчужный пепельный | C158: 100 | D158: 1207.6533 | E158: 805.1022 | F158: 805.1022 | H158: 0
A159: 1400-7.1 | B159: 7.1 - Блондин пепельный | C159: 100 | D159: 1207.6533 | E159: 805.1022 | F159: 805.1022 | H159: 0
A160: 1400-7.11 | B160: 7.11 - Блондин пепельный интенсивный | C160: 100 | D160: 1207.6533 | E160: 805.1022 | F160: 805.1022 | H160: 0
A161: 1400-6.1 | B161: 6.1 - Темный блондин пепельный | C161: 100 | D161: 1207.6533 | E161: 805.1022 | F161: =E161-E161*$G$6/100 -> 805.1022 | H161: =G161*F161 -> 0
A162: 1400-5.1 | B162: 5.1 - Светлый каштан пепельный | C162: 100 | D162: 1207.6533 | E162: 805.1022 | F162: 805.1022 | H162: 0
A163: 1400-5.11 | B163: 5.11 - Светлый каштан пепельный интенсивный | C163: 100 | D163: 1207.6533 | E163: 805.1022 | F163: 805.1022 | H163: 0
B164: Золотистые оттенки | F164: 0 | H164: 0
A165: 1400-9.3 | B165: 9.3 - Очень светлый блондин золотистый | C165: 100 | D165: 1207.6533 | E165: 805.1022 | F165: 805.1022 | H165: 0
A166: 1400-8.3 | B166: 8.3 - Светлый блондин золотистый | C166: 100 | D166: 1207.6533 | E166: 805.1022 | F166: 805.1022 | H166: 0
A167: 1400-7.3 | B167: 7.3 - Блондин золотистый | C167: 100 | D167: 1207.6533 | E167: 805.1022 | F167: 805.1022 | H167: 0
A168: 1400-6.3 | B168: 6.3 - Темный блондин золотистый | C168: 100 | D168: 1207.6533 | E168: 805.1022 | F168: 805.1022 | H168: 0
A169: 1400-6.35 | B169: 6.35 - Темный блондин золотистый махагоновый "Табачный" | C169: 100 | D169: 1207.6533 | E169: 805.1022 | F169: 805.1022 | H169: 0
A170: 1400-5.3 | B170: 5.3 - Светлый каштан золотистый | C170: 100 | D170: 1207.6533 | E170: 805.1022 | F170: 805.1022 | H170: 0
A171: 1400-5.35 | B171: 5.35 - Светлый каштан золотистый махагоновый "Табачный" | C171: 100 | D171: 1207.6533 | E171: 805.1022 | F171: 805.1022 | H171: 0
A172: 1400-4.35 | B172: 4.35 - Каштан золотистый махагоновый "Табачный" | C172: 100 | D172: 1207.6533 | E172: 805.1022 | F172: 805.1022 | H172: 0
B173: Бежевые оттенки | F173: 0 | H173: 0
A174: 1400-10.31 | B174: 10.31 - Экстрасветлый блондин золотистый пепельный "бежевый" | C174: 100 | D174: 1207.6533 | E174: 805.1022 | F174: 805.1022 | H174: 0
A175: 1400-9.31 | B175: 9.31 - Очень светлый блондин золотистый пепельный "бежевый" | C175: 100 | D175: 1207.6533 | E175: 805.1022 | F175: 805.1022 | H175: 0
A176: 1400-8.31 | B176: 8.31 - Светлый блондин золотистый пепельный "бежевый" | C176: 100 | D176: 1207.6533 | E176: 805.1022 | F176: 805.1022 | H176: 0
A177: 1400-7.31 | B177: 7.31 - Блондин золотистый пепельный "бежевый" | C177: 100 | D177: 1207.6533 | E177: 805.1022 | F177: 805.1022 | H177: 0
B178: Медные оттенки | F178: 0 | H178: 0
A179: 1400-8.43 | B179: 8.43 - Светлый блондин медный золотистый | C179: 100 | D179: 1207.6533 | E179: 805.1022 | F179: 805.1022 | H179: 0
A180: 1400-8.44 | B180: 8.44 - Светлый блондин медный интенсивный | C180: 100 | D180: 1207.6533 | E180: 805.1022 | F180: 805.1022 | H180: 0
A181: 1400-7.4 | B181: 7.4 - Блондин медный | C181: 100 | D181: 1207.6533 | E181: 805.1022 | F181: 805.1022 | H181: 0
A182: 1400-7.44 | B182: 7.44 - Блондин медный интенсивный | C182: 100 | D182: 1207.6533 | E182: 805.1022 | F182: 805.1022 | H182: 0
B183: Красные оттенки | F183: 0 | H183: 0
A184: 1400-7.66 | B184: 7.66 - Блондин красный интенсивный | C184: 100 | D184: 1207.6533 | E184: 805.1022 | F184: 805.1022 | H184: 0
A185: 1400-6.6 | B185: 6.6 - Темный блондин красный | C185: 100 | D185: 1207.6533 | E185: 805.1022 | F185: 805.1022 | H185: 0
B186: Коричневые оттенки | F186: 0 | H186: 0
A187: 1400-7.9 | B187: 7.9 - Блондин коричневый "Глазированные каштаны" | C187: 100 | D187: 1207.6533 | E187: 805.1022 | F187: 805.1022 | H187: 0
A188: 1400-6.9 | B188: 6.9 - Темный блондин коричневый "Глазированные каштаны" | C188: 100 | D188: 1207.6533 | E188: 805.1022 | F188: 805.1022 | H188: 0
A189: 1400-5.9 | B189: 5.9 - Светлый каштан коричневый "Глазированные каштаны" | C189: 100 | D189: 1207.6533 | E189: 805.1022 | F189: 805.1022 | H189: 0
B190: Фиолетовые оттенки | F190: 0 | H190: 0
A191: 1400-9.7 | B191: 9.7 - Очень светлый блондин фиолетовый | C191: 100 | D191: 1207.6533 | E191: 805.1022 | F191: 805.1022 | H191: 0
A192: 1400-8.7 | B192: 8.7 - Светлый блондин фиолетовый | C192: 100 | D192: 1207.6533 | E192: 805.1022 | F192: 805.1022 | H192: 0
A193: 1400-4.7 | B193: 4.7 - Каштан фиолетовый | C193: 100 | D193: 1207.6533 | E193: 805.1022 | F193: 805.1022 | H193: 0
A194: 1400-2.10 | B194: 2.10 - Черно-синий интенсивный | C194: 100 | D194: 1207.6533 | E194: 805.1022 | F194: 805.1022 | H194: 0
B195: КОРРЕКТОРЫ JOC COLOR | F195: 0 | H195: 0
A196: 1400-0.1 | B196: 0.1 - Корректор пепельный | C196: 100 | D196: 1207.6533 | E196: 805.1022 | F196: 805.1022 | H196: 0
A197: 1400-0.10 | B197: 0.10 - Корректор синий | C197: 100 | D197: 1207.6533 | E197: 805.1022 | F197: 805.1022 | H197: 0
A198: 1400-0.6 | B198: 0.6 - Корректор красный | C198: 100 | D198: 1207.6533 | E198: 805.1022 | F198: 805.1022 | H198: 0
A199: 1400-0.7 | B199: 0.7 - Корректор фиолетовый | C199: 100 | D199: 1207.6533 | E199: 805.1022 | F199: 805.1022 | H199: 0
B200: ОКСИГЕНТЫ JOC COLOR | F200: 0 | H200: 0
A201: 140030 | B201: Оксигент 3%(10vol) с эффектом блеска | C201: 1000 | D201: 1640.023 | E201: 1093.348667 | F201: 1093.348667 | H201: 0
A202: 140035 | B202: Оксигент 6%(20vol) с эффектом блеска | C202: 1000 | D202: 1640.023 | E202: 1093.348667 | F202: 1093.348667 | H202: 0
... 276 more rows

Sheet ESTEL
A1: Ваш торговый представитель______________________
A2: моб. Тел._________________________________________
A3: 109457 г. Москва,ул. Плеханова, дом 4,стр.3 ООО “Компания "Аквакосметика” тел. 8(495)785-99-54,785-99-53 многоканальный сайт: www.steck.ru, e-mail: prof@akva.ru
B6: ПРАЙС-ЛИСТ ESTEL PROFESSINAL
A8: 2024-04-01 | B8: Наша компания не является дистрибьютором по ESTEL, мы не можем предоставить вам оптовые цены
A9: Артикул | B9: Наименование товара | C9: Цена РРЦ, руб. с НДС | D9: ВАШ ЗАКАЗ
D10: Заказ (шт.) | E10: Сумма
B11: ALPHA | E11: =C11*D11 -> 0
B12: ОЧИЩЕНИЕ ВОЛОС. НОВИНКА! | E12: 0
A13: A/TS1000 | B13: A/TS1000 Тонизирующий шампунь для волос с охлаждающим эффектом ESTEL ALPHA PRO, 1000 мл | C13: 1510 | E13: 0
A14: A/FSS250 | B14: A/FSS250 Скраб для кожи лица и головы ESTEL ALPHA PRO, 250 мл | C14: 950 | E14: 0
A15: A/TS300 | B15: A/TS300 Тонизирующий шампунь для волос с охлаждающим эффектом ESTEL ALPHA , 300 мл | C15: 730 | E15: =C15*D15 -> 0
A16: A/SP300 | B16: A/SP300 Шампунь для волос от перхоти ESTEL ALPHA, 300 мл | C16: 750 | E16: 0
A17: A/SA300 | B17: A/SA300 Шампунь-активатор роста волос ESTEL ALPHA , 300 мл | C17: 750 | E17: =C17*D17 -> 0
A18: A/B250 | B18: A/B250 Бальзам-кондиционер для волос ESTEL ALPHA , 250 мл | C18: 730 | E18: 0
B19: Бритье НОВИНКА! | E19: =C19*D19 -> 0
A20: A/LA100 | B20: A/LA100 Лосьон после бритья ESTEL ALPHA, 100 мл | C20: 670 | E20: 0
A21: A/FCR250 | B21: A/FCR250 Крем для бритья пенящийся ESTEL ALPHA PRO, 250 мл | C21: 950 | E21: 0
A22: A/PRE250 | B22: A/PRE250 Крем охлаждающий перед бритьём ESTEL ALPHA PRO, 250 мл | C22: 950 | E22: 0
A23: AH/OIL190 | B23: AH/OIL190 Масло для бритья ESTEL ALPHA HOMME PRO, 190 мл | C23: 1620 | E23: 0
A24: AH/PREC250 | B24: AH/PREC250 Крем охлаждающий перед бритьем PRE-SHAVE ESTEL ALPHA HOMME PRO, 250 мл | C24: 865 | E24: 0
A25: A/LS100 | B25: A/LS100 Лосьон после бритья для чувствительной кожи ESTEL ALPHA, 100 мл | C25: 670 | E25: 0
B26: Стайлинг НОВИНКА! | E26: 0
A27: A/LG100 | B27: A/LG100 Гель для укладки волос ESTEL ALPHA лёгкая фиксация , 100 мл | C27: 490 | E27: 0
A28: A/CP100 | B28: A/CP100 Крем-паста для волос с матовым эффектом ESTEL ALPHA нормальная фиксация, 100 мл | C28: 550 | E28: 0
A29: AH/BBL30 | B29: AH/BBL30 Бальзам для ухода за бородой ESTEL ALPHA HOMME, 30 мл | C29: 280 | E29: 0
B30: ALPHA MARINE. НОВИНКА! | E30: 0
A31: A/MS1000 | B31: A/MS1000 Шампунь для волос ESTEL ALPHA MARINE PRO, 1000 мл | C31: 1510 | E31: 0
A32: A/MG250 | B32: A/MG250 Гель для душа ESTEL ALPHA MARINE, 250 мл | C32: 670 | E32: 0
A33: A/MS300 | B33: A/MS300 Шампунь для волос ESTEL ALPHA MARINE, 300 мл | C33: 750 | E33: 0
A34: A/ML100 | B34: A/ML100 Лосьон после бритья ESTEL ALPHA MARINE , 100 мл | C34: 670 | E34: 0
B35: ALPHA GENWOOD НОВИНКА! | E35: 0
A36: A/GS1000 | B36: A/GS1000 Шампунь для волос ESTEL ALPHA GENWOOD PRO, 1000 мл | C36: 1510 | E36: 0
A37: A/GS300 | B37: A/GS300 Шампунь для волос и тела ESTEL ALPHA GENWOOD , 300 мл | C37: 750 | E37: 0
B38: PRO КАМУФЛЯЖ | E38: 0
A39: A/PCO3 | B39: A/PCO3 Крем-оксигент 3% ESTEL ALPHA PRO, 200 мл | C39: 270 | E39: 0
B40: Набор для камуфляжа | E40: 0
A41: A4/K | B41: A4/K Краска-камуфляж для седины ESTEL ALPHA 4/0 Шатен (Краска 10 мл., оксигент 6% 10 мл., пенообразо | C41: 470 | E41: 0
A42: A5/K | B42: A5/K Краска-камуфляж для седины ESTEL ALPHA 5/0 Светлый шатен (Краска 10 мл., оксигент 6% 10 мл., п | C42: 470 | E42: 0
A43: A6/K | B43: A6/K Краска-камуфляж для седины ESTEL ALPHA 6/0 Тёмно-русый (Краска 10 мл., оксигент 6% 10 мл., пен | C43: 470 | E43: 0
A44: A7/K | B44: A7/K Краска-камуфляж для седины ESTEL ALPHA 7/0 Русый (Краска 10 мл., оксигент 6% 10 мл., пенообраз | C44: 470 | E44: 0
B45: АРОМАТ ЦВЕТА | E45: 0
A46: BLA/S250 | B46: BLA/S250 Цветочный шампунь для волос ESTEL BLANC, 250 мл | C46: 935 | E46: 0
